Workbook

Sheet يناير
A4: م | B4: الاسم | C4: الوظيفة | D4: الادارة | E4: ATM | F4: الاجر الاساسى | G4: الاجر الاساسى بعد عدم الحضور | H4: مكافأت | I4: حافز بيع | J4: اضافى | K4: الاجر التامينى | L4: المنشأة | M4: اجمالي الاستحقاقات | N4: المنشأة2 | O4: الموظف | P4: عدم الحضور باليوم | Q4: عدم حضور بالجنيه | R4: مصروف صيانه | S4: سلف | T4: جزاءات | U4: اجمالي الاستقطاعات | V4: قبل الضريبة | W4: اعفاء شخصى | X4: الوعاء الضريبى | Y4: الوعاء الضريبى على اساس السنوى | Z4: الضريبة المستحقة | AA4: الصافى | AB4: خصم تكافلي | AC4: خصم الشهيد | AD4: الصافي المستحق للصرف
A5: 1 | B5: Ahmed | C5: ACC | D5: Financial | E5: 123456A | F5: 5000 | G5: =F5-Q5 -> 5000 | H5: 0 | I5: 0 | J5: 0 | K5: =IF(F5>8100,8100,F5*0.8) -> 4000 | L5: =K5*18.75/100 -> 750 | M5: =F5+H5+I5+J5 -> 5000 | N5: =L5 -> 750 | O5: =K5*0.11 -> 440 | Q5: =P5*F5/30 -> 0 | U5: =Q5+S5+T5+O5+R5 -> 440 | V5: =M5-O5-Q5 -> 4560 | W5: 750 | X5: =IF((V5+J5)>W5,(V5+J5)-W5,0) -> 3810 | Y5: =X5*12 -> 45720 | Z5: =IF((Y5<=15000),(Y5*0%),IF((Y5<=30000),(Y5*2.5%)-375,IF((Y5<=45000),(Y5*10%)-2625,IF((Y5<=60000),(Y5*15%)-4875,IF((Y5<=200000),(Y5*20%)-7875,IF((Y5<=400000),(Y5*22.5%)-12875,IF((Y5<=600000),(Y5*25%)-22875,IF((Y5<=700000),(Y5*25%)-22500,IF((Y5<=800000),(Y5*25%)-20250,IF((Y5<=900000),(Y5*25%)-18000,IF((Y5<=1000000),(Y5*25%)-15000,IF((Y5>=1000000),(Y5*25%)-10000)))))))))))/12) -> 165.25 | AA5: =M5-Q5-S5-T5-Z5-O5-R5 -> 4394.75 | AB5: =AA5*0.01 -> 43.9475 | AC5: =IF(M5<=2000,0,M5*0.0005) -> 2.5 | AD5: =AA5-AB5-AC5 -> 4348.3025
A6: =SUBTOTAL(3,$B$5:B6) -> 2 | B6: Ali | C6: ACC | D6: Financial | F6: 6000 | G6: 6000 | K6: 4800 | L6: 900 | M6: 6000 | N6: 900 | O6: 528 | Q6: 0 | U6: 528 | V6: =M6-O6-Q6 -> 5472 | W6: 750 | X6: 4722 | Y6: 56664 | Z6: =IF((Y6<=15000),(Y6*0%),IF((Y6<=30000),(Y6*2.5%)-375,IF((Y6<=45000),(Y6*10%)-2625,IF((Y6<=60000),(Y6*15%)-4875,IF((Y6<=200000),(Y6*20%)-7875,IF((Y6<=400000),(Y6*22.5%)-12875,IF((Y6<=600000),(Y6*25%)-22875,IF((Y6<=700000),(Y6*25%)-22500,IF((Y6<=800000),(Y6*25%)-20250,IF((Y6<=900000),(Y6*25%)-18000,IF((Y6<=1000000),(Y6*25%)-15000,IF((Y6>=1000000),(Y6*25%)-10000)))))))))))/12) -> 302.05 | AA6: 5169.95 | AB6: =AA6*0.01 -> 51.6995 | AC6: =IF(M6<=2000,0,M6*0.0005) -> 3 | AD6: =AA6-AB6-AC6 -> 5115.2505
A7: =SUBTOTAL(3,$B$5:B7) -> 3 | B7: ali | F7: 2000 | G7: 2000 | K7: 1600 | L7: 300 | M7: 2000 | N7: 300 | O7: 176 | Q7: 0 | U7: 176 | V7: 1824 | W7: 750 | X7: 1074 | Y7: 12888 | Z7: 0 | AA7: 1824 | AB7: 18.24 | AC7: 0 | AD7: 1805.76
A8: =SUBTOTAL(3,$B$5:B8) -> 3 | F8: 0 | G8: 0 | K8: 0 | L8: 0 | M8: 0 | N8: 0 | O8: 0 | Q8: 0 | U8: 0 | V8: 0 | W8: 750 | X8: 0 | Y8: 0 | Z8: 0 | AA8: 0 | AB8: 0 | AC8: 0 | AD8: 0
A9: =SUBTOTAL(3,$B$5:B9) -> 3 | G9: 0 | K9: 0 | L9: 0 | M9: 0 | N9: 0 | O9: 0 | Q9: 0 | U9: 0 | V9: 0 | W9: 750 | X9: 0 | Y9: 0 | Z9: 0 | AA9: 0 | AB9: 0 | AC9: 0 | AD9: 0
A10: =SUBTOTAL(3,$B$5:B10) -> 3 | G10: 0 | K10: 0 | L10: 0 | M10: 0 | N10: 0 | O10: 0 | Q10: 0 | U10: 0 | V10: 0 | W10: 750 | X10: 0 | Y10: 0 | Z10: 0 | AA10: 0 | AB10: 0 | AC10: 0 | AD10: 0
A11: =SUBTOTAL(3,$B$5:B11) -> 3 | G11: 0 | L11: 0 | M11: 0 | N11: 0 | O11: 0 | P11: 8 | Q11: 0 | U11: 0 | V11: 0 | W11: 750 | X11: 0 | Y11: 0 | Z11: 0 | AA11: 0 | AB11: 0 | AC11: 0 | AD11: 0
A12: =SUBTOTAL(3,$B$5:B12) -> 3 | G12: 0 | K12: 0 | L12: 0 | M12: 0 | N12: 0 | O12: 0 | Q12: 0 | U12: 0 | V12: 0 | W12: 750 | X12: 0 | Y12: 0 | Z12: 0 | AA12: 0 | AB12: 0 | AC12: 0 | AD12: 0
A13: =SUBTOTAL(3,$B$5:B13) -> 3 | G13: 0 | K13: 0 | L13: 0 | M13: 0 | N13: 0 | O13: 0 | Q13: 0 | U13: 0 | V13: 0 | W13: 750 | X13: 0 | Y13: 0 | Z13: 0 | AA13: 0 | AB13: 0 | AC13: 0 | AD13: 0
A14: =SUBTOTAL(3,$B$5:B14) -> 3 | G14: 0 | K14: 0 | L14: 0 | M14: 0 | N14: 0 | O14: 0 | Q14: 0 | U14: 0 | V14: 0 | W14: 750 | X14: 0 | Y14: 0 | Z14: 0 | AA14: 0 | AB14: 0 | AC14: 0 | AD14: 0
A15: =SUBTOTAL(3,$B$5:B15) -> 3 | G15: 0 | K15: 0 | L15: 0 | M15: 0 | N15: 0 | O15: 0 | Q15: 0 | U15: 0 | V15: 0 | W15: 750 | X15: 0 | Y15: 0 | Z15: 0 | AA15: 0 | AB15: 0 | AC15: 0 | AD15: 0
A16: =SUBTOTAL(3,$B$5:B16) -> 3 | G16: 0 | K16: 0 | L16: 0 | M16: 0 | N16: 0 | O16: 0 | Q16: 0 | U16: 0 | V16: 0 | W16: 750 | X16: 0 | Y16: 0 | Z16: 0 | AA16: 0 | AB16: 0 | AC16: 0 | AD16: 0
A17: =SUBTOTAL(3,$B$5:B17) -> 3 | G17: 0 | K17: 0 | L17: 0 | M17: 0 | N17: 0 | O17: 0 | Q17: 0 | U17: 0 | V17: 0 | W17: 750 | X17: 0 | Y17: 0 | Z17: 0 | AA17: 0 | AB17: 0 | AC17: 0 | AD17: 0
A18: =SUBTOTAL(3,$B$5:B18) -> 3 | G18: 0 | K18: 0 | L18: 0 | M18: 0 | N18: 0 | O18: 0 | Q18: 0 | U18: 0 | V18: 0 | W18: 750 | X18: 0 | Y18: 0 | Z18: 0 | AA18: 0 | AB18: 0 | AC18: 0 | AD18: 0
A19: =SUBTOTAL(3,$B$5:B19) -> 3 | G19: 0 | K19: 0 | L19: 0 | M19: 0 | N19: 0 | O19: 0 | Q19: 0 | U19: 0 | V19: 0 | W19: 750 | X19: 0 | Y19: 0 | Z19: 0 | AA19: 0 | AB19: 0 | AC19: 0 | AD19: 0
A20: =SUBTOTAL(3,$B$5:B20) -> 3 | G20: 0 | K20: 0 | L20: 0 | M20: 0 | N20: 0 | O20: 0 | Q20: 0 | U20: 0 | V20: 0 | W20: 750 | X20: 0 | Y20: 0 | Z20: 0 | AA20: 0 | AB20: 0 | AC20: 0 | AD20: 0
A21: =SUBTOTAL(3,$B$5:B21) -> 3 | G21: 0 | K21: 0 | L21: 0 | M21: 0 | N21: 0 | O21: 0 | Q21: 0 | U21: 0 | V21: 0 | W21: 750 | X21: 0 | Y21: 0 | Z21: 0 | AA21: 0 | AB21: 0 | AC21: 0 | AD21: 0
A22: =SUBTOTAL(3,$B$5:B22) -> 3 | G22: 0 | K22: 0 | L22: 0 | M22: 0 | N22: 0 | O22: 0 | Q22: 0 | U22: 0 | V22: 0 | W22: 750 | X22: 0 | Y22: 0 | Z22: 0 | AA22: 0 | AB22: 0 | AC22: 0 | AD22: 0
A23: =SUBTOTAL(3,$B$5:B23) -> 3 | G23: 0 | K23: 0 | L23: 0 | M23: 0 | N23: 0 | O23: 0 | Q23: 0 | U23: 0 | V23: 0 | W23: 750 | X23: 0 | Y23: 0 | Z23: 0 | AA23: 0 | AB23: 0 | AC23: 0 | AD23: 0
A24: =SUBTOTAL(3,$B$5:B24) -> 3 | G24: =F24-Q24 -> 0 | K24: =IF(F24>8100,8100,F24*0.8) -> 0 | L24: =K24*18.75/100 -> 0 | M24: =F24+H24+I24+J24 -> 0 | N24: =L24 -> 0 | O24: =K24*0.11 -> 0 | Q24: =P24*F24/30 -> 0 | U24: =Q24+S24+T24+O24+R24 -> 0 | V24: =M24-O24-Q24 -> 0 | W24: 750 | X24: =IF((V24+J24)>W24,(V24+J24)-W24,0) -> 0 | Y24: =X24*12 -> 0 | Z24: =IF((Y24<=15000),(Y24*0%),IF((Y24<=30000),(Y24*2.5%)-375,IF((Y24<=45000),(Y24*10%)-2625,IF((Y24<=60000),(Y24*15%)-4875,IF((Y24<=200000),(Y24*20%)-7875,IF((Y24<=400000),(Y24*22.5%)-12875,IF((Y24<=600000),(Y24*25%)-22875,IF((Y24<=700000),(Y24*25%)-22500,IF((Y24<=800000),(Y24*25%)-20250,IF((Y24<=900000),(Y24*25%)-18000,IF((Y24<=1000000),(Y24*25%)-15000,IF((Y24>=1000000),(Y24*25%)-10000)))))))))))/12) -> 0 | AA24: =M24-Q24-S24-T24-Z24-O24-R24 -> 0 | AB24: 0 | AC24: 0 | AD24: 0
A25: =SUBTOTAL(3,$B$5:B25) -> 3 | G25: 0 | K25: 0 | L25: 0 | M25: 0 | N25: 0 | O25: 0 | Q25: 0 | U25: 0 | V25: 0 | W25: 750 | X25: 0 | Y25: 0 | Z25: 0 | AA25: 0 | AB25: 0 | AC25: 0 | AD25: 0
A26: =SUBTOTAL(3,$B$5:B26) -> 3 | G26: 0 | K26: 0 | L26: 0 | M26: 0 | N26: 0 | O26: 0 | Q26: 0 | U26: 0 | V26: 0 | W26: 750 | X26: 0 | Y26: 0 | Z26: 0 | AA26: 0 | AB26: 0 | AC26: 0 | AD26: 0
A27: =SUBTOTAL(3,$B$5:B27) -> 3 | G27: 0 | K27: 0 | L27: 0 | M27: 0 | N27: 0 | O27: 0 | Q27: 0 | U27: 0 | V27: 0 | W27: 750 | X27: 0 | Y27: 0 | Z27: 0 | AA27: 0 | AB27: 0 | AC27: 0 | AD27: 0
A28: =SUBTOTAL(3,$B$5:B28) -> 3 | G28: =F28-Q28 -> 0 | K28: =IF(F28>8100,8100,F28*0.8) -> 0 | L28: =K28*18.75/100 -> 0 | M28: =F28+H28+I28+J28 -> 0 | N28: =L28 -> 0 | O28: =K28*0.11 -> 0 | Q28: =P28*F28/30 -> 0 | U28: =Q28+S28+T28+O28+R28 -> 0 | V28: 0 | W28: 750 | X28: =IF((V28+J28)>W28,(V28+J28)-W28,0) -> 0 | Y28: =X28*12 -> 0 | Z28: =IF((Y28<=15000),(Y28*0%),IF((Y28<=30000),(Y28*2.5%)-375,IF((Y28<=45000),(Y28*10%)-2625,IF((Y28<=60000),(Y28*15%)-4875,IF((Y28<=200000),(Y28*20%)-7875,IF((Y28<=400000),(Y28*22.5%)-12875,IF((Y28<=600000),(Y28*25%)-22875,IF((Y28<=700000),(Y28*25%)-22500,IF((Y28<=800000),(Y28*25%)-20250,IF((Y28<=900000),(Y28*25%)-18000,IF((Y28<=1000000),(Y28*25%)-15000,IF((Y28>=1000000),(Y28*25%)-10000)))))))))))/12) -> 0 | AA28: =M28-Q28-S28-T28-Z28-O28-R28 -> 0 | AB28: 0 | AC28: 0 | AD28: 0
A29: =SUBTOTAL(3,$B$5:B29) -> 3 | G29: =F29-Q29 -> 0 | K29: =IF(F29>8100,8100,F29*0.8) -> 0 | L29: =K29*18.75/100 -> 0 | M29: =F29+H29+I29+J29 -> 0 | N29: =L29 -> 0 | O29: =K29*0.11 -> 0 | Q29: =P29*F29/30 -> 0 | U29: =Q29+S29+T29+O29+R29 -> 0 | V29: =M29-O29-Q29 -> 0 | W29: 750 | X29: =IF((V29+J29)>W29,(V29+J29)-W29,0) -> 0 | Y29: =X29*12 -> 0 | Z29: =IF((Y29<=15000),(Y29*0%),IF((Y29<=30000),(Y29*2.5%)-375,IF((Y29<=45000),(Y29*10%)-2625,IF((Y29<=60000),(Y29*15%)-4875,IF((Y29<=200000),(Y29*20%)-7875,IF((Y29<=400000),(Y29*22.5%)-12875,IF((Y29<=600000),(Y29*25%)-22875,IF((Y29<=700000),(Y29*25%)-22500,IF((Y29<=800000),(Y29*25%)-20250,IF((Y29<=900000),(Y29*25%)-18000,IF((Y29<=1000000),(Y29*25%)-15000,IF((Y29>=1000000),(Y29*25%)-10000)))))))))))/12) -> 0 | AA29: =M29-Q29-S29-T29-Z29-O29-R29 -> 0 | AB29: 0 | AC29: 0 | AD29: 0
A30: =SUBTOTAL(3,$B$5:B30) -> 3 | G30: =F30-Q30 -> 0 | K30: =IF(F30>8100,8100,F30*0.8) -> 0 | L30: =K30*18.75/100 -> 0 | M30: =F30+H30+I30+J30 -> 0 | N30: =L30 -> 0 | O30: =K30*0.11 -> 0 | Q30: =P30*F30/30 -> 0 | U30: =Q30+S30+T30+O30+R30 -> 0 | V30: =M30-O30-Q30 -> 0 | W30: 750 | X30: =IF((V30+J30)>W30,(V30+J30)-W30,0) -> 0 | Y30: =X30*12 -> 0 | Z30: =IF((Y30<=15000),(Y30*0%),IF((Y30<=30000),(Y30*2.5%)-375,IF((Y30<=45000),(Y30*10%)-2625,IF((Y30<=60000),(Y30*15%)-4875,IF((Y30<=200000),(Y30*20%)-7875,IF((Y30<=400000),(Y30*22.5%)-12875,IF((Y30<=600000),(Y30*25%)-22875,IF((Y30<=700000),(Y30*25%)-22500,IF((Y30<=800000),(Y30*25%)-20250,IF((Y30<=900000),(Y30*25%)-18000,IF((Y30<=1000000),(Y30*25%)-15000,IF((Y30>=1000000),(Y30*25%)-10000)))))))))))/12) -> 0 | AA30: =M30-Q30-S30-T30-Z30-O30-R30 -> 0 | AB30: 0 | AC30: 0 | AD30: 0
A31: =SUBTOTAL(3,$B$5:B31) -> 3 | G31: 0 | K31: 0 | L31: 0 | M31: 0 | N31: 0 | O31: 0 | Q31: 0 | U31: 0 | V31: 0 | W31: 750 | X31: 0 | Y31: 0 | Z31: 0 | AA31: 0 | AB31: 0 | AC31: 0 | AD31: 0
A32: =SUBTOTAL(3,$B$5:B32) -> 3 | G32: 0 | K32: 0 | L32: 0 | M32: 0 | N32: 0 | O32: 0 | Q32: 0 | U32: 0 | V32: 0 | W32: 750 | X32: 0 | Y32: 0 | Z32: 0 | AA32: 0 | AB32: 0 | AC32: 0 | AD32: 0
A33: =SUBTOTAL(3,$B$5:B33) -> 3 | G33: 0 | K33: 0 | L33: 0 | M33: 0 | N33: 0 | O33: 0 | Q33: 0 | U33: 0 | V33: 0 | W33: 750 | X33: 0 | Y33: 0 | Z33: 0 | AA33: 0 | AB33: 0 | AC33: 0 | AD33: 0 | AE33: 8393 | AG33: =AA33-AE33 -> -8393
A34: =SUBTOTAL(3,$B$5:B34) -> 3 | G34: =F34-Q34 -> 0 | K34: =IF(F34>8100,8100,F34*0.8) -> 0 | L34: =K34*18.75/100 -> 0 | M34: =F34+H34+I34+J34 -> 0 | N34: =L34 -> 0 | O34: =K34*0.11 -> 0 | Q34: =P34*F34/30 -> 0 | U34: =Q34+S34+T34+O34+R34 -> 0 | V34: =M34-O34-Q34 -> 0 | W34: 750 | X34: =IF((V34+J34)>W34,(V34+J34)-W34,0) -> 0 | Y34: =X34*12 -> 0 | Z34: =IF((Y34<=15000),(Y34*0%),IF((Y34<=30000),(Y34*2.5%)-375,IF((Y34<=45000),(Y34*10%)-2625,IF((Y34<=60000),(Y34*15%)-4875,IF((Y34<=200000),(Y34*20%)-7875,IF((Y34<=400000),(Y34*22.5%)-12875,IF((Y34<=600000),(Y34*25%)-22875,IF((Y34<=700000),(Y34*25%)-22500,IF((Y34<=800000),(Y34*25%)-20250,IF((Y34<=900000),(Y34*25%)-18000,IF((Y34<=1000000),(Y34*25%)-15000,IF((Y34>=1000000),(Y34*25%)-10000)))))))))))/12) -> 0 | AA34: =M34-Q34-S34-T34-Z34-O34-R34 -> 0 | AB34: 0 | AC34: 0 | AD34: 0
A35: =SUBTOTAL(3,$B$5:B35) -> 3 | G35: 0 | K35: 0 | L35: 0 | M35: 0 | N35: 0 | O35: 0 | Q35: 0 | U35: 0 | V35: 0 | W35: 750 | X35: 0 | Y35: 0 | Z35: 0 | AA35: 0 | AB35: 0 | AC35: 0 | AD35: 0
A36: =SUBTOTAL(3,$B$5:B36) -> 3 | G36: 0 | K36: 0 | L36: 0 | M36: 0 | N36: 0 | O36: 0 | Q36: 0 | U36: 0 | V36: 0 | W36: 750 | X36: 0 | Y36: 0 | Z36: 0 | AA36: 0 | AB36: 0 | AC36: 0 | AD36: 0
A37: =SUBTOTAL(3,$B$5:B37) -> 3 | G37: 0 | K37: 0 | L37: 0 | M37: 0 | N37: 0 | O37: 0 | Q37: 0 | U37: 0 | V37: 0 | W37: 750 | X37: 0 | Y37: 0 | Z37: 0 | AA37: 0 | AB37: 0 | AC37: 0 | AD37: 0
A38: =SUBTOTAL(3,$B$5:B38) -> 3 | G38: 0 | K38: 0 | L38: 0 | M38: 0 | N38: 0 | O38: 0 | Q38: 0 | U38: 0 | V38: 0 | W38: 750 | X38: 0 | Y38: 0 | Z38: 0 | AA38: 0 | AB38: 0 | AC38: 0 | AD38: 0
A39: =SUBTOTAL(3,$B$5:B39) -> 3 | G39: 0 | K39: 0 | L39: 0 | M39: 0 | N39: 0 | O39: 0 | Q39: 0 | U39: 0 | V39: 0 | W39: 750 | X39: 0 | Y39: 0 | Z39: 0 | AA39: 0 | AB39: 0 | AC39: 0 | AD39: 0
A40: =SUBTOTAL(3,$B$5:B40) -> 3 | G40: 0 | K40: 0 | L40: 0 | M40: 0 | N40: 0 | O40: 0 | Q40: 0 | U40: 0 | V40: 0 | W40: 750 | X40: 0 | Y40: 0 | Z40: 0 | AA40: 0 | AB40: 0 | AC40: 0 | AD40: 0
A41: =SUBTOTAL(3,$B$5:B41) -> 3 | G41: =F41-Q41 -> 0 | K41: =IF(F41>8100,8100,F41*0.8) -> 0 | L41: =K41*18.75/100 -> 0 | M41: =F41+H41+I41+J41 -> 0 | N41: =L41 -> 0 | O41: =K41*0.11 -> 0 | Q41: =P41*F41/30 -> 0 | U41: =Q41+S41+T41+O41+R41 -> 0 | V41: =M41-O41-Q41 -> 0 | W41: 750 | X41: =IF((V41+J41)>W41,(V41+J41)-W41,0) -> 0 | Y41: =X41*12 -> 0 | Z41: =IF((Y41<=15000),(Y41*0%),IF((Y41<=30000),(Y41*2.5%)-375,IF((Y41<=45000),(Y41*10%)-2625,IF((Y41<=60000),(Y41*15%)-4875,IF((Y41<=200000),(Y41*20%)-7875,IF((Y41<=400000),(Y41*22.5%)-12875,IF((Y41<=600000),(Y41*25%)-22875,IF((Y41<=700000),(Y41*25%)-22500,IF((Y41<=800000),(Y41*25%)-20250,IF((Y41<=900000),(Y41*25%)-18000,IF((Y41<=1000000),(Y41*25%)-15000,IF((Y41>=1000000),(Y41*25%)-10000)))))))))))/12) -> 0 | AA41: =M41-Q41-S41-T41-Z41-O41-R41 -> 0 | AB41: 0 | AC41: 0 | AD41: 0
A42: =SUBTOTAL(3,$B$5:B42) -> 3 | G42: 0 | K42: 0 | L42: 0 | M42: 0 | N42: 0 | O42: 0 | Q42: 0 | U42: 0 | V42: 0 | W42: 750 | X42: 0 | Y42: 0 | Z42: 0 | AA42: 0 | AB42: 0 | AC42: 0 | AD42: 0
A43: =SUBTOTAL(3,$B$5:B43) -> 3 | G43: =F43-Q43 -> 0 | K43: =IF(F43>8100,8100,F43*0.8) -> 0 | L43: =K43*18.75/100 -> 0 | M43: =F43+H43+I43+J43 -> 0 | N43: =L43 -> 0 | O43: =K43*0.11 -> 0 | Q43: =P43*F43/30 -> 0 | U43: =Q43+S43+T43+O43+R43 -> 0 | V43: =M43-O43-Q43 -> 0 | W43: 750 | X43: =IF((V43+J43)>W43,(V43+J43)-W43,0) -> 0 | Y43: =X43*12 -> 0 | Z43: =IF((Y43<=15000),(Y43*0%),IF((Y43<=30000),(Y43*2.5%)-375,IF((Y43<=45000),(Y43*10%)-2625,IF((Y43<=60000),(Y43*15%)-4875,IF((Y43<=200000),(Y43*20%)-7875,IF((Y43<=400000),(Y43*22.5%)-12875,IF((Y43<=600000),(Y43*25%)-22875,IF((Y43<=700000),(Y43*25%)-22500,IF((Y43<=800000),(Y43*25%)-20250,IF((Y43<=900000),(Y43*25%)-18000,IF((Y43<=1000000),(Y43*25%)-15000,IF((Y43>=1000000),(Y43*25%)-10000)))))))))))/12) -> 0 | AA43: =M43-Q43-S43-T43-Z43-O43-R43 -> 0 | AB43: 0 | AC43: 0 | AD43: 0
A44: =SUBTOTAL(3,$B$5:B44) -> 3 | G44: =F44-Q44 -> 0 | K44: =IF(F44>8100,8100,F44*0.8) -> 0 | L44: =K44*18.75/100 -> 0 | M44: =F44+H44+I44+J44 -> 0 | N44: =L44 -> 0 | O44: =K44*0.11 -> 0 | Q44: =P44*F44/30 -> 0 | U44: =Q44+S44+T44+O44+R44 -> 0 | V44: =M44-O44-Q44 -> 0 | W44: 750 | X44: =IF((V44+J44)>W44,(V44+J44)-W44,0) -> 0 | Y44: =X44*12 -> 0 | Z44: =IF((Y44<=15000),(Y44*0%),IF((Y44<=30000),(Y44*2.5%)-375,IF((Y44<=45000),(Y44*10%)-2625,IF((Y44<=60000),(Y44*15%)-4875,IF((Y44<=200000),(Y44*20%)-7875,IF((Y44<=400000),(Y44*22.5%)-12875,IF((Y44<=600000),(Y44*25%)-22875,IF((Y44<=700000),(Y44*25%)-22500,IF((Y44<=800000),(Y44*25%)-20250,IF((Y44<=900000),(Y44*25%)-18000,IF((Y44<=1000000),(Y44*25%)-15000,IF((Y44>=1000000),(Y44*25%)-10000)))))))))))/12) -> 0 | AA44: =M44-Q44-S44-T44-Z44-O44-R44 -> 0 | AB44: 0 | AC44: 0 | AD44: 0
A45: =SUBTOTAL(3,$B$5:B45) -> 3 | G45: =F45-Q45 -> 0 | K45: =IF(F45>8100,8100,F45*0.8) -> 0 | L45: =K45*18.75/100 -> 0 | M45: =F45+H45+I45+J45 -> 0 | N45: =L45 -> 0 | O45: =K45*0.11 -> 0 | Q45: =P45*F45/30 -> 0 | U45: =Q45+S45+T45+O45+R45 -> 0 | V45: =M45-O45-Q45 -> 0 | W45: 750 | X45: =IF((V45+J45)>W45,(V45+J45)-W45,0) -> 0 | Y45: =X45*12 -> 0 | Z45: =IF((Y45<=15000),(Y45*0%),IF((Y45<=30000),(Y45*2.5%)-375,IF((Y45<=45000),(Y45*10%)-2625,IF((Y45<=60000),(Y45*15%)-4875,IF((Y45<=200000),(Y45*20%)-7875,IF((Y45<=400000),(Y45*22.5%)-12875,IF((Y45<=600000),(Y45*25%)-22875,IF((Y45<=700000),(Y45*25%)-22500,IF((Y45<=800000),(Y45*25%)-20250,IF((Y45<=900000),(Y45*25%)-18000,IF((Y45<=1000000),(Y45*25%)-15000,IF((Y45>=1000000),(Y45*25%)-10000)))))))))))/12) -> 0 | AA45: =M45-Q45-S45-T45-Z45-O45-R45 -> 0 | AB45: 0 | AC45: 0 | AD45: 0
A46: =SUBTOTAL(3,$B$5:B46) -> 3 | G46: =F46-Q46 -> 0 | K46: =IF(F46>8100,8100,F46*0.8) -> 0 | L46: =K46*18.75/100 -> 0 | M46: =F46+H46+I46+J46 -> 0 | N46: =L46 -> 0 | O46: =K46*0.11 -> 0 | Q46: =P46*F46/30 -> 0 | U46: =Q46+S46+T46+O46+R46 -> 0 | V46: =M46-O46-Q46 -> 0 | W46: 750 | X46: =IF((V46+J46)>W46,(V46+J46)-W46,0) -> 0 | Y46: =X46*12 -> 0 | Z46: =IF((Y46<=15000),(Y46*0%),IF((Y46<=30000),(Y46*2.5%)-375,IF((Y46<=45000),(Y46*10%)-2625,IF((Y46<=60000),(Y46*15%)-4875,IF((Y46<=200000),(Y46*20%)-7875,IF((Y46<=400000),(Y46*22.5%)-12875,IF((Y46<=600000),(Y46*25%)-22875,IF((Y46<=700000),(Y46*25%)-22500,IF((Y46<=800000),(Y46*25%)-20250,IF((Y46<=900000),(Y46*25%)-18000,IF((Y46<=1000000),(Y46*25%)-15000,IF((Y46>=1000000),(Y46*25%)-10000)))))))))))/12) -> 0 | AA46: =M46-Q46-S46-T46-Z46-O46-R46 -> 0 | AB46: 0 | AC46: 0 | AD46: 0
A47: =SUBTOTAL(3,$B$5:B47) -> 3 | G47: 0 | K47: 0 | L47: 0 | M47: 0 | N47: 0 | O47: 0 | Q47: 0 | U47: 0 | V47: 0 | W47: 750 | X47: 0 | Y47: 0 | Z47: 0 | AA47: 0 | AB47: 0 | AC47: 0 | AD47: 0
A48: =SUBTOTAL(3,$B$5:B48) -> 3 | G48: 0 | K48: 0 | L48: 0 | M48: 0 | N48: 0 | O48: 0 | Q48: 0 | U48: 0 | V48: 0 | W48: 750 | X48: 0 | Y48: 0 | Z48: 0 | AA48: 0 | AB48: 0 | AC48: 0 | AD48: 0
A49: =SUBTOTAL(3,$B$5:B49) -> 3 | G49: 0 | K49: 0 | L49: 0 | M49: 0 | N49: 0 | O49: 0 | Q49: 0 | U49: 0 | V49: 0 | W49: 750 | X49: 0 | Y49: 0 | Z49: 0 | AA49: 0 | AB49: 0 | AC49: 0 | AD49: 0
A50: =SUBTOTAL(3,$B$5:B50) -> 3 | G50: =F50-Q50 -> 0 | K50: =IF(F50>8100,8100,F50*0.8) -> 0 | L50: =K50*18.75/100 -> 0 | M50: =F50+H50+I50+J50 -> 0 | N50: =L50 -> 0 | O50: =K50*0.11 -> 0 | Q50: =P50*F50/30 -> 0 | U50: =Q50+S50+T50+O50+R50 -> 0 | V50: =M50-O50-Q50 -> 0 | W50: 750 | X50: =IF((V50+J50)>W50,(V50+J50)-W50,0) -> 0 | Y50: =X50*12 -> 0 | Z50: =IF((Y50<=15000),(Y50*0%),IF((Y50<=30000),(Y50*2.5%)-375,IF((Y50<=45000),(Y50*10%)-2625,IF((Y50<=60000),(Y50*15%)-4875,IF((Y50<=200000),(Y50*20%)-7875,IF((Y50<=400000),(Y50*22.5%)-12875,IF((Y50<=600000),(Y50*25%)-22875,IF((Y50<=700000),(Y50*25%)-22500,IF((Y50<=800000),(Y50*25%)-20250,IF((Y50<=900000),(Y50*25%)-18000,IF((Y50<=1000000),(Y50*25%)-15000,IF((Y50>=1000000),(Y50*25%)-10000)))))))))))/12) -> 0 | AA50: =M50-Q50-S50-T50-Z50-O50-R50 -> 0 | AB50: 0 | AC50: 0 | AD50: 0
A51: =SUBTOTAL(3,$B$5:B51) -> 3 | G51: 0 | K51: 0 | L51: 0 | M51: 0 | N51: 0 | O51: 0 | Q51: 0 | U51: 0 | V51: 0 | W51: 750 | X51: 0 | Y51: 0 | Z51: 0 | AA51: 0 | AB51: 0 | AC51: 0 | AD51: 0
A52: =SUBTOTAL(3,$B$5:B52) -> 3 | G52: =F52-Q52 -> 0 | K52: =IF(F52>8100,8100,F52*0.8) -> 0 | L52: =K52*18.75/100 -> 0 | M52: =F52+H52+I52+J52 -> 0 | N52: =L52 -> 0 | O52: =K52*0.11 -> 0 | Q52: =P52*F52/30 -> 0 | U52: =Q52+S52+T52+O52+R52 -> 0 | V52: 0 | W52: 750 | X52: =IF((V52+J52)>W52,(V52+J52)-W52,0) -> 0 | Y52: =X52*12 -> 0 | Z52: =IF((Y52<=15000),(Y52*0%),IF((Y52<=30000),(Y52*2.5%)-375,IF((Y52<=45000),(Y52*10%)-2625,IF((Y52<=60000),(Y52*15%)-4875,IF((Y52<=200000),(Y52*20%)-7875,IF((Y52<=400000),(Y52*22.5%)-12875,IF((Y52<=600000),(Y52*25%)-22875,IF((Y52<=700000),(Y52*25%)-22500,IF((Y52<=800000),(Y52*25%)-20250,IF((Y52<=900000),(Y52*25%)-18000,IF((Y52<=1000000),(Y52*25%)-15000,IF((Y52>=1000000),(Y52*25%)-10000)))))))))))/12) -> 0 | AA52: =M52-Q52-S52-T52-Z52-O52-R52 -> 0 | AB52: 0 | AC52: 0 | AD52: 0
A53: =SUBTOTAL(3,$B$5:B53) -> 3 | G53: =F53-Q53 -> 0 | K53: =IF(F53>8100,8100,F53*0.8) -> 0 | L53: =K53*18.75/100 -> 0 | M53: =F53+H53+I53+J53 -> 0 | N53: =L53 -> 0 | O53: =K53*0.11 -> 0 | Q53: =P53*F53/30 -> 0 | U53: =Q53+S53+T53+O53+R53 -> 0 | V53: 0 | W53: 750 | X53: =IF((V53+J53)>W53,(V53+J53)-W53,0) -> 0 | Y53: =X53*12 -> 0 | Z53: =IF((Y53<=15000),(Y53*0%),IF((Y53<=30000),(Y53*2.5%)-375,IF((Y53<=45000),(Y53*10%)-2625,IF((Y53<=60000),(Y53*15%)-4875,IF((Y53<=200000),(Y53*20%)-7875,IF((Y53<=400000),(Y53*22.5%)-12875,IF((Y53<=600000),(Y53*25%)-22875,IF((Y53<=700000),(Y53*25%)-22500,IF((Y53<=800000),(Y53*25%)-20250,IF((Y53<=900000),(Y53*25%)-18000,IF((Y53<=1000000),(Y53*25%)-15000,IF((Y53>=1000000),(Y53*25%)-10000)))))))))))/12) -> 0 | AA53: =M53-Q53-S53-T53-Z53-O53-R53 -> 0 | AB53: 0 | AC53: 0 | AD53: 0
A54: =SUBTOTAL(3,$B$5:B54) -> 3 | G54: 0 | K54: 0 | L54: 0 | M54: 0 | N54: 0 | O54: 0 | Q54: 0 | U54: 0 | V54: 0 | W54: 750 | X54: 0 | Y54: 0 | Z54: 0 | AA54: 0 | AB54: 0 | AC54: 0 | AD54: 0
A55: =SUBTOTAL(3,$B$5:B55) -> 3 | G55: 0 | K55: 0 | L55: 0 | M55: 0 | N55: 0 | O55: 0 | Q55: 0 | U55: 0 | V55: 0 | W55: 750 | X55: 0 | Y55: 0 | Z55: 0 | AA55: 0 | AB55: 0 | AC55: 0 | AD55: 0
A56: =SUBTOTAL(3,$B$5:B56) -> 3 | G56: 0 | K56: 0 | L56: 0 | M56: 0 | N56: 0 | O56: 0 | Q56: 0 | U56: 0 | V56: 0 | W56: 750 | X56: 0 | Y56: 0 | Z56: 0 | AA56: 0 | AB56: 0 | AC56: 0 | AD56: 0
A57: =SUBTOTAL(3,$B$5:B57) -> 3 | G57: 0 | K57: 0 | L57: 0 | M57: 0 | N57: 0 | O57: 0 | Q57: 0 | U57: 0 | V57: 0 | W57: 750 | X57: 0 | Y57: 0 | Z57: 0 | AA57: 0 | AB57: 0 | AC57: 0 | AD57: 0
A58: =SUBTOTAL(3,$B$5:B58) -> 3 | G58: 0 | K58: 0 | L58: 0 | M58: 0 | N58: 0 | O58: 0 | Q58: 0 | U58: 0 | V58: 0 | W58: 750 | X58: 0 | Y58: 0 | Z58: 0 | AA58: 0 | AB58: 0 | AC58: 0 | AD58: 0
A59: =SUBTOTAL(3,$B$5:B59) -> 3 | G59: 0 | K59: 0 | L59: 0 | M59: 0 | N59: 0 | O59: 0 | Q59: 0 | U59: 0 | V59: 0 | W59: 750 | X59: 0 | Y59: 0 | Z59: 0 | AA59: 0 | AB59: 0 | AC59: 0 | AD59: 0
A60: =SUBTOTAL(3,$B$5:B60) -> 3 | G60: 0 | K60: 0 | L60: 0 | M60: 0 | N60: 0 | O60: 0 | Q60: 0 | U60: 0 | V60: 0 | W60: 750 | X60: 0 | Y60: 0 | Z60: 0 | AA60: 0 | AB60: 0 | AC60: 0 | AD60: 0
A61: =SUBTOTAL(3,$B$5:B61) -> 3 | G61: 0 | K61: 0 | L61: 0 | M61: 0 | N61: 0 | O61: 0 | Q61: 0 | U61: 0 | V61: 0 | W61: 750 | X61: 0 | Y61: 0 | Z61: 0 | AA61: 0 | AB61: 0 | AC61: 0 | AD61: 0
A62: =SUBTOTAL(3,$B$5:B62) -> 3 | G62: 0 | K62: 0 | L62: 0 | M62: 0 | N62: 0 | O62: 0 | Q62: 0 | U62: 0 | V62: 0 | W62: 750 | X62: 0 | Y62: 0 | Z62: 0 | AA62: 0 | AB62: 0 | AC62: 0 | AD62: 0
A63: =SUBTOTAL(3,$B$5:B63) -> 3 | G63: 0 | K63: 0 | L63: 0 | M63: 0 | N63: 0 | O63: 0 | Q63: 0 | U63: 0 | V63: 0 | W63: 750 | X63: 0 | Y63: 0 | Z63: 0 | AA63: 0 | AB63: 0 | AC63: 0 | AD63: 0
A64: =SUBTOTAL(3,$B$5:B64) -> 3 | G64: 0 | K64: 0 | L64: 0 | M64: 0 | N64: 0 | O64: 0 | Q64: 0 | U64: 0 | V64: 0 | W64: 750 | X64: 0 | Y64: 0 | Z64: 0 | AA64: 0 | AB64: 0 | AC64: 0 | AD64: 0
A65: =SUBTOTAL(3,$B$5:B65) -> 3 | G65: 0 | K65: 0 | L65: 0 | M65: 0 | N65: 0 | O65: 0 | Q65: 0 | U65: 0 | V65: 0 | W65: 750 | X65: 0 | Y65: 0 | Z65: 0 | AA65: 0 | AB65: 0 | AC65: 0 | AD65: 0
A66: =SUBTOTAL(3,$B$5:B66) -> 3 | G66: 0 | K66: 0 | L66: 0 | M66: 0 | N66: 0 | O66: 0 | Q66: 0 | U66: 0 | V66: 0 | W66: 750 | X66: 0 | Y66: 0 | Z66: 0 | AA66: 0 | AB66: 0 | AC66: 0 | AD66: 0
A67: =SUBTOTAL(3,$B$5:B67) -> 3 | G67: 0 | K67: 0 | L67: 0 | M67: 0 | N67: 0 | O67: 0 | Q67: 0 | U67: 0 | V67: 0 | W67: 750 | X67: 0 | Y67: 0 | Z67: 0 | AA67: 0 | AB67: 0 | AC67: 0 | AD67: 0
A68: =SUBTOTAL(3,$B$5:B68) -> 3 | G68: =F68-Q68 -> 0 | K68: =IF(F68>8100,8100,F68*0.8) -> 0 | L68: =K68*18.75/100 -> 0 | M68: =F68+H68+I68+J68 -> 0 | N68: =L68 -> 0 | O68: =K68*0.11 -> 0 | Q68: =P68*F68/30 -> 0 | U68: =Q68+S68+T68+O68+R68 -> 0 | V68: =M68-O68-Q68 -> 0 | W68: 750 | X68: =IF((V68+J68)>W68,(V68+J68)-W68,0) -> 0 | Y68: =X68*12 -> 0 | Z68: =IF((Y68<=15000),(Y68*0%),IF((Y68<=30000),(Y68*2.5%)-375,IF((Y68<=45000),(Y68*10%)-2625,IF((Y68<=60000),(Y68*15%)-4875,IF((Y68<=200000),(Y68*20%)-7875,IF((Y68<=400000),(Y68*22.5%)-12875,IF((Y68<=600000),(Y68*25%)-22875,IF((Y68<=700000),(Y68*25%)-22500,IF((Y68<=800000),(Y68*25%)-20250,IF((Y68<=900000),(Y68*25%)-18000,IF((Y68<=1000000),(Y68*25%)-15000,IF((Y68>=1000000),(Y68*25%)-10000)))))))))))/12) -> 0 | AA68: =M68-Q68-S68-T68-Z68-O68-R68 -> 0 | AB68: 0 | AC68: 0 | AD68: 0
A69: =SUBTOTAL(3,$B$5:B69) -> 3 | G69: 0 | K69: 0 | L69: 0 | M69: 0 | N69: 0 | O69: 0 | Q69: 0 | U69: 0 | V69: 0 | W69: 750 | X69: 0 | Y69: 0 | Z69: 0 | AA69: 0 | AB69: 0 | AC69: 0 | AD69: 0
A70: =SUBTOTAL(3,$B$5:B70) -> 3 | G70: 0 | K70: 0 | L70: 0 | M70: 0 | N70: 0 | O70: 0 | Q70: 0 | U70: 0 | V70: 0 | W70: 750 | X70: 0 | Y70: 0 | Z70: 0 | AA70: 0 | AB70: =AA70*0.01 -> 0 | AC70: =IF(M70<=2000,0,M70*0.0005) -> 0 | AD70: =AA70-AB70-AC70 -> 0
A71: =SUBTOTAL(3,$B$5:B71) -> 3 | G71: =F71-Q71 -> 0 | L71: =K71*18.75/100 -> 0 | M71: =F71+H71+I71+J71 -> 0 | N71: =L71 -> 0 | O71: =K71*0.11 -> 0 | Q71: =P71*F71/30 -> 0 | U71: =Q71+S71+T71+O71+R71 -> 0 | V71: 0 | W71: 750 | X71: =IF((V71+J71)>W71,(V71+J71)-W71,0) -> 0 | Y71: =X71*12 -> 0 | Z71: =IF((Y71<=15000),(Y71*0%),IF((Y71<=30000),(Y71*2.5%)-375,IF((Y71<=45000),(Y71*10%)-2625,IF((Y71<=60000),(Y71*15%)-4875,IF((Y71<=200000),(Y71*20%)-7875,IF((Y71<=400000),(Y71*22.5%)-12875,IF((Y71<=600000),(Y71*25%)-22875,IF((Y71<=700000),(Y71*25%)-22500,IF((Y71<=800000),(Y71*25%)-20250,IF((Y71<=900000),(Y71*25%)-18000,IF((Y71<=1000000),(Y71*25%)-15000,IF((Y71>=1000000),(Y71*25%)-10000)))))))))))/12) -> 0 | AA71: =M71-Q71-S71-T71-Z71-O71-R71 -> 0 | AB71: 0 | AC71: 0 | AD71: 0
A72: =SUBTOTAL(3,$B$5:B72) -> 3 | G72: 0 | K72: =IF(F72>8100,8100,F72*0.8) -> 0 | L72: 0 | M72: 0 | N72: 0 | O72: 0 | Q72: 0 | U72: 0 | V72: =M72-O72-Q72 -> 0 | W72: 750 | X72: 0 | Y72: 0 | Z72: 0 | AA72: 0 | AB72: 0 | AC72: 0 | AD72: 0
A73: =SUBTOTAL(3,$B$5:B73) -> 3 | G73: 0 | K73: 0 | L73: 0 | M73: 0 | N73: 0 | O73: 0 | Q73: 0 | U73: 0 | V73: 0 | W73: 750 | X73: 0 | Y73: 0 | Z73: 0 | AA73: 0 | AB73: 0 | AC73: 0 | AD73: 0
A74: =SUBTOTAL(3,$B$5:B74) -> 3 | G74: 0 | K74: 0 | L74: 0 | M74: 0 | N74: 0 | O74: 0 | Q74: 0 | U74: 0 | V74: 0 | W74: 750 | X74: 0 | Y74: 0 | Z74: 0 | AA74: 0 | AB74: 0 | AC74: 0 | AD74: 0
A75: =SUBTOTAL(3,$B$5:B75) -> 3 | G75: 0 | K75: 0 | L75: 0 | M75: 0 | N75: 0 | O75: 0 | Q75: 0 | U75: 0 | V75: 0 | W75: 750 | X75: 0 | Y75: 0 | Z75: 0 | AA75: 0 | AB75: 0 | AC75: 0 | AD75: 0
A76: =SUBTOTAL(3,$B$5:B76) -> 3 | G76: 0 | K76: 0 | L76: 0 | M76: 0 | N76: 0 | O76: 0 | Q76: 0 | U76: 0 | V76: 0 | W76: 750 | X76: 0 | Y76: 0 | Z76: 0 | AA76: 0 | AB76: 0 | AC76: 0 | AD76: 0
A77: =SUBTOTAL(3,$B$5:B77) -> 3 | G77: 0 | K77: 0 | L77: 0 | M77: 0 | N77: 0 | O77: 0 | Q77: 0 | U77: 0 | V77: 0 | W77: 750 | X77: 0 | Y77: 0 | Z77: 0 | AA77: 0 | AB77: 0 | AC77: 0 | AD77: 0
A78: =SUBTOTAL(3,$B$5:B78) -> 3 | G78: 0 | L78: 0 | M78: 0 | N78: 0 | O78: 0 | Q78: 0 | U78: 0 | V78: 0 | W78: 750 | X78: 0 | Y78: 0 | Z78: 0 | AA78: 0 | AB78: 0 | AC78: 0 | AD78: 0
A79: =SUBTOTAL(3,$B$5:B79) -> 3 | G79: 0 | K79: 0 | L79: 0 | M79: 0 | N79: 0 | O79: 0 | Q79: 0 | U79: 0 | V79: 0 | W79: 750 | X79: 0 | Y79: 0 | Z79: 0 | AA79: 0 | AB79: 0 | AC79: 0 | AD79: 0
A80: =SUBTOTAL(3,$B$5:B80) -> 3 | G80: 0 | K80: 0 | L80: 0 | M80: 0 | N80: 0 | O80: 0 | Q80: 0 | U80: 0 | V80: 0 | W80: 750 | X80: 0 | Y80: 0 | Z80: 0 | AA80: 0 | AB80: 0 | AC80: 0 | AD80: 0
A81: =SUBTOTAL(3,$B$5:B81) -> 3 | G81: 0 | K81: 0 | L81: 0 | M81: 0 | N81: 0 | O81: 0 | Q81: 0 | U81: 0 | V81: 0 | W81: 750 | X81: 0 | Y81: 0 | Z81: 0 | AA81: 0 | AB81: 0 | AC81: 0 | AD81: 0
A82: =SUBTOTAL(3,$B$5:B82) -> 3 | G82: 0 | K82: 0 | L82: 0 | M82: 0 | N82: 0 | O82: 0 | Q82: 0 | U82: 0 | V82: 0 | W82: 750 | X82: 0 | Y82: 0 | Z82: 0 | AA82: 0 | AB82: 0 | AC82: 0 | AD82: 0
A83: =SUBTOTAL(3,$B$5:B83) -> 3 | G83: =F83-Q83 -> 0 | K83: =IF(F83>8100,8100,F83*0.8) -> 0 | L83: =K83*18.75/100 -> 0 | M83: =F83+H83+I83+J83 -> 0 | N83: =L83 -> 0 | O83: =K83*0.11 -> 0 | Q83: =P83*F83/30 -> 0 | U83: =Q83+S83+T83+O83+R83 -> 0 | V83: =M83-O83-Q83 -> 0 | W83: 750 | X83: =IF((V83+J83)>W83,(V83+J83)-W83,0) -> 0 | Y83: =X83*12 -> 0 | Z83: =IF((Y83<=15000),(Y83*0%),IF((Y83<=30000),(Y83*2.5%)-375,IF((Y83<=45000),(Y83*10%)-2625,IF((Y83<=60000),(Y83*15%)-4875,IF((Y83<=200000),(Y83*20%)-7875,IF((Y83<=400000),(Y83*22.5%)-12875,IF((Y83<=600000),(Y83*25%)-22875,IF((Y83<=700000),(Y83*25%)-22500,IF((Y83<=800000),(Y83*25%)-20250,IF((Y83<=900000),(Y83*25%)-18000,IF((Y83<=1000000),(Y83*25%)-15000,IF((Y83>=1000000),(Y83*25%)-10000)))))))))))/12) -> 0 | AA83: =M83-Q83-S83-T83-Z83-O83-R83 -> 0 | AB83: 0 | AC83: 0 | AD83: 0
A84: =SUBTOTAL(3,$B$5:B84) -> 3 | G84: 0 | L84: 0 | M84: 0 | N84: 0 | O84: 0 | Q84: 0 | U84: 0 | V84: 0 | W84: 750 | X84: 0 | Y84: 0 | Z84: 0 | AA84: 0 | AB84: 0 | AC84: 0 | AD84: 0
A85: =SUBTOTAL(3,$B$5:B85) -> 3 | G85: 0 | K85: 0 | L85: 0 | M85: 0 | N85: 0 | O85: 0 | Q85: 0 | U85: 0 | V85: 0 | W85: 750 | X85: 0 | Y85: 0 | Z85: 0 | AA85: 0 | AB85: 0 | AC85: 0 | AD85: 0
A86: =SUBTOTAL(3,$B$5:B86) -> 3 | G86: 0 | K86: 0 | L86: 0 | M86: 0 | N86: 0 | O86: 0 | Q86: 0 | U86: 0 | V86: 0 | W86: 750 | X86: 0 | Y86: 0 | Z86: 0 | AA86: 0 | AB86: 0 | AC86: 0 | AD86: 0
A87: =SUBTOTAL(3,$B$5:B87) -> 3 | G87: 0 | K87: 0 | L87: 0 | M87: 0 | N87: 0 | O87: 0 | Q87: 0 | U87: 0 | V87: 0 | W87: 750 | X87: 0 | Y87: 0 | Z87: 0 | AA87: 0 | AB87: 0 | AC87: 0 | AD87: 0
A88: =SUBTOTAL(3,$B$5:B88) -> 3 | G88: 0 | K88: 0 | L88: 0 | M88: 0 | N88: 0 | O88: 0 | Q88: 0 | U88: 0 | V88: 0 | W88: 750 | X88: 0 | Y88: 0 | Z88: 0 | AA88: 0 | AB88: 0 | AC88: 0 | AD88: 0
A89: =SUBTOTAL(3,$B$5:B89) -> 3 | G89: 0 | K89: 0 | L89: 0 | M89: 0 | N89: 0 | O89: 0 | Q89: 0 | U89: 0 | V89: 0 | W89: 750 | X89: 0 | Y89: 0 | Z89: 0 | AA89: 0 | AB89: 0 | AC89: 0 | AD89: 0
A90: =SUBTOTAL(3,$B$5:B90) -> 3 | G90: 0 | K90: 0 | L90: 0 | M90: 0 | N90: 0 | O90: 0 | Q90: 0 | U90: 0 | V90: 0 | W90: 750 | X90: 0 | Y90: 0 | Z90: 0 | AA90: 0 | AB90: 0 | AC90: 0 | AD90: 0
A91: =SUBTOTAL(3,$B$5:B91) -> 3 | G91: 0 | K91: 0 | L91: 0 | M91: 0 | N91: 0 | O91: 0 | Q91: 0 | U91: 0 | V91: 0 | W91: 750 | X91: 0 | Y91: 0 | Z91: 0 | AA91: 0 | AB91: 0 | AC91: 0 | AD91: 0
A92: =SUBTOTAL(3,$B$5:B92) -> 3 | G92: 0 | K92: 0 | L92: 0 | M92: 0 | N92: 0 | O92: 0 | Q92: 0 | U92: 0 | V92: 0 | W92: 750 | X92: 0 | Y92: 0 | Z92: 0 | AA92: 0 | AB92: 0 | AC92: 0 | AD92: 0
A93: =SUBTOTAL(3,$B$5:B93) -> 3 | G93: 0 | K93: 0 | L93: 0 | M93: 0 | N93: 0 | O93: 0 | Q93: 0 | U93: 0 | V93: 0 | W93: 750 | X93: 0 | Y93: 0 | Z93: 0 | AA93: 0 | AB93: 0 | AC93: 0 | AD93: 0
A94: =SUBTOTAL(3,$B$5:B94) -> 3 | G94: 0 | K94: 0 | L94: 0 | M94: 0 | N94: 0 | O94: 0 | Q94: 0 | U94: 0 | V94: 0 | W94: 750 | X94: 0 | Y94: 0 | Z94: 0 | AA94: 0 | AB94: 0 | AC94: 0 | AD94: 0
A95: =SUBTOTAL(3,$B$5:B95) -> 3 | G95: 0 | K95: 0 | L95: 0 | M95: 0 | N95: 0 | O95: 0 | Q95: 0 | U95: 0 | V95: 0 | W95: 750 | X95: 0 | Y95: 0 | Z95: 0 | AA95: 0 | AB95: 0 | AC95: 0 | AD95: 0
A96: =SUBTOTAL(3,$B$5:B96) -> 3 | G96: 0 | K96: 0 | L96: 0 | M96: 0 | N96: 0 | O96: 0 | Q96: 0 | U96: 0 | V96: 0 | W96: 750 | X96: 0 | Y96: 0 | Z96: 0 | AA96: 0 | AB96: 0 | AC96: 0 | AD96: 0
A97: =SUBTOTAL(3,$B$5:B97) -> 3 | G97: 0 | L97: 0 | M97: 0 | N97: 0 | O97: 0 | Q97: 0 | U97: 0 | V97: 0 | W97: 750 | X97: 0 | Y97: 0 | Z97: 0 | AA97: 0 | AB97: 0 | AC97: 0 | AD97: 0
A98: =SUBTOTAL(3,$B$5:B98) -> 3 | G98: 0 | L98: 0 | M98: 0 | N98: 0 | O98: 0 | Q98: 0 | U98: 0 | V98: 0 | W98: 750 | X98: 0 | Y98: 0 | Z98: 0 | AA98: 0 | AB98: 0 | AC98: 0 | AD98: 0
A99: =SUBTOTAL(3,$B$5:B99) -> 3 | G99: 0 | L99: 0 | M99: 0 | N99: 0 | O99: 0 | Q99: 0 | U99: 0 | V99: 0 | W99: 750 | X99: 0 | Y99: 0 | Z99: 0 | AA99: 0 | AB99: 0 | AC99: 0 | AD99: 0
A100: =SUBTOTAL(3,$B$5:B100) -> 3 | G100: 0 | K100: 0 | L100: 0 | M100: 0 | N100: 0 | O100: 0 | Q100: 0 | U100: 0 | V100: 0 | W100: 750 | X100: 0 | Y100: 0 | Z100: 0 | AA100: 0 | AB100: 0 | AC100: 0 | AD100: 0
A101: =SUBTOTAL(3,$B$5:B101) -> 3 | F101: 0 | G101: 0 | K101: 0 | L101: 0 | M101: 0 | N101: 0 | O101: 0 | Q101: 0 | U101: 0 | V101: 0 | W101: 750 | X101: 0 | Y101: 0 | Z101: 0 | AA101: 0 | AB101: 0 | AC101: 0 | AD101: 0
A102: =SUBTOTAL(3,$B$5:B102) -> 3 | F102: 0 | G102: 0 | K102: 0 | L102: 0 | M102: 0 | N102: 0 | O102: 0 | Q102: 0 | U102: 0 | V102: 0 | W102: 750 | X102: 0 | Y102: 0 | Z102: 0 | AA102: 0 | AB102: 0 | AC102: 0 | AD102: 0
A103: =SUBTOTAL(3,$B$5:B103) -> 3 | F103: 0 | G103: 0 | K103: 0 | L103: 0 | M103: 0 | N103: 0 | O103: 0 | Q103: 0 | U103: 0 | V103: 0 | W103: 750 | X103: 0 | Y103: 0 | Z103: 0 | AA103: 0 | AB103: 0 | AC103: 0 | AD103: 0
A104: =SUBTOTAL(3,$B$5:B104) -> 3 | F104: 0 | G104: 0 | K104: 0 | L104: 0 | M104: 0 | N104: 0 | O104: 0 | Q104: 0 | U104: 0 | V104: 0 | W104: 750 | X104: 0 | Y104: 0 | Z104: 0 | AA104: 0 | AB104: 0 | AC104: 0 | AD104: 0
A105: =SUBTOTAL(3,$B$5:B105) -> 3 | F105: 0 | G105: 0 | K105: 0 | L105: 0 | M105: 0 | N105: 0 | O105: 0 | Q105: 0 | U105: 0 | V105: 0 | W105: 750 | X105: 0 | Y105: 0 | Z105: 0 | AA105: 0 | AB105: 0 | AC105: 0 | AD105: 0
A106: =SUBTOTAL(3,$B$5:B106) -> 3 | F106: 0 | G106: 0 | K106: 0 | L106: 0 | M106: 0 | N106: 0 | O106: 0 | Q106: 0 | U106: 0 | V106: 0 | W106: 750 | X106: 0 | Y106: 0 | Z106: 0 | AA106: 0 | AB106: 0 | AC106: 0 | AD106: 0
A107: =SUBTOTAL(3,$B$5:B107) -> 3 | F107: 0 | G107: 0 | K107: 0 | L107: 0 | M107: 0 | N107: 0 | O107: 0 | Q107: 0 | U107: 0 | V107: 0 | W107: 750 | X107: 0 | Y107: 0 | Z107: 0 | AA107: 0 | AB107: 0 | AC107: 0 | AD107: 0
A108: =SUBTOTAL(3,$B$5:B108) -> 3 | F108: 0 | G108: 0 | K108: 0 | L108: 0 | M108: 0 | N108: 0 | O108: 0 | Q108: 0 | U108: 0 | V108: 0 | W108: 750 | X108: 0 | Y108: 0 | Z108: 0 | AA108: 0 | AB108: 0 | AC108: 0 | AD108: 0
A109: =SUBTOTAL(3,$B$5:B109) -> 3 | F109: 0 | G109: 0 | K109: 0 | L109: 0 | M109: 0 | N109: 0 | O109: 0 | Q109: 0 | U109: 0 | V109: 0 | W109: 750 | X109: 0 | Y109: 0 | Z109: 0 | AA109: 0 | AB109: 0 | AC109: 0 | AD109: 0
A110: =SUBTOTAL(3,$B$5:B110) -> 3 | F110: 0 | G110: 0 | K110: 0 | L110: 0 | M110: 0 | N110: 0 | O110: 0 | Q110: 0 | U110: 0 | V110: 0 | W110: 750 | X110: 0 | Y110: 0 | Z110: 0 | AA110: 0 | AB110: 0 | AC110: 0 | AD110: 0
A111: =SUBTOTAL(3,$B$5:B111) -> 3 | F111: 0 | G111: 0 | K111: 0 | L111: 0 | M111: 0 | N111: 0 | O111: 0 | Q111: 0 | U111: 0 | V111: 0 | W111: 750 | X111: 0 | Y111: 0 | Z111: 0 | AA111: 0 | AB111: 0 | AC111: 0 | AD111: 0
A112: =SUBTOTAL(3,$B$5:B112) -> 3 | G112: 0 | K112: 0 | L112: 0 | M112: 0 | N112: 0 | O112: 0 | Q112: 0 | U112: 0 | V112: 0 | W112: 750 | X112: 0 | Y112: 0 | Z112: 0 | AA112: 0 | AB112: 0 | AC112: 0 | AD112: 0
A113: =SUBTOTAL(3,$B$5:B113) -> 3 | F113: 0 | G113: 0 | K113: 0 | L113: 0 | M113: 0 | N113: 0 | O113: 0 | Q113: 0 | U113: 0 | V113: 0 | W113: 750 | X113: 0 | Y113: 0 | Z113: 0 | AA113: 0 | AB113: 0 | AC113: 0 | AD113: 0
A114: =SUBTOTAL(3,$B$5:B114) -> 3 | F114: 0 | G114: 0 | K114: 0 | L114: 0 | M114: 0 | N114: 0 | O114: 0 | Q114: 0 | U114: 0 | V114: 0 | W114: 750 | X114: 0 | Y114: 0 | Z114: 0 | AA114: 0 | AB114: 0 | AC114: 0 | AD114: 0
A115: =SUBTOTAL(3,$B$5:B115) -> 3 | F115: 0 | G115: 0 | K115: 0 | L115: 0 | M115: 0 | N115: 0 | O115: 0 | Q115: 0 | U115: 0 | V115: 0 | W115: 750 | X115: 0 | Y115: 0 | Z115: 0 | AA115: 0 | AB115: 0 | AC115: 0 | AD115: 0
A116: =SUBTOTAL(3,$B$5:B116) -> 3 | F116: 0 | G116: 0 | K116: 0 | L116: 0 | M116: 0 | N116: 0 | O116: 0 | Q116: 0 | U116: 0 | V116: 0 | W116: 750 | X116: 0 | Y116: 0 | Z116: 0 | AA116: 0 | AB116: 0 | AC116: 0 | AD116: 0
A117: =SUBTOTAL(3,$B$5:B117) -> 3 | F117: 0 | G117: 0 | K117: 0 | L117: 0 | M117: 0 | N117: 0 | O117: 0 | Q117: 0 | U117: 0 | V117: 0 | W117: 750 | X117: 0 | Y117: 0 | Z117: 0 | AA117: 0 | AB117: 0 | AC117: 0 | AD117: 0
A118: =SUBTOTAL(3,$B$5:B118) -> 3 | F118: 0 | G118: 0 | K118: 0 | L118: 0 | M118: 0 | N118: 0 | O118: 0 | Q118: 0 | U118: 0 | V118: 0 | W118: 750 | X118: 0 | Y118: 0 | Z118: 0 | AA118: 0 | AB118: 0 | AC118: 0 | AD118: 0
A119: =SUBTOTAL(3,$B$5:B119) -> 3 | F119: 0 | G119: 0 | K119: 0 | L119: 0 | M119: 0 | N119: 0 | O119: 0 | Q119: 0 | U119: 0 | V119: 0 | W119: 750 | X119: 0 | Y119: 0 | Z119: 0 | AA119: 0 | AB119: 0 | AC119: 0 | AD119: 0
A120: =SUBTOTAL(3,$B$5:B120) -> 3 | F120: 0 | G120: 0 | K120: 0 | L120: 0 | M120: 0 | N120: 0 | O120: 0 | Q120: 0 | U120: 0 | V120: 0 | W120: 750 | X120: 0 | Y120: 0 | Z120: 0 | AA120: 0 | AB120: 0 | AC120: 0 | AD120: 0
A121: =SUBTOTAL(3,$B$5:B121) -> 3 | F121: 0 | G121: 0 | K121: 0 | L121: 0 | M121: 0 | N121: 0 | O121: 0 | Q121: 0 | U121: 0 | V121: 0 | W121: 750 | X121: 0 | Y121: 0 | Z121: 0 | AA121: 0 | AB121: 0 | AC121: 0 | AD121: 0
A122: =SUBTOTAL(3,$B$5:B122) -> 3 | G122: 0 | K122: 0 | L122: 0 | M122: 0 | N122: 0 | O122: 0 | Q122: 0 | U122: 0 | V122: 0 | W122: 750 | X122: 0 | Y122: 0 | Z122: 0 | AA122: 0 | AB122: 0 | AC122: 0 | AD122: 0
A123: =SUBTOTAL(3,$B$5:B123) -> 3 | G123: 0 | K123: 0 | L123: 0 | M123: 0 | N123: 0 | O123: 0 | Q123: 0 | U123: 0 | V123: 0 | W123: 750 | X123: 0 | Y123: 0 | Z123: 0 | AA123: 0 | AB123: 0 | AC123: 0 | AD123: 0
A124: =SUBTOTAL(3,$B$5:B124) -> 3 | F124: 0 | G124: 0 | K124: 0 | L124: 0 | M124: 0 | N124: 0 | O124: 0 | Q124: 0 | U124: 0 | V124: 0 | W124: 750 | X124: 0 | Y124: 0 | Z124: 0 | AA124: 0 | AB124: 0 | AC124: 0 | AD124: 0
A125: الاجمالى | F125: =SUM(F5:F124) -> 13000 | G125: 13000 | H125: 0 | I125: 0 | J125: 0 | K125: 10400 | L125: 1950 | M125: 13000 | N125: 1950 | O125: 1144 | P125: 8 | Q125: 0 | R125: 0 | S125: 0 | T125: 0 | U125: 1144 | V125: 11856 | W125: 90000 | X125: 9606 | Y125: 115272 | Z125: 467.3 | AA125: =SUM(AA5:AA124) -> 11388.7 | AB125: =SUM(AB5:AB124) -> 113.887 | AC125: 5.5 | AD125: 11269.313
E127: الموارد البشرية | U127: الرئيس التنفيذي للشركة د . عمرو العدل
U128: د. عمرو العدل

Sheet فبراير
A4: م | B4: الاسم | C4: الوظيفة | D4: الادارة | E4: ATM | F4: الاجر الاساسى | G4: الاجر الاساسى بعد عدم الحضور | H4: مكافأت | I4: حافز بيع | J4: اضافى | K4: الاجر التامينى | L4: المنشأة | M4: اجمالي الاستحقاقات | N4: المنشأة2 | O4: الموظف | P4: عدم الحضور باليوم | Q4: عدم حضور بالجنيه | R4: مصروف صيانه | S4: سلف | T4: جزاءات | U4: اجمالي الاستقطاعات | V4: قبل الضريبة | W4: اعفاء شخصى | X4: الوعاء الضريبى | Y4: الوعاء الضريبى على اساس السنوى | Z4: الضريبة المستحقة | AA4: الصافى | AB4: خصم تكافلي | AC4: خصم الشهيد | AD4: الصافي المستحق للصرف
A5: 1 | G5: =F5-Q5 -> 0 | H5: 0 | I5: 0 | J5: 0 | K5: =IF(F5>8100,8100,F5*0.8) -> 0 | L5: =K5*18.75/100 -> 0 | M5: =F5+H5+I5+J5 -> 0 | N5: =L5 -> 0 | O5: =K5*0.11 -> 0 | Q5: =P5*F5/30 -> 0 | U5: =Q5+S5+T5+O5+R5 -> 0 | V5: =M5-O5-Q5 -> 0 | W5: 750 | X5: =IF((V5+J5)>W5,(V5+J5)-W5,0) -> 0 | Y5: =X5*12 -> 0 | Z5: =IF((Y5<=15000),(Y5*0%),IF((Y5<=30000),(Y5*2.5%)-375,IF((Y5<=45000),(Y5*10%)-2625,IF((Y5<=60000),(Y5*15%)-4875,IF((Y5<=200000),(Y5*20%)-7875,IF((Y5<=400000),(Y5*22.5%)-12875,IF((Y5<=600000),(Y5*25%)-22875,IF((Y5<=700000),(Y5*25%)-22500,IF((Y5<=800000),(Y5*25%)-20250,IF((Y5<=900000),(Y5*25%)-18000,IF((Y5<=1000000),(Y5*25%)-15000,IF((Y5>=1000000),(Y5*25%)-10000)))))))))))/12) -> 0 | AA5: =M5-Q5-S5-T5-Z5-O5-R5 -> 0 | AB5: =AA5*0.01 -> 0 | AC5: =IF(M5<=2000,0,M5*0.0005) -> 0 | AD5: =AA5-AB5-AC5 -> 0
A6: =SUBTOTAL(3,$B$5:B6) -> 0 | G6: 0 | K6: 0 | L6: 0 | M6: 0 | N6: 0 | O6: 0 | Q6: 0 | U6: 0 | V6: =M6-O6-Q6 -> 0 | W6: 750 | X6: 0 | Y6: 0 | Z6: =IF((Y6<=15000),(Y6*0%),IF((Y6<=30000),(Y6*2.5%)-375,IF((Y6<=45000),(Y6*10%)-2625,IF((Y6<=60000),(Y6*15%)-4875,IF((Y6<=200000),(Y6*20%)-7875,IF((Y6<=400000),(Y6*22.5%)-12875,IF((Y6<=600000),(Y6*25%)-22875,IF((Y6<=700000),(Y6*25%)-22500,IF((Y6<=800000),(Y6*25%)-20250,IF((Y6<=900000),(Y6*25%)-18000,IF((Y6<=1000000),(Y6*25%)-15000,IF((Y6>=1000000),(Y6*25%)-10000)))))))))))/12) -> 0 | AA6: 0 | AB6: =AA6*0.01 -> 0 | AC6: =IF(M6<=2000,0,M6*0.0005) -> 0 | AD6: =AA6-AB6-AC6 -> 0
A7: =SUBTOTAL(3,$B$5:B7) -> 0 | G7: 0 | K7: 0 | L7: 0 | M7: 0 | N7: 0 | O7: 0 | Q7: 0 | U7: 0 | V7: 0 | W7: 750 | X7: 0 | Y7: 0 | Z7: 0 | AA7: 0 | AB7: 0 | AC7: 0 | AD7: 0
A8: =SUBTOTAL(3,$B$5:B8) -> 0 | G8: 0 | K8: 0 | L8: 0 | M8: 0 | N8: 0 | O8: 0 | Q8: 0 | U8: 0 | V8: 0 | W8: 750 | X8: 0 | Y8: 0 | Z8: 0 | AA8: 0 | AB8: 0 | AC8: 0 | AD8: 0
A9: =SUBTOTAL(3,$B$5:B9) -> 0 | G9: 0 | K9: 0 | L9: 0 | M9: 0 | N9: 0 | O9: 0 | Q9: 0 | U9: 0 | V9: 0 | W9: 750 | X9: 0 | Y9: 0 | Z9: 0 | AA9: 0 | AB9: 0 | AC9: 0 | AD9: 0
A10: =SUBTOTAL(3,$B$5:B10) -> 0 | G10: 0 | K10: 0 | L10: 0 | M10: 0 | N10: 0 | O10: 0 | Q10: 0 | U10: 0 | V10: 0 | W10: 750 | X10: 0 | Y10: 0 | Z10: 0 | AA10: 0 | AB10: 0 | AC10: 0 | AD10: 0
A11: =SUBTOTAL(3,$B$5:B11) -> 0 | G11: 0 | L11: 0 | M11: 0 | N11: 0 | O11: 0 | P11: 8 | Q11: 0 | U11: 0 | V11: 0 | W11: 750 | X11: 0 | Y11: 0 | Z11: 0 | AA11: 0 | AB11: 0 | AC11: 0 | AD11: 0
A12: =SUBTOTAL(3,$B$5:B12) -> 0 | G12: 0 | K12: 0 | L12: 0 | M12: 0 | N12: 0 | O12: 0 | Q12: 0 | U12: 0 | V12: 0 | W12: 750 | X12: 0 | Y12: 0 | Z12: 0 | AA12: 0 | AB12: 0 | AC12: 0 | AD12: 0
A13: =SUBTOTAL(3,$B$5:B13) -> 0 | G13: 0 | K13: 0 | L13: 0 | M13: 0 | N13: 0 | O13: 0 | Q13: 0 | U13: 0 | V13: 0 | W13: 750 | X13: 0 | Y13: 0 | Z13: 0 | AA13: 0 | AB13: 0 | AC13: 0 | AD13: 0
A14: =SUBTOTAL(3,$B$5:B14) -> 0 | G14: 0 | K14: 0 | L14: 0 | M14: 0 | N14: 0 | O14: 0 | Q14: 0 | U14: 0 | V14: 0 | W14: 750 | X14: 0 | Y14: 0 | Z14: 0 | AA14: 0 | AB14: 0 | AC14: 0 | AD14: 0
A15: =SUBTOTAL(3,$B$5:B15) -> 0 | G15: 0 | K15: 0 | L15: 0 | M15: 0 | N15: 0 | O15: 0 | Q15: 0 | U15: 0 | V15: 0 | W15: 750 | X15: 0 | Y15: 0 | Z15: 0 | AA15: 0 | AB15: 0 | AC15: 0 | AD15: 0
A16: =SUBTOTAL(3,$B$5:B16) -> 0 | G16: 0 | K16: 0 | L16: 0 | M16: 0 | N16: 0 | O16: 0 | Q16: 0 | U16: 0 | V16: 0 | W16: 750 | X16: 0 | Y16: 0 | Z16: 0 | AA16: 0 | AB16: 0 | AC16: 0 | AD16: 0
A17: =SUBTOTAL(3,$B$5:B17) -> 0 | G17: 0 | K17: 0 | L17: 0 | M17: 0 | N17: 0 | O17: 0 | Q17: 0 | U17: 0 | V17: 0 | W17: 750 | X17: 0 | Y17: 0 | Z17: 0 | AA17: 0 | AB17: 0 | AC17: 0 | AD17: 0
A18: =SUBTOTAL(3,$B$5:B18) -> 0 | G18: 0 | K18: 0 | L18: 0 | M18: 0 | N18: 0 | O18: 0 | Q18: 0 | U18: 0 | V18: 0 | W18: 750 | X18: 0 | Y18: 0 | Z18: 0 | AA18: 0 | AB18: 0 | AC18: 0 | AD18: 0
A19: =SUBTOTAL(3,$B$5:B19) -> 0 | G19: 0 | K19: 0 | L19: 0 | M19: 0 | N19: 0 | O19: 0 | Q19: 0 | U19: 0 | V19: 0 | W19: 750 | X19: 0 | Y19: 0 | Z19: 0 | AA19: 0 | AB19: 0 | AC19: 0 | AD19: 0
A20: =SUBTOTAL(3,$B$5:B20) -> 0 | G20: 0 | K20: 0 | L20: 0 | M20: 0 | N20: 0 | O20: 0 | Q20: 0 | U20: 0 | V20: 0 | W20: 750 | X20: 0 | Y20: 0 | Z20: 0 | AA20: 0 | AB20: 0 | AC20: 0 | AD20: 0
A21: =SUBTOTAL(3,$B$5:B21) -> 0 | G21: 0 | K21: 0 | L21: 0 | M21: 0 | N21: 0 | O21: 0 | Q21: 0 | U21: 0 | V21: 0 | W21: 750 | X21: 0 | Y21: 0 | Z21: 0 | AA21: 0 | AB21: 0 | AC21: 0 | AD21: 0
A22: =SUBTOTAL(3,$B$5:B22) -> 0 | G22: 0 | K22: 0 | L22: 0 | M22: 0 | N22: 0 | O22: 0 | Q22: 0 | U22: 0 | V22: 0 | W22: 750 | X22: 0 | Y22: 0 | Z22: 0 | AA22: 0 | AB22: 0 | AC22: 0 | AD22: 0
A23: =SUBTOTAL(3,$B$5:B23) -> 0 | G23: 0 | K23: 0 | L23: 0 | M23: 0 | N23: 0 | O23: 0 | Q23: 0 | U23: 0 | V23: 0 | W23: 750 | X23: 0 | Y23: 0 | Z23: 0 | AA23: 0 | AB23: 0 | AC23: 0 | AD23: 0
A24: =SUBTOTAL(3,$B$5:B24) -> 0 | G24: =F24-Q24 -> 0 | K24: =IF(F24>8100,8100,F24*0.8) -> 0 | L24: =K24*18.75/100 -> 0 | M24: =F24+H24+I24+J24 -> 0 | N24: =L24 -> 0 | O24: =K24*0.11 -> 0 | Q24: =P24*F24/30 -> 0 | U24: =Q24+S24+T24+O24+R24 -> 0 | V24: =M24-O24-Q24 -> 0 | W24: 750 | X24: =IF((V24+J24)>W24,(V24+J24)-W24,0) -> 0 | Y24: =X24*12 -> 0 | Z24: =IF((Y24<=15000),(Y24*0%),IF((Y24<=30000),(Y24*2.5%)-375,IF((Y24<=45000),(Y24*10%)-2625,IF((Y24<=60000),(Y24*15%)-4875,IF((Y24<=200000),(Y24*20%)-7875,IF((Y24<=400000),(Y24*22.5%)-12875,IF((Y24<=600000),(Y24*25%)-22875,IF((Y24<=700000),(Y24*25%)-22500,IF((Y24<=800000),(Y24*25%)-20250,IF((Y24<=900000),(Y24*25%)-18000,IF((Y24<=1000000),(Y24*25%)-15000,IF((Y24>=1000000),(Y24*25%)-10000)))))))))))/12) -> 0 | AA24: =M24-Q24-S24-T24-Z24-O24-R24 -> 0 | AB24: 0 | AC24: 0 | AD24: 0
A25: =SUBTOTAL(3,$B$5:B25) -> 0 | G25: 0 | K25: 0 | L25: 0 | M25: 0 | N25: 0 | O25: 0 | Q25: 0 | U25: 0 | V25: 0 | W25: 750 | X25: 0 | Y25: 0 | Z25: 0 | AA25: 0 | AB25: 0 | AC25: 0 | AD25: 0
A26: =SUBTOTAL(3,$B$5:B26) -> 0 | G26: 0 | K26: 0 | L26: 0 | M26: 0 | N26: 0 | O26: 0 | Q26: 0 | U26: 0 | V26: 0 | W26: 750 | X26: 0 | Y26: 0 | Z26: 0 | AA26: 0 | AB26: 0 | AC26: 0 | AD26: 0
A27: =SUBTOTAL(3,$B$5:B27) -> 0 | G27: 0 | K27: 0 | L27: 0 | M27: 0 | N27: 0 | O27: 0 | Q27: 0 | U27: 0 | V27: 0 | W27: 750 | X27: 0 | Y27: 0 | Z27: 0 | AA27: 0 | AB27: 0 | AC27: 0 | AD27: 0
A28: =SUBTOTAL(3,$B$5:B28) -> 0 | G28: =F28-Q28 -> 0 | K28: =IF(F28>8100,8100,F28*0.8) -> 0 | L28: =K28*18.75/100 -> 0 | M28: =F28+H28+I28+J28 -> 0 | N28: =L28 -> 0 | O28: =K28*0.11 -> 0 | Q28: =P28*F28/30 -> 0 | U28: =Q28+S28+T28+O28+R28 -> 0 | V28: 0 | W28: 750 | X28: =IF((V28+J28)>W28,(V28+J28)-W28,0) -> 0 | Y28: =X28*12 -> 0 | Z28: =IF((Y28<=15000),(Y28*0%),IF((Y28<=30000),(Y28*2.5%)-375,IF((Y28<=45000),(Y28*10%)-2625,IF((Y28<=60000),(Y28*15%)-4875,IF((Y28<=200000),(Y28*20%)-7875,IF((Y28<=400000),(Y28*22.5%)-12875,IF((Y28<=600000),(Y28*25%)-22875,IF((Y28<=700000),(Y28*25%)-22500,IF((Y28<=800000),(Y28*25%)-20250,IF((Y28<=900000),(Y28*25%)-18000,IF((Y28<=1000000),(Y28*25%)-15000,IF((Y28>=1000000),(Y28*25%)-10000)))))))))))/12) -> 0 | AA28: =M28-Q28-S28-T28-Z28-O28-R28 -> 0 | AB28: 0 | AC28: 0 | AD28: 0
A29: =SUBTOTAL(3,$B$5:B29) -> 0 | G29: =F29-Q29 -> 0 | K29: =IF(F29>8100,8100,F29*0.8) -> 0 | L29: =K29*18.75/100 -> 0 | M29: =F29+H29+I29+J29 -> 0 | N29: =L29 -> 0 | O29: =K29*0.11 -> 0 | Q29: =P29*F29/30 -> 0 | U29: =Q29+S29+T29+O29+R29 -> 0 | V29: =M29-O29-Q29 -> 0 | W29: 750 | X29: =IF((V29+J29)>W29,(V29+J29)-W29,0) -> 0 | Y29: =X29*12 -> 0 | Z29: =IF((Y29<=15000),(Y29*0%),IF((Y29<=30000),(Y29*2.5%)-375,IF((Y29<=45000),(Y29*10%)-2625,IF((Y29<=60000),(Y29*15%)-4875,IF((Y29<=200000),(Y29*20%)-7875,IF((Y29<=400000),(Y29*22.5%)-12875,IF((Y29<=600000),(Y29*25%)-22875,IF((Y29<=700000),(Y29*25%)-22500,IF((Y29<=800000),(Y29*25%)-20250,IF((Y29<=900000),(Y29*25%)-18000,IF((Y29<=1000000),(Y29*25%)-15000,IF((Y29>=1000000),(Y29*25%)-10000)))))))))))/12) -> 0 | AA29: =M29-Q29-S29-T29-Z29-O29-R29 -> 0 | AB29: 0 | AC29: 0 | AD29: 0
A30: =SUBTOTAL(3,$B$5:B30) -> 0 | G30: =F30-Q30 -> 0 | K30: =IF(F30>8100,8100,F30*0.8) -> 0 | L30: =K30*18.75/100 -> 0 | M30: =F30+H30+I30+J30 -> 0 | N30: =L30 -> 0 | O30: =K30*0.11 -> 0 | Q30: =P30*F30/30 -> 0 | U30: =Q30+S30+T30+O30+R30 -> 0 | V30: =M30-O30-Q30 -> 0 | W30: 750 | X30: =IF((V30+J30)>W30,(V30+J30)-W30,0) -> 0 | Y30: =X30*12 -> 0 | Z30: =IF((Y30<=15000),(Y30*0%),IF((Y30<=30000),(Y30*2.5%)-375,IF((Y30<=45000),(Y30*10%)-2625,IF((Y30<=60000),(Y30*15%)-4875,IF((Y30<=200000),(Y30*20%)-7875,IF((Y30<=400000),(Y30*22.5%)-12875,IF((Y30<=600000),(Y30*25%)-22875,IF((Y30<=700000),(Y30*25%)-22500,IF((Y30<=800000),(Y30*25%)-20250,IF((Y30<=900000),(Y30*25%)-18000,IF((Y30<=1000000),(Y30*25%)-15000,IF((Y30>=1000000),(Y30*25%)-10000)))))))))))/12) -> 0 | AA30: =M30-Q30-S30-T30-Z30-O30-R30 -> 0 | AB30: 0 | AC30: 0 | AD30: 0
A31: =SUBTOTAL(3,$B$5:B31) -> 0 | G31: 0 | K31: 0 | L31: 0 | M31: 0 | N31: 0 | O31: 0 | Q31: 0 | U31: 0 | V31: 0 | W31: 750 | X31: 0 | Y31: 0 | Z31: 0 | AA31: 0 | AB31: 0 | AC31: 0 | AD31: 0
A32: =SUBTOTAL(3,$B$5:B32) -> 0 | G32: 0 | K32: 0 | L32: 0 | M32: 0 | N32: 0 | O32: 0 | Q32: 0 | U32: 0 | V32: 0 | W32: 750 | X32: 0 | Y32: 0 | Z32: 0 | AA32: 0 | AB32: 0 | AC32: 0 | AD32: 0
A33: =SUBTOTAL(3,$B$5:B33) -> 0 | G33: 0 | K33: 0 | L33: 0 | M33: 0 | N33: 0 | O33: 0 | Q33: 0 | U33: 0 | V33: 0 | W33: 750 | X33: 0 | Y33: 0 | Z33: 0 | AA33: 0 | AB33: 0 | AC33: 0 | AD33: 0 | AE33: 8393 | AG33: =AA33-AE33 -> -8393
A34: =SUBTOTAL(3,$B$5:B34) -> 0 | G34: =F34-Q34 -> 0 | K34: =IF(F34>8100,8100,F34*0.8) -> 0 | L34: =K34*18.75/100 -> 0 | M34: =F34+H34+I34+J34 -> 0 | N34: =L34 -> 0 | O34: =K34*0.11 -> 0 | Q34: =P34*F34/30 -> 0 | U34: =Q34+S34+T34+O34+R34 -> 0 | V34: =M34-O34-Q34 -> 0 | W34: 750 | X34: =IF((V34+J34)>W34,(V34+J34)-W34,0) -> 0 | Y34: =X34*12 -> 0 | Z34: =IF((Y34<=15000),(Y34*0%),IF((Y34<=30000),(Y34*2.5%)-375,IF((Y34<=45000),(Y34*10%)-2625,IF((Y34<=60000),(Y34*15%)-4875,IF((Y34<=200000),(Y34*20%)-7875,IF((Y34<=400000),(Y34*22.5%)-12875,IF((Y34<=600000),(Y34*25%)-22875,IF((Y34<=700000),(Y34*25%)-22500,IF((Y34<=800000),(Y34*25%)-20250,IF((Y34<=900000),(Y34*25%)-18000,IF((Y34<=1000000),(Y34*25%)-15000,IF((Y34>=1000000),(Y34*25%)-10000)))))))))))/12) -> 0 | AA34: =M34-Q34-S34-T34-Z34-O34-R34 -> 0 | AB34: 0 | AC34: 0 | AD34: 0
A35: =SUBTOTAL(3,$B$5:B35) -> 0 | G35: 0 | K35: 0 | L35: 0 | M35: 0 | N35: 0 | O35: 0 | Q35: 0 | U35: 0 | V35: 0 | W35: 750 | X35: 0 | Y35: 0 | Z35: 0 | AA35: 0 | AB35: 0 | AC35: 0 | AD35: 0
A36: =SUBTOTAL(3,$B$5:B36) -> 0 | G36: 0 | K36: 0 | L36: 0 | M36: 0 | N36: 0 | O36: 0 | Q36: 0 | U36: 0 | V36: 0 | W36: 750 | X36: 0 | Y36: 0 | Z36: 0 | AA36: 0 | AB36: 0 | AC36: 0 | AD36: 0
A37: =SUBTOTAL(3,$B$5:B37) -> 0 | G37: 0 | K37: 0 | L37: 0 | M37: 0 | N37: 0 | O37: 0 | Q37: 0 | U37: 0 | V37: 0 | W37: 750 | X37: 0 | Y37: 0 | Z37: 0 | AA37: 0 | AB37: 0 | AC37: 0 | AD37: 0
A38: =SUBTOTAL(3,$B$5:B38) -> 0 | G38: 0 | K38: 0 | L38: 0 | M38: 0 | N38: 0 | O38: 0 | Q38: 0 | U38: 0 | V38: 0 | W38: 750 | X38: 0 | Y38: 0 | Z38: 0 | AA38: 0 | AB38: 0 | AC38: 0 | AD38: 0
A39: =SUBTOTAL(3,$B$5:B39) -> 0 | G39: 0 | K39: 0 | L39: 0 | M39: 0 | N39: 0 | O39: 0 | Q39: 0 | U39: 0 | V39: 0 | W39: 750 | X39: 0 | Y39: 0 | Z39: 0 | AA39: 0 | AB39: 0 | AC39: 0 | AD39: 0
A40: =SUBTOTAL(3,$B$5:B40) -> 0 | G40: 0 | K40: 0 | L40: 0 | M40: 0 | N40: 0 | O40: 0 | Q40: 0 | U40: 0 | V40: 0 | W40: 750 | X40: 0 | Y40: 0 | Z40: 0 | AA40: 0 | AB40: 0 | AC40: 0 | AD40: 0
A41: =SUBTOTAL(3,$B$5:B41) -> 0 | G41: =F41-Q41 -> 0 | K41: =IF(F41>8100,8100,F41*0.8) -> 0 | L41: =K41*18.75/100 -> 0 | M41: =F41+H41+I41+J41 -> 0 | N41: =L41 -> 0 | O41: =K41*0.11 -> 0 | Q41: =P41*F41/30 -> 0 | U41: =Q41+S41+T41+O41+R41 -> 0 | V41: =M41-O41-Q41 -> 0 | W41: 750 | X41: =IF((V41+J41)>W41,(V41+J41)-W41,0) -> 0 | Y41: =X41*12 -> 0 | Z41: =IF((Y41<=15000),(Y41*0%),IF((Y41<=30000),(Y41*2.5%)-375,IF((Y41<=45000),(Y41*10%)-2625,IF((Y41<=60000),(Y41*15%)-4875,IF((Y41<=200000),(Y41*20%)-7875,IF((Y41<=400000),(Y41*22.5%)-12875,IF((Y41<=600000),(Y41*25%)-22875,IF((Y41<=700000),(Y41*25%)-22500,IF((Y41<=800000),(Y41*25%)-20250,IF((Y41<=900000),(Y41*25%)-18000,IF((Y41<=1000000),(Y41*25%)-15000,IF((Y41>=1000000),(Y41*25%)-10000)))))))))))/12) -> 0 | AA41: =M41-Q41-S41-T41-Z41-O41-R41 -> 0 | AB41: 0 | AC41: 0 | AD41: 0
A42: =SUBTOTAL(3,$B$5:B42) -> 0 | G42: 0 | K42: 0 | L42: 0 | M42: 0 | N42: 0 | O42: 0 | Q42: 0 | U42: 0 | V42: 0 | W42: 750 | X42: 0 | Y42: 0 | Z42: 0 | AA42: 0 | AB42: 0 | AC42: 0 | AD42: 0
A43: =SUBTOTAL(3,$B$5:B43) -> 0 | G43: =F43-Q43 -> 0 | K43: =IF(F43>8100,8100,F43*0.8) -> 0 | L43: =K43*18.75/100 -> 0 | M43: =F43+H43+I43+J43 -> 0 | N43: =L43 -> 0 | O43: =K43*0.11 -> 0 | Q43: =P43*F43/30 -> 0 | U43: =Q43+S43+T43+O43+R43 -> 0 | V43: =M43-O43-Q43 -> 0 | W43: 750 | X43: =IF((V43+J43)>W43,(V43+J43)-W43,0) -> 0 | Y43: =X43*12 -> 0 | Z43: =IF((Y43<=15000),(Y43*0%),IF((Y43<=30000),(Y43*2.5%)-375,IF((Y43<=45000),(Y43*10%)-2625,IF((Y43<=60000),(Y43*15%)-4875,IF((Y43<=200000),(Y43*20%)-7875,IF((Y43<=400000),(Y43*22.5%)-12875,IF((Y43<=600000),(Y43*25%)-22875,IF((Y43<=700000),(Y43*25%)-22500,IF((Y43<=800000),(Y43*25%)-20250,IF((Y43<=900000),(Y43*25%)-18000,IF((Y43<=1000000),(Y43*25%)-15000,IF((Y43>=1000000),(Y43*25%)-10000)))))))))))/12) -> 0 | AA43: =M43-Q43-S43-T43-Z43-O43-R43 -> 0 | AB43: 0 | AC43: 0 | AD43: 0
A44: =SUBTOTAL(3,$B$5:B44) -> 0 | G44: =F44-Q44 -> 0 | K44: =IF(F44>8100,8100,F44*0.8) -> 0 | L44: =K44*18.75/100 -> 0 | M44: =F44+H44+I44+J44 -> 0 | N44: =L44 -> 0 | O44: =K44*0.11 -> 0 | Q44: =P44*F44/30 -> 0 | U44: =Q44+S44+T44+O44+R44 -> 0 | V44: =M44-O44-Q44 -> 0 | W44: 750 | X44: =IF((V44+J44)>W44,(V44+J44)-W44,0) -> 0 | Y44: =X44*12 -> 0 | Z44: =IF((Y44<=15000),(Y44*0%),IF((Y44<=30000),(Y44*2.5%)-375,IF((Y44<=45000),(Y44*10%)-2625,IF((Y44<=60000),(Y44*15%)-4875,IF((Y44<=200000),(Y44*20%)-7875,IF((Y44<=400000),(Y44*22.5%)-12875,IF((Y44<=600000),(Y44*25%)-22875,IF((Y44<=700000),(Y44*25%)-22500,IF((Y44<=800000),(Y44*25%)-20250,IF((Y44<=900000),(Y44*25%)-18000,IF((Y44<=1000000),(Y44*25%)-15000,IF((Y44>=1000000),(Y44*25%)-10000)))))))))))/12) -> 0 | AA44: =M44-Q44-S44-T44-Z44-O44-R44 -> 0 | AB44: 0 | AC44: 0 | AD44: 0
A45: =SUBTOTAL(3,$B$5:B45) -> 0 | G45: =F45-Q45 -> 0 | K45: =IF(F45>8100,8100,F45*0.8) -> 0 | L45: =K45*18.75/100 -> 0 | M45: =F45+H45+I45+J45 -> 0 | N45: =L45 -> 0 | O45: =K45*0.11 -> 0 | Q45: =P45*F45/30 -> 0 | U45: =Q45+S45+T45+O45+R45 -> 0 | V45: =M45-O45-Q45 -> 0 | W45: 750 | X45: =IF((V45+J45)>W45,(V45+J45)-W45,0) -> 0 | Y45: =X45*12 -> 0 | Z45: =IF((Y45<=15000),(Y45*0%),IF((Y45<=30000),(Y45*2.5%)-375,IF((Y45<=45000),(Y45*10%)-2625,IF((Y45<=60000),(Y45*15%)-4875,IF((Y45<=200000),(Y45*20%)-7875,IF((Y45<=400000),(Y45*22.5%)-12875,IF((Y45<=600000),(Y45*25%)-22875,IF((Y45<=700000),(Y45*25%)-22500,IF((Y45<=800000),(Y45*25%)-20250,IF((Y45<=900000),(Y45*25%)-18000,IF((Y45<=1000000),(Y45*25%)-15000,IF((Y45>=1000000),(Y45*25%)-10000)))))))))))/12) -> 0 | AA45: =M45-Q45-S45-T45-Z45-O45-R45 -> 0 | AB45: 0 | AC45: 0 | AD45: 0
A46: =SUBTOTAL(3,$B$5:B46) -> 0 | G46: =F46-Q46 -> 0 | K46: =IF(F46>8100,8100,F46*0.8) -> 0 | L46: =K46*18.75/100 -> 0 | M46: =F46+H46+I46+J46 -> 0 | N46: =L46 -> 0 | O46: =K46*0.11 -> 0 | Q46: =P46*F46/30 -> 0 | U46: =Q46+S46+T46+O46+R46 -> 0 | V46: =M46-O46-Q46 -> 0 | W46: 750 | X46: =IF((V46+J46)>W46,(V46+J46)-W46,0) -> 0 | Y46: =X46*12 -> 0 | Z46: =IF((Y46<=15000),(Y46*0%),IF((Y46<=30000),(Y46*2.5%)-375,IF((Y46<=45000),(Y46*10%)-2625,IF((Y46<=60000),(Y46*15%)-4875,IF((Y46<=200000),(Y46*20%)-7875,IF((Y46<=400000),(Y46*22.5%)-12875,IF((Y46<=600000),(Y46*25%)-22875,IF((Y46<=700000),(Y46*25%)-22500,IF((Y46<=800000),(Y46*25%)-20250,IF((Y46<=900000),(Y46*25%)-18000,IF((Y46<=1000000),(Y46*25%)-15000,IF((Y46>=1000000),(Y46*25%)-10000)))))))))))/12) -> 0 | AA46: =M46-Q46-S46-T46-Z46-O46-R46 -> 0 | AB46: 0 | AC46: 0 | AD46: 0
A47: =SUBTOTAL(3,$B$5:B47) -> 0 | G47: 0 | K47: 0 | L47: 0 | M47: 0 | N47: 0 | O47: 0 | Q47: 0 | U47: 0 | V47: 0 | W47: 750 | X47: 0 | Y47: 0 | Z47: 0 | AA47: 0 | AB47: 0 | AC47: 0 | AD47: 0
A48: =SUBTOTAL(3,$B$5:B48) -> 0 | G48: 0 | K48: 0 | L48: 0 | M48: 0 | N48: 0 | O48: 0 | Q48: 0 | U48: 0 | V48: 0 | W48: 750 | X48: 0 | Y48: 0 | Z48: 0 | AA48: 0 | AB48: 0 | AC48: 0 | AD48: 0
A49: =SUBTOTAL(3,$B$5:B49) -> 0 | G49: 0 | K49: 0 | L49: 0 | M49: 0 | N49: 0 | O49: 0 | Q49: 0 | U49: 0 | V49: 0 | W49: 750 | X49: 0 | Y49: 0 | Z49: 0 | AA49: 0 | AB49: 0 | AC49: 0 | AD49: 0
A50: =SUBTOTAL(3,$B$5:B50) -> 0 | G50: =F50-Q50 -> 0 | K50: =IF(F50>8100,8100,F50*0.8) -> 0 | L50: =K50*18.75/100 -> 0 | M50: =F50+H50+I50+J50 -> 0 | N50: =L50 -> 0 | O50: =K50*0.11 -> 0 | Q50: =P50*F50/30 -> 0 | U50: =Q50+S50+T50+O50+R50 -> 0 | V50: =M50-O50-Q50 -> 0 | W50: 750 | X50: =IF((V50+J50)>W50,(V50+J50)-W50,0) -> 0 | Y50: =X50*12 -> 0 | Z50: =IF((Y50<=15000),(Y50*0%),IF((Y50<=30000),(Y50*2.5%)-375,IF((Y50<=45000),(Y50*10%)-2625,IF((Y50<=60000),(Y50*15%)-4875,IF((Y50<=200000),(Y50*20%)-7875,IF((Y50<=400000),(Y50*22.5%)-12875,IF((Y50<=600000),(Y50*25%)-22875,IF((Y50<=700000),(Y50*25%)-22500,IF((Y50<=800000),(Y50*25%)-20250,IF((Y50<=900000),(Y50*25%)-18000,IF((Y50<=1000000),(Y50*25%)-15000,IF((Y50>=1000000),(Y50*25%)-10000)))))))))))/12) -> 0 | AA50: =M50-Q50-S50-T50-Z50-O50-R50 -> 0 | AB50: 0 | AC50: 0 | AD50: 0
A51: =SUBTOTAL(3,$B$5:B51) -> 0 | G51: 0 | K51: 0 | L51: 0 | M51: 0 | N51: 0 | O51: 0 | Q51: 0 | U51: 0 | V51: 0 | W51: 750 | X51: 0 | Y51: 0 | Z51: 0 | AA51: 0 | AB51: 0 | AC51: 0 | AD51: 0
A52: =SUBTOTAL(3,$B$5:B52) -> 0 | G52: =F52-Q52 -> 0 | K52: =IF(F52>8100,8100,F52*0.8) -> 0 | L52: =K52*18.75/100 -> 0 | M52: =F52+H52+I52+J52 -> 0 | N52: =L52 -> 0 | O52: =K52*0.11 -> 0 | Q52: =P52*F52/30 -> 0 | U52: =Q52+S52+T52+O52+R52 -> 0 | V52: 0 | W52: 750 | X52: =IF((V52+J52)>W52,(V52+J52)-W52,0) -> 0 | Y52: =X52*12 -> 0 | Z52: =IF((Y52<=15000),(Y52*0%),IF((Y52<=30000),(Y52*2.5%)-375,IF((Y52<=45000),(Y52*10%)-2625,IF((Y52<=60000),(Y52*15%)-4875,IF((Y52<=200000),(Y52*20%)-7875,IF((Y52<=400000),(Y52*22.5%)-12875,IF((Y52<=600000),(Y52*25%)-22875,IF((Y52<=700000),(Y52*25%)-22500,IF((Y52<=800000),(Y52*25%)-20250,IF((Y52<=900000),(Y52*25%)-18000,IF((Y52<=1000000),(Y52*25%)-15000,IF((Y52>=1000000),(Y52*25%)-10000)))))))))))/12) -> 0 | AA52: =M52-Q52-S52-T52-Z52-O52-R52 -> 0 | AB52: 0 | AC52: 0 | AD52: 0
A53: =SUBTOTAL(3,$B$5:B53) -> 0 | G53: =F53-Q53 -> 0 | K53: =IF(F53>8100,8100,F53*0.8) -> 0 | L53: =K53*18.75/100 -> 0 | M53: =F53+H53+I53+J53 -> 0 | N53: =L53 -> 0 | O53: =K53*0.11 -> 0 | Q53: =P53*F53/30 -> 0 | U53: =Q53+S53+T53+O53+R53 -> 0 | V53: 0 | W53: 750 | X53: =IF((V53+J53)>W53,(V53+J53)-W53,0) -> 0 | Y53: =X53*12 -> 0 | Z53: =IF((Y53<=15000),(Y53*0%),IF((Y53<=30000),(Y53*2.5%)-375,IF((Y53<=45000),(Y53*10%)-2625,IF((Y53<=60000),(Y53*15%)-4875,IF((Y53<=200000),(Y53*20%)-7875,IF((Y53<=400000),(Y53*22.5%)-12875,IF((Y53<=600000),(Y53*25%)-22875,IF((Y53<=700000),(Y53*25%)-22500,IF((Y53<=800000),(Y53*25%)-20250,IF((Y53<=900000),(Y53*25%)-18000,IF((Y53<=1000000),(Y53*25%)-15000,IF((Y53>=1000000),(Y53*25%)-10000)))))))))))/12) -> 0 | AA53: =M53-Q53-S53-T53-Z53-O53-R53 -> 0 | AB53: 0 | AC53: 0 | AD53: 0
A54: =SUBTOTAL(3,$B$5:B54) -> 0 | G54: 0 | K54: 0 | L54: 0 | M54: 0 | N54: 0 | O54: 0 | Q54: 0 | U54: 0 | V54: 0 | W54: 750 | X54: 0 | Y54: 0 | Z54: 0 | AA54: 0 | AB54: 0 | AC54: 0 | AD54: 0
A55: =SUBTOTAL(3,$B$5:B55) -> 0 | G55: 0 | K55: 0 | L55: 0 | M55: 0 | N55: 0 | O55: 0 | Q55: 0 | U55: 0 | V55: 0 | W55: 750 | X55: 0 | Y55: 0 | Z55: 0 | AA55: 0 | AB55: 0 | AC55: 0 | AD55: 0
A56: =SUBTOTAL(3,$B$5:B56) -> 0 | G56: 0 | K56: 0 | L56: 0 | M56: 0 | N56: 0 | O56: 0 | Q56: 0 | U56: 0 | V56: 0 | W56: 750 | X56: 0 | Y56: 0 | Z56: 0 | AA56: 0 | AB56: 0 | AC56: 0 | AD56: 0
A57: =SUBTOTAL(3,$B$5:B57) -> 0 | G57: 0 | K57: 0 | L57: 0 | M57: 0 | N57: 0 | O57: 0 | Q57: 0 | U57: 0 | V57: 0 | W57: 750 | X57: 0 | Y57: 0 | Z57: 0 | AA57: 0 | AB57: 0 | AC57: 0 | AD57: 0
A58: =SUBTOTAL(3,$B$5:B58) -> 0 | G58: 0 | K58: 0 | L58: 0 | M58: 0 | N58: 0 | O58: 0 | Q58: 0 | U58: 0 | V58: 0 | W58: 750 | X58: 0 | Y58: 0 | Z58: 0 | AA58: 0 | AB58: 0 | AC58: 0 | AD58: 0
A59: =SUBTOTAL(3,$B$5:B59) -> 0 | G59: 0 | K59: 0 | L59: 0 | M59: 0 | N59: 0 | O59: 0 | Q59: 0 | U59: 0 | V59: 0 | W59: 750 | X59: 0 | Y59: 0 | Z59: 0 | AA59: 0 | AB59: 0 | AC59: 0 | AD59: 0
A60: =SUBTOTAL(3,$B$5:B60) -> 0 | G60: 0 | K60: 0 | L60: 0 | M60: 0 | N60: 0 | O60: 0 | Q60: 0 | U60: 0 | V60: 0 | W60: 750 | X60: 0 | Y60: 0 | Z60: 0 | AA60: 0 | AB60: 0 | AC60: 0 | AD60: 0
A61: =SUBTOTAL(3,$B$5:B61) -> 0 | G61: 0 | K61: 0 | L61: 0 | M61: 0 | N61: 0 | O61: 0 | Q61: 0 | U61: 0 | V61: 0 | W61: 750 | X61: 0 | Y61: 0 | Z61: 0 | AA61: 0 | AB61: 0 | AC61: 0 | AD61: 0
A62: =SUBTOTAL(3,$B$5:B62) -> 0 | G62: 0 | K62: 0 | L62: 0 | M62: 0 | N62: 0 | O62: 0 | Q62: 0 | U62: 0 | V62: 0 | W62: 750 | X62: 0 | Y62: 0 | Z62: 0 | AA62: 0 | AB62: 0 | AC62: 0 | AD62: 0
A63: =SUBTOTAL(3,$B$5:B63) -> 0 | G63: 0 | K63: 0 | L63: 0 | M63: 0 | N63: 0 | O63: 0 | Q63: 0 | U63: 0 | V63: 0 | W63: 750 | X63: 0 | Y63: 0 | Z63: 0 | AA63: 0 | AB63: 0 | AC63: 0 | AD63: 0
A64: =SUBTOTAL(3,$B$5:B64) -> 0 | G64: 0 | K64: 0 | L64: 0 | M64: 0 | N64: 0 | O64: 0 | Q64: 0 | U64: 0 | V64: 0 | W64: 750 | X64: 0 | Y64: 0 | Z64: 0 | AA64: 0 | AB64: 0 | AC64: 0 | AD64: 0
A65: =SUBTOTAL(3,$B$5:B65) -> 0 | G65: 0 | K65: 0 | L65: 0 | M65: 0 | N65: 0 | O65: 0 | Q65: 0 | U65: 0 | V65: 0 | W65: 750 | X65: 0 | Y65: 0 | Z65: 0 | AA65: 0 | AB65: 0 | AC65: 0 | AD65: 0
A66: =SUBTOTAL(3,$B$5:B66) -> 0 | G66: 0 | K66: 0 | L66: 0 | M66: 0 | N66: 0 | O66: 0 | Q66: 0 | U66: 0 | V66: 0 | W66: 750 | X66: 0 | Y66: 0 | Z66: 0 | AA66: 0 | AB66: 0 | AC66: 0 | AD66: 0
A67: =SUBTOTAL(3,$B$5:B67) -> 0 | G67: 0 | K67: 0 | L67: 0 | M67: 0 | N67: 0 | O67: 0 | Q67: 0 | U67: 0 | V67: 0 | W67: 750 | X67: 0 | Y67: 0 | Z67: 0 | AA67: 0 | AB67: 0 | AC67: 0 | AD67: 0
A68: =SUBTOTAL(3,$B$5:B68) -> 0 | G68: =F68-Q68 -> 0 | K68: =IF(F68>8100,8100,F68*0.8) -> 0 | L68: =K68*18.75/100 -> 0 | M68: =F68+H68+I68+J68 -> 0 | N68: =L68 -> 0 | O68: =K68*0.11 -> 0 | Q68: =P68*F68/30 -> 0 | U68: =Q68+S68+T68+O68+R68 -> 0 | V68: =M68-O68-Q68 -> 0 | W68: 750 | X68: =IF((V68+J68)>W68,(V68+J68)-W68,0) -> 0 | Y68: =X68*12 -> 0 | Z68: =IF((Y68<=15000),(Y68*0%),IF((Y68<=30000),(Y68*2.5%)-375,IF((Y68<=45000),(Y68*10%)-2625,IF((Y68<=60000),(Y68*15%)-4875,IF((Y68<=200000),(Y68*20%)-7875,IF((Y68<=400000),(Y68*22.5%)-12875,IF((Y68<=600000),(Y68*25%)-22875,IF((Y68<=700000),(Y68*25%)-22500,IF((Y68<=800000),(Y68*25%)-20250,IF((Y68<=900000),(Y68*25%)-18000,IF((Y68<=1000000),(Y68*25%)-15000,IF((Y68>=1000000),(Y68*25%)-10000)))))))))))/12) -> 0 | AA68: =M68-Q68-S68-T68-Z68-O68-R68 -> 0 | AB68: 0 | AC68: 0 | AD68: 0
A69: =SUBTOTAL(3,$B$5:B69) -> 0 | G69: 0 | K69: 0 | L69: 0 | M69: 0 | N69: 0 | O69: 0 | Q69: 0 | U69: 0 | V69: 0 | W69: 750 | X69: 0 | Y69: 0 | Z69: 0 | AA69: 0 | AB69: 0 | AC69: 0 | AD69: 0
A70: =SUBTOTAL(3,$B$5:B70) -> 0 | G70: 0 | K70: 0 | L70: 0 | M70: 0 | N70: 0 | O70: 0 | Q70: 0 | U70: 0 | V70: 0 | W70: 750 | X70: 0 | Y70: 0 | Z70: 0 | AA70: 0 | AB70: =AA70*0.01 -> 0 | AC70: =IF(M70<=2000,0,M70*0.0005) -> 0 | AD70: =AA70-AB70-AC70 -> 0
A71: =SUBTOTAL(3,$B$5:B71) -> 0 | G71: =F71-Q71 -> 0 | L71: =K71*18.75/100 -> 0 | M71: =F71+H71+I71+J71 -> 0 | N71: =L71 -> 0 | O71: =K71*0.11 -> 0 | Q71: =P71*F71/30 -> 0 | U71: =Q71+S71+T71+O71+R71 -> 0 | V71: 0 | W71: 750 | X71: =IF((V71+J71)>W71,(V71+J71)-W71,0) -> 0 | Y71: =X71*12 -> 0 | Z71: =IF((Y71<=15000),(Y71*0%),IF((Y71<=30000),(Y71*2.5%)-375,IF((Y71<=45000),(Y71*10%)-2625,IF((Y71<=60000),(Y71*15%)-4875,IF((Y71<=200000),(Y71*20%)-7875,IF((Y71<=400000),(Y71*22.5%)-12875,IF((Y71<=600000),(Y71*25%)-22875,IF((Y71<=700000),(Y71*25%)-22500,IF((Y71<=800000),(Y71*25%)-20250,IF((Y71<=900000),(Y71*25%)-18000,IF((Y71<=1000000),(Y71*25%)-15000,IF((Y71>=1000000),(Y71*25%)-10000)))))))))))/12) -> 0 | AA71: =M71-Q71-S71-T71-Z71-O71-R71 -> 0 | AB71: 0 | AC71: 0 | AD71: 0
A72: =SUBTOTAL(3,$B$5:B72) -> 0 | G72: 0 | K72: =IF(F72>8100,8100,F72*0.8) -> 0 | L72: 0 | M72: 0 | N72: 0 | O72: 0 | Q72: 0 | U72: 0 | V72: =M72-O72-Q72 -> 0 | W72: 750 | X72: 0 | Y72: 0 | Z72: 0 | AA72: 0 | AB72: 0 | AC72: 0 | AD72: 0
A73: =SUBTOTAL(3,$B$5:B73) -> 0 | G73: 0 | K73: 0 | L73: 0 | M73: 0 | N73: 0 | O73: 0 | Q73: 0 | U73: 0 | V73: 0 | W73: 750 | X73: 0 | Y73: 0 | Z73: 0 | AA73: 0 | AB73: 0 | AC73: 0 | AD73: 0
A74: =SUBTOTAL(3,$B$5:B74) -> 0 | G74: 0 | K74: 0 | L74: 0 | M74: 0 | N74: 0 | O74: 0 | Q74: 0 | U74: 0 | V74: 0 | W74: 750 | X74: 0 | Y74: 0 | Z74: 0 | AA74: 0 | AB74: 0 | AC74: 0 | AD74: 0
A75: =SUBTOTAL(3,$B$5:B75) -> 0 | G75: 0 | K75: 0 | L75: 0 | M75: 0 | N75: 0 | O75: 0 | Q75: 0 | U75: 0 | V75: 0 | W75: 750 | X75: 0 | Y75: 0 | Z75: 0 | AA75: 0 | AB75: 0 | AC75: 0 | AD75: 0
A76: =SUBTOTAL(3,$B$5:B76) -> 0 | G76: 0 | K76: 0 | L76: 0 | M76: 0 | N76: 0 | O76: 0 | Q76: 0 | U76: 0 | V76: 0 | W76: 750 | X76: 0 | Y76: 0 | Z76: 0 | AA76: 0 | AB76: 0 | AC76: 0 | AD76: 0
A77: =SUBTOTAL(3,$B$5:B77) -> 0 | G77: 0 | K77: 0 | L77: 0 | M77: 0 | N77: 0 | O77: 0 | Q77: 0 | U77: 0 | V77: 0 | W77: 750 | X77: 0 | Y77: 0 | Z77: 0 | AA77: 0 | AB77: 0 | AC77: 0 | AD77: 0
A78: =SUBTOTAL(3,$B$5:B78) -> 0 | G78: 0 | L78: 0 | M78: 0 | N78: 0 | O78: 0 | Q78: 0 | U78: 0 | V78: 0 | W78: 750 | X78: 0 | Y78: 0 | Z78: 0 | AA78: 0 | AB78: 0 | AC78: 0 | AD78: 0
A79: =SUBTOTAL(3,$B$5:B79) -> 0 | G79: 0 | K79: 0 | L79: 0 | M79: 0 | N79: 0 | O79: 0 | Q79: 0 | U79: 0 | V79: 0 | W79: 750 | X79: 0 | Y79: 0 | Z79: 0 | AA79: 0 | AB79: 0 | AC79: 0 | AD79: 0
A80: =SUBTOTAL(3,$B$5:B80) -> 0 | G80: 0 | K80: 0 | L80: 0 | M80: 0 | N80: 0 | O80: 0 | Q80: 0 | U80: 0 | V80: 0 | W80: 750 | X80: 0 | Y80: 0 | Z80: 0 | AA80: 0 | AB80: 0 | AC80: 0 | AD80: 0
A81: =SUBTOTAL(3,$B$5:B81) -> 0 | G81: 0 | K81: 0 | L81: 0 | M81: 0 | N81: 0 | O81: 0 | Q81: 0 | U81: 0 | V81: 0 | W81: 750 | X81: 0 | Y81: 0 | Z81: 0 | AA81: 0 | AB81: 0 | AC81: 0 | AD81: 0
A82: =SUBTOTAL(3,$B$5:B82) -> 0 | G82: 0 | K82: 0 | L82: 0 | M82: 0 | N82: 0 | O82: 0 | Q82: 0 | U82: 0 | V82: 0 | W82: 750 | X82: 0 | Y82: 0 | Z82: 0 | AA82: 0 | AB82: 0 | AC82: 0 | AD82: 0
A83: =SUBTOTAL(3,$B$5:B83) -> 0 | G83: =F83-Q83 -> 0 | K83: =IF(F83>8100,8100,F83*0.8) -> 0 | L83: =K83*18.75/100 -> 0 | M83: =F83+H83+I83+J83 -> 0 | N83: =L83 -> 0 | O83: =K83*0.11 -> 0 | Q83: =P83*F83/30 -> 0 | U83: =Q83+S83+T83+O83+R83 -> 0 | V83: =M83-O83-Q83 -> 0 | W83: 750 | X83: =IF((V83+J83)>W83,(V83+J83)-W83,0) -> 0 | Y83: =X83*12 -> 0 | Z83: =IF((Y83<=15000),(Y83*0%),IF((Y83<=30000),(Y83*2.5%)-375,IF((Y83<=45000),(Y83*10%)-2625,IF((Y83<=60000),(Y83*15%)-4875,IF((Y83<=200000),(Y83*20%)-7875,IF((Y83<=400000),(Y83*22.5%)-12875,IF((Y83<=600000),(Y83*25%)-22875,IF((Y83<=700000),(Y83*25%)-22500,IF((Y83<=800000),(Y83*25%)-20250,IF((Y83<=900000),(Y83*25%)-18000,IF((Y83<=1000000),(Y83*25%)-15000,IF((Y83>=1000000),(Y83*25%)-10000)))))))))))/12) -> 0 | AA83: =M83-Q83-S83-T83-Z83-O83-R83 -> 0 | AB83: 0 | AC83: 0 | AD83: 0
A84: =SUBTOTAL(3,$B$5:B84) -> 0 | G84: 0 | L84: 0 | M84: 0 | N84: 0 | O84: 0 | Q84: 0 | U84: 0 | V84: 0 | W84: 750 | X84: 0 | Y84: 0 | Z84: 0 | AA84: 0 | AB84: 0 | AC84: 0 | AD84: 0
A85: =SUBTOTAL(3,$B$5:B85) -> 0 | G85: 0 | K85: 0 | L85: 0 | M85: 0 | N85: 0 | O85: 0 | Q85: 0 | U85: 0 | V85: 0 | W85: 750 | X85: 0 | Y85: 0 | Z85: 0 | AA85: 0 | AB85: 0 | AC85: 0 | AD85: 0
A86: =SUBTOTAL(3,$B$5:B86) -> 0 | G86: 0 | K86: 0 | L86: 0 | M86: 0 | N86: 0 | O86: 0 | Q86: 0 | U86: 0 | V86: 0 | W86: 750 | X86: 0 | Y86: 0 | Z86: 0 | AA86: 0 | AB86: 0 | AC86: 0 | AD86: 0
A87: =SUBTOTAL(3,$B$5:B87) -> 0 | G87: 0 | K87: 0 | L87: 0 | M87: 0 | N87: 0 | O87: 0 | Q87: 0 | U87: 0 | V87: 0 | W87: 750 | X87: 0 | Y87: 0 | Z87: 0 | AA87: 0 | AB87: 0 | AC87: 0 | AD87: 0
A88: =SUBTOTAL(3,$B$5:B88) -> 0 | G88: 0 | K88: 0 | L88: 0 | M88: 0 | N88: 0 | O88: 0 | Q88: 0 | U88: 0 | V88: 0 | W88: 750 | X88: 0 | Y88: 0 | Z88: 0 | AA88: 0 | AB88: 0 | AC88: 0 | AD88: 0
A89: =SUBTOTAL(3,$B$5:B89) -> 0 | G89: 0 | K89: 0 | L89: 0 | M89: 0 | N89: 0 | O89: 0 | Q89: 0 | U89: 0 | V89: 0 | W89: 750 | X89: 0 | Y89: 0 | Z89: 0 | AA89: 0 | AB89: 0 | AC89: 0 | AD89: 0
A90: =SUBTOTAL(3,$B$5:B90) -> 0 | G90: 0 | K90: 0 | L90: 0 | M90: 0 | N90: 0 | O90: 0 | Q90: 0 | U90: 0 | V90: 0 | W90: 750 | X90: 0 | Y90: 0 | Z90: 0 | AA90: 0 | AB90: 0 | AC90: 0 | AD90: 0
A91: =SUBTOTAL(3,$B$5:B91) -> 0 | G91: 0 | K91: 0 | L91: 0 | M91: 0 | N91: 0 | O91: 0 | Q91: 0 | U91: 0 | V91: 0 | W91: 750 | X91: 0 | Y91: 0 | Z91: 0 | AA91: 0 | AB91: 0 | AC91: 0 | AD91: 0
A92: =SUBTOTAL(3,$B$5:B92) -> 0 | G92: 0 | K92: 0 | L92: 0 | M92: 0 | N92: 0 | O92: 0 | Q92: 0 | U92: 0 | V92: 0 | W92: 750 | X92: 0 | Y92: 0 | Z92: 0 | AA92: 0 | AB92: 0 | AC92: 0 | AD92: 0
A93: =SUBTOTAL(3,$B$5:B93) -> 0 | G93: 0 | K93: 0 | L93: 0 | M93: 0 | N93: 0 | O93: 0 | Q93: 0 | U93: 0 | V93: 0 | W93: 750 | X93: 0 | Y93: 0 | Z93: 0 | AA93: 0 | AB93: 0 | AC93: 0 | AD93: 0
A94: =SUBTOTAL(3,$B$5:B94) -> 0 | G94: 0 | K94: 0 | L94: 0 | M94: 0 | N94: 0 | O94: 0 | Q94: 0 | U94: 0 | V94: 0 | W94: 750 | X94: 0 | Y94: 0 | Z94: 0 | AA94: 0 | AB94: 0 | AC94: 0 | AD94: 0
A95: =SUBTOTAL(3,$B$5:B95) -> 0 | G95: 0 | K95: 0 | L95: 0 | M95: 0 | N95: 0 | O95: 0 | Q95: 0 | U95: 0 | V95: 0 | W95: 750 | X95: 0 | Y95: 0 | Z95: 0 | AA95: 0 | AB95: 0 | AC95: 0 | AD95: 0
A96: =SUBTOTAL(3,$B$5:B96) -> 0 | G96: 0 | K96: 0 | L96: 0 | M96: 0 | N96: 0 | O96: 0 | Q96: 0 | U96: 0 | V96: 0 | W96: 750 | X96: 0 | Y96: 0 | Z96: 0 | AA96: 0 | AB96: 0 | AC96: 0 | AD96: 0
A97: =SUBTOTAL(3,$B$5:B97) -> 0 | G97: 0 | L97: 0 | M97: 0 | N97: 0 | O97: 0 | Q97: 0 | U97: 0 | V97: 0 | W97: 750 | X97: 0 | Y97: 0 | Z97: 0 | AA97: 0 | AB97: 0 | AC97: 0 | AD97: 0
A98: =SUBTOTAL(3,$B$5:B98) -> 0 | G98: 0 | L98: 0 | M98: 0 | N98: 0 | O98: 0 | Q98: 0 | U98: 0 | V98: 0 | W98: 750 | X98: 0 | Y98: 0 | Z98: 0 | AA98: 0 | AB98: 0 | AC98: 0 | AD98: 0
A99: =SUBTOTAL(3,$B$5:B99) -> 0 | G99: 0 | L99: 0 | M99: 0 | N99: 0 | O99: 0 | Q99: 0 | U99: 0 | V99: 0 | W99: 750 | X99: 0 | Y99: 0 | Z99: 0 | AA99: 0 | AB99: 0 | AC99: 0 | AD99: 0
A100: =SUBTOTAL(3,$B$5:B100) -> 0 | G100: 0 | K100: 0 | L100: 0 | M100: 0 | N100: 0 | O100: 0 | Q100: 0 | U100: 0 | V100: 0 | W100: 750 | X100: 0 | Y100: 0 | Z100: 0 | AA100: 0 | AB100: 0 | AC100: 0 | AD100: 0
A101: =SUBTOTAL(3,$B$5:B101) -> 0 | F101: 0 | G101: 0 | K101: 0 | L101: 0 | M101: 0 | N101: 0 | O101: 0 | Q101: 0 | U101: 0 | V101: 0 | W101: 750 | X101: 0 | Y101: 0 | Z101: 0 | AA101: 0 | AB101: 0 | AC101: 0 | AD101: 0
A102: =SUBTOTAL(3,$B$5:B102) -> 0 | F102: 0 | G102: 0 | K102: 0 | L102: 0 | M102: 0 | N102: 0 | O102: 0 | Q102: 0 | U102: 0 | V102: 0 | W102: 750 | X102: 0 | Y102: 0 | Z102: 0 | AA102: 0 | AB102: 0 | AC102: 0 | AD102: 0
A103: =SUBTOTAL(3,$B$5:B103) -> 0 | F103: 0 | G103: 0 | K103: 0 | L103: 0 | M103: 0 | N103: 0 | O103: 0 | Q103: 0 | U103: 0 | V103: 0 | W103: 750 | X103: 0 | Y103: 0 | Z103: 0 | AA103: 0 | AB103: 0 | AC103: 0 | AD103: 0
A104: =SUBTOTAL(3,$B$5:B104) -> 0 | F104: 0 | G104: 0 | K104: 0 | L104: 0 | M104: 0 | N104: 0 | O104: 0 | Q104: 0 | U104: 0 | V104: 0 | W104: 750 | X104: 0 | Y104: 0 | Z104: 0 | AA104: 0 | AB104: 0 | AC104: 0 | AD104: 0
A105: =SUBTOTAL(3,$B$5:B105) -> 0 | F105: 0 | G105: 0 | K105: 0 | L105: 0 | M105: 0 | N105: 0 | O105: 0 | Q105: 0 | U105: 0 | V105: 0 | W105: 750 | X105: 0 | Y105: 0 | Z105: 0 | AA105: 0 | AB105: 0 | AC105: 0 | AD105: 0
A106: =SUBTOTAL(3,$B$5:B106) -> 0 | F106: 0 | G106: 0 | K106: 0 | L106: 0 | M106: 0 | N106: 0 | O106: 0 | Q106: 0 | U106: 0 | V106: 0 | W106: 750 | X106: 0 | Y106: 0 | Z106: 0 | AA106: 0 | AB106: 0 | AC106: 0 | AD106: 0
A107: =SUBTOTAL(3,$B$5:B107) -> 0 | F107: 0 | G107: 0 | K107: 0 | L107: 0 | M107: 0 | N107: 0 | O107: 0 | Q107: 0 | U107: 0 | V107: 0 | W107: 750 | X107: 0 | Y107: 0 | Z107: 0 | AA107: 0 | AB107: 0 | AC107: 0 | AD107: 0
A108: =SUBTOTAL(3,$B$5:B108) -> 0 | F108: 0 | G108: 0 | K108: 0 | L108: 0 | M108: 0 | N108: 0 | O108: 0 | Q108: 0 | U108: 0 | V108: 0 | W108: 750 | X108: 0 | Y108: 0 | Z108: 0 | AA108: 0 | AB108: 0 | AC108: 0 | AD108: 0
A109: =SUBTOTAL(3,$B$5:B109) -> 0 | F109: 0 | G109: 0 | K109: 0 | L109: 0 | M109: 0 | N109: 0 | O109: 0 | Q109: 0 | U109: 0 | V109: 0 | W109: 750 | X109: 0 | Y109: 0 | Z109: 0 | AA109: 0 | AB109: 0 | AC109: 0 | AD109: 0
A110: =SUBTOTAL(3,$B$5:B110) -> 0 | F110: 0 | G110: 0 | K110: 0 | L110: 0 | M110: 0 | N110: 0 | O110: 0 | Q110: 0 | U110: 0 | V110: 0 | W110: 750 | X110: 0 | Y110: 0 | Z110: 0 | AA110: 0 | AB110: 0 | AC110: 0 | AD110: 0
A111: =SUBTOTAL(3,$B$5:B111) -> 0 | F111: 0 | G111: 0 | K111: 0 | L111: 0 | M111: 0 | N111: 0 | O111: 0 | Q111: 0 | U111: 0 | V111: 0 | W111: 750 | X111: 0 | Y111: 0 | Z111: 0 | AA111: 0 | AB111: 0 | AC111: 0 | AD111: 0
A112: =SUBTOTAL(3,$B$5:B112) -> 0 | G112: 0 | K112: 0 | L112: 0 | M112: 0 | N112: 0 | O112: 0 | Q112: 0 | U112: 0 | V112: 0 | W112: 750 | X112: 0 | Y112: 0 | Z112: 0 | AA112: 0 | AB112: 0 | AC112: 0 | AD112: 0
A113: =SUBTOTAL(3,$B$5:B113) -> 0 | F113: 0 | G113: 0 | K113: 0 | L113: 0 | M113: 0 | N113: 0 | O113: 0 | Q113: 0 | U113: 0 | V113: 0 | W113: 750 | X113: 0 | Y113: 0 | Z113: 0 | AA113: 0 | AB113: 0 | AC113: 0 | AD113: 0
A114: =SUBTOTAL(3,$B$5:B114) -> 0 | F114: 0 | G114: 0 | K114: 0 | L114: 0 | M114: 0 | N114: 0 | O114: 0 | Q114: 0 | U114: 0 | V114: 0 | W114: 750 | X114: 0 | Y114: 0 | Z114: 0 | AA114: 0 | AB114: 0 | AC114: 0 | AD114: 0
A115: =SUBTOTAL(3,$B$5:B115) -> 0 | F115: 0 | G115: 0 | K115: 0 | L115: 0 | M115: 0 | N115: 0 | O115: 0 | Q115: 0 | U115: 0 | V115: 0 | W115: 750 | X115: 0 | Y115: 0 | Z115: 0 | AA115: 0 | AB115: 0 | AC115: 0 | AD115: 0
A116: =SUBTOTAL(3,$B$5:B116) -> 0 | F116: 0 | G116: 0 | K116: 0 | L116: 0 | M116: 0 | N116: 0 | O116: 0 | Q116: 0 | U116: 0 | V116: 0 | W116: 750 | X116: 0 | Y116: 0 | Z116: 0 | AA116: 0 | AB116: 0 | AC116: 0 | AD116: 0
A117: =SUBTOTAL(3,$B$5:B117) -> 0 | F117: 0 | G117: 0 | K117: 0 | L117: 0 | M117: 0 | N117: 0 | O117: 0 | Q117: 0 | U117: 0 | V117: 0 | W117: 750 | X117: 0 | Y117: 0 | Z117: 0 | AA117: 0 | AB117: 0 | AC117: 0 | AD117: 0
A118: =SUBTOTAL(3,$B$5:B118) -> 0 | F118: 0 | G118: 0 | K118: 0 | L118: 0 | M118: 0 | N118: 0 | O118: 0 | Q118: 0 | U118: 0 | V118: 0 | W118: 750 | X118: 0 | Y118: 0 | Z118: 0 | AA118: 0 | AB118: 0 | AC118: 0 | AD118: 0
A119: =SUBTOTAL(3,$B$5:B119) -> 0 | F119: 0 | G119: 0 | K119: 0 | L119: 0 | M119: 0 | N119: 0 | O119: 0 | Q119: 0 | U119: 0 | V119: 0 | W119: 750 | X119: 0 | Y119: 0 | Z119: 0 | AA119: 0 | AB119: 0 | AC119: 0 | AD119: 0
A120: =SUBTOTAL(3,$B$5:B120) -> 0 | F120: 0 | G120: 0 | K120: 0 | L120: 0 | M120: 0 | N120: 0 | O120: 0 | Q120: 0 | U120: 0 | V120: 0 | W120: 750 | X120: 0 | Y120: 0 | Z120: 0 | AA120: 0 | AB120: 0 | AC120: 0 | AD120: 0
A121: =SUBTOTAL(3,$B$5:B121) -> 0 | F121: 0 | G121: 0 | K121: 0 | L121: 0 | M121: 0 | N121: 0 | O121: 0 | Q121: 0 | U121: 0 | V121: 0 | W121: 750 | X121: 0 | Y121: 0 | Z121: 0 | AA121: 0 | AB121: 0 | AC121: 0 | AD121: 0
A122: =SUBTOTAL(3,$B$5:B122) -> 0 | G122: 0 | K122: 0 | L122: 0 | M122: 0 | N122: 0 | O122: 0 | Q122: 0 | U122: 0 | V122: 0 | W122: 750 | X122: 0 | Y122: 0 | Z122: 0 | AA122: 0 | AB122: 0 | AC122: 0 | AD122: 0
A123: =SUBTOTAL(3,$B$5:B123) -> 0 | G123: 0 | K123: 0 | L123: 0 | M123: 0 | N123: 0 | O123: 0 | Q123: 0 | U123: 0 | V123: 0 | W123: 750 | X123: 0 | Y123: 0 | Z123: 0 | AA123: 0 | AB123: 0 | AC123: 0 | AD123: 0
A124: =SUBTOTAL(3,$B$5:B124) -> 0 | F124: 0 | G124: 0 | K124: 0 | L124: 0 | M124: 0 | N124: 0 | O124: 0 | Q124: 0 | U124: 0 | V124: 0 | W124: 750 | X124: 0 | Y124: 0 | Z124: 0 | AA124: 0 | AB124: 0 | AC124: 0 | AD124: 0
A125: الاجمالى | F125: =SUM(F5:F124) -> 0 | G125: 0 | H125: 0 | I125: 0 | J125: 0 | K125: 0 | L125: 0 | M125: 0 | N125: 0 | O125: 0 | P125: 8 | Q125: 0 | R125: 0 | S125: 0 | T125: 0 | U125: 0 | V125: 0 | W125: 90000 | X125: 0 | Y125: 0 | Z125: 0 | AA125: =SUM(AA5:AA124) -> 0 | AB125: =SUM(AB5:AB124) -> 0 | AC125: 0 | AD125: 0
E127: الموارد البشرية | U127: الرئيس التنفيذي للشركة د . عمرو العدل
U128: د. عمرو العدل

Sheet مارس
A4: م | B4: الاسم | C4: الوظيفة | D4: الادارة | E4: ATM | F4: الاجر الاساسى | G4: الاجر الاساسى بعد عدم الحضور | H4: مكافأت | I4: حافز بيع | J4: اضافى | K4: الاجر التامينى | L4: المنشأة | M4: اجمالي الاستحقاقات | N4: المنشأة2 | O4: الموظف | P4: عدم الحضور باليوم | Q4: عدم حضور بالجنيه | R4: مصروف صيانه | S4: سلف | T4: جزاءات | U4: اجمالي الاستقطاعات | V4: قبل الضريبة | W4: اعفاء شخصى | X4: الوعاء الضريبى | Y4: الوعاء الضريبى على اساس السنوى | Z4: الضريبة المستحقة | AA4: الصافى | AB4: خصم تكافلي | AC4: خصم الشهيد | AD4: الصافي المستحق للصرف
A5: 1 | G5: =F5-Q5 -> 0 | H5: 0 | I5: 0 | J5: 0 | K5: =IF(F5>8100,8100,F5*0.8) -> 0 | L5: =K5*18.75/100 -> 0 | M5: =F5+H5+I5+J5 -> 0 | N5: =L5 -> 0 | O5: =K5*0.11 -> 0 | Q5: =P5*F5/30 -> 0 | U5: =Q5+S5+T5+O5+R5 -> 0 | V5: =M5-O5-Q5 -> 0 | W5: 750 | X5: =IF((V5+J5)>W5,(V5+J5)-W5,0) -> 0 | Y5: =X5*12 -> 0 | Z5: =IF((Y5<=15000),(Y5*0%),IF((Y5<=30000),(Y5*2.5%)-375,IF((Y5<=45000),(Y5*10%)-2625,IF((Y5<=60000),(Y5*15%)-4875,IF((Y5<=200000),(Y5*20%)-7875,IF((Y5<=400000),(Y5*22.5%)-12875,IF((Y5<=600000),(Y5*25%)-22875,IF((Y5<=700000),(Y5*25%)-22500,IF((Y5<=800000),(Y5*25%)-20250,IF((Y5<=900000),(Y5*25%)-18000,IF((Y5<=1000000),(Y5*25%)-15000,IF((Y5>=1000000),(Y5*25%)-10000)))))))))))/12) -> 0 | AA5: =M5-Q5-S5-T5-Z5-O5-R5 -> 0 | AB5: =AA5*0.01 -> 0 | AC5: =IF(M5<=2000,0,M5*0.0005) -> 0 | AD5: =AA5-AB5-AC5 -> 0
A6: =SUBTOTAL(3,$B$5:B6) -> 0 | G6: 0 | K6: 0 | L6: 0 | M6: 0 | N6: 0 | O6: 0 | Q6: 0 | U6: 0 | V6: =M6-O6-Q6 -> 0 | W6: 750 | X6: 0 | Y6: 0 | Z6: =IF((Y6<=15000),(Y6*0%),IF((Y6<=30000),(Y6*2.5%)-375,IF((Y6<=45000),(Y6*10%)-2625,IF((Y6<=60000),(Y6*15%)-4875,IF((Y6<=200000),(Y6*20%)-7875,IF((Y6<=400000),(Y6*22.5%)-12875,IF((Y6<=600000),(Y6*25%)-22875,IF((Y6<=700000),(Y6*25%)-22500,IF((Y6<=800000),(Y6*25%)-20250,IF((Y6<=900000),(Y6*25%)-18000,IF((Y6<=1000000),(Y6*25%)-15000,IF((Y6>=1000000),(Y6*25%)-10000)))))))))))/12) -> 0 | AA6: 0 | AB6: =AA6*0.01 -> 0 | AC6: =IF(M6<=2000,0,M6*0.0005) -> 0 | AD6: =AA6-AB6-AC6 -> 0
A7: =SUBTOTAL(3,$B$5:B7) -> 0 | G7: 0 | K7: 0 | L7: 0 | M7: 0 | N7: 0 | O7: 0 | Q7: 0 | U7: 0 | V7: 0 | W7: 750 | X7: 0 | Y7: 0 | Z7: 0 | AA7: 0 | AB7: 0 | AC7: 0 | AD7: 0
A8: =SUBTOTAL(3,$B$5:B8) -> 0 | G8: 0 | K8: 0 | L8: 0 | M8: 0 | N8: 0 | O8: 0 | Q8: 0 | U8: 0 | V8: 0 | W8: 750 | X8: 0 | Y8: 0 | Z8: 0 | AA8: 0 | AB8: 0 | AC8: 0 | AD8: 0
A9: =SUBTOTAL(3,$B$5:B9) -> 0 | G9: 0 | K9: 0 | L9: 0 | M9: 0 | N9: 0 | O9: 0 | Q9: 0 | U9: 0 | V9: 0 | W9: 750 | X9: 0 | Y9: 0 | Z9: 0 | AA9: 0 | AB9: 0 | AC9: 0 | AD9: 0
A10: =SUBTOTAL(3,$B$5:B10) -> 0 | G10: 0 | K10: 0 | L10: 0 | M10: 0 | N10: 0 | O10: 0 | Q10: 0 | U10: 0 | V10: 0 | W10: 750 | X10: 0 | Y10: 0 | Z10: 0 | AA10: 0 | AB10: 0 | AC10: 0 | AD10: 0
A11: =SUBTOTAL(3,$B$5:B11) -> 0 | G11: 0 | L11: 0 | M11: 0 | N11: 0 | O11: 0 | P11: 8 | Q11: 0 | U11: 0 | V11: 0 | W11: 750 | X11: 0 | Y11: 0 | Z11: 0 | AA11: 0 | AB11: 0 | AC11: 0 | AD11: 0
A12: =SUBTOTAL(3,$B$5:B12) -> 0 | G12: 0 | K12: 0 | L12: 0 | M12: 0 | N12: 0 | O12: 0 | Q12: 0 | U12: 0 | V12: 0 | W12: 750 | X12: 0 | Y12: 0 | Z12: 0 | AA12: 0 | AB12: 0 | AC12: 0 | AD12: 0
A13: =SUBTOTAL(3,$B$5:B13) -> 0 | G13: 0 | K13: 0 | L13: 0 | M13: 0 | N13: 0 | O13: 0 | Q13: 0 | U13: 0 | V13: 0 | W13: 750 | X13: 0 | Y13: 0 | Z13: 0 | AA13: 0 | AB13: 0 | AC13: 0 | AD13: 0
A14: =SUBTOTAL(3,$B$5:B14) -> 0 | G14: 0 | K14: 0 | L14: 0 | M14: 0 | N14: 0 | O14: 0 | Q14: 0 | U14: 0 | V14: 0 | W14: 750 | X14: 0 | Y14: 0 | Z14: 0 | AA14: 0 | AB14: 0 | AC14: 0 | AD14: 0
A15: =SUBTOTAL(3,$B$5:B15) -> 0 | G15: 0 | K15: 0 | L15: 0 | M15: 0 | N15: 0 | O15: 0 | Q15: 0 | U15: 0 | V15: 0 | W15: 750 | X15: 0 | Y15: 0 | Z15: 0 | AA15: 0 | AB15: 0 | AC15: 0 | AD15: 0
A16: =SUBTOTAL(3,$B$5:B16) -> 0 | G16: 0 | K16: 0 | L16: 0 | M16: 0 | N16: 0 | O16: 0 | Q16: 0 | U16: 0 | V16: 0 | W16: 750 | X16: 0 | Y16: 0 | Z16: 0 | AA16: 0 | AB16: 0 | AC16: 0 | AD16: 0
A17: =SUBTOTAL(3,$B$5:B17) -> 0 | G17: 0 | K17: 0 | L17: 0 | M17: 0 | N17: 0 | O17: 0 | Q17: 0 | U17: 0 | V17: 0 | W17: 750 | X17: 0 | Y17: 0 | Z17: 0 | AA17: 0 | AB17: 0 | AC17: 0 | AD17: 0
A18: =SUBTOTAL(3,$B$5:B18) -> 0 | G18: 0 | K18: 0 | L18: 0 | M18: 0 | N18: 0 | O18: 0 | Q18: 0 | U18: 0 | V18: 0 | W18: 750 | X18: 0 | Y18: 0 | Z18: 0 | AA18: 0 | AB18: 0 | AC18: 0 | AD18: 0
A19: =SUBTOTAL(3,$B$5:B19) -> 0 | G19: 0 | K19: 0 | L19: 0 | M19: 0 | N19: 0 | O19: 0 | Q19: 0 | U19: 0 | V19: 0 | W19: 750 | X19: 0 | Y19: 0 | Z19: 0 | AA19: 0 | AB19: 0 | AC19: 0 | AD19: 0
A20: =SUBTOTAL(3,$B$5:B20) -> 0 | G20: 0 | K20: 0 | L20: 0 | M20: 0 | N20: 0 | O20: 0 | Q20: 0 | U20: 0 | V20: 0 | W20: 750 | X20: 0 | Y20: 0 | Z20: 0 | AA20: 0 | AB20: 0 | AC20: 0 | AD20: 0
A21: =SUBTOTAL(3,$B$5:B21) -> 0 | G21: 0 | K21: 0 | L21: 0 | M21: 0 | N21: 0 | O21: 0 | Q21: 0 | U21: 0 | V21: 0 | W21: 750 | X21: 0 | Y21: 0 | Z21: 0 | AA21: 0 | AB21: 0 | AC21: 0 | AD21: 0
A22: =SUBTOTAL(3,$B$5:B22) -> 0 | G22: 0 | K22: 0 | L22: 0 | M22: 0 | N22: 0 | O22: 0 | Q22: 0 | U22: 0 | V22: 0 | W22: 750 | X22: 0 | Y22: 0 | Z22: 0 | AA22: 0 | AB22: 0 | AC22: 0 | AD22: 0
A23: =SUBTOTAL(3,$B$5:B23) -> 0 | G23: 0 | K23: 0 | L23: 0 | M23: 0 | N23: 0 | O23: 0 | Q23: 0 | U23: 0 | V23: 0 | W23: 750 | X23: 0 | Y23: 0 | Z23: 0 | AA23: 0 | AB23: 0 | AC23: 0 | AD23: 0
A24: =SUBTOTAL(3,$B$5:B24) -> 0 | G24: =F24-Q24 -> 0 | K24: =IF(F24>8100,8100,F24*0.8) -> 0 | L24: =K24*18.75/100 -> 0 | M24: =F24+H24+I24+J24 -> 0 | N24: =L24 -> 0 | O24: =K24*0.11 -> 0 | Q24: =P24*F24/30 -> 0 | U24: =Q24+S24+T24+O24+R24 -> 0 | V24: =M24-O24-Q24 -> 0 | W24: 750 | X24: =IF((V24+J24)>W24,(V24+J24)-W24,0) -> 0 | Y24: =X24*12 -> 0 | Z24: =IF((Y24<=15000),(Y24*0%),IF((Y24<=30000),(Y24*2.5%)-375,IF((Y24<=45000),(Y24*10%)-2625,IF((Y24<=60000),(Y24*15%)-4875,IF((Y24<=200000),(Y24*20%)-7875,IF((Y24<=400000),(Y24*22.5%)-12875,IF((Y24<=600000),(Y24*25%)-22875,IF((Y24<=700000),(Y24*25%)-22500,IF((Y24<=800000),(Y24*25%)-20250,IF((Y24<=900000),(Y24*25%)-18000,IF((Y24<=1000000),(Y24*25%)-15000,IF((Y24>=1000000),(Y24*25%)-10000)))))))))))/12) -> 0 | AA24: =M24-Q24-S24-T24-Z24-O24-R24 -> 0 | AB24: 0 | AC24: 0 | AD24: 0
A25: =SUBTOTAL(3,$B$5:B25) -> 0 | G25: 0 | K25: 0 | L25: 0 | M25: 0 | N25: 0 | O25: 0 | Q25: 0 | U25: 0 | V25: 0 | W25: 750 | X25: 0 | Y25: 0 | Z25: 0 | AA25: 0 | AB25: 0 | AC25: 0 | AD25: 0
A26: =SUBTOTAL(3,$B$5:B26) -> 0 | G26: 0 | K26: 0 | L26: 0 | M26: 0 | N26: 0 | O26: 0 | Q26: 0 | U26: 0 | V26: 0 | W26: 750 | X26: 0 | Y26: 0 | Z26: 0 | AA26: 0 | AB26: 0 | AC26: 0 | AD26: 0
A27: =SUBTOTAL(3,$B$5:B27) -> 0 | G27: 0 | K27: 0 | L27: 0 | M27: 0 | N27: 0 | O27: 0 | Q27: 0 | U27: 0 | V27: 0 | W27: 750 | X27: 0 | Y27: 0 | Z27: 0 | AA27: 0 | AB27: 0 | AC27: 0 | AD27: 0
A28: =SUBTOTAL(3,$B$5:B28) -> 0 | G28: =F28-Q28 -> 0 | K28: =IF(F28>8100,8100,F28*0.8) -> 0 | L28: =K28*18.75/100 -> 0 | M28: =F28+H28+I28+J28 -> 0 | N28: =L28 -> 0 | O28: =K28*0.11 -> 0 | Q28: =P28*F28/30 -> 0 | U28: =Q28+S28+T28+O28+R28 -> 0 | V28: 0 | W28: 750 | X28: =IF((V28+J28)>W28,(V28+J28)-W28,0) -> 0 | Y28: =X28*12 -> 0 | Z28: =IF((Y28<=15000),(Y28*0%),IF((Y28<=30000),(Y28*2.5%)-375,IF((Y28<=45000),(Y28*10%)-2625,IF((Y28<=60000),(Y28*15%)-4875,IF((Y28<=200000),(Y28*20%)-7875,IF((Y28<=400000),(Y28*22.5%)-12875,IF((Y28<=600000),(Y28*25%)-22875,IF((Y28<=700000),(Y28*25%)-22500,IF((Y28<=800000),(Y28*25%)-20250,IF((Y28<=900000),(Y28*25%)-18000,IF((Y28<=1000000),(Y28*25%)-15000,IF((Y28>=1000000),(Y28*25%)-10000)))))))))))/12) -> 0 | AA28: =M28-Q28-S28-T28-Z28-O28-R28 -> 0 | AB28: 0 | AC28: 0 | AD28: 0
A29: =SUBTOTAL(3,$B$5:B29) -> 0 | G29: =F29-Q29 -> 0 | K29: =IF(F29>8100,8100,F29*0.8) -> 0 | L29: =K29*18.75/100 -> 0 | M29: =F29+H29+I29+J29 -> 0 | N29: =L29 -> 0 | O29: =K29*0.11 -> 0 | Q29: =P29*F29/30 -> 0 | U29: =Q29+S29+T29+O29+R29 -> 0 | V29: =M29-O29-Q29 -> 0 | W29: 750 | X29: =IF((V29+J29)>W29,(V29+J29)-W29,0) -> 0 | Y29: =X29*12 -> 0 | Z29: =IF((Y29<=15000),(Y29*0%),IF((Y29<=30000),(Y29*2.5%)-375,IF((Y29<=45000),(Y29*10%)-2625,IF((Y29<=60000),(Y29*15%)-4875,IF((Y29<=200000),(Y29*20%)-7875,IF((Y29<=400000),(Y29*22.5%)-12875,IF((Y29<=600000),(Y29*25%)-22875,IF((Y29<=700000),(Y29*25%)-22500,IF((Y29<=800000),(Y29*25%)-20250,IF((Y29<=900000),(Y29*25%)-18000,IF((Y29<=1000000),(Y29*25%)-15000,IF((Y29>=1000000),(Y29*25%)-10000)))))))))))/12) -> 0 | AA29: =M29-Q29-S29-T29-Z29-O29-R29 -> 0 | AB29: 0 | AC29: 0 | AD29: 0
A30: =SUBTOTAL(3,$B$5:B30) -> 0 | G30: =F30-Q30 -> 0 | K30: =IF(F30>8100,8100,F30*0.8) -> 0 | L30: =K30*18.75/100 -> 0 | M30: =F30+H30+I30+J30 -> 0 | N30: =L30 -> 0 | O30: =K30*0.11 -> 0 | Q30: =P30*F30/30 -> 0 | U30: =Q30+S30+T30+O30+R30 -> 0 | V30: =M30-O30-Q30 -> 0 | W30: 750 | X30: =IF((V30+J30)>W30,(V30+J30)-W30,0) -> 0 | Y30: =X30*12 -> 0 | Z30: =IF((Y30<=15000),(Y30*0%),IF((Y30<=30000),(Y30*2.5%)-375,IF((Y30<=45000),(Y30*10%)-2625,IF((Y30<=60000),(Y30*15%)-4875,IF((Y30<=200000),(Y30*20%)-7875,IF((Y30<=400000),(Y30*22.5%)-12875,IF((Y30<=600000),(Y30*25%)-22875,IF((Y30<=700000),(Y30*25%)-22500,IF((Y30<=800000),(Y30*25%)-20250,IF((Y30<=900000),(Y30*25%)-18000,IF((Y30<=1000000),(Y30*25%)-15000,IF((Y30>=1000000),(Y30*25%)-10000)))))))))))/12) -> 0 | AA30: =M30-Q30-S30-T30-Z30-O30-R30 -> 0 | AB30: 0 | AC30: 0 | AD30: 0
A31: =SUBTOTAL(3,$B$5:B31) -> 0 | G31: 0 | K31: 0 | L31: 0 | M31: 0 | N31: 0 | O31: 0 | Q31: 0 | U31: 0 | V31: 0 | W31: 750 | X31: 0 | Y31: 0 | Z31: 0 | AA31: 0 | AB31: 0 | AC31: 0 | AD31: 0
A32: =SUBTOTAL(3,$B$5:B32) -> 0 | G32: 0 | K32: 0 | L32: 0 | M32: 0 | N32: 0 | O32: 0 | Q32: 0 | U32: 0 | V32: 0 | W32: 750 | X32: 0 | Y32: 0 | Z32: 0 | AA32: 0 | AB32: 0 | AC32: 0 | AD32: 0
A33: =SUBTOTAL(3,$B$5:B33) -> 0 | G33: 0 | K33: 0 | L33: 0 | M33: 0 | N33: 0 | O33: 0 | Q33: 0 | U33: 0 | V33: 0 | W33: 750 | X33: 0 | Y33: 0 | Z33: 0 | AA33: 0 | AB33: 0 | AC33: 0 | AD33: 0 | AE33: 8393 | AG33: =AA33-AE33 -> -8393
A34: =SUBTOTAL(3,$B$5:B34) -> 0 | G34: =F34-Q34 -> 0 | K34: =IF(F34>8100,8100,F34*0.8) -> 0 | L34: =K34*18.75/100 -> 0 | M34: =F34+H34+I34+J34 -> 0 | N34: =L34 -> 0 | O34: =K34*0.11 -> 0 | Q34: =P34*F34/30 -> 0 | U34: =Q34+S34+T34+O34+R34 -> 0 | V34: =M34-O34-Q34 -> 0 | W34: 750 | X34: =IF((V34+J34)>W34,(V34+J34)-W34,0) -> 0 | Y34: =X34*12 -> 0 | Z34: =IF((Y34<=15000),(Y34*0%),IF((Y34<=30000),(Y34*2.5%)-375,IF((Y34<=45000),(Y34*10%)-2625,IF((Y34<=60000),(Y34*15%)-4875,IF((Y34<=200000),(Y34*20%)-7875,IF((Y34<=400000),(Y34*22.5%)-12875,IF((Y34<=600000),(Y34*25%)-22875,IF((Y34<=700000),(Y34*25%)-22500,IF((Y34<=800000),(Y34*25%)-20250,IF((Y34<=900000),(Y34*25%)-18000,IF((Y34<=1000000),(Y34*25%)-15000,IF((Y34>=1000000),(Y34*25%)-10000)))))))))))/12) -> 0 | AA34: =M34-Q34-S34-T34-Z34-O34-R34 -> 0 | AB34: 0 | AC34: 0 | AD34: 0
A35: =SUBTOTAL(3,$B$5:B35) -> 0 | G35: 0 | K35: 0 | L35: 0 | M35: 0 | N35: 0 | O35: 0 | Q35: 0 | U35: 0 | V35: 0 | W35: 750 | X35: 0 | Y35: 0 | Z35: 0 | AA35: 0 | AB35: 0 | AC35: 0 | AD35: 0
A36: =SUBTOTAL(3,$B$5:B36) -> 0 | G36: 0 | K36: 0 | L36: 0 | M36: 0 | N36: 0 | O36: 0 | Q36: 0 | U36: 0 | V36: 0 | W36: 750 | X36: 0 | Y36: 0 | Z36: 0 | AA36: 0 | AB36: 0 | AC36: 0 | AD36: 0
A37: =SUBTOTAL(3,$B$5:B37) -> 0 | G37: 0 | K37: 0 | L37: 0 | M37: 0 | N37: 0 | O37: 0 | Q37: 0 | U37: 0 | V37: 0 | W37: 750 | X37: 0 | Y37: 0 | Z37: 0 | AA37: 0 | AB37: 0 | AC37: 0 | AD37: 0
A38: =SUBTOTAL(3,$B$5:B38) -> 0 | G38: 0 | K38: 0 | L38: 0 | M38: 0 | N38: 0 | O38: 0 | Q38: 0 | U38: 0 | V38: 0 | W38: 750 | X38: 0 | Y38: 0 | Z38: 0 | AA38: 0 | AB38: 0 | AC38: 0 | AD38: 0
A39: =SUBTOTAL(3,$B$5:B39) -> 0 | G39: 0 | K39: 0 | L39: 0 | M39: 0 | N39: 0 | O39: 0 | Q39: 0 | U39: 0 | V39: 0 | W39: 750 | X39: 0 | Y39: 0 | Z39: 0 | AA39: 0 | AB39: 0 | AC39: 0 | AD39: 0
A40: =SUBTOTAL(3,$B$5:B40) -> 0 | G40: 0 | K40: 0 | L40: 0 | M40: 0 | N40: 0 | O40: 0 | Q40: 0 | U40: 0 | V40: 0 | W40: 750 | X40: 0 | Y40: 0 | Z40: 0 | AA40: 0 | AB40: 0 | AC40: 0 | AD40: 0
A41: =SUBTOTAL(3,$B$5:B41) -> 0 | G41: =F41-Q41 -> 0 | K41: =IF(F41>8100,8100,F41*0.8) -> 0 | L41: =K41*18.75/100 -> 0 | M41: =F41+H41+I41+J41 -> 0 | N41: =L41 -> 0 | O41: =K41*0.11 -> 0 | Q41: =P41*F41/30 -> 0 | U41: =Q41+S41+T41+O41+R41 -> 0 | V41: =M41-O41-Q41 -> 0 | W41: 750 | X41: =IF((V41+J41)>W41,(V41+J41)-W41,0) -> 0 | Y41: =X41*12 -> 0 | Z41: =IF((Y41<=15000),(Y41*0%),IF((Y41<=30000),(Y41*2.5%)-375,IF((Y41<=45000),(Y41*10%)-2625,IF((Y41<=60000),(Y41*15%)-4875,IF((Y41<=200000),(Y41*20%)-7875,IF((Y41<=400000),(Y41*22.5%)-12875,IF((Y41<=600000),(Y41*25%)-22875,IF((Y41<=700000),(Y41*25%)-22500,IF((Y41<=800000),(Y41*25%)-20250,IF((Y41<=900000),(Y41*25%)-18000,IF((Y41<=1000000),(Y41*25%)-15000,IF((Y41>=1000000),(Y41*25%)-10000)))))))))))/12) -> 0 | AA41: =M41-Q41-S41-T41-Z41-O41-R41 -> 0 | AB41: 0 | AC41: 0 | AD41: 0
A42: =SUBTOTAL(3,$B$5:B42) -> 0 | G42: 0 | K42: 0 | L42: 0 | M42: 0 | N42: 0 | O42: 0 | Q42: 0 | U42: 0 | V42: 0 | W42: 750 | X42: 0 | Y42: 0 | Z42: 0 | AA42: 0 | AB42: 0 | AC42: 0 | AD42: 0
A43: =SUBTOTAL(3,$B$5:B43) -> 0 | G43: =F43-Q43 -> 0 | K43: =IF(F43>8100,8100,F43*0.8) -> 0 | L43: =K43*18.75/100 -> 0 | M43: =F43+H43+I43+J43 -> 0 | N43: =L43 -> 0 | O43: =K43*0.11 -> 0 | Q43: =P43*F43/30 -> 0 | U43: =Q43+S43+T43+O43+R43 -> 0 | V43: =M43-O43-Q43 -> 0 | W43: 750 | X43: =IF((V43+J43)>W43,(V43+J43)-W43,0) -> 0 | Y43: =X43*12 -> 0 | Z43: =IF((Y43<=15000),(Y43*0%),IF((Y43<=30000),(Y43*2.5%)-375,IF((Y43<=45000),(Y43*10%)-2625,IF((Y43<=60000),(Y43*15%)-4875,IF((Y43<=200000),(Y43*20%)-7875,IF((Y43<=400000),(Y43*22.5%)-12875,IF((Y43<=600000),(Y43*25%)-22875,IF((Y43<=700000),(Y43*25%)-22500,IF((Y43<=800000),(Y43*25%)-20250,IF((Y43<=900000),(Y43*25%)-18000,IF((Y43<=1000000),(Y43*25%)-15000,IF((Y43>=1000000),(Y43*25%)-10000)))))))))))/12) -> 0 | AA43: =M43-Q43-S43-T43-Z43-O43-R43 -> 0 | AB43: 0 | AC43: 0 | AD43: 0
A44: =SUBTOTAL(3,$B$5:B44) -> 0 | G44: =F44-Q44 -> 0 | K44: =IF(F44>8100,8100,F44*0.8) -> 0 | L44: =K44*18.75/100 -> 0 | M44: =F44+H44+I44+J44 -> 0 | N44: =L44 -> 0 | O44: =K44*0.11 -> 0 | Q44: =P44*F44/30 -> 0 | U44: =Q44+S44+T44+O44+R44 -> 0 | V44: =M44-O44-Q44 -> 0 | W44: 750 | X44: =IF((V44+J44)>W44,(V44+J44)-W44,0) -> 0 | Y44: =X44*12 -> 0 | Z44: =IF((Y44<=15000),(Y44*0%),IF((Y44<=30000),(Y44*2.5%)-375,IF((Y44<=45000),(Y44*10%)-2625,IF((Y44<=60000),(Y44*15%)-4875,IF((Y44<=200000),(Y44*20%)-7875,IF((Y44<=400000),(Y44*22.5%)-12875,IF((Y44<=600000),(Y44*25%)-22875,IF((Y44<=700000),(Y44*25%)-22500,IF((Y44<=800000),(Y44*25%)-20250,IF((Y44<=900000),(Y44*25%)-18000,IF((Y44<=1000000),(Y44*25%)-15000,IF((Y44>=1000000),(Y44*25%)-10000)))))))))))/12) -> 0 | AA44: =M44-Q44-S44-T44-Z44-O44-R44 -> 0 | AB44: 0 | AC44: 0 | AD44: 0
A45: =SUBTOTAL(3,$B$5:B45) -> 0 | G45: =F45-Q45 -> 0 | K45: =IF(F45>8100,8100,F45*0.8) -> 0 | L45: =K45*18.75/100 -> 0 | M45: =F45+H45+I45+J45 -> 0 | N45: =L45 -> 0 | O45: =K45*0.11 -> 0 | Q45: =P45*F45/30 -> 0 | U45: =Q45+S45+T45+O45+R45 -> 0 | V45: =M45-O45-Q45 -> 0 | W45: 750 | X45: =IF((V45+J45)>W45,(V45+J45)-W45,0) -> 0 | Y45: =X45*12 -> 0 | Z45: =IF((Y45<=15000),(Y45*0%),IF((Y45<=30000),(Y45*2.5%)-375,IF((Y45<=45000),(Y45*10%)-2625,IF((Y45<=60000),(Y45*15%)-4875,IF((Y45<=200000),(Y45*20%)-7875,IF((Y45<=400000),(Y45*22.5%)-12875,IF((Y45<=600000),(Y45*25%)-22875,IF((Y45<=700000),(Y45*25%)-22500,IF((Y45<=800000),(Y45*25%)-20250,IF((Y45<=900000),(Y45*25%)-18000,IF((Y45<=1000000),(Y45*25%)-15000,IF((Y45>=1000000),(Y45*25%)-10000)))))))))))/12) -> 0 | AA45: =M45-Q45-S45-T45-Z45-O45-R45 -> 0 | AB45: 0 | AC45: 0 | AD45: 0
A46: =SUBTOTAL(3,$B$5:B46) -> 0 | G46: =F46-Q46 -> 0 | K46: =IF(F46>8100,8100,F46*0.8) -> 0 | L46: =K46*18.75/100 -> 0 | M46: =F46+H46+I46+J46 -> 0 | N46: =L46 -> 0 | O46: =K46*0.11 -> 0 | Q46: =P46*F46/30 -> 0 | U46: =Q46+S46+T46+O46+R46 -> 0 | V46: =M46-O46-Q46 -> 0 | W46: 750 | X46: =IF((V46+J46)>W46,(V46+J46)-W46,0) -> 0 | Y46: =X46*12 -> 0 | Z46: =IF((Y46<=15000),(Y46*0%),IF((Y46<=30000),(Y46*2.5%)-375,IF((Y46<=45000),(Y46*10%)-2625,IF((Y46<=60000),(Y46*15%)-4875,IF((Y46<=200000),(Y46*20%)-7875,IF((Y46<=400000),(Y46*22.5%)-12875,IF((Y46<=600000),(Y46*25%)-22875,IF((Y46<=700000),(Y46*25%)-22500,IF((Y46<=800000),(Y46*25%)-20250,IF((Y46<=900000),(Y46*25%)-18000,IF((Y46<=1000000),(Y46*25%)-15000,IF((Y46>=1000000),(Y46*25%)-10000)))))))))))/12) -> 0 | AA46: =M46-Q46-S46-T46-Z46-O46-R46 -> 0 | AB46: 0 | AC46: 0 | AD46: 0
A47: =SUBTOTAL(3,$B$5:B47) -> 0 | G47: 0 | K47: 0 | L47: 0 | M47: 0 | N47: 0 | O47: 0 | Q47: 0 | U47: 0 | V47: 0 | W47: 750 | X47: 0 | Y47: 0 | Z47: 0 | AA47: 0 | AB47: 0 | AC47: 0 | AD47: 0
A48: =SUBTOTAL(3,$B$5:B48) -> 0 | G48: 0 | K48: 0 | L48: 0 | M48: 0 | N48: 0 | O48: 0 | Q48: 0 | U48: 0 | V48: 0 | W48: 750 | X48: 0 | Y48: 0 | Z48: 0 | AA48: 0 | AB48: 0 | AC48: 0 | AD48: 0
A49: =SUBTOTAL(3,$B$5:B49) -> 0 | G49: 0 | K49: 0 | L49: 0 | M49: 0 | N49: 0 | O49: 0 | Q49: 0 | U49: 0 | V49: 0 | W49: 750 | X49: 0 | Y49: 0 | Z49: 0 | AA49: 0 | AB49: 0 | AC49: 0 | AD49: 0
A50: =SUBTOTAL(3,$B$5:B50) -> 0 | G50: =F50-Q50 -> 0 | K50: =IF(F50>8100,8100,F50*0.8) -> 0 | L50: =K50*18.75/100 -> 0 | M50: =F50+H50+I50+J50 -> 0 | N50: =L50 -> 0 | O50: =K50*0.11 -> 0 | Q50: =P50*F50/30 -> 0 | U50: =Q50+S50+T50+O50+R50 -> 0 | V50: =M50-O50-Q50 -> 0 | W50: 750 | X50: =IF((V50+J50)>W50,(V50+J50)-W50,0) -> 0 | Y50: =X50*12 -> 0 | Z50: =IF((Y50<=15000),(Y50*0%),IF((Y50<=30000),(Y50*2.5%)-375,IF((Y50<=45000),(Y50*10%)-2625,IF((Y50<=60000),(Y50*15%)-4875,IF((Y50<=200000),(Y50*20%)-7875,IF((Y50<=400000),(Y50*22.5%)-12875,IF((Y50<=600000),(Y50*25%)-22875,IF((Y50<=700000),(Y50*25%)-22500,IF((Y50<=800000),(Y50*25%)-20250,IF((Y50<=900000),(Y50*25%)-18000,IF((Y50<=1000000),(Y50*25%)-15000,IF((Y50>=1000000),(Y50*25%)-10000)))))))))))/12) -> 0 | AA50: =M50-Q50-S50-T50-Z50-O50-R50 -> 0 | AB50: 0 | AC50: 0 | AD50: 0
A51: =SUBTOTAL(3,$B$5:B51) -> 0 | G51: 0 | K51: 0 | L51: 0 | M51: 0 | N51: 0 | O51: 0 | Q51: 0 | U51: 0 | V51: 0 | W51: 750 | X51: 0 | Y51: 0 | Z51: 0 | AA51: 0 | AB51: 0 | AC51: 0 | AD51: 0
A52: =SUBTOTAL(3,$B$5:B52) -> 0 | G52: =F52-Q52 -> 0 | K52: =IF(F52>8100,8100,F52*0.8) -> 0 | L52: =K52*18.75/100 -> 0 | M52: =F52+H52+I52+J52 -> 0 | N52: =L52 -> 0 | O52: =K52*0.11 -> 0 | Q52: =P52*F52/30 -> 0 | U52: =Q52+S52+T52+O52+R52 -> 0 | V52: 0 | W52: 750 | X52: =IF((V52+J52)>W52,(V52+J52)-W52,0) -> 0 | Y52: =X52*12 -> 0 | Z52: =IF((Y52<=15000),(Y52*0%),IF((Y52<=30000),(Y52*2.5%)-375,IF((Y52<=45000),(Y52*10%)-2625,IF((Y52<=60000),(Y52*15%)-4875,IF((Y52<=200000),(Y52*20%)-7875,IF((Y52<=400000),(Y52*22.5%)-12875,IF((Y52<=600000),(Y52*25%)-22875,IF((Y52<=700000),(Y52*25%)-22500,IF((Y52<=800000),(Y52*25%)-20250,IF((Y52<=900000),(Y52*25%)-18000,IF((Y52<=1000000),(Y52*25%)-15000,IF((Y52>=1000000),(Y52*25%)-10000)))))))))))/12) -> 0 | AA52: =M52-Q52-S52-T52-Z52-O52-R52 -> 0 | AB52: 0 | AC52: 0 | AD52: 0
A53: =SUBTOTAL(3,$B$5:B53) -> 0 | G53: =F53-Q53 -> 0 | K53: =IF(F53>8100,8100,F53*0.8) -> 0 | L53: =K53*18.75/100 -> 0 | M53: =F53+H53+I53+J53 -> 0 | N53: =L53 -> 0 | O53: =K53*0.11 -> 0 | Q53: =P53*F53/30 -> 0 | U53: =Q53+S53+T53+O53+R53 -> 0 | V53: 0 | W53: 750 | X53: =IF((V53+J53)>W53,(V53+J53)-W53,0) -> 0 | Y53: =X53*12 -> 0 | Z53: =IF((Y53<=15000),(Y53*0%),IF((Y53<=30000),(Y53*2.5%)-375,IF((Y53<=45000),(Y53*10%)-2625,IF((Y53<=60000),(Y53*15%)-4875,IF((Y53<=200000),(Y53*20%)-7875,IF((Y53<=400000),(Y53*22.5%)-12875,IF((Y53<=600000),(Y53*25%)-22875,IF((Y53<=700000),(Y53*25%)-22500,IF((Y53<=800000),(Y53*25%)-20250,IF((Y53<=900000),(Y53*25%)-18000,IF((Y53<=1000000),(Y53*25%)-15000,IF((Y53>=1000000),(Y53*25%)-10000)))))))))))/12) -> 0 | AA53: =M53-Q53-S53-T53-Z53-O53-R53 -> 0 | AB53: 0 | AC53: 0 | AD53: 0
A54: =SUBTOTAL(3,$B$5:B54) -> 0 | G54: 0 | K54: 0 | L54: 0 | M54: 0 | N54: 0 | O54: 0 | Q54: 0 | U54: 0 | V54: 0 | W54: 750 | X54: 0 | Y54: 0 | Z54: 0 | AA54: 0 | AB54: 0 | AC54: 0 | AD54: 0
A55: =SUBTOTAL(3,$B$5:B55) -> 0 | G55: 0 | K55: 0 | L55: 0 | M55: 0 | N55: 0 | O55: 0 | Q55: 0 | U55: 0 | V55: 0 | W55: 750 | X55: 0 | Y55: 0 | Z55: 0 | AA55: 0 | AB55: 0 | AC55: 0 | AD55: 0
A56: =SUBTOTAL(3,$B$5:B56) -> 0 | G56: 0 | K56: 0 | L56: 0 | M56: 0 | N56: 0 | O56: 0 | Q56: 0 | U56: 0 | V56: 0 | W56: 750 | X56: 0 | Y56: 0 | Z56: 0 | AA56: 0 | AB56: 0 | AC56: 0 | AD56: 0
A57: =SUBTOTAL(3,$B$5:B57) -> 0 | G57: 0 | K57: 0 | L57: 0 | M57: 0 | N57: 0 | O57: 0 | Q57: 0 | U57: 0 | V57: 0 | W57: 750 | X57: 0 | Y57: 0 | Z57: 0 | AA57: 0 | AB57: 0 | AC57: 0 | AD57: 0
A58: =SUBTOTAL(3,$B$5:B58) -> 0 | G58: 0 | K58: 0 | L58: 0 | M58: 0 | N58: 0 | O58: 0 | Q58: 0 | U58: 0 | V58: 0 | W58: 750 | X58: 0 | Y58: 0 | Z58: 0 | AA58: 0 | AB58: 0 | AC58: 0 | AD58: 0
A59: =SUBTOTAL(3,$B$5:B59) -> 0 | G59: 0 | K59: 0 | L59: 0 | M59: 0 | N59: 0 | O59: 0 | Q59: 0 | U59: 0 | V59: 0 | W59: 750 | X59: 0 | Y59: 0 | Z59: 0 | AA59: 0 | AB59: 0 | AC59: 0 | AD59: 0
A60: =SUBTOTAL(3,$B$5:B60) -> 0 | G60: 0 | K60: 0 | L60: 0 | M60: 0 | N60: 0 | O60: 0 | Q60: 0 | U60: 0 | V60: 0 | W60: 750 | X60: 0 | Y60: 0 | Z60: 0 | AA60: 0 | AB60: 0 | AC60: 0 | AD60: 0
A61: =SUBTOTAL(3,$B$5:B61) -> 0 | G61: 0 | K61: 0 | L61: 0 | M61: 0 | N61: 0 | O61: 0 | Q61: 0 | U61: 0 | V61: 0 | W61: 750 | X61: 0 | Y61: 0 | Z61: 0 | AA61: 0 | AB61: 0 | AC61: 0 | AD61: 0
A62: =SUBTOTAL(3,$B$5:B62) -> 0 | G62: 0 | K62: 0 | L62: 0 | M62: 0 | N62: 0 | O62: 0 | Q62: 0 | U62: 0 | V62: 0 | W62: 750 | X62: 0 | Y62: 0 | Z62: 0 | AA62: 0 | AB62: 0 | AC62: 0 | AD62: 0
A63: =SUBTOTAL(3,$B$5:B63) -> 0 | G63: 0 | K63: 0 | L63: 0 | M63: 0 | N63: 0 | O63: 0 | Q63: 0 | U63: 0 | V63: 0 | W63: 750 | X63: 0 | Y63: 0 | Z63: 0 | AA63: 0 | AB63: 0 | AC63: 0 | AD63: 0
A64: =SUBTOTAL(3,$B$5:B64) -> 0 | G64: 0 | K64: 0 | L64: 0 | M64: 0 | N64: 0 | O64: 0 | Q64: 0 | U64: 0 | V64: 0 | W64: 750 | X64: 0 | Y64: 0 | Z64: 0 | AA64: 0 | AB64: 0 | AC64: 0 | AD64: 0
A65: =SUBTOTAL(3,$B$5:B65) -> 0 | G65: 0 | K65: 0 | L65: 0 | M65: 0 | N65: 0 | O65: 0 | Q65: 0 | U65: 0 | V65: 0 | W65: 750 | X65: 0 | Y65: 0 | Z65: 0 | AA65: 0 | AB65: 0 | AC65: 0 | AD65: 0
A66: =SUBTOTAL(3,$B$5:B66) -> 0 | G66: 0 | K66: 0 | L66: 0 | M66: 0 | N66: 0 | O66: 0 | Q66: 0 | U66: 0 | V66: 0 | W66: 750 | X66: 0 | Y66: 0 | Z66: 0 | AA66: 0 | AB66: 0 | AC66: 0 | AD66: 0
A67: =SUBTOTAL(3,$B$5:B67) -> 0 | G67: 0 | K67: 0 | L67: 0 | M67: 0 | N67: 0 | O67: 0 | Q67: 0 | U67: 0 | V67: 0 | W67: 750 | X67: 0 | Y67: 0 | Z67: 0 | AA67: 0 | AB67: 0 | AC67: 0 | AD67: 0
A68: =SUBTOTAL(3,$B$5:B68) -> 0 | G68: =F68-Q68 -> 0 | K68: =IF(F68>8100,8100,F68*0.8) -> 0 | L68: =K68*18.75/100 -> 0 | M68: =F68+H68+I68+J68 -> 0 | N68: =L68 -> 0 | O68: =K68*0.11 -> 0 | Q68: =P68*F68/30 -> 0 | U68: =Q68+S68+T68+O68+R68 -> 0 | V68: =M68-O68-Q68 -> 0 | W68: 750 | X68: =IF((V68+J68)>W68,(V68+J68)-W68,0) -> 0 | Y68: =X68*12 -> 0 | Z68: =IF((Y68<=15000),(Y68*0%),IF((Y68<=30000),(Y68*2.5%)-375,IF((Y68<=45000),(Y68*10%)-2625,IF((Y68<=60000),(Y68*15%)-4875,IF((Y68<=200000),(Y68*20%)-7875,IF((Y68<=400000),(Y68*22.5%)-12875,IF((Y68<=600000),(Y68*25%)-22875,IF((Y68<=700000),(Y68*25%)-22500,IF((Y68<=800000),(Y68*25%)-20250,IF((Y68<=900000),(Y68*25%)-18000,IF((Y68<=1000000),(Y68*25%)-15000,IF((Y68>=1000000),(Y68*25%)-10000)))))))))))/12) -> 0 | AA68: =M68-Q68-S68-T68-Z68-O68-R68 -> 0 | AB68: 0 | AC68: 0 | AD68: 0
A69: =SUBTOTAL(3,$B$5:B69) -> 0 | G69: 0 | K69: 0 | L69: 0 | M69: 0 | N69: 0 | O69: 0 | Q69: 0 | U69: 0 | V69: 0 | W69: 750 | X69: 0 | Y69: 0 | Z69: 0 | AA69: 0 | AB69: 0 | AC69: 0 | AD69: 0
A70: =SUBTOTAL(3,$B$5:B70) -> 0 | G70: 0 | K70: 0 | L70: 0 | M70: 0 | N70: 0 | O70: 0 | Q70: 0 | U70: 0 | V70: 0 | W70: 750 | X70: 0 | Y70: 0 | Z70: 0 | AA70: 0 | AB70: =AA70*0.01 -> 0 | AC70: =IF(M70<=2000,0,M70*0.0005) -> 0 | AD70: =AA70-AB70-AC70 -> 0
A71: =SUBTOTAL(3,$B$5:B71) -> 0 | G71: =F71-Q71 -> 0 | L71: =K71*18.75/100 -> 0 | M71: =F71+H71+I71+J71 -> 0 | N71: =L71 -> 0 | O71: =K71*0.11 -> 0 | Q71: =P71*F71/30 -> 0 | U71: =Q71+S71+T71+O71+R71 -> 0 | V71: 0 | W71: 750 | X71: =IF((V71+J71)>W71,(V71+J71)-W71,0) -> 0 | Y71: =X71*12 -> 0 | Z71: =IF((Y71<=15000),(Y71*0%),IF((Y71<=30000),(Y71*2.5%)-375,IF((Y71<=45000),(Y71*10%)-2625,IF((Y71<=60000),(Y71*15%)-4875,IF((Y71<=200000),(Y71*20%)-7875,IF((Y71<=400000),(Y71*22.5%)-12875,IF((Y71<=600000),(Y71*25%)-22875,IF((Y71<=700000),(Y71*25%)-22500,IF((Y71<=800000),(Y71*25%)-20250,IF((Y71<=900000),(Y71*25%)-18000,IF((Y71<=1000000),(Y71*25%)-15000,IF((Y71>=1000000),(Y71*25%)-10000)))))))))))/12) -> 0 | AA71: =M71-Q71-S71-T71-Z71-O71-R71 -> 0 | AB71: 0 | AC71: 0 | AD71: 0
A72: =SUBTOTAL(3,$B$5:B72) -> 0 | G72: 0 | K72: =IF(F72>8100,8100,F72*0.8) -> 0 | L72: 0 | M72: 0 | N72: 0 | O72: 0 | Q72: 0 | U72: 0 | V72: =M72-O72-Q72 -> 0 | W72: 750 | X72: 0 | Y72: 0 | Z72: 0 | AA72: 0 | AB72: 0 | AC72: 0 | AD72: 0
A73: =SUBTOTAL(3,$B$5:B73) -> 0 | G73: 0 | K73: 0 | L73: 0 | M73: 0 | N73: 0 | O73: 0 | Q73: 0 | U73: 0 | V73: 0 | W73: 750 | X73: 0 | Y73: 0 | Z73: 0 | AA73: 0 | AB73: 0 | AC73: 0 | AD73: 0
A74: =SUBTOTAL(3,$B$5:B74) -> 0 | G74: 0 | K74: 0 | L74: 0 | M74: 0 | N74: 0 | O74: 0 | Q74: 0 | U74: 0 | V74: 0 | W74: 750 | X74: 0 | Y74: 0 | Z74: 0 | AA74: 0 | AB74: 0 | AC74: 0 | AD74: 0
A75: =SUBTOTAL(3,$B$5:B75) -> 0 | G75: 0 | K75: 0 | L75: 0 | M75: 0 | N75: 0 | O75: 0 | Q75: 0 | U75: 0 | V75: 0 | W75: 750 | X75: 0 | Y75: 0 | Z75: 0 | AA75: 0 | AB75: 0 | AC75: 0 | AD75: 0
A76: =SUBTOTAL(3,$B$5:B76) -> 0 | G76: 0 | K76: 0 | L76: 0 | M76: 0 | N76: 0 | O76: 0 | Q76: 0 | U76: 0 | V76: 0 | W76: 750 | X76: 0 | Y76: 0 | Z76: 0 | AA76: 0 | AB76: 0 | AC76: 0 | AD76: 0
A77: =SUBTOTAL(3,$B$5:B77) -> 0 | G77: 0 | K77: 0 | L77: 0 | M77: 0 | N77: 0 | O77: 0 | Q77: 0 | U77: 0 | V77: 0 | W77: 750 | X77: 0 | Y77: 0 | Z77: 0 | AA77: 0 | AB77: 0 | AC77: 0 | AD77: 0
A78: =SUBTOTAL(3,$B$5:B78) -> 0 | G78: 0 | L78: 0 | M78: 0 | N78: 0 | O78: 0 | Q78: 0 | U78: 0 | V78: 0 | W78: 750 | X78: 0 | Y78: 0 | Z78: 0 | AA78: 0 | AB78: 0 | AC78: 0 | AD78: 0
A79: =SUBTOTAL(3,$B$5:B79) -> 0 | G79: 0 | K79: 0 | L79: 0 | M79: 0 | N79: 0 | O79: 0 | Q79: 0 | U79: 0 | V79: 0 | W79: 750 | X79: 0 | Y79: 0 | Z79: 0 | AA79: 0 | AB79: 0 | AC79: 0 | AD79: 0
A80: =SUBTOTAL(3,$B$5:B80) -> 0 | G80: 0 | K80: 0 | L80: 0 | M80: 0 | N80: 0 | O80: 0 | Q80: 0 | U80: 0 | V80: 0 | W80: 750 | X80: 0 | Y80: 0 | Z80: 0 | AA80: 0 | AB80: 0 | AC80: 0 | AD80: 0
A81: =SUBTOTAL(3,$B$5:B81) -> 0 | G81: 0 | K81: 0 | L81: 0 | M81: 0 | N81: 0 | O81: 0 | Q81: 0 | U81: 0 | V81: 0 | W81: 750 | X81: 0 | Y81: 0 | Z81: 0 | AA81: 0 | AB81: 0 | AC81: 0 | AD81: 0
A82: =SUBTOTAL(3,$B$5:B82) -> 0 | G82: 0 | K82: 0 | L82: 0 | M82: 0 | N82: 0 | O82: 0 | Q82: 0 | U82: 0 | V82: 0 | W82: 750 | X82: 0 | Y82: 0 | Z82: 0 | AA82: 0 | AB82: 0 | AC82: 0 | AD82: 0
A83: =SUBTOTAL(3,$B$5:B83) -> 0 | G83: =F83-Q83 -> 0 | K83: =IF(F83>8100,8100,F83*0.8) -> 0 | L83: =K83*18.75/100 -> 0 | M83: =F83+H83+I83+J83 -> 0 | N83: =L83 -> 0 | O83: =K83*0.11 -> 0 | Q83: =P83*F83/30 -> 0 | U83: =Q83+S83+T83+O83+R83 -> 0 | V83: =M83-O83-Q83 -> 0 | W83: 750 | X83: =IF((V83+J83)>W83,(V83+J83)-W83,0) -> 0 | Y83: =X83*12 -> 0 | Z83: =IF((Y83<=15000),(Y83*0%),IF((Y83<=30000),(Y83*2.5%)-375,IF((Y83<=45000),(Y83*10%)-2625,IF((Y83<=60000),(Y83*15%)-4875,IF((Y83<=200000),(Y83*20%)-7875,IF((Y83<=400000),(Y83*22.5%)-12875,IF((Y83<=600000),(Y83*25%)-22875,IF((Y83<=700000),(Y83*25%)-22500,IF((Y83<=800000),(Y83*25%)-20250,IF((Y83<=900000),(Y83*25%)-18000,IF((Y83<=1000000),(Y83*25%)-15000,IF((Y83>=1000000),(Y83*25%)-10000)))))))))))/12) -> 0 | AA83: =M83-Q83-S83-T83-Z83-O83-R83 -> 0 | AB83: 0 | AC83: 0 | AD83: 0
A84: =SUBTOTAL(3,$B$5:B84) -> 0 | G84: 0 | L84: 0 | M84: 0 | N84: 0 | O84: 0 | Q84: 0 | U84: 0 | V84: 0 | W84: 750 | X84: 0 | Y84: 0 | Z84: 0 | AA84: 0 | AB84: 0 | AC84: 0 | AD84: 0
A85: =SUBTOTAL(3,$B$5:B85) -> 0 | G85: 0 | K85: 0 | L85: 0 | M85: 0 | N85: 0 | O85: 0 | Q85: 0 | U85: 0 | V85: 0 | W85: 750 | X85: 0 | Y85: 0 | Z85: 0 | AA85: 0 | AB85: 0 | AC85: 0 | AD85: 0
A86: =SUBTOTAL(3,$B$5:B86) -> 0 | G86: 0 | K86: 0 | L86: 0 | M86: 0 | N86: 0 | O86: 0 | Q86: 0 | U86: 0 | V86: 0 | W86: 750 | X86: 0 | Y86: 0 | Z86: 0 | AA86: 0 | AB86: 0 | AC86: 0 | AD86: 0
A87: =SUBTOTAL(3,$B$5:B87) -> 0 | G87: 0 | K87: 0 | L87: 0 | M87: 0 | N87: 0 | O87: 0 | Q87: 0 | U87: 0 | V87: 0 | W87: 750 | X87: 0 | Y87: 0 | Z87: 0 | AA87: 0 | AB87: 0 | AC87: 0 | AD87: 0
A88: =SUBTOTAL(3,$B$5:B88) -> 0 | G88: 0 | K88: 0 | L88: 0 | M88: 0 | N88: 0 | O88: 0 | Q88: 0 | U88: 0 | V88: 0 | W88: 750 | X88: 0 | Y88: 0 | Z88: 0 | AA88: 0 | AB88: 0 | AC88: 0 | AD88: 0
A89: =SUBTOTAL(3,$B$5:B89) -> 0 | G89: 0 | K89: 0 | L89: 0 | M89: 0 | N89: 0 | O89: 0 | Q89: 0 | U89: 0 | V89: 0 | W89: 750 | X89: 0 | Y89: 0 | Z89: 0 | AA89: 0 | AB89: 0 | AC89: 0 | AD89: 0
A90: =SUBTOTAL(3,$B$5:B90) -> 0 | G90: 0 | K90: 0 | L90: 0 | M90: 0 | N90: 0 | O90: 0 | Q90: 0 | U90: 0 | V90: 0 | W90: 750 | X90: 0 | Y90: 0 | Z90: 0 | AA90: 0 | AB90: 0 | AC90: 0 | AD90: 0
A91: =SUBTOTAL(3,$B$5:B91) -> 0 | G91: 0 | K91: 0 | L91: 0 | M91: 0 | N91: 0 | O91: 0 | Q91: 0 | U91: 0 | V91: 0 | W91: 750 | X91: 0 | Y91: 0 | Z91: 0 | AA91: 0 | AB91: 0 | AC91: 0 | AD91: 0
A92: =SUBTOTAL(3,$B$5:B92) -> 0 | G92: 0 | K92: 0 | L92: 0 | M92: 0 | N92: 0 | O92: 0 | Q92: 0 | U92: 0 | V92: 0 | W92: 750 | X92: 0 | Y92: 0 | Z92: 0 | AA92: 0 | AB92: 0 | AC92: 0 | AD92: 0
A93: =SUBTOTAL(3,$B$5:B93) -> 0 | G93: 0 | K93: 0 | L93: 0 | M93: 0 | N93: 0 | O93: 0 | Q93: 0 | U93: 0 | V93: 0 | W93: 750 | X93: 0 | Y93: 0 | Z93: 0 | AA93: 0 | AB93: 0 | AC93: 0 | AD93: 0
A94: =SUBTOTAL(3,$B$5:B94) -> 0 | G94: 0 | K94: 0 | L94: 0 | M94: 0 | N94: 0 | O94: 0 | Q94: 0 | U94: 0 | V94: 0 | W94: 750 | X94: 0 | Y94: 0 | Z94: 0 | AA94: 0 | AB94: 0 | AC94: 0 | AD94: 0
A95: =SUBTOTAL(3,$B$5:B95) -> 0 | G95: 0 | K95: 0 | L95: 0 | M95: 0 | N95: 0 | O95: 0 | Q95: 0 | U95: 0 | V95: 0 | W95: 750 | X95: 0 | Y95: 0 | Z95: 0 | AA95: 0 | AB95: 0 | AC95: 0 | AD95: 0
A96: =SUBTOTAL(3,$B$5:B96) -> 0 | G96: 0 | K96: 0 | L96: 0 | M96: 0 | N96: 0 | O96: 0 | Q96: 0 | U96: 0 | V96: 0 | W96: 750 | X96: 0 | Y96: 0 | Z96: 0 | AA96: 0 | AB96: 0 | AC96: 0 | AD96: 0
A97: =SUBTOTAL(3,$B$5:B97) -> 0 | G97: 0 | L97: 0 | M97: 0 | N97: 0 | O97: 0 | Q97: 0 | U97: 0 | V97: 0 | W97: 750 | X97: 0 | Y97: 0 | Z97: 0 | AA97: 0 | AB97: 0 | AC97: 0 | AD97: 0
A98: =SUBTOTAL(3,$B$5:B98) -> 0 | G98: 0 | L98: 0 | M98: 0 | N98: 0 | O98: 0 | Q98: 0 | U98: 0 | V98: 0 | W98: 750 | X98: 0 | Y98: 0 | Z98: 0 | AA98: 0 | AB98: 0 | AC98: 0 | AD98: 0
A99: =SUBTOTAL(3,$B$5:B99) -> 0 | G99: 0 | L99: 0 | M99: 0 | N99: 0 | O99: 0 | Q99: 0 | U99: 0 | V99: 0 | W99: 750 | X99: 0 | Y99: 0 | Z99: 0 | AA99: 0 | AB99: 0 | AC99: 0 | AD99: 0
A100: =SUBTOTAL(3,$B$5:B100) -> 0 | G100: 0 | K100: 0 | L100: 0 | M100: 0 | N100: 0 | O100: 0 | Q100: 0 | U100: 0 | V100: 0 | W100: 750 | X100: 0 | Y100: 0 | Z100: 0 | AA100: 0 | AB100: 0 | AC100: 0 | AD100: 0
A101: =SUBTOTAL(3,$B$5:B101) -> 0 | F101: 0 | G101: 0 | K101: 0 | L101: 0 | M101: 0 | N101: 0 | O101: 0 | Q101: 0 | U101: 0 | V101: 0 | W101: 750 | X101: 0 | Y101: 0 | Z101: 0 | AA101: 0 | AB101: 0 | AC101: 0 | AD101: 0
A102: =SUBTOTAL(3,$B$5:B102) -> 0 | F102: 0 | G102: 0 | K102: 0 | L102: 0 | M102: 0 | N102: 0 | O102: 0 | Q102: 0 | U102: 0 | V102: 0 | W102: 750 | X102: 0 | Y102: 0 | Z102: 0 | AA102: 0 | AB102: 0 | AC102: 0 | AD102: 0
A103: =SUBTOTAL(3,$B$5:B103) -> 0 | F103: 0 | G103: 0 | K103: 0 | L103: 0 | M103: 0 | N103: 0 | O103: 0 | Q103: 0 | U103: 0 | V103: 0 | W103: 750 | X103: 0 | Y103: 0 | Z103: 0 | AA103: 0 | AB103: 0 | AC103: 0 | AD103: 0
A104: =SUBTOTAL(3,$B$5:B104) -> 0 | F104: 0 | G104: 0 | K104: 0 | L104: 0 | M104: 0 | N104: 0 | O104: 0 | Q104: 0 | U104: 0 | V104: 0 | W104: 750 | X104: 0 | Y104: 0 | Z104: 0 | AA104: 0 | AB104: 0 | AC104: 0 | AD104: 0
A105: =SUBTOTAL(3,$B$5:B105) -> 0 | F105: 0 | G105: 0 | K105: 0 | L105: 0 | M105: 0 | N105: 0 | O105: 0 | Q105: 0 | U105: 0 | V105: 0 | W105: 750 | X105: 0 | Y105: 0 | Z105: 0 | AA105: 0 | AB105: 0 | AC105: 0 | AD105: 0
A106: =SUBTOTAL(3,$B$5:B106) -> 0 | F106: 0 | G106: 0 | K106: 0 | L106: 0 | M106: 0 | N106: 0 | O106: 0 | Q106: 0 | U106: 0 | V106: 0 | W106: 750 | X106: 0 | Y106: 0 | Z106: 0 | AA106: 0 | AB106: 0 | AC106: 0 | AD106: 0
A107: =SUBTOTAL(3,$B$5:B107) -> 0 | F107: 0 | G107: 0 | K107: 0 | L107: 0 | M107: 0 | N107: 0 | O107: 0 | Q107: 0 | U107: 0 | V107: 0 | W107: 750 | X107: 0 | Y107: 0 | Z107: 0 | AA107: 0 | AB107: 0 | AC107: 0 | AD107: 0
A108: =SUBTOTAL(3,$B$5:B108) -> 0 | F108: 0 | G108: 0 | K108: 0 | L108: 0 | M108: 0 | N108: 0 | O108: 0 | Q108: 0 | U108: 0 | V108: 0 | W108: 750 | X108: 0 | Y108: 0 | Z108: 0 | AA108: 0 | AB108: 0 | AC108: 0 | AD108: 0
A109: =SUBTOTAL(3,$B$5:B109) -> 0 | F109: 0 | G109: 0 | K109: 0 | L109: 0 | M109: 0 | N109: 0 | O109: 0 | Q109: 0 | U109: 0 | V109: 0 | W109: 750 | X109: 0 | Y109: 0 | Z109: 0 | AA109: 0 | AB109: 0 | AC109: 0 | AD109: 0
A110: =SUBTOTAL(3,$B$5:B110) -> 0 | F110: 0 | G110: 0 | K110: 0 | L110: 0 | M110: 0 | N110: 0 | O110: 0 | Q110: 0 | U110: 0 | V110: 0 | W110: 750 | X110: 0 | Y110: 0 | Z110: 0 | AA110: 0 | AB110: 0 | AC110: 0 | AD110: 0
A111: =SUBTOTAL(3,$B$5:B111) -> 0 | F111: 0 | G111: 0 | K111: 0 | L111: 0 | M111: 0 | N111: 0 | O111: 0 | Q111: 0 | U111: 0 | V111: 0 | W111: 750 | X111: 0 | Y111: 0 | Z111: 0 | AA111: 0 | AB111: 0 | AC111: 0 | AD111: 0
A112: =SUBTOTAL(3,$B$5:B112) -> 0 | G112: 0 | K112: 0 | L112: 0 | M112: 0 | N112: 0 | O112: 0 | Q112: 0 | U112: 0 | V112: 0 | W112: 750 | X112: 0 | Y112: 0 | Z112: 0 | AA112: 0 | AB112: 0 | AC112: 0 | AD112: 0
A113: =SUBTOTAL(3,$B$5:B113) -> 0 | F113: 0 | G113: 0 | K113: 0 | L113: 0 | M113: 0 | N113: 0 | O113: 0 | Q113: 0 | U113: 0 | V113: 0 | W113: 750 | X113: 0 | Y113: 0 | Z113: 0 | AA113: 0 | AB113: 0 | AC113: 0 | AD113: 0
A114: =SUBTOTAL(3,$B$5:B114) -> 0 | F114: 0 | G114: 0 | K114: 0 | L114: 0 | M114: 0 | N114: 0 | O114: 0 | Q114: 0 | U114: 0 | V114: 0 | W114: 750 | X114: 0 | Y114: 0 | Z114: 0 | AA114: 0 | AB114: 0 | AC114: 0 | AD114: 0
A115: =SUBTOTAL(3,$B$5:B115) -> 0 | F115: 0 | G115: 0 | K115: 0 | L115: 0 | M115: 0 | N115: 0 | O115: 0 | Q115: 0 | U115: 0 | V115: 0 | W115: 750 | X115: 0 | Y115: 0 | Z115: 0 | AA115: 0 | AB115: 0 | AC115: 0 | AD115: 0
A116: =SUBTOTAL(3,$B$5:B116) -> 0 | F116: 0 | G116: 0 | K116: 0 | L116: 0 | M116: 0 | N116: 0 | O116: 0 | Q116: 0 | U116: 0 | V116: 0 | W116: 750 | X116: 0 | Y116: 0 | Z116: 0 | AA116: 0 | AB116: 0 | AC116: 0 | AD116: 0
A117: =SUBTOTAL(3,$B$5:B117) -> 0 | F117: 0 | G117: 0 | K117: 0 | L117: 0 | M117: 0 | N117: 0 | O117: 0 | Q117: 0 | U117: 0 | V117: 0 | W117: 750 | X117: 0 | Y117: 0 | Z117: 0 | AA117: 0 | AB117: 0 | AC117: 0 | AD117: 0
A118: =SUBTOTAL(3,$B$5:B118) -> 0 | F118: 0 | G118: 0 | K118: 0 | L118: 0 | M118: 0 | N118: 0 | O118: 0 | Q118: 0 | U118: 0 | V118: 0 | W118: 750 | X118: 0 | Y118: 0 | Z118: 0 | AA118: 0 | AB118: 0 | AC118: 0 | AD118: 0
A119: =SUBTOTAL(3,$B$5:B119) -> 0 | F119: 0 | G119: 0 | K119: 0 | L119: 0 | M119: 0 | N119: 0 | O119: 0 | Q119: 0 | U119: 0 | V119: 0 | W119: 750 | X119: 0 | Y119: 0 | Z119: 0 | AA119: 0 | AB119: 0 | AC119: 0 | AD119: 0
A120: =SUBTOTAL(3,$B$5:B120) -> 0 | F120: 0 | G120: 0 | K120: 0 | L120: 0 | M120: 0 | N120: 0 | O120: 0 | Q120: 0 | U120: 0 | V120: 0 | W120: 750 | X120: 0 | Y120: 0 | Z120: 0 | AA120: 0 | AB120: 0 | AC120: 0 | AD120: 0
A121: =SUBTOTAL(3,$B$5:B121) -> 0 | F121: 0 | G121: 0 | K121: 0 | L121: 0 | M121: 0 | N121: 0 | O121: 0 | Q121: 0 | U121: 0 | V121: 0 | W121: 750 | X121: 0 | Y121: 0 | Z121: 0 | AA121: 0 | AB121: 0 | AC121: 0 | AD121: 0
A122: =SUBTOTAL(3,$B$5:B122) -> 0 | G122: 0 | K122: 0 | L122: 0 | M122: 0 | N122: 0 | O122: 0 | Q122: 0 | U122: 0 | V122: 0 | W122: 750 | X122: 0 | Y122: 0 | Z122: 0 | AA122: 0 | AB122: 0 | AC122: 0 | AD122: 0
A123: =SUBTOTAL(3,$B$5:B123) -> 0 | G123: 0 | K123: 0 | L123: 0 | M123: 0 | N123: 0 | O123: 0 | Q123: 0 | U123: 0 | V123: 0 | W123: 750 | X123: 0 | Y123: 0 | Z123: 0 | AA123: 0 | AB123: 0 | AC123: 0 | AD123: 0
A124: =SUBTOTAL(3,$B$5:B124) -> 0 | F124: 0 | G124: 0 | K124: 0 | L124: 0 | M124: 0 | N124: 0 | O124: 0 | Q124: 0 | U124: 0 | V124: 0 | W124: 750 | X124: 0 | Y124: 0 | Z124: 0 | AA124: 0 | AB124: 0 | AC124: 0 | AD124: 0
A125: الاجمالى | F125: =SUM(F5:F124) -> 0 | G125: 0 | H125: 0 | I125: 0 | J125: 0 | K125: 0 | L125: 0 | M125: 0 | N125: 0 | O125: 0 | P125: 8 | Q125: 0 | R125: 0 | S125: 0 | T125: 0 | U125: 0 | V125: 0 | W125: 90000 | X125: 0 | Y125: 0 | Z125: 0 | AA125: =SUM(AA5:AA124) -> 0 | AB125: =SUM(AB5:AB124) -> 0 | AC125: 0 | AD125: 0
E127: الموارد البشرية | U127: الرئيس التنفيذي للشركة د . عمرو العدل
U128: د. عمرو العدل

Sheet ابريل
A4: م | B4: الاسم | C4: الوظيفة | D4: الادارة | E4: ATM | F4: الاجر الاساسى | G4: الاجر الاساسى بعد عدم الحضور | H4: مكافأت | I4: حافز بيع | J4: اضافى | K4: الاجر التامينى | L4: المنشأة | M4: اجمالي الاستحقاقات | N4: المنشأة2 | O4: الموظف | P4: عدم الحضور باليوم | Q4: عدم حضور بالجنيه | R4: مصروف صيانه | S4: سلف | T4: جزاءات | U4: اجمالي الاستقطاعات | V4: قبل الضريبة | W4: اعفاء شخصى | X4: الوعاء الضريبى | Y4: الوعاء الضريبى على اساس السنوى | Z4: الضريبة المستحقة | AA4: الصافى | AB4: خصم تكافلي | AC4: خصم الشهيد | AD4: الصافي المستحق للصرف
A5: 1 | G5: =F5-Q5 -> 0 | H5: 0 | I5: 0 | J5: 0 | K5: =IF(F5>8100,8100,F5*0.8) -> 0 | L5: =K5*18.75/100 -> 0 | M5: =F5+H5+I5+J5 -> 0 | N5: =L5 -> 0 | O5: =K5*0.11 -> 0 | Q5: =P5*F5/30 -> 0 | U5: =Q5+S5+T5+O5+R5 -> 0 | V5: =M5-O5-Q5 -> 0 | W5: 750 | X5: =IF((V5+J5)>W5,(V5+J5)-W5,0) -> 0 | Y5: =X5*12 -> 0 | Z5: =IF((Y5<=15000),(Y5*0%),IF((Y5<=30000),(Y5*2.5%)-375,IF((Y5<=45000),(Y5*10%)-2625,IF((Y5<=60000),(Y5*15%)-4875,IF((Y5<=200000),(Y5*20%)-7875,IF((Y5<=400000),(Y5*22.5%)-12875,IF((Y5<=600000),(Y5*25%)-22875,IF((Y5<=700000),(Y5*25%)-22500,IF((Y5<=800000),(Y5*25%)-20250,IF((Y5<=900000),(Y5*25%)-18000,IF((Y5<=1000000),(Y5*25%)-15000,IF((Y5>=1000000),(Y5*25%)-10000)))))))))))/12) -> 0 | AA5: =M5-Q5-S5-T5-Z5-O5-R5 -> 0 | AB5: =AA5*0.01 -> 0 | AC5: =IF(M5<=2000,0,M5*0.0005) -> 0 | AD5: =AA5-AB5-AC5 -> 0
A6: =SUBTOTAL(3,$B$5:B6) -> 0 | G6: 0 | K6: 0 | L6: 0 | M6: 0 | N6: 0 | O6: 0 | Q6: 0 | U6: 0 | V6: =M6-O6-Q6 -> 0 | W6: 750 | X6: 0 | Y6: 0 | Z6: =IF((Y6<=15000),(Y6*0%),IF((Y6<=30000),(Y6*2.5%)-375,IF((Y6<=45000),(Y6*10%)-2625,IF((Y6<=60000),(Y6*15%)-4875,IF((Y6<=200000),(Y6*20%)-7875,IF((Y6<=400000),(Y6*22.5%)-12875,IF((Y6<=600000),(Y6*25%)-22875,IF((Y6<=700000),(Y6*25%)-22500,IF((Y6<=800000),(Y6*25%)-20250,IF((Y6<=900000),(Y6*25%)-18000,IF((Y6<=1000000),(Y6*25%)-15000,IF((Y6>=1000000),(Y6*25%)-10000)))))))))))/12) -> 0 | AA6: 0 | AB6: =AA6*0.01 -> 0 | AC6: =IF(M6<=2000,0,M6*0.0005) -> 0 | AD6: =AA6-AB6-AC6 -> 0
A7: =SUBTOTAL(3,$B$5:B7) -> 0 | G7: 0 | K7: 0 | L7: 0 | M7: 0 | N7: 0 | O7: 0 | Q7: 0 | U7: 0 | V7: 0 | W7: 750 | X7: 0 | Y7: 0 | Z7: 0 | AA7: 0 | AB7: 0 | AC7: 0 | AD7: 0
A8: =SUBTOTAL(3,$B$5:B8) -> 0 | G8: 0 | K8: 0 | L8: 0 | M8: 0 | N8: 0 | O8: 0 | Q8: 0 | U8: 0 | V8: 0 | W8: 750 | X8: 0 | Y8: 0 | Z8: 0 | AA8: 0 | AB8: 0 | AC8: 0 | AD8: 0
A9: =SUBTOTAL(3,$B$5:B9) -> 0 | G9: 0 | K9: 0 | L9: 0 | M9: 0 | N9: 0 | O9: 0 | Q9: 0 | U9: 0 | V9: 0 | W9: 750 | X9: 0 | Y9: 0 | Z9: 0 | AA9: 0 | AB9: 0 | AC9: 0 | AD9: 0
A10: =SUBTOTAL(3,$B$5:B10) -> 0 | G10: 0 | K10: 0 | L10: 0 | M10: 0 | N10: 0 | O10: 0 | Q10: 0 | U10: 0 | V10: 0 | W10: 750 | X10: 0 | Y10: 0 | Z10: 0 | AA10: 0 | AB10: 0 | AC10: 0 | AD10: 0
A11: =SUBTOTAL(3,$B$5:B11) -> 0 | G11: 0 | L11: 0 | M11: 0 | N11: 0 | O11: 0 | P11: 8 | Q11: 0 | U11: 0 | V11: 0 | W11: 750 | X11: 0 | Y11: 0 | Z11: 0 | AA11: 0 | AB11: 0 | AC11: 0 | AD11: 0
A12: =SUBTOTAL(3,$B$5:B12) -> 0 | G12: 0 | K12: 0 | L12: 0 | M12: 0 | N12: 0 | O12: 0 | Q12: 0 | U12: 0 | V12: 0 | W12: 750 | X12: 0 | Y12: 0 | Z12: 0 | AA12: 0 | AB12: 0 | AC12: 0 | AD12: 0
A13: =SUBTOTAL(3,$B$5:B13) -> 0 | G13: 0 | K13: 0 | L13: 0 | M13: 0 | N13: 0 | O13: 0 | Q13: 0 | U13: 0 | V13: 0 | W13: 750 | X13: 0 | Y13: 0 | Z13: 0 | AA13: 0 | AB13: 0 | AC13: 0 | AD13: 0
A14: =SUBTOTAL(3,$B$5:B14) -> 0 | G14: 0 | K14: 0 | L14: 0 | M14: 0 | N14: 0 | O14: 0 | Q14: 0 | U14: 0 | V14: 0 | W14: 750 | X14: 0 | Y14: 0 | Z14: 0 | AA14: 0 | AB14: 0 | AC14: 0 | AD14: 0
A15: =SUBTOTAL(3,$B$5:B15) -> 0 | G15: 0 | K15: 0 | L15: 0 | M15: 0 | N15: 0 | O15: 0 | Q15: 0 | U15: 0 | V15: 0 | W15: 750 | X15: 0 | Y15: 0 | Z15: 0 | AA15: 0 | AB15: 0 | AC15: 0 | AD15: 0
A16: =SUBTOTAL(3,$B$5:B16) -> 0 | G16: 0 | K16: 0 | L16: 0 | M16: 0 | N16: 0 | O16: 0 | Q16: 0 | U16: 0 | V16: 0 | W16: 750 | X16: 0 | Y16: 0 | Z16: 0 | AA16: 0 | AB16: 0 | AC16: 0 | AD16: 0
A17: =SUBTOTAL(3,$B$5:B17) -> 0 | G17: 0 | K17: 0 | L17: 0 | M17: 0 | N17: 0 | O17: 0 | Q17: 0 | U17: 0 | V17: 0 | W17: 750 | X17: 0 | Y17: 0 | Z17: 0 | AA17: 0 | AB17: 0 | AC17: 0 | AD17: 0
A18: =SUBTOTAL(3,$B$5:B18) -> 0 | G18: 0 | K18: 0 | L18: 0 | M18: 0 | N18: 0 | O18: 0 | Q18: 0 | U18: 0 | V18: 0 | W18: 750 | X18: 0 | Y18: 0 | Z18: 0 | AA18: 0 | AB18: 0 | AC18: 0 | AD18: 0
A19: =SUBTOTAL(3,$B$5:B19) -> 0 | G19: 0 | K19: 0 | L19: 0 | M19: 0 | N19: 0 | O19: 0 | Q19: 0 | U19: 0 | V19: 0 | W19: 750 | X19: 0 | Y19: 0 | Z19: 0 | AA19: 0 | AB19: 0 | AC19: 0 | AD19: 0
A20: =SUBTOTAL(3,$B$5:B20) -> 0 | G20: 0 | K20: 0 | L20: 0 | M20: 0 | N20: 0 | O20: 0 | Q20: 0 | U20: 0 | V20: 0 | W20: 750 | X20: 0 | Y20: 0 | Z20: 0 | AA20: 0 | AB20: 0 | AC20: 0 | AD20: 0
A21: =SUBTOTAL(3,$B$5:B21) -> 0 | G21: 0 | K21: 0 | L21: 0 | M21: 0 | N21: 0 | O21: 0 | Q21: 0 | U21: 0 | V21: 0 | W21: 750 | X21: 0 | Y21: 0 | Z21: 0 | AA21: 0 | AB21: 0 | AC21: 0 | AD21: 0
A22: =SUBTOTAL(3,$B$5:B22) -> 0 | G22: 0 | K22: 0 | L22: 0 | M22: 0 | N22: 0 | O22: 0 | Q22: 0 | U22: 0 | V22: 0 | W22: 750 | X22: 0 | Y22: 0 | Z22: 0 | AA22: 0 | AB22: 0 | AC22: 0 | AD22: 0
A23: =SUBTOTAL(3,$B$5:B23) -> 0 | G23: 0 | K23: 0 | L23: 0 | M23: 0 | N23: 0 | O23: 0 | Q23: 0 | U23: 0 | V23: 0 | W23: 750 | X23: 0 | Y23: 0 | Z23: 0 | AA23: 0 | AB23: 0 | AC23: 0 | AD23: 0
A24: =SUBTOTAL(3,$B$5:B24) -> 0 | G24: =F24-Q24 -> 0 | K24: =IF(F24>8100,8100,F24*0.8) -> 0 | L24: =K24*18.75/100 -> 0 | M24: =F24+H24+I24+J24 -> 0 | N24: =L24 -> 0 | O24: =K24*0.11 -> 0 | Q24: =P24*F24/30 -> 0 | U24: =Q24+S24+T24+O24+R24 -> 0 | V24: =M24-O24-Q24 -> 0 | W24: 750 | X24: =IF((V24+J24)>W24,(V24+J24)-W24,0) -> 0 | Y24: =X24*12 -> 0 | Z24: =IF((Y24<=15000),(Y24*0%),IF((Y24<=30000),(Y24*2.5%)-375,IF((Y24<=45000),(Y24*10%)-2625,IF((Y24<=60000),(Y24*15%)-4875,IF((Y24<=200000),(Y24*20%)-7875,IF((Y24<=400000),(Y24*22.5%)-12875,IF((Y24<=600000),(Y24*25%)-22875,IF((Y24<=700000),(Y24*25%)-22500,IF((Y24<=800000),(Y24*25%)-20250,IF((Y24<=900000),(Y24*25%)-18000,IF((Y24<=1000000),(Y24*25%)-15000,IF((Y24>=1000000),(Y24*25%)-10000)))))))))))/12) -> 0 | AA24: =M24-Q24-S24-T24-Z24-O24-R24 -> 0 | AB24: 0 | AC24: 0 | AD24: 0
A25: =SUBTOTAL(3,$B$5:B25) -> 0 | G25: 0 | K25: 0 | L25: 0 | M25: 0 | N25: 0 | O25: 0 | Q25: 0 | U25: 0 | V25: 0 | W25: 750 | X25: 0 | Y25: 0 | Z25: 0 | AA25: 0 | AB25: 0 | AC25: 0 | AD25: 0
A26: =SUBTOTAL(3,$B$5:B26) -> 0 | G26: 0 | K26: 0 | L26: 0 | M26: 0 | N26: 0 | O26: 0 | Q26: 0 | U26: 0 | V26: 0 | W26: 750 | X26: 0 | Y26: 0 | Z26: 0 | AA26: 0 | AB26: 0 | AC26: 0 | AD26: 0
A27: =SUBTOTAL(3,$B$5:B27) -> 0 | G27: 0 | K27: 0 | L27: 0 | M27: 0 | N27: 0 | O27: 0 | Q27: 0 | U27: 0 | V27: 0 | W27: 750 | X27: 0 | Y27: 0 | Z27: 0 | AA27: 0 | AB27: 0 | AC27: 0 | AD27: 0
A28: =SUBTOTAL(3,$B$5:B28) -> 0 | G28: =F28-Q28 -> 0 | K28: =IF(F28>8100,8100,F28*0.8) -> 0 | L28: =K28*18.75/100 -> 0 | M28: =F28+H28+I28+J28 -> 0 | N28: =L28 -> 0 | O28: =K28*0.11 -> 0 | Q28: =P28*F28/30 -> 0 | U28: =Q28+S28+T28+O28+R28 -> 0 | V28: 0 | W28: 750 | X28: =IF((V28+J28)>W28,(V28+J28)-W28,0) -> 0 | Y28: =X28*12 -> 0 | Z28: =IF((Y28<=15000),(Y28*0%),IF((Y28<=30000),(Y28*2.5%)-375,IF((Y28<=45000),(Y28*10%)-2625,IF((Y28<=60000),(Y28*15%)-4875,IF((Y28<=200000),(Y28*20%)-7875,IF((Y28<=400000),(Y28*22.5%)-12875,IF((Y28<=600000),(Y28*25%)-22875,IF((Y28<=700000),(Y28*25%)-22500,IF((Y28<=800000),(Y28*25%)-20250,IF((Y28<=900000),(Y28*25%)-18000,IF((Y28<=1000000),(Y28*25%)-15000,IF((Y28>=1000000),(Y28*25%)-10000)))))))))))/12) -> 0 | AA28: =M28-Q28-S28-T28-Z28-O28-R28 -> 0 | AB28: 0 | AC28: 0 | AD28: 0
A29: =SUBTOTAL(3,$B$5:B29) -> 0 | G29: =F29-Q29 -> 0 | K29: =IF(F29>8100,8100,F29*0.8) -> 0 | L29: =K29*18.75/100 -> 0 | M29: =F29+H29+I29+J29 -> 0 | N29: =L29 -> 0 | O29: =K29*0.11 -> 0 | Q29: =P29*F29/30 -> 0 | U29: =Q29+S29+T29+O29+R29 -> 0 | V29: =M29-O29-Q29 -> 0 | W29: 750 | X29: =IF((V29+J29)>W29,(V29+J29)-W29,0) -> 0 | Y29: =X29*12 -> 0 | Z29: =IF((Y29<=15000),(Y29*0%),IF((Y29<=30000),(Y29*2.5%)-375,IF((Y29<=45000),(Y29*10%)-2625,IF((Y29<=60000),(Y29*15%)-4875,IF((Y29<=200000),(Y29*20%)-7875,IF((Y29<=400000),(Y29*22.5%)-12875,IF((Y29<=600000),(Y29*25%)-22875,IF((Y29<=700000),(Y29*25%)-22500,IF((Y29<=800000),(Y29*25%)-20250,IF((Y29<=900000),(Y29*25%)-18000,IF((Y29<=1000000),(Y29*25%)-15000,IF((Y29>=1000000),(Y29*25%)-10000)))))))))))/12) -> 0 | AA29: =M29-Q29-S29-T29-Z29-O29-R29 -> 0 | AB29: 0 | AC29: 0 | AD29: 0
A30: =SUBTOTAL(3,$B$5:B30) -> 0 | G30: =F30-Q30 -> 0 | K30: =IF(F30>8100,8100,F30*0.8) -> 0 | L30: =K30*18.75/100 -> 0 | M30: =F30+H30+I30+J30 -> 0 | N30: =L30 -> 0 | O30: =K30*0.11 -> 0 | Q30: =P30*F30/30 -> 0 | U30: =Q30+S30+T30+O30+R30 -> 0 | V30: =M30-O30-Q30 -> 0 | W30: 750 | X30: =IF((V30+J30)>W30,(V30+J30)-W30,0) -> 0 | Y30: =X30*12 -> 0 | Z30: =IF((Y30<=15000),(Y30*0%),IF((Y30<=30000),(Y30*2.5%)-375,IF((Y30<=45000),(Y30*10%)-2625,IF((Y30<=60000),(Y30*15%)-4875,IF((Y30<=200000),(Y30*20%)-7875,IF((Y30<=400000),(Y30*22.5%)-12875,IF((Y30<=600000),(Y30*25%)-22875,IF((Y30<=700000),(Y30*25%)-22500,IF((Y30<=800000),(Y30*25%)-20250,IF((Y30<=900000),(Y30*25%)-18000,IF((Y30<=1000000),(Y30*25%)-15000,IF((Y30>=1000000),(Y30*25%)-10000)))))))))))/12) -> 0 | AA30: =M30-Q30-S30-T30-Z30-O30-R30 -> 0 | AB30: 0 | AC30: 0 | AD30: 0
A31: =SUBTOTAL(3,$B$5:B31) -> 0 | G31: 0 | K31: 0 | L31: 0 | M31: 0 | N31: 0 | O31: 0 | Q31: 0 | U31: 0 | V31: 0 | W31: 750 | X31: 0 | Y31: 0 | Z31: 0 | AA31: 0 | AB31: 0 | AC31: 0 | AD31: 0
A32: =SUBTOTAL(3,$B$5:B32) -> 0 | G32: 0 | K32: 0 | L32: 0 | M32: 0 | N32: 0 | O32: 0 | Q32: 0 | U32: 0 | V32: 0 | W32: 750 | X32: 0 | Y32: 0 | Z32: 0 | AA32: 0 | AB32: 0 | AC32: 0 | AD32: 0
A33: =SUBTOTAL(3,$B$5:B33) -> 0 | G33: 0 | K33: 0 | L33: 0 | M33: 0 | N33: 0 | O33: 0 | Q33: 0 | U33: 0 | V33: 0 | W33: 750 | X33: 0 | Y33: 0 | Z33: 0 | AA33: 0 | AB33: 0 | AC33: 0 | AD33: 0 | AE33: 8393 | AG33: =AA33-AE33 -> -8393
A34: =SUBTOTAL(3,$B$5:B34) -> 0 | G34: =F34-Q34 -> 0 | K34: =IF(F34>8100,8100,F34*0.8) -> 0 | L34: =K34*18.75/100 -> 0 | M34: =F34+H34+I34+J34 -> 0 | N34: =L34 -> 0 | O34: =K34*0.11 -> 0 | Q34: =P34*F34/30 -> 0 | U34: =Q34+S34+T34+O34+R34 -> 0 | V34: =M34-O34-Q34 -> 0 | W34: 750 | X34: =IF((V34+J34)>W34,(V34+J34)-W34,0) -> 0 | Y34: =X34*12 -> 0 | Z34: =IF((Y34<=15000),(Y34*0%),IF((Y34<=30000),(Y34*2.5%)-375,IF((Y34<=45000),(Y34*10%)-2625,IF((Y34<=60000),(Y34*15%)-4875,IF((Y34<=200000),(Y34*20%)-7875,IF((Y34<=400000),(Y34*22.5%)-12875,IF((Y34<=600000),(Y34*25%)-22875,IF((Y34<=700000),(Y34*25%)-22500,IF((Y34<=800000),(Y34*25%)-20250,IF((Y34<=900000),(Y34*25%)-18000,IF((Y34<=1000000),(Y34*25%)-15000,IF((Y34>=1000000),(Y34*25%)-10000)))))))))))/12) -> 0 | AA34: =M34-Q34-S34-T34-Z34-O34-R34 -> 0 | AB34: 0 | AC34: 0 | AD34: 0
A35: =SUBTOTAL(3,$B$5:B35) -> 0 | G35: 0 | K35: 0 | L35: 0 | M35: 0 | N35: 0 | O35: 0 | Q35: 0 | U35: 0 | V35: 0 | W35: 750 | X35: 0 | Y35: 0 | Z35: 0 | AA35: 0 | AB35: 0 | AC35: 0 | AD35: 0
A36: =SUBTOTAL(3,$B$5:B36) -> 0 | G36: 0 | K36: 0 | L36: 0 | M36: 0 | N36: 0 | O36: 0 | Q36: 0 | U36: 0 | V36: 0 | W36: 750 | X36: 0 | Y36: 0 | Z36: 0 | AA36: 0 | AB36: 0 | AC36: 0 | AD36: 0
A37: =SUBTOTAL(3,$B$5:B37) -> 0 | G37: 0 | K37: 0 | L37: 0 | M37: 0 | N37: 0 | O37: 0 | Q37: 0 | U37: 0 | V37: 0 | W37: 750 | X37: 0 | Y37: 0 | Z37: 0 | AA37: 0 | AB37: 0 | AC37: 0 | AD37: 0
A38: =SUBTOTAL(3,$B$5:B38) -> 0 | G38: 0 | K38: 0 | L38: 0 | M38: 0 | N38: 0 | O38: 0 | Q38: 0 | U38: 0 | V38: 0 | W38: 750 | X38: 0 | Y38: 0 | Z38: 0 | AA38: 0 | AB38: 0 | AC38: 0 | AD38: 0
A39: =SUBTOTAL(3,$B$5:B39) -> 0 | G39: 0 | K39: 0 | L39: 0 | M39: 0 | N39: 0 | O39: 0 | Q39: 0 | U39: 0 | V39: 0 | W39: 750 | X39: 0 | Y39: 0 | Z39: 0 | AA39: 0 | AB39: 0 | AC39: 0 | AD39: 0
A40: =SUBTOTAL(3,$B$5:B40) -> 0 | G40: 0 | K40: 0 | L40: 0 | M40: 0 | N40: 0 | O40: 0 | Q40: 0 | U40: 0 | V40: 0 | W40: 750 | X40: 0 | Y40: 0 | Z40: 0 | AA40: 0 | AB40: 0 | AC40: 0 | AD40: 0
A41: =SUBTOTAL(3,$B$5:B41) -> 0 | G41: =F41-Q41 -> 0 | K41: =IF(F41>8100,8100,F41*0.8) -> 0 | L41: =K41*18.75/100 -> 0 | M41: =F41+H41+I41+J41 -> 0 | N41: =L41 -> 0 | O41: =K41*0.11 -> 0 | Q41: =P41*F41/30 -> 0 | U41: =Q41+S41+T41+O41+R41 -> 0 | V41: =M41-O41-Q41 -> 0 | W41: 750 | X41: =IF((V41+J41)>W41,(V41+J41)-W41,0) -> 0 | Y41: =X41*12 -> 0 | Z41: =IF((Y41<=15000),(Y41*0%),IF((Y41<=30000),(Y41*2.5%)-375,IF((Y41<=45000),(Y41*10%)-2625,IF((Y41<=60000),(Y41*15%)-4875,IF((Y41<=200000),(Y41*20%)-7875,IF((Y41<=400000),(Y41*22.5%)-12875,IF((Y41<=600000),(Y41*25%)-22875,IF((Y41<=700000),(Y41*25%)-22500,IF((Y41<=800000),(Y41*25%)-20250,IF((Y41<=900000),(Y41*25%)-18000,IF((Y41<=1000000),(Y41*25%)-15000,IF((Y41>=1000000),(Y41*25%)-10000)))))))))))/12) -> 0 | AA41: =M41-Q41-S41-T41-Z41-O41-R41 -> 0 | AB41: 0 | AC41: 0 | AD41: 0
A42: =SUBTOTAL(3,$B$5:B42) -> 0 | G42: 0 | K42: 0 | L42: 0 | M42: 0 | N42: 0 | O42: 0 | Q42: 0 | U42: 0 | V42: 0 | W42: 750 | X42: 0 | Y42: 0 | Z42: 0 | AA42: 0 | AB42: 0 | AC42: 0 | AD42: 0
A43: =SUBTOTAL(3,$B$5:B43) -> 0 | G43: =F43-Q43 -> 0 | K43: =IF(F43>8100,8100,F43*0.8) -> 0 | L43: =K43*18.75/100 -> 0 | M43: =F43+H43+I43+J43 -> 0 | N43: =L43 -> 0 | O43: =K43*0.11 -> 0 | Q43: =P43*F43/30 -> 0 | U43: =Q43+S43+T43+O43+R43 -> 0 | V43: =M43-O43-Q43 -> 0 | W43: 750 | X43: =IF((V43+J43)>W43,(V43+J43)-W43,0) -> 0 | Y43: =X43*12 -> 0 | Z43: =IF((Y43<=15000),(Y43*0%),IF((Y43<=30000),(Y43*2.5%)-375,IF((Y43<=45000),(Y43*10%)-2625,IF((Y43<=60000),(Y43*15%)-4875,IF((Y43<=200000),(Y43*20%)-7875,IF((Y43<=400000),(Y43*22.5%)-12875,IF((Y43<=600000),(Y43*25%)-22875,IF((Y43<=700000),(Y43*25%)-22500,IF((Y43<=800000),(Y43*25%)-20250,IF((Y43<=900000),(Y43*25%)-18000,IF((Y43<=1000000),(Y43*25%)-15000,IF((Y43>=1000000),(Y43*25%)-10000)))))))))))/12) -> 0 | AA43: =M43-Q43-S43-T43-Z43-O43-R43 -> 0 | AB43: 0 | AC43: 0 | AD43: 0
A44: =SUBTOTAL(3,$B$5:B44) -> 0 | G44: =F44-Q44 -> 0 | K44: =IF(F44>8100,8100,F44*0.8) -> 0 | L44: =K44*18.75/100 -> 0 | M44: =F44+H44+I44+J44 -> 0 | N44: =L44 -> 0 | O44: =K44*0.11 -> 0 | Q44: =P44*F44/30 -> 0 | U44: =Q44+S44+T44+O44+R44 -> 0 | V44: =M44-O44-Q44 -> 0 | W44: 750 | X44: =IF((V44+J44)>W44,(V44+J44)-W44,0) -> 0 | Y44: =X44*12 -> 0 | Z44: =IF((Y44<=15000),(Y44*0%),IF((Y44<=30000),(Y44*2.5%)-375,IF((Y44<=45000),(Y44*10%)-2625,IF((Y44<=60000),(Y44*15%)-4875,IF((Y44<=200000),(Y44*20%)-7875,IF((Y44<=400000),(Y44*22.5%)-12875,IF((Y44<=600000),(Y44*25%)-22875,IF((Y44<=700000),(Y44*25%)-22500,IF((Y44<=800000),(Y44*25%)-20250,IF((Y44<=900000),(Y44*25%)-18000,IF((Y44<=1000000),(Y44*25%)-15000,IF((Y44>=1000000),(Y44*25%)-10000)))))))))))/12) -> 0 | AA44: =M44-Q44-S44-T44-Z44-O44-R44 -> 0 | AB44: 0 | AC44: 0 | AD44: 0
A45: =SUBTOTAL(3,$B$5:B45) -> 0 | G45: =F45-Q45 -> 0 | K45: =IF(F45>8100,8100,F45*0.8) -> 0 | L45: =K45*18.75/100 -> 0 | M45: =F45+H45+I45+J45 -> 0 | N45: =L45 -> 0 | O45: =K45*0.11 -> 0 | Q45: =P45*F45/30 -> 0 | U45: =Q45+S45+T45+O45+R45 -> 0 | V45: =M45-O45-Q45 -> 0 | W45: 750 | X45: =IF((V45+J45)>W45,(V45+J45)-W45,0) -> 0 | Y45: =X45*12 -> 0 | Z45: =IF((Y45<=15000),(Y45*0%),IF((Y45<=30000),(Y45*2.5%)-375,IF((Y45<=45000),(Y45*10%)-2625,IF((Y45<=60000),(Y45*15%)-4875,IF((Y45<=200000),(Y45*20%)-7875,IF((Y45<=400000),(Y45*22.5%)-12875,IF((Y45<=600000),(Y45*25%)-22875,IF((Y45<=700000),(Y45*25%)-22500,IF((Y45<=800000),(Y45*25%)-20250,IF((Y45<=900000),(Y45*25%)-18000,IF((Y45<=1000000),(Y45*25%)-15000,IF((Y45>=1000000),(Y45*25%)-10000)))))))))))/12) -> 0 | AA45: =M45-Q45-S45-T45-Z45-O45-R45 -> 0 | AB45: 0 | AC45: 0 | AD45: 0
A46: =SUBTOTAL(3,$B$5:B46) -> 0 | G46: =F46-Q46 -> 0 | K46: =IF(F46>8100,8100,F46*0.8) -> 0 | L46: =K46*18.75/100 -> 0 | M46: =F46+H46+I46+J46 -> 0 | N46: =L46 -> 0 | O46: =K46*0.11 -> 0 | Q46: =P46*F46/30 -> 0 | U46: =Q46+S46+T46+O46+R46 -> 0 | V46: =M46-O46-Q46 -> 0 | W46: 750 | X46: =IF((V46+J46)>W46,(V46+J46)-W46,0) -> 0 | Y46: =X46*12 -> 0 | Z46: =IF((Y46<=15000),(Y46*0%),IF((Y46<=30000),(Y46*2.5%)-375,IF((Y46<=45000),(Y46*10%)-2625,IF((Y46<=60000),(Y46*15%)-4875,IF((Y46<=200000),(Y46*20%)-7875,IF((Y46<=400000),(Y46*22.5%)-12875,IF((Y46<=600000),(Y46*25%)-22875,IF((Y46<=700000),(Y46*25%)-22500,IF((Y46<=800000),(Y46*25%)-20250,IF((Y46<=900000),(Y46*25%)-18000,IF((Y46<=1000000),(Y46*25%)-15000,IF((Y46>=1000000),(Y46*25%)-10000)))))))))))/12) -> 0 | AA46: =M46-Q46-S46-T46-Z46-O46-R46 -> 0 | AB46: 0 | AC46: 0 | AD46: 0
A47: =SUBTOTAL(3,$B$5:B47) -> 0 | G47: 0 | K47: 0 | L47: 0 | M47: 0 | N47: 0 | O47: 0 | Q47: 0 | U47: 0 | V47: 0 | W47: 750 | X47: 0 | Y47: 0 | Z47: 0 | AA47: 0 | AB47: 0 | AC47: 0 | AD47: 0
A48: =SUBTOTAL(3,$B$5:B48) -> 0 | G48: 0 | K48: 0 | L48: 0 | M48: 0 | N48: 0 | O48: 0 | Q48: 0 | U48: 0 | V48: 0 | W48: 750 | X48: 0 | Y48: 0 | Z48: 0 | AA48: 0 | AB48: 0 | AC48: 0 | AD48: 0
A49: =SUBTOTAL(3,$B$5:B49) -> 0 | G49: 0 | K49: 0 | L49: 0 | M49: 0 | N49: 0 | O49: 0 | Q49: 0 | U49: 0 | V49: 0 | W49: 750 | X49: 0 | Y49: 0 | Z49: 0 | AA49: 0 | AB49: 0 | AC49: 0 | AD49: 0
A50: =SUBTOTAL(3,$B$5:B50) -> 0 | G50: =F50-Q50 -> 0 | K50: =IF(F50>8100,8100,F50*0.8) -> 0 | L50: =K50*18.75/100 -> 0 | M50: =F50+H50+I50+J50 -> 0 | N50: =L50 -> 0 | O50: =K50*0.11 -> 0 | Q50: =P50*F50/30 -> 0 | U50: =Q50+S50+T50+O50+R50 -> 0 | V50: =M50-O50-Q50 -> 0 | W50: 750 | X50: =IF((V50+J50)>W50,(V50+J50)-W50,0) -> 0 | Y50: =X50*12 -> 0 | Z50: =IF((Y50<=15000),(Y50*0%),IF((Y50<=30000),(Y50*2.5%)-375,IF((Y50<=45000),(Y50*10%)-2625,IF((Y50<=60000),(Y50*15%)-4875,IF((Y50<=200000),(Y50*20%)-7875,IF((Y50<=400000),(Y50*22.5%)-12875,IF((Y50<=600000),(Y50*25%)-22875,IF((Y50<=700000),(Y50*25%)-22500,IF((Y50<=800000),(Y50*25%)-20250,IF((Y50<=900000),(Y50*25%)-18000,IF((Y50<=1000000),(Y50*25%)-15000,IF((Y50>=1000000),(Y50*25%)-10000)))))))))))/12) -> 0 | AA50: =M50-Q50-S50-T50-Z50-O50-R50 -> 0 | AB50: 0 | AC50: 0 | AD50: 0
A51: =SUBTOTAL(3,$B$5:B51) -> 0 | G51: 0 | K51: 0 | L51: 0 | M51: 0 | N51: 0 | O51: 0 | Q51: 0 | U51: 0 | V51: 0 | W51: 750 | X51: 0 | Y51: 0 | Z51: 0 | AA51: 0 | AB51: 0 | AC51: 0 | AD51: 0
A52: =SUBTOTAL(3,$B$5:B52) -> 0 | G52: =F52-Q52 -> 0 | K52: =IF(F52>8100,8100,F52*0.8) -> 0 | L52: =K52*18.75/100 -> 0 | M52: =F52+H52+I52+J52 -> 0 | N52: =L52 -> 0 | O52: =K52*0.11 -> 0 | Q52: =P52*F52/30 -> 0 | U52: =Q52+S52+T52+O52+R52 -> 0 | V52: 0 | W52: 750 | X52: =IF((V52+J52)>W52,(V52+J52)-W52,0) -> 0 | Y52: =X52*12 -> 0 | Z52: =IF((Y52<=15000),(Y52*0%),IF((Y52<=30000),(Y52*2.5%)-375,IF((Y52<=45000),(Y52*10%)-2625,IF((Y52<=60000),(Y52*15%)-4875,IF((Y52<=200000),(Y52*20%)-7875,IF((Y52<=400000),(Y52*22.5%)-12875,IF((Y52<=600000),(Y52*25%)-22875,IF((Y52<=700000),(Y52*25%)-22500,IF((Y52<=800000),(Y52*25%)-20250,IF((Y52<=900000),(Y52*25%)-18000,IF((Y52<=1000000),(Y52*25%)-15000,IF((Y52>=1000000),(Y52*25%)-10000)))))))))))/12) -> 0 | AA52: =M52-Q52-S52-T52-Z52-O52-R52 -> 0 | AB52: 0 | AC52: 0 | AD52: 0
A53: =SUBTOTAL(3,$B$5:B53) -> 0 | G53: =F53-Q53 -> 0 | K53: =IF(F53>8100,8100,F53*0.8) -> 0 | L53: =K53*18.75/100 -> 0 | M53: =F53+H53+I53+J53 -> 0 | N53: =L53 -> 0 | O53: =K53*0.11 -> 0 | Q53: =P53*F53/30 -> 0 | U53: =Q53+S53+T53+O53+R53 -> 0 | V53: 0 | W53: 750 | X53: =IF((V53+J53)>W53,(V53+J53)-W53,0) -> 0 | Y53: =X53*12 -> 0 | Z53: =IF((Y53<=15000),(Y53*0%),IF((Y53<=30000),(Y53*2.5%)-375,IF((Y53<=45000),(Y53*10%)-2625,IF((Y53<=60000),(Y53*15%)-4875,IF((Y53<=200000),(Y53*20%)-7875,IF((Y53<=400000),(Y53*22.5%)-12875,IF((Y53<=600000),(Y53*25%)-22875,IF((Y53<=700000),(Y53*25%)-22500,IF((Y53<=800000),(Y53*25%)-20250,IF((Y53<=900000),(Y53*25%)-18000,IF((Y53<=1000000),(Y53*25%)-15000,IF((Y53>=1000000),(Y53*25%)-10000)))))))))))/12) -> 0 | AA53: =M53-Q53-S53-T53-Z53-O53-R53 -> 0 | AB53: 0 | AC53: 0 | AD53: 0
A54: =SUBTOTAL(3,$B$5:B54) -> 0 | G54: 0 | K54: 0 | L54: 0 | M54: 0 | N54: 0 | O54: 0 | Q54: 0 | U54: 0 | V54: 0 | W54: 750 | X54: 0 | Y54: 0 | Z54: 0 | AA54: 0 | AB54: 0 | AC54: 0 | AD54: 0
A55: =SUBTOTAL(3,$B$5:B55) -> 0 | G55: 0 | K55: 0 | L55: 0 | M55: 0 | N55: 0 | O55: 0 | Q55: 0 | U55: 0 | V55: 0 | W55: 750 | X55: 0 | Y55: 0 | Z55: 0 | AA55: 0 | AB55: 0 | AC55: 0 | AD55: 0
A56: =SUBTOTAL(3,$B$5:B56) -> 0 | G56: 0 | K56: 0 | L56: 0 | M56: 0 | N56: 0 | O56: 0 | Q56: 0 | U56: 0 | V56: 0 | W56: 750 | X56: 0 | Y56: 0 | Z56: 0 | AA56: 0 | AB56: 0 | AC56: 0 | AD56: 0
A57: =SUBTOTAL(3,$B$5:B57) -> 0 | G57: 0 | K57: 0 | L57: 0 | M57: 0 | N57: 0 | O57: 0 | Q57: 0 | U57: 0 | V57: 0 | W57: 750 | X57: 0 | Y57: 0 | Z57: 0 | AA57: 0 | AB57: 0 | AC57: 0 | AD57: 0
A58: =SUBTOTAL(3,$B$5:B58) -> 0 | G58: 0 | K58: 0 | L58: 0 | M58: 0 | N58: 0 | O58: 0 | Q58: 0 | U58: 0 | V58: 0 | W58: 750 | X58: 0 | Y58: 0 | Z58: 0 | AA58: 0 | AB58: 0 | AC58: 0 | AD58: 0
A59: =SUBTOTAL(3,$B$5:B59) -> 0 | G59: 0 | K59: 0 | L59: 0 | M59: 0 | N59: 0 | O59: 0 | Q59: 0 | U59: 0 | V59: 0 | W59: 750 | X59: 0 | Y59: 0 | Z59: 0 | AA59: 0 | AB59: 0 | AC59: 0 | AD59: 0
A60: =SUBTOTAL(3,$B$5:B60) -> 0 | G60: 0 | K60: 0 | L60: 0 | M60: 0 | N60: 0 | O60: 0 | Q60: 0 | U60: 0 | V60: 0 | W60: 750 | X60: 0 | Y60: 0 | Z60: 0 | AA60: 0 | AB60: 0 | AC60: 0 | AD60: 0
A61: =SUBTOTAL(3,$B$5:B61) -> 0 | G61: 0 | K61: 0 | L61: 0 | M61: 0 | N61: 0 | O61: 0 | Q61: 0 | U61: 0 | V61: 0 | W61: 750 | X61: 0 | Y61: 0 | Z61: 0 | AA61: 0 | AB61: 0 | AC61: 0 | AD61: 0
A62: =SUBTOTAL(3,$B$5:B62) -> 0 | G62: 0 | K62: 0 | L62: 0 | M62: 0 | N62: 0 | O62: 0 | Q62: 0 | U62: 0 | V62: 0 | W62: 750 | X62: 0 | Y62: 0 | Z62: 0 | AA62: 0 | AB62: 0 | AC62: 0 | AD62: 0
A63: =SUBTOTAL(3,$B$5:B63) -> 0 | G63: 0 | K63: 0 | L63: 0 | M63: 0 | N63: 0 | O63: 0 | Q63: 0 | U63: 0 | V63: 0 | W63: 750 | X63: 0 | Y63: 0 | Z63: 0 | AA63: 0 | AB63: 0 | AC63: 0 | AD63: 0
A64: =SUBTOTAL(3,$B$5:B64) -> 0 | G64: 0 | K64: 0 | L64: 0 | M64: 0 | N64: 0 | O64: 0 | Q64: 0 | U64: 0 | V64: 0 | W64: 750 | X64: 0 | Y64: 0 | Z64: 0 | AA64: 0 | AB64: 0 | AC64: 0 | AD64: 0
A65: =SUBTOTAL(3,$B$5:B65) -> 0 | G65: 0 | K65: 0 | L65: 0 | M65: 0 | N65: 0 | O65: 0 | Q65: 0 | U65: 0 | V65: 0 | W65: 750 | X65: 0 | Y65: 0 | Z65: 0 | AA65: 0 | AB65: 0 | AC65: 0 | AD65: 0
A66: =SUBTOTAL(3,$B$5:B66) -> 0 | G66: 0 | K66: 0 | L66: 0 | M66: 0 | N66: 0 | O66: 0 | Q66: 0 | U66: 0 | V66: 0 | W66: 750 | X66: 0 | Y66: 0 | Z66: 0 | AA66: 0 | AB66: 0 | AC66: 0 | AD66: 0
A67: =SUBTOTAL(3,$B$5:B67) -> 0 | G67: 0 | K67: 0 | L67: 0 | M67: 0 | N67: 0 | O67: 0 | Q67: 0 | U67: 0 | V67: 0 | W67: 750 | X67: 0 | Y67: 0 | Z67: 0 | AA67: 0 | AB67: 0 | AC67: 0 | AD67: 0
A68: =SUBTOTAL(3,$B$5:B68) -> 0 | G68: =F68-Q68 -> 0 | K68: =IF(F68>8100,8100,F68*0.8) -> 0 | L68: =K68*18.75/100 -> 0 | M68: =F68+H68+I68+J68 -> 0 | N68: =L68 -> 0 | O68: =K68*0.11 -> 0 | Q68: =P68*F68/30 -> 0 | U68: =Q68+S68+T68+O68+R68 -> 0 | V68: =M68-O68-Q68 -> 0 | W68: 750 | X68: =IF((V68+J68)>W68,(V68+J68)-W68,0) -> 0 | Y68: =X68*12 -> 0 | Z68: =IF((Y68<=15000),(Y68*0%),IF((Y68<=30000),(Y68*2.5%)-375,IF((Y68<=45000),(Y68*10%)-2625,IF((Y68<=60000),(Y68*15%)-4875,IF((Y68<=200000),(Y68*20%)-7875,IF((Y68<=400000),(Y68*22.5%)-12875,IF((Y68<=600000),(Y68*25%)-22875,IF((Y68<=700000),(Y68*25%)-22500,IF((Y68<=800000),(Y68*25%)-20250,IF((Y68<=900000),(Y68*25%)-18000,IF((Y68<=1000000),(Y68*25%)-15000,IF((Y68>=1000000),(Y68*25%)-10000)))))))))))/12) -> 0 | AA68: =M68-Q68-S68-T68-Z68-O68-R68 -> 0 | AB68: 0 | AC68: 0 | AD68: 0
A69: =SUBTOTAL(3,$B$5:B69) -> 0 | G69: 0 | K69: 0 | L69: 0 | M69: 0 | N69: 0 | O69: 0 | Q69: 0 | U69: 0 | V69: 0 | W69: 750 | X69: 0 | Y69: 0 | Z69: 0 | AA69: 0 | AB69: 0 | AC69: 0 | AD69: 0
A70: =SUBTOTAL(3,$B$5:B70) -> 0 | G70: 0 | K70: 0 | L70: 0 | M70: 0 | N70: 0 | O70: 0 | Q70: 0 | U70: 0 | V70: 0 | W70: 750 | X70: 0 | Y70: 0 | Z70: 0 | AA70: 0 | AB70: =AA70*0.01 -> 0 | AC70: =IF(M70<=2000,0,M70*0.0005) -> 0 | AD70: =AA70-AB70-AC70 -> 0
A71: =SUBTOTAL(3,$B$5:B71) -> 0 | G71: =F71-Q71 -> 0 | L71: =K71*18.75/100 -> 0 | M71: =F71+H71+I71+J71 -> 0 | N71: =L71 -> 0 | O71: =K71*0.11 -> 0 | Q71: =P71*F71/30 -> 0 | U71: =Q71+S71+T71+O71+R71 -> 0 | V71: 0 | W71: 750 | X71: =IF((V71+J71)>W71,(V71+J71)-W71,0) -> 0 | Y71: =X71*12 -> 0 | Z71: =IF((Y71<=15000),(Y71*0%),IF((Y71<=30000),(Y71*2.5%)-375,IF((Y71<=45000),(Y71*10%)-2625,IF((Y71<=60000),(Y71*15%)-4875,IF((Y71<=200000),(Y71*20%)-7875,IF((Y71<=400000),(Y71*22.5%)-12875,IF((Y71<=600000),(Y71*25%)-22875,IF((Y71<=700000),(Y71*25%)-22500,IF((Y71<=800000),(Y71*25%)-20250,IF((Y71<=900000),(Y71*25%)-18000,IF((Y71<=1000000),(Y71*25%)-15000,IF((Y71>=1000000),(Y71*25%)-10000)))))))))))/12) -> 0 | AA71: =M71-Q71-S71-T71-Z71-O71-R71 -> 0 | AB71: 0 | AC71: 0 | AD71: 0
A72: =SUBTOTAL(3,$B$5:B72) -> 0 | G72: 0 | K72: =IF(F72>8100,8100,F72*0.8) -> 0 | L72: 0 | M72: 0 | N72: 0 | O72: 0 | Q72: 0 | U72: 0 | V72: =M72-O72-Q72 -> 0 | W72: 750 | X72: 0 | Y72: 0 | Z72: 0 | AA72: 0 | AB72: 0 | AC72: 0 | AD72: 0
A73: =SUBTOTAL(3,$B$5:B73) -> 0 | G73: 0 | K73: 0 | L73: 0 | M73: 0 | N73: 0 | O73: 0 | Q73: 0 | U73: 0 | V73: 0 | W73: 750 | X73: 0 | Y73: 0 | Z73: 0 | AA73: 0 | AB73: 0 | AC73: 0 | AD73: 0
A74: =SUBTOTAL(3,$B$5:B74) -> 0 | G74: 0 | K74: 0 | L74: 0 | M74: 0 | N74: 0 | O74: 0 | Q74: 0 | U74: 0 | V74: 0 | W74: 750 | X74: 0 | Y74: 0 | Z74: 0 | AA74: 0 | AB74: 0 | AC74: 0 | AD74: 0
A75: =SUBTOTAL(3,$B$5:B75) -> 0 | G75: 0 | K75: 0 | L75: 0 | M75: 0 | N75: 0 | O75: 0 | Q75: 0 | U75: 0 | V75: 0 | W75: 750 | X75: 0 | Y75: 0 | Z75: 0 | AA75: 0 | AB75: 0 | AC75: 0 | AD75: 0
A76: =SUBTOTAL(3,$B$5:B76) -> 0 | G76: 0 | K76: 0 | L76: 0 | M76: 0 | N76: 0 | O76: 0 | Q76: 0 | U76: 0 | V76: 0 | W76: 750 | X76: 0 | Y76: 0 | Z76: 0 | AA76: 0 | AB76: 0 | AC76: 0 | AD76: 0
A77: =SUBTOTAL(3,$B$5:B77) -> 0 | G77: 0 | K77: 0 | L77: 0 | M77: 0 | N77: 0 | O77: 0 | Q77: 0 | U77: 0 | V77: 0 | W77: 750 | X77: 0 | Y77: 0 | Z77: 0 | AA77: 0 | AB77: 0 | AC77: 0 | AD77: 0
A78: =SUBTOTAL(3,$B$5:B78) -> 0 | G78: 0 | L78: 0 | M78: 0 | N78: 0 | O78: 0 | Q78: 0 | U78: 0 | V78: 0 | W78: 750 | X78: 0 | Y78: 0 | Z78: 0 | AA78: 0 | AB78: 0 | AC78: 0 | AD78: 0
A79: =SUBTOTAL(3,$B$5:B79) -> 0 | G79: 0 | K79: 0 | L79: 0 | M79: 0 | N79: 0 | O79: 0 | Q79: 0 | U79: 0 | V79: 0 | W79: 750 | X79: 0 | Y79: 0 | Z79: 0 | AA79: 0 | AB79: 0 | AC79: 0 | AD79: 0
A80: =SUBTOTAL(3,$B$5:B80) -> 0 | G80: 0 | K80: 0 | L80: 0 | M80: 0 | N80: 0 | O80: 0 | Q80: 0 | U80: 0 | V80: 0 | W80: 750 | X80: 0 | Y80: 0 | Z80: 0 | AA80: 0 | AB80: 0 | AC80: 0 | AD80: 0
A81: =SUBTOTAL(3,$B$5:B81) -> 0 | G81: 0 | K81: 0 | L81: 0 | M81: 0 | N81: 0 | O81: 0 | Q81: 0 | U81: 0 | V81: 0 | W81: 750 | X81: 0 | Y81: 0 | Z81: 0 | AA81: 0 | AB81: 0 | AC81: 0 | AD81: 0
A82: =SUBTOTAL(3,$B$5:B82) -> 0 | G82: 0 | K82: 0 | L82: 0 | M82: 0 | N82: 0 | O82: 0 | Q82: 0 | U82: 0 | V82: 0 | W82: 750 | X82: 0 | Y82: 0 | Z82: 0 | AA82: 0 | AB82: 0 | AC82: 0 | AD82: 0
A83: =SUBTOTAL(3,$B$5:B83) -> 0 | G83: =F83-Q83 -> 0 | K83: =IF(F83>8100,8100,F83*0.8) -> 0 | L83: =K83*18.75/100 -> 0 | M83: =F83+H83+I83+J83 -> 0 | N83: =L83 -> 0 | O83: =K83*0.11 -> 0 | Q83: =P83*F83/30 -> 0 | U83: =Q83+S83+T83+O83+R83 -> 0 | V83: =M83-O83-Q83 -> 0 | W83: 750 | X83: =IF((V83+J83)>W83,(V83+J83)-W83,0) -> 0 | Y83: =X83*12 -> 0 | Z83: =IF((Y83<=15000),(Y83*0%),IF((Y83<=30000),(Y83*2.5%)-375,IF((Y83<=45000),(Y83*10%)-2625,IF((Y83<=60000),(Y83*15%)-4875,IF((Y83<=200000),(Y83*20%)-7875,IF((Y83<=400000),(Y83*22.5%)-12875,IF((Y83<=600000),(Y83*25%)-22875,IF((Y83<=700000),(Y83*25%)-22500,IF((Y83<=800000),(Y83*25%)-20250,IF((Y83<=900000),(Y83*25%)-18000,IF((Y83<=1000000),(Y83*25%)-15000,IF((Y83>=1000000),(Y83*25%)-10000)))))))))))/12) -> 0 | AA83: =M83-Q83-S83-T83-Z83-O83-R83 -> 0 | AB83: 0 | AC83: 0 | AD83: 0
A84: =SUBTOTAL(3,$B$5:B84) -> 0 | G84: 0 | L84: 0 | M84: 0 | N84: 0 | O84: 0 | Q84: 0 | U84: 0 | V84: 0 | W84: 750 | X84: 0 | Y84: 0 | Z84: 0 | AA84: 0 | AB84: 0 | AC84: 0 | AD84: 0
A85: =SUBTOTAL(3,$B$5:B85) -> 0 | G85: 0 | K85: 0 | L85: 0 | M85: 0 | N85: 0 | O85: 0 | Q85: 0 | U85: 0 | V85: 0 | W85: 750 | X85: 0 | Y85: 0 | Z85: 0 | AA85: 0 | AB85: 0 | AC85: 0 | AD85: 0
A86: =SUBTOTAL(3,$B$5:B86) -> 0 | G86: 0 | K86: 0 | L86: 0 | M86: 0 | N86: 0 | O86: 0 | Q86: 0 | U86: 0 | V86: 0 | W86: 750 | X86: 0 | Y86: 0 | Z86: 0 | AA86: 0 | AB86: 0 | AC86: 0 | AD86: 0
A87: =SUBTOTAL(3,$B$5:B87) -> 0 | G87: 0 | K87: 0 | L87: 0 | M87: 0 | N87: 0 | O87: 0 | Q87: 0 | U87: 0 | V87: 0 | W87: 750 | X87: 0 | Y87: 0 | Z87: 0 | AA87: 0 | AB87: 0 | AC87: 0 | AD87: 0
A88: =SUBTOTAL(3,$B$5:B88) -> 0 | G88: 0 | K88: 0 | L88: 0 | M88: 0 | N88: 0 | O88: 0 | Q88: 0 | U88: 0 | V88: 0 | W88: 750 | X88: 0 | Y88: 0 | Z88: 0 | AA88: 0 | AB88: 0 | AC88: 0 | AD88: 0
A89: =SUBTOTAL(3,$B$5:B89) -> 0 | G89: 0 | K89: 0 | L89: 0 | M89: 0 | N89: 0 | O89: 0 | Q89: 0 | U89: 0 | V89: 0 | W89: 750 | X89: 0 | Y89: 0 | Z89: 0 | AA89: 0 | AB89: 0 | AC89: 0 | AD89: 0
A90: =SUBTOTAL(3,$B$5:B90) -> 0 | G90: 0 | K90: 0 | L90: 0 | M90: 0 | N90: 0 | O90: 0 | Q90: 0 | U90: 0 | V90: 0 | W90: 750 | X90: 0 | Y90: 0 | Z90: 0 | AA90: 0 | AB90: 0 | AC90: 0 | AD90: 0
A91: =SUBTOTAL(3,$B$5:B91) -> 0 | G91: 0 | K91: 0 | L91: 0 | M91: 0 | N91: 0 | O91: 0 | Q91: 0 | U91: 0 | V91: 0 | W91: 750 | X91: 0 | Y91: 0 | Z91: 0 | AA91: 0 | AB91: 0 | AC91: 0 | AD91: 0
A92: =SUBTOTAL(3,$B$5:B92) -> 0 | G92: 0 | K92: 0 | L92: 0 | M92: 0 | N92: 0 | O92: 0 | Q92: 0 | U92: 0 | V92: 0 | W92: 750 | X92: 0 | Y92: 0 | Z92: 0 | AA92: 0 | AB92: 0 | AC92: 0 | AD92: 0
A93: =SUBTOTAL(3,$B$5:B93) -> 0 | G93: 0 | K93: 0 | L93: 0 | M93: 0 | N93: 0 | O93: 0 | Q93: 0 | U93: 0 | V93: 0 | W93: 750 | X93: 0 | Y93: 0 | Z93: 0 | AA93: 0 | AB93: 0 | AC93: 0 | AD93: 0
A94: =SUBTOTAL(3,$B$5:B94) -> 0 | G94: 0 | K94: 0 | L94: 0 | M94: 0 | N94: 0 | O94: 0 | Q94: 0 | U94: 0 | V94: 0 | W94: 750 | X94: 0 | Y94: 0 | Z94: 0 | AA94: 0 | AB94: 0 | AC94: 0 | AD94: 0
A95: =SUBTOTAL(3,$B$5:B95) -> 0 | G95: 0 | K95: 0 | L95: 0 | M95: 0 | N95: 0 | O95: 0 | Q95: 0 | U95: 0 | V95: 0 | W95: 750 | X95: 0 | Y95: 0 | Z95: 0 | AA95: 0 | AB95: 0 | AC95: 0 | AD95: 0
A96: =SUBTOTAL(3,$B$5:B96) -> 0 | G96: 0 | K96: 0 | L96: 0 | M96: 0 | N96: 0 | O96: 0 | Q96: 0 | U96: 0 | V96: 0 | W96: 750 | X96: 0 | Y96: 0 | Z96: 0 | AA96: 0 | AB96: 0 | AC96: 0 | AD96: 0
A97: =SUBTOTAL(3,$B$5:B97) -> 0 | G97: 0 | L97: 0 | M97: 0 | N97: 0 | O97: 0 | Q97: 0 | U97: 0 | V97: 0 | W97: 750 | X97: 0 | Y97: 0 | Z97: 0 | AA97: 0 | AB97: 0 | AC97: 0 | AD97: 0
A98: =SUBTOTAL(3,$B$5:B98) -> 0 | G98: 0 | L98: 0 | M98: 0 | N98: 0 | O98: 0 | Q98: 0 | U98: 0 | V98: 0 | W98: 750 | X98: 0 | Y98: 0 | Z98: 0 | AA98: 0 | AB98: 0 | AC98: 0 | AD98: 0
A99: =SUBTOTAL(3,$B$5:B99) -> 0 | G99: 0 | L99: 0 | M99: 0 | N99: 0 | O99: 0 | Q99: 0 | U99: 0 | V99: 0 | W99: 750 | X99: 0 | Y99: 0 | Z99: 0 | AA99: 0 | AB99: 0 | AC99: 0 | AD99: 0
A100: =SUBTOTAL(3,$B$5:B100) -> 0 | G100: 0 | K100: 0 | L100: 0 | M100: 0 | N100: 0 | O100: 0 | Q100: 0 | U100: 0 | V100: 0 | W100: 750 | X100: 0 | Y100: 0 | Z100: 0 | AA100: 0 | AB100: 0 | AC100: 0 | AD100: 0
A101: =SUBTOTAL(3,$B$5:B101) -> 0 | F101: 0 | G101: 0 | K101: 0 | L101: 0 | M101: 0 | N101: 0 | O101: 0 | Q101: 0 | U101: 0 | V101: 0 | W101: 750 | X101: 0 | Y101: 0 | Z101: 0 | AA101: 0 | AB101: 0 | AC101: 0 | AD101: 0
A102: =SUBTOTAL(3,$B$5:B102) -> 0 | F102: 0 | G102: 0 | K102: 0 | L102: 0 | M102: 0 | N102: 0 | O102: 0 | Q102: 0 | U102: 0 | V102: 0 | W102: 750 | X102: 0 | Y102: 0 | Z102: 0 | AA102: 0 | AB102: 0 | AC102: 0 | AD102: 0
A103: =SUBTOTAL(3,$B$5:B103) -> 0 | F103: 0 | G103: 0 | K103: 0 | L103: 0 | M103: 0 | N103: 0 | O103: 0 | Q103: 0 | U103: 0 | V103: 0 | W103: 750 | X103: 0 | Y103: 0 | Z103: 0 | AA103: 0 | AB103: 0 | AC103: 0 | AD103: 0
A104: =SUBTOTAL(3,$B$5:B104) -> 0 | F104: 0 | G104: 0 | K104: 0 | L104: 0 | M104: 0 | N104: 0 | O104: 0 | Q104: 0 | U104: 0 | V104: 0 | W104: 750 | X104: 0 | Y104: 0 | Z104: 0 | AA104: 0 | AB104: 0 | AC104: 0 | AD104: 0
A105: =SUBTOTAL(3,$B$5:B105) -> 0 | F105: 0 | G105: 0 | K105: 0 | L105: 0 | M105: 0 | N105: 0 | O105: 0 | Q105: 0 | U105: 0 | V105: 0 | W105: 750 | X105: 0 | Y105: 0 | Z105: 0 | AA105: 0 | AB105: 0 | AC105: 0 | AD105: 0
A106: =SUBTOTAL(3,$B$5:B106) -> 0 | F106: 0 | G106: 0 | K106: 0 | L106: 0 | M106: 0 | N106: 0 | O106: 0 | Q106: 0 | U106: 0 | V106: 0 | W106: 750 | X106: 0 | Y106: 0 | Z106: 0 | AA106: 0 | AB106: 0 | AC106: 0 | AD106: 0
A107: =SUBTOTAL(3,$B$5:B107) -> 0 | F107: 0 | G107: 0 | K107: 0 | L107: 0 | M107: 0 | N107: 0 | O107: 0 | Q107: 0 | U107: 0 | V107: 0 | W107: 750 | X107: 0 | Y107: 0 | Z107: 0 | AA107: 0 | AB107: 0 | AC107: 0 | AD107: 0
A108: =SUBTOTAL(3,$B$5:B108) -> 0 | F108: 0 | G108: 0 | K108: 0 | L108: 0 | M108: 0 | N108: 0 | O108: 0 | Q108: 0 | U108: 0 | V108: 0 | W108: 750 | X108: 0 | Y108: 0 | Z108: 0 | AA108: 0 | AB108: 0 | AC108: 0 | AD108: 0
A109: =SUBTOTAL(3,$B$5:B109) -> 0 | F109: 0 | G109: 0 | K109: 0 | L109: 0 | M109: 0 | N109: 0 | O109: 0 | Q109: 0 | U109: 0 | V109: 0 | W109: 750 | X109: 0 | Y109: 0 | Z109: 0 | AA109: 0 | AB109: 0 | AC109: 0 | AD109: 0
A110: =SUBTOTAL(3,$B$5:B110) -> 0 | F110: 0 | G110: 0 | K110: 0 | L110: 0 | M110: 0 | N110: 0 | O110: 0 | Q110: 0 | U110: 0 | V110: 0 | W110: 750 | X110: 0 | Y110: 0 | Z110: 0 | AA110: 0 | AB110: 0 | AC110: 0 | AD110: 0
A111: =SUBTOTAL(3,$B$5:B111) -> 0 | F111: 0 | G111: 0 | K111: 0 | L111: 0 | M111: 0 | N111: 0 | O111: 0 | Q111: 0 | U111: 0 | V111: 0 | W111: 750 | X111: 0 | Y111: 0 | Z111: 0 | AA111: 0 | AB111: 0 | AC111: 0 | AD111: 0
A112: =SUBTOTAL(3,$B$5:B112) -> 0 | G112: 0 | K112: 0 | L112: 0 | M112: 0 | N112: 0 | O112: 0 | Q112: 0 | U112: 0 | V112: 0 | W112: 750 | X112: 0 | Y112: 0 | Z112: 0 | AA112: 0 | AB112: 0 | AC112: 0 | AD112: 0
A113: =SUBTOTAL(3,$B$5:B113) -> 0 | F113: 0 | G113: 0 | K113: 0 | L113: 0 | M113: 0 | N113: 0 | O113: 0 | Q113: 0 | U113: 0 | V113: 0 | W113: 750 | X113: 0 | Y113: 0 | Z113: 0 | AA113: 0 | AB113: 0 | AC113: 0 | AD113: 0
A114: =SUBTOTAL(3,$B$5:B114) -> 0 | F114: 0 | G114: 0 | K114: 0 | L114: 0 | M114: 0 | N114: 0 | O114: 0 | Q114: 0 | U114: 0 | V114: 0 | W114: 750 | X114: 0 | Y114: 0 | Z114: 0 | AA114: 0 | AB114: 0 | AC114: 0 | AD114: 0
A115: =SUBTOTAL(3,$B$5:B115) -> 0 | F115: 0 | G115: 0 | K115: 0 | L115: 0 | M115: 0 | N115: 0 | O115: 0 | Q115: 0 | U115: 0 | V115: 0 | W115: 750 | X115: 0 | Y115: 0 | Z115: 0 | AA115: 0 | AB115: 0 | AC115: 0 | AD115: 0
A116: =SUBTOTAL(3,$B$5:B116) -> 0 | F116: 0 | G116: 0 | K116: 0 | L116: 0 | M116: 0 | N116: 0 | O116: 0 | Q116: 0 | U116: 0 | V116: 0 | W116: 750 | X116: 0 | Y116: 0 | Z116: 0 | AA116: 0 | AB116: 0 | AC116: 0 | AD116: 0
A117: =SUBTOTAL(3,$B$5:B117) -> 0 | F117: 0 | G117: 0 | K117: 0 | L117: 0 | M117: 0 | N117: 0 | O117: 0 | Q117: 0 | U117: 0 | V117: 0 | W117: 750 | X117: 0 | Y117: 0 | Z117: 0 | AA117: 0 | AB117: 0 | AC117: 0 | AD117: 0
A118: =SUBTOTAL(3,$B$5:B118) -> 0 | F118: 0 | G118: 0 | K118: 0 | L118: 0 | M118: 0 | N118: 0 | O118: 0 | Q118: 0 | U118: 0 | V118: 0 | W118: 750 | X118: 0 | Y118: 0 | Z118: 0 | AA118: 0 | AB118: 0 | AC118: 0 | AD118: 0
A119: =SUBTOTAL(3,$B$5:B119) -> 0 | F119: 0 | G119: 0 | K119: 0 | L119: 0 | M119: 0 | N119: 0 | O119: 0 | Q119: 0 | U119: 0 | V119: 0 | W119: 750 | X119: 0 | Y119: 0 | Z119: 0 | AA119: 0 | AB119: 0 | AC119: 0 | AD119: 0
A120: =SUBTOTAL(3,$B$5:B120) -> 0 | F120: 0 | G120: 0 | K120: 0 | L120: 0 | M120: 0 | N120: 0 | O120: 0 | Q120: 0 | U120: 0 | V120: 0 | W120: 750 | X120: 0 | Y120: 0 | Z120: 0 | AA120: 0 | AB120: 0 | AC120: 0 | AD120: 0
A121: =SUBTOTAL(3,$B$5:B121) -> 0 | F121: 0 | G121: 0 | K121: 0 | L121: 0 | M121: 0 | N121: 0 | O121: 0 | Q121: 0 | U121: 0 | V121: 0 | W121: 750 | X121: 0 | Y121: 0 | Z121: 0 | AA121: 0 | AB121: 0 | AC121: 0 | AD121: 0
A122: =SUBTOTAL(3,$B$5:B122) -> 0 | G122: 0 | K122: 0 | L122: 0 | M122: 0 | N122: 0 | O122: 0 | Q122: 0 | U122: 0 | V122: 0 | W122: 750 | X122: 0 | Y122: 0 | Z122: 0 | AA122: 0 | AB122: 0 | AC122: 0 | AD122: 0
A123: =SUBTOTAL(3,$B$5:B123) -> 0 | G123: 0 | K123: 0 | L123: 0 | M123: 0 | N123: 0 | O123: 0 | Q123: 0 | U123: 0 | V123: 0 | W123: 750 | X123: 0 | Y123: 0 | Z123: 0 | AA123: 0 | AB123: 0 | AC123: 0 | AD123: 0
A124: =SUBTOTAL(3,$B$5:B124) -> 0 | F124: 0 | G124: 0 | K124: 0 | L124: 0 | M124: 0 | N124: 0 | O124: 0 | Q124: 0 | U124: 0 | V124: 0 | W124: 750 | X124: 0 | Y124: 0 | Z124: 0 | AA124: 0 | AB124: 0 | AC124: 0 | AD124: 0
A125: الاجمالى | F125: =SUM(F5:F124) -> 0 | G125: 0 | H125: 0 | I125: 0 | J125: 0 | K125: 0 | L125: 0 | M125: 0 | N125: 0 | O125: 0 | P125: 8 | Q125: 0 | R125: 0 | S125: 0 | T125: 0 | U125: 0 | V125: 0 | W125: 90000 | X125: 0 | Y125: 0 | Z125: 0 | AA125: =SUM(AA5:AA124) -> 0 | AB125: =SUM(AB5:AB124) -> 0 | AC125: 0 | AD125: 0
E127: الموارد البشرية | U127: الرئيس التنفيذي للشركة د . عمرو العدل
U128: د. عمرو العدل

Sheet مايو
A4: م | B4: الاسم | C4: الوظيفة | D4: الادارة | E4: ATM | F4: الاجر الاساسى | G4: الاجر الاساسى بعد عدم الحضور | H4: مكافأت | I4: حافز بيع | J4: اضافى | K4: الاجر التامينى | L4: المنشأة | M4: اجمالي الاستحقاقات | N4: المنشأة2 | O4: الموظف | P4: عدم الحضور باليوم | Q4: عدم حضور بالجنيه | R4: مصروف صيانه | S4: سلف | T4: جزاءات | U4: اجمالي الاستقطاعات | V4: قبل الضريبة | W4: اعفاء شخصى | X4: الوعاء الضريبى | Y4: الوعاء الضريبى على اساس السنوى | Z4: الضريبة المستحقة | AA4: الصافى | AB4: خصم تكافلي | AC4: خصم الشهيد | AD4: الصافي المستحق للصرف
A5: 1 | G5: =F5-Q5 -> 0 | H5: 0 | I5: 0 | J5: 0 | K5: =IF(F5>8100,8100,F5*0.8) -> 0 | L5: =K5*18.75/100 -> 0 | M5: =F5+H5+I5+J5 -> 0 | N5: =L5 -> 0 | O5: =K5*0.11 -> 0 | Q5: =P5*F5/30 -> 0 | U5: =Q5+S5+T5+O5+R5 -> 0 | V5: =M5-O5-Q5 -> 0 | W5: 750 | X5: =IF((V5+J5)>W5,(V5+J5)-W5,0) -> 0 | Y5: =X5*12 -> 0 | Z5: =IF((Y5<=15000),(Y5*0%),IF((Y5<=30000),(Y5*2.5%)-375,IF((Y5<=45000),(Y5*10%)-2625,IF((Y5<=60000),(Y5*15%)-4875,IF((Y5<=200000),(Y5*20%)-7875,IF((Y5<=400000),(Y5*22.5%)-12875,IF((Y5<=600000),(Y5*25%)-22875,IF((Y5<=700000),(Y5*25%)-22500,IF((Y5<=800000),(Y5*25%)-20250,IF((Y5<=900000),(Y5*25%)-18000,IF((Y5<=1000000),(Y5*25%)-15000,IF((Y5>=1000000),(Y5*25%)-10000)))))))))))/12) -> 0 | AA5: =M5-Q5-S5-T5-Z5-O5-R5 -> 0 | AB5: =AA5*0.01 -> 0 | AC5: =IF(M5<=2000,0,M5*0.0005) -> 0 | AD5: =AA5-AB5-AC5 -> 0
A6: =SUBTOTAL(3,$B$5:B6) -> 0 | G6: 0 | K6: 0 | L6: 0 | M6: 0 | N6: 0 | O6: 0 | Q6: 0 | U6: 0 | V6: =M6-O6-Q6 -> 0 | W6: 750 | X6: 0 | Y6: 0 | Z6: =IF((Y6<=15000),(Y6*0%),IF((Y6<=30000),(Y6*2.5%)-375,IF((Y6<=45000),(Y6*10%)-2625,IF((Y6<=60000),(Y6*15%)-4875,IF((Y6<=200000),(Y6*20%)-7875,IF((Y6<=400000),(Y6*22.5%)-12875,IF((Y6<=600000),(Y6*25%)-22875,IF((Y6<=700000),(Y6*25%)-22500,IF((Y6<=800000),(Y6*25%)-20250,IF((Y6<=900000),(Y6*25%)-18000,IF((Y6<=1000000),(Y6*25%)-15000,IF((Y6>=1000000),(Y6*25%)-10000)))))))))))/12) -> 0 | AA6: 0 | AB6: =AA6*0.01 -> 0 | AC6: =IF(M6<=2000,0,M6*0.0005) -> 0 | AD6: =AA6-AB6-AC6 -> 0
A7: =SUBTOTAL(3,$B$5:B7) -> 0 | G7: 0 | K7: 0 | L7: 0 | M7: 0 | N7: 0 | O7: 0 | Q7: 0 | U7: 0 | V7: 0 | W7: 750 | X7: 0 | Y7: 0 | Z7: 0 | AA7: 0 | AB7: 0 | AC7: 0 | AD7: 0
A8: =SUBTOTAL(3,$B$5:B8) -> 0 | G8: 0 | K8: 0 | L8: 0 | M8: 0 | N8: 0 | O8: 0 | Q8: 0 | U8: 0 | V8: 0 | W8: 750 | X8: 0 | Y8: 0 | Z8: 0 | AA8: 0 | AB8: 0 | AC8: 0 | AD8: 0
A9: =SUBTOTAL(3,$B$5:B9) -> 0 | G9: 0 | K9: 0 | L9: 0 | M9: 0 | N9: 0 | O9: 0 | Q9: 0 | U9: 0 | V9: 0 | W9: 750 | X9: 0 | Y9: 0 | Z9: 0 | AA9: 0 | AB9: 0 | AC9: 0 | AD9: 0
A10: =SUBTOTAL(3,$B$5:B10) -> 0 | G10: 0 | K10: 0 | L10: 0 | M10: 0 | N10: 0 | O10: 0 | Q10: 0 | U10: 0 | V10: 0 | W10: 750 | X10: 0 | Y10: 0 | Z10: 0 | AA10: 0 | AB10: 0 | AC10: 0 | AD10: 0
A11: =SUBTOTAL(3,$B$5:B11) -> 0 | G11: 0 | L11: 0 | M11: 0 | N11: 0 | O11: 0 | P11: 8 | Q11: 0 | U11: 0 | V11: 0 | W11: 750 | X11: 0 | Y11: 0 | Z11: 0 | AA11: 0 | AB11: 0 | AC11: 0 | AD11: 0
A12: =SUBTOTAL(3,$B$5:B12) -> 0 | G12: 0 | K12: 0 | L12: 0 | M12: 0 | N12: 0 | O12: 0 | Q12: 0 | U12: 0 | V12: 0 | W12: 750 | X12: 0 | Y12: 0 | Z12: 0 | AA12: 0 | AB12: 0 | AC12: 0 | AD12: 0
A13: =SUBTOTAL(3,$B$5:B13) -> 0 | G13: 0 | K13: 0 | L13: 0 | M13: 0 | N13: 0 | O13: 0 | Q13: 0 | U13: 0 | V13: 0 | W13: 750 | X13: 0 | Y13: 0 | Z13: 0 | AA13: 0 | AB13: 0 | AC13: 0 | AD13: 0
A14: =SUBTOTAL(3,$B$5:B14) -> 0 | G14: 0 | K14: 0 | L14: 0 | M14: 0 | N14: 0 | O14: 0 | Q14: 0 | U14: 0 | V14: 0 | W14: 750 | X14: 0 | Y14: 0 | Z14: 0 | AA14: 0 | AB14: 0 | AC14: 0 | AD14: 0
A15: =SUBTOTAL(3,$B$5:B15) -> 0 | G15: 0 | K15: 0 | L15: 0 | M15: 0 | N15: 0 | O15: 0 | Q15: 0 | U15: 0 | V15: 0 | W15: 750 | X15: 0 | Y15: 0 | Z15: 0 | AA15: 0 | AB15: 0 | AC15: 0 | AD15: 0
A16: =SUBTOTAL(3,$B$5:B16) -> 0 | G16: 0 | K16: 0 | L16: 0 | M16: 0 | N16: 0 | O16: 0 | Q16: 0 | U16: 0 | V16: 0 | W16: 750 | X16: 0 | Y16: 0 | Z16: 0 | AA16: 0 | AB16: 0 | AC16: 0 | AD16: 0
A17: =SUBTOTAL(3,$B$5:B17) -> 0 | G17: 0 | K17: 0 | L17: 0 | M17: 0 | N17: 0 | O17: 0 | Q17: 0 | U17: 0 | V17: 0 | W17: 750 | X17: 0 | Y17: 0 | Z17: 0 | AA17: 0 | AB17: 0 | AC17: 0 | AD17: 0
A18: =SUBTOTAL(3,$B$5:B18) -> 0 | G18: 0 | K18: 0 | L18: 0 | M18: 0 | N18: 0 | O18: 0 | Q18: 0 | U18: 0 | V18: 0 | W18: 750 | X18: 0 | Y18: 0 | Z18: 0 | AA18: 0 | AB18: 0 | AC18: 0 | AD18: 0
A19: =SUBTOTAL(3,$B$5:B19) -> 0 | G19: 0 | K19: 0 | L19: 0 | M19: 0 | N19: 0 | O19: 0 | Q19: 0 | U19: 0 | V19: 0 | W19: 750 | X19: 0 | Y19: 0 | Z19: 0 | AA19: 0 | AB19: 0 | AC19: 0 | AD19: 0
A20: =SUBTOTAL(3,$B$5:B20) -> 0 | G20: 0 | K20: 0 | L20: 0 | M20: 0 | N20: 0 | O20: 0 | Q20: 0 | U20: 0 | V20: 0 | W20: 750 | X20: 0 | Y20: 0 | Z20: 0 | AA20: 0 | AB20: 0 | AC20: 0 | AD20: 0
A21: =SUBTOTAL(3,$B$5:B21) -> 0 | G21: 0 | K21: 0 | L21: 0 | M21: 0 | N21: 0 | O21: 0 | Q21: 0 | U21: 0 | V21: 0 | W21: 750 | X21: 0 | Y21: 0 | Z21: 0 | AA21: 0 | AB21: 0 | AC21: 0 | AD21: 0
A22: =SUBTOTAL(3,$B$5:B22) -> 0 | G22: 0 | K22: 0 | L22: 0 | M22: 0 | N22: 0 | O22: 0 | Q22: 0 | U22: 0 | V22: 0 | W22: 750 | X22: 0 | Y22: 0 | Z22: 0 | AA22: 0 | AB22: 0 | AC22: 0 | AD22: 0
A23: =SUBTOTAL(3,$B$5:B23) -> 0 | G23: 0 | K23: 0 | L23: 0 | M23: 0 | N23: 0 | O23: 0 | Q23: 0 | U23: 0 | V23: 0 | W23: 750 | X23: 0 | Y23: 0 | Z23: 0 | AA23: 0 | AB23: 0 | AC23: 0 | AD23: 0
A24: =SUBTOTAL(3,$B$5:B24) -> 0 | G24: =F24-Q24 -> 0 | K24: =IF(F24>8100,8100,F24*0.8) -> 0 | L24: =K24*18.75/100 -> 0 | M24: =F24+H24+I24+J24 -> 0 | N24: =L24 -> 0 | O24: =K24*0.11 -> 0 | Q24: =P24*F24/30 -> 0 | U24: =Q24+S24+T24+O24+R24 -> 0 | V24: =M24-O24-Q24 -> 0 | W24: 750 | X24: =IF((V24+J24)>W24,(V24+J24)-W24,0) -> 0 | Y24: =X24*12 -> 0 | Z24: =IF((Y24<=15000),(Y24*0%),IF((Y24<=30000),(Y24*2.5%)-375,IF((Y24<=45000),(Y24*10%)-2625,IF((Y24<=60000),(Y24*15%)-4875,IF((Y24<=200000),(Y24*20%)-7875,IF((Y24<=400000),(Y24*22.5%)-12875,IF((Y24<=600000),(Y24*25%)-22875,IF((Y24<=700000),(Y24*25%)-22500,IF((Y24<=800000),(Y24*25%)-20250,IF((Y24<=900000),(Y24*25%)-18000,IF((Y24<=1000000),(Y24*25%)-15000,IF((Y24>=1000000),(Y24*25%)-10000)))))))))))/12) -> 0 | AA24: =M24-Q24-S24-T24-Z24-O24-R24 -> 0 | AB24: 0 | AC24: 0 | AD24: 0
A25: =SUBTOTAL(3,$B$5:B25) -> 0 | G25: 0 | K25: 0 | L25: 0 | M25: 0 | N25: 0 | O25: 0 | Q25: 0 | U25: 0 | V25: 0 | W25: 750 | X25: 0 | Y25: 0 | Z25: 0 | AA25: 0 | AB25: 0 | AC25: 0 | AD25: 0
A26: =SUBTOTAL(3,$B$5:B26) -> 0 | G26: 0 | K26: 0 | L26: 0 | M26: 0 | N26: 0 | O26: 0 | Q26: 0 | U26: 0 | V26: 0 | W26: 750 | X26: 0 | Y26: 0 | Z26: 0 | AA26: 0 | AB26: 0 | AC26: 0 | AD26: 0
A27: =SUBTOTAL(3,$B$5:B27) -> 0 | G27: 0 | K27: 0 | L27: 0 | M27: 0 | N27: 0 | O27: 0 | Q27: 0 | U27: 0 | V27: 0 | W27: 750 | X27: 0 | Y27: 0 | Z27: 0 | AA27: 0 | AB27: 0 | AC27: 0 | AD27: 0
A28: =SUBTOTAL(3,$B$5:B28) -> 0 | G28: =F28-Q28 -> 0 | K28: =IF(F28>8100,8100,F28*0.8) -> 0 | L28: =K28*18.75/100 -> 0 | M28: =F28+H28+I28+J28 -> 0 | N28: =L28 -> 0 | O28: =K28*0.11 -> 0 | Q28: =P28*F28/30 -> 0 | U28: =Q28+S28+T28+O28+R28 -> 0 | V28: 0 | W28: 750 | X28: =IF((V28+J28)>W28,(V28+J28)-W28,0) -> 0 | Y28: =X28*12 -> 0 | Z28: =IF((Y28<=15000),(Y28*0%),IF((Y28<=30000),(Y28*2.5%)-375,IF((Y28<=45000),(Y28*10%)-2625,IF((Y28<=60000),(Y28*15%)-4875,IF((Y28<=200000),(Y28*20%)-7875,IF((Y28<=400000),(Y28*22.5%)-12875,IF((Y28<=600000),(Y28*25%)-22875,IF((Y28<=700000),(Y28*25%)-22500,IF((Y28<=800000),(Y28*25%)-20250,IF((Y28<=900000),(Y28*25%)-18000,IF((Y28<=1000000),(Y28*25%)-15000,IF((Y28>=1000000),(Y28*25%)-10000)))))))))))/12) -> 0 | AA28: =M28-Q28-S28-T28-Z28-O28-R28 -> 0 | AB28: 0 | AC28: 0 | AD28: 0
A29: =SUBTOTAL(3,$B$5:B29) -> 0 | G29: =F29-Q29 -> 0 | K29: =IF(F29>8100,8100,F29*0.8) -> 0 | L29: =K29*18.75/100 -> 0 | M29: =F29+H29+I29+J29 -> 0 | N29: =L29 -> 0 | O29: =K29*0.11 -> 0 | Q29: =P29*F29/30 -> 0 | U29: =Q29+S29+T29+O29+R29 -> 0 | V29: =M29-O29-Q29 -> 0 | W29: 750 | X29: =IF((V29+J29)>W29,(V29+J29)-W29,0) -> 0 | Y29: =X29*12 -> 0 | Z29: =IF((Y29<=15000),(Y29*0%),IF((Y29<=30000),(Y29*2.5%)-375,IF((Y29<=45000),(Y29*10%)-2625,IF((Y29<=60000),(Y29*15%)-4875,IF((Y29<=200000),(Y29*20%)-7875,IF((Y29<=400000),(Y29*22.5%)-12875,IF((Y29<=600000),(Y29*25%)-22875,IF((Y29<=700000),(Y29*25%)-22500,IF((Y29<=800000),(Y29*25%)-20250,IF((Y29<=900000),(Y29*25%)-18000,IF((Y29<=1000000),(Y29*25%)-15000,IF((Y29>=1000000),(Y29*25%)-10000)))))))))))/12) -> 0 | AA29: =M29-Q29-S29-T29-Z29-O29-R29 -> 0 | AB29: 0 | AC29: 0 | AD29: 0
A30: =SUBTOTAL(3,$B$5:B30) -> 0 | G30: =F30-Q30 -> 0 | K30: =IF(F30>8100,8100,F30*0.8) -> 0 | L30: =K30*18.75/100 -> 0 | M30: =F30+H30+I30+J30 -> 0 | N30: =L30 -> 0 | O30: =K30*0.11 -> 0 | Q30: =P30*F30/30 -> 0 | U30: =Q30+S30+T30+O30+R30 -> 0 | V30: =M30-O30-Q30 -> 0 | W30: 750 | X30: =IF((V30+J30)>W30,(V30+J30)-W30,0) -> 0 | Y30: =X30*12 -> 0 | Z30: =IF((Y30<=15000),(Y30*0%),IF((Y30<=30000),(Y30*2.5%)-375,IF((Y30<=45000),(Y30*10%)-2625,IF((Y30<=60000),(Y30*15%)-4875,IF((Y30<=200000),(Y30*20%)-7875,IF((Y30<=400000),(Y30*22.5%)-12875,IF((Y30<=600000),(Y30*25%)-22875,IF((Y30<=700000),(Y30*25%)-22500,IF((Y30<=800000),(Y30*25%)-20250,IF((Y30<=900000),(Y30*25%)-18000,IF((Y30<=1000000),(Y30*25%)-15000,IF((Y30>=1000000),(Y30*25%)-10000)))))))))))/12) -> 0 | AA30: =M30-Q30-S30-T30-Z30-O30-R30 -> 0 | AB30: 0 | AC30: 0 | AD30: 0
A31: =SUBTOTAL(3,$B$5:B31) -> 0 | G31: 0 | K31: 0 | L31: 0 | M31: 0 | N31: 0 | O31: 0 | Q31: 0 | U31: 0 | V31: 0 | W31: 750 | X31: 0 | Y31: 0 | Z31: 0 | AA31: 0 | AB31: 0 | AC31: 0 | AD31: 0
A32: =SUBTOTAL(3,$B$5:B32) -> 0 | G32: 0 | K32: 0 | L32: 0 | M32: 0 | N32: 0 | O32: 0 | Q32: 0 | U32: 0 | V32: 0 | W32: 750 | X32: 0 | Y32: 0 | Z32: 0 | AA32: 0 | AB32: 0 | AC32: 0 | AD32: 0
A33: =SUBTOTAL(3,$B$5:B33) -> 0 | G33: 0 | K33: 0 | L33: 0 | M33: 0 | N33: 0 | O33: 0 | Q33: 0 | U33: 0 | V33: 0 | W33: 750 | X33: 0 | Y33: 0 | Z33: 0 | AA33: 0 | AB33: 0 | AC33: 0 | AD33: 0 | AE33: 8393 | AG33: =AA33-AE33 -> -8393
A34: =SUBTOTAL(3,$B$5:B34) -> 0 | G34: =F34-Q34 -> 0 | K34: =IF(F34>8100,8100,F34*0.8) -> 0 | L34: =K34*18.75/100 -> 0 | M34: =F34+H34+I34+J34 -> 0 | N34: =L34 -> 0 | O34: =K34*0.11 -> 0 | Q34: =P34*F34/30 -> 0 | U34: =Q34+S34+T34+O34+R34 -> 0 | V34: =M34-O34-Q34 -> 0 | W34: 750 | X34: =IF((V34+J34)>W34,(V34+J34)-W34,0) -> 0 | Y34: =X34*12 -> 0 | Z34: =IF((Y34<=15000),(Y34*0%),IF((Y34<=30000),(Y34*2.5%)-375,IF((Y34<=45000),(Y34*10%)-2625,IF((Y34<=60000),(Y34*15%)-4875,IF((Y34<=200000),(Y34*20%)-7875,IF((Y34<=400000),(Y34*22.5%)-12875,IF((Y34<=600000),(Y34*25%)-22875,IF((Y34<=700000),(Y34*25%)-22500,IF((Y34<=800000),(Y34*25%)-20250,IF((Y34<=900000),(Y34*25%)-18000,IF((Y34<=1000000),(Y34*25%)-15000,IF((Y34>=1000000),(Y34*25%)-10000)))))))))))/12) -> 0 | AA34: =M34-Q34-S34-T34-Z34-O34-R34 -> 0 | AB34: 0 | AC34: 0 | AD34: 0
A35: =SUBTOTAL(3,$B$5:B35) -> 0 | G35: 0 | K35: 0 | L35: 0 | M35: 0 | N35: 0 | O35: 0 | Q35: 0 | U35: 0 | V35: 0 | W35: 750 | X35: 0 | Y35: 0 | Z35: 0 | AA35: 0 | AB35: 0 | AC35: 0 | AD35: 0
A36: =SUBTOTAL(3,$B$5:B36) -> 0 | G36: 0 | K36: 0 | L36: 0 | M36: 0 | N36: 0 | O36: 0 | Q36: 0 | U36: 0 | V36: 0 | W36: 750 | X36: 0 | Y36: 0 | Z36: 0 | AA36: 0 | AB36: 0 | AC36: 0 | AD36: 0
A37: =SUBTOTAL(3,$B$5:B37) -> 0 | G37: 0 | K37: 0 | L37: 0 | M37: 0 | N37: 0 | O37: 0 | Q37: 0 | U37: 0 | V37: 0 | W37: 750 | X37: 0 | Y37: 0 | Z37: 0 | AA37: 0 | AB37: 0 | AC37: 0 | AD37: 0
A38: =SUBTOTAL(3,$B$5:B38) -> 0 | G38: 0 | K38: 0 | L38: 0 | M38: 0 | N38: 0 | O38: 0 | Q38: 0 | U38: 0 | V38: 0 | W38: 750 | X38: 0 | Y38: 0 | Z38: 0 | AA38: 0 | AB38: 0 | AC38: 0 | AD38: 0
A39: =SUBTOTAL(3,$B$5:B39) -> 0 | G39: 0 | K39: 0 | L39: 0 | M39: 0 | N39: 0 | O39: 0 | Q39: 0 | U39: 0 | V39: 0 | W39: 750 | X39: 0 | Y39: 0 | Z39: 0 | AA39: 0 | AB39: 0 | AC39: 0 | AD39: 0
A40: =SUBTOTAL(3,$B$5:B40) -> 0 | G40: 0 | K40: 0 | L40: 0 | M40: 0 | N40: 0 | O40: 0 | Q40: 0 | U40: 0 | V40: 0 | W40: 750 | X40: 0 | Y40: 0 | Z40: 0 | AA40: 0 | AB40: 0 | AC40: 0 | AD40: 0
A41: =SUBTOTAL(3,$B$5:B41) -> 0 | G41: =F41-Q41 -> 0 | K41: =IF(F41>8100,8100,F41*0.8) -> 0 | L41: =K41*18.75/100 -> 0 | M41: =F41+H41+I41+J41 -> 0 | N41: =L41 -> 0 | O41: =K41*0.11 -> 0 | Q41: =P41*F41/30 -> 0 | U41: =Q41+S41+T41+O41+R41 -> 0 | V41: =M41-O41-Q41 -> 0 | W41: 750 | X41: =IF((V41+J41)>W41,(V41+J41)-W41,0) -> 0 | Y41: =X41*12 -> 0 | Z41: =IF((Y41<=15000),(Y41*0%),IF((Y41<=30000),(Y41*2.5%)-375,IF((Y41<=45000),(Y41*10%)-2625,IF((Y41<=60000),(Y41*15%)-4875,IF((Y41<=200000),(Y41*20%)-7875,IF((Y41<=400000),(Y41*22.5%)-12875,IF((Y41<=600000),(Y41*25%)-22875,IF((Y41<=700000),(Y41*25%)-22500,IF((Y41<=800000),(Y41*25%)-20250,IF((Y41<=900000),(Y41*25%)-18000,IF((Y41<=1000000),(Y41*25%)-15000,IF((Y41>=1000000),(Y41*25%)-10000)))))))))))/12) -> 0 | AA41: =M41-Q41-S41-T41-Z41-O41-R41 -> 0 | AB41: 0 | AC41: 0 | AD41: 0
A42: =SUBTOTAL(3,$B$5:B42) -> 0 | G42: 0 | K42: 0 | L42: 0 | M42: 0 | N42: 0 | O42: 0 | Q42: 0 | U42: 0 | V42: 0 | W42: 750 | X42: 0 | Y42: 0 | Z42: 0 | AA42: 0 | AB42: 0 | AC42: 0 | AD42: 0
A43: =SUBTOTAL(3,$B$5:B43) -> 0 | G43: =F43-Q43 -> 0 | K43: =IF(F43>8100,8100,F43*0.8) -> 0 | L43: =K43*18.75/100 -> 0 | M43: =F43+H43+I43+J43 -> 0 | N43: =L43 -> 0 | O43: =K43*0.11 -> 0 | Q43: =P43*F43/30 -> 0 | U43: =Q43+S43+T43+O43+R43 -> 0 | V43: =M43-O43-Q43 -> 0 | W43: 750 | X43: =IF((V43+J43)>W43,(V43+J43)-W43,0) -> 0 | Y43: =X43*12 -> 0 | Z43: =IF((Y43<=15000),(Y43*0%),IF((Y43<=30000),(Y43*2.5%)-375,IF((Y43<=45000),(Y43*10%)-2625,IF((Y43<=60000),(Y43*15%)-4875,IF((Y43<=200000),(Y43*20%)-7875,IF((Y43<=400000),(Y43*22.5%)-12875,IF((Y43<=600000),(Y43*25%)-22875,IF((Y43<=700000),(Y43*25%)-22500,IF((Y43<=800000),(Y43*25%)-20250,IF((Y43<=900000),(Y43*25%)-18000,IF((Y43<=1000000),(Y43*25%)-15000,IF((Y43>=1000000),(Y43*25%)-10000)))))))))))/12) -> 0 | AA43: =M43-Q43-S43-T43-Z43-O43-R43 -> 0 | AB43: 0 | AC43: 0 | AD43: 0
A44: =SUBTOTAL(3,$B$5:B44) -> 0 | G44: =F44-Q44 -> 0 | K44: =IF(F44>8100,8100,F44*0.8) -> 0 | L44: =K44*18.75/100 -> 0 | M44: =F44+H44+I44+J44 -> 0 | N44: =L44 -> 0 | O44: =K44*0.11 -> 0 | Q44: =P44*F44/30 -> 0 | U44: =Q44+S44+T44+O44+R44 -> 0 | V44: =M44-O44-Q44 -> 0 | W44: 750 | X44: =IF((V44+J44)>W44,(V44+J44)-W44,0) -> 0 | Y44: =X44*12 -> 0 | Z44: =IF((Y44<=15000),(Y44*0%),IF((Y44<=30000),(Y44*2.5%)-375,IF((Y44<=45000),(Y44*10%)-2625,IF((Y44<=60000),(Y44*15%)-4875,IF((Y44<=200000),(Y44*20%)-7875,IF((Y44<=400000),(Y44*22.5%)-12875,IF((Y44<=600000),(Y44*25%)-22875,IF((Y44<=700000),(Y44*25%)-22500,IF((Y44<=800000),(Y44*25%)-20250,IF((Y44<=900000),(Y44*25%)-18000,IF((Y44<=1000000),(Y44*25%)-15000,IF((Y44>=1000000),(Y44*25%)-10000)))))))))))/12) -> 0 | AA44: =M44-Q44-S44-T44-Z44-O44-R44 -> 0 | AB44: 0 | AC44: 0 | AD44: 0
A45: =SUBTOTAL(3,$B$5:B45) -> 0 | G45: =F45-Q45 -> 0 | K45: =IF(F45>8100,8100,F45*0.8) -> 0 | L45: =K45*18.75/100 -> 0 | M45: =F45+H45+I45+J45 -> 0 | N45: =L45 -> 0 | O45: =K45*0.11 -> 0 | Q45: =P45*F45/30 -> 0 | U45: =Q45+S45+T45+O45+R45 -> 0 | V45: =M45-O45-Q45 -> 0 | W45: 750 | X45: =IF((V45+J45)>W45,(V45+J45)-W45,0) -> 0 | Y45: =X45*12 -> 0 | Z45: =IF((Y45<=15000),(Y45*0%),IF((Y45<=30000),(Y45*2.5%)-375,IF((Y45<=45000),(Y45*10%)-2625,IF((Y45<=60000),(Y45*15%)-4875,IF((Y45<=200000),(Y45*20%)-7875,IF((Y45<=400000),(Y45*22.5%)-12875,IF((Y45<=600000),(Y45*25%)-22875,IF((Y45<=700000),(Y45*25%)-22500,IF((Y45<=800000),(Y45*25%)-20250,IF((Y45<=900000),(Y45*25%)-18000,IF((Y45<=1000000),(Y45*25%)-15000,IF((Y45>=1000000),(Y45*25%)-10000)))))))))))/12) -> 0 | AA45: =M45-Q45-S45-T45-Z45-O45-R45 -> 0 | AB45: 0 | AC45: 0 | AD45: 0
A46: =SUBTOTAL(3,$B$5:B46) -> 0 | G46: =F46-Q46 -> 0 | K46: =IF(F46>8100,8100,F46*0.8) -> 0 | L46: =K46*18.75/100 -> 0 | M46: =F46+H46+I46+J46 -> 0 | N46: =L46 -> 0 | O46: =K46*0.11 -> 0 | Q46: =P46*F46/30 -> 0 | U46: =Q46+S46+T46+O46+R46 -> 0 | V46: =M46-O46-Q46 -> 0 | W46: 750 | X46: =IF((V46+J46)>W46,(V46+J46)-W46,0) -> 0 | Y46: =X46*12 -> 0 | Z46: =IF((Y46<=15000),(Y46*0%),IF((Y46<=30000),(Y46*2.5%)-375,IF((Y46<=45000),(Y46*10%)-2625,IF((Y46<=60000),(Y46*15%)-4875,IF((Y46<=200000),(Y46*20%)-7875,IF((Y46<=400000),(Y46*22.5%)-12875,IF((Y46<=600000),(Y46*25%)-22875,IF((Y46<=700000),(Y46*25%)-22500,IF((Y46<=800000),(Y46*25%)-20250,IF((Y46<=900000),(Y46*25%)-18000,IF((Y46<=1000000),(Y46*25%)-15000,IF((Y46>=1000000),(Y46*25%)-10000)))))))))))/12) -> 0 | AA46: =M46-Q46-S46-T46-Z46-O46-R46 -> 0 | AB46: 0 | AC46: 0 | AD46: 0
A47: =SUBTOTAL(3,$B$5:B47) -> 0 | G47: 0 | K47: 0 | L47: 0 | M47: 0 | N47: 0 | O47: 0 | Q47: 0 | U47: 0 | V47: 0 | W47: 750 | X47: 0 | Y47: 0 | Z47: 0 | AA47: 0 | AB47: 0 | AC47: 0 | AD47: 0
A48: =SUBTOTAL(3,$B$5:B48) -> 0 | G48: 0 | K48: 0 | L48: 0 | M48: 0 | N48: 0 | O48: 0 | Q48: 0 | U48: 0 | V48: 0 | W48: 750 | X48: 0 | Y48: 0 | Z48: 0 | AA48: 0 | AB48: 0 | AC48: 0 | AD48: 0
A49: =SUBTOTAL(3,$B$5:B49) -> 0 | G49: 0 | K49: 0 | L49: 0 | M49: 0 | N49: 0 | O49: 0 | Q49: 0 | U49: 0 | V49: 0 | W49: 750 | X49: 0 | Y49: 0 | Z49: 0 | AA49: 0 | AB49: 0 | AC49: 0 | AD49: 0
A50: =SUBTOTAL(3,$B$5:B50) -> 0 | G50: =F50-Q50 -> 0 | K50: =IF(F50>8100,8100,F50*0.8) -> 0 | L50: =K50*18.75/100 -> 0 | M50: =F50+H50+I50+J50 -> 0 | N50: =L50 -> 0 | O50: =K50*0.11 -> 0 | Q50: =P50*F50/30 -> 0 | U50: =Q50+S50+T50+O50+R50 -> 0 | V50: =M50-O50-Q50 -> 0 | W50: 750 | X50: =IF((V50+J50)>W50,(V50+J50)-W50,0) -> 0 | Y50: =X50*12 -> 0 | Z50: =IF((Y50<=15000),(Y50*0%),IF((Y50<=30000),(Y50*2.5%)-375,IF((Y50<=45000),(Y50*10%)-2625,IF((Y50<=60000),(Y50*15%)-4875,IF((Y50<=200000),(Y50*20%)-7875,IF((Y50<=400000),(Y50*22.5%)-12875,IF((Y50<=600000),(Y50*25%)-22875,IF((Y50<=700000),(Y50*25%)-22500,IF((Y50<=800000),(Y50*25%)-20250,IF((Y50<=900000),(Y50*25%)-18000,IF((Y50<=1000000),(Y50*25%)-15000,IF((Y50>=1000000),(Y50*25%)-10000)))))))))))/12) -> 0 | AA50: =M50-Q50-S50-T50-Z50-O50-R50 -> 0 | AB50: 0 | AC50: 0 | AD50: 0
A51: =SUBTOTAL(3,$B$5:B51) -> 0 | G51: 0 | K51: 0 | L51: 0 | M51: 0 | N51: 0 | O51: 0 | Q51: 0 | U51: 0 | V51: 0 | W51: 750 | X51: 0 | Y51: 0 | Z51: 0 | AA51: 0 | AB51: 0 | AC51: 0 | AD51: 0
A52: =SUBTOTAL(3,$B$5:B52) -> 0 | G52: =F52-Q52 -> 0 | K52: =IF(F52>8100,8100,F52*0.8) -> 0 | L52: =K52*18.75/100 -> 0 | M52: =F52+H52+I52+J52 -> 0 | N52: =L52 -> 0 | O52: =K52*0.11 -> 0 | Q52: =P52*F52/30 -> 0 | U52: =Q52+S52+T52+O52+R52 -> 0 | V52: 0 | W52: 750 | X52: =IF((V52+J52)>W52,(V52+J52)-W52,0) -> 0 | Y52: =X52*12 -> 0 | Z52: =IF((Y52<=15000),(Y52*0%),IF((Y52<=30000),(Y52*2.5%)-375,IF((Y52<=45000),(Y52*10%)-2625,IF((Y52<=60000),(Y52*15%)-4875,IF((Y52<=200000),(Y52*20%)-7875,IF((Y52<=400000),(Y52*22.5%)-12875,IF((Y52<=600000),(Y52*25%)-22875,IF((Y52<=700000),(Y52*25%)-22500,IF((Y52<=800000),(Y52*25%)-20250,IF((Y52<=900000),(Y52*25%)-18000,IF((Y52<=1000000),(Y52*25%)-15000,IF((Y52>=1000000),(Y52*25%)-10000)))))))))))/12) -> 0 | AA52: =M52-Q52-S52-T52-Z52-O52-R52 -> 0 | AB52: 0 | AC52: 0 | AD52: 0
A53: =SUBTOTAL(3,$B$5:B53) -> 0 | G53: =F53-Q53 -> 0 | K53: =IF(F53>8100,8100,F53*0.8) -> 0 | L53: =K53*18.75/100 -> 0 | M53: =F53+H53+I53+J53 -> 0 | N53: =L53 -> 0 | O53: =K53*0.11 -> 0 | Q53: =P53*F53/30 -> 0 | U53: =Q53+S53+T53+O53+R53 -> 0 | V53: 0 | W53: 750 | X53: =IF((V53+J53)>W53,(V53+J53)-W53,0) -> 0 | Y53: =X53*12 -> 0 | Z53: =IF((Y53<=15000),(Y53*0%),IF((Y53<=30000),(Y53*2.5%)-375,IF((Y53<=45000),(Y53*10%)-2625,IF((Y53<=60000),(Y53*15%)-4875,IF((Y53<=200000),(Y53*20%)-7875,IF((Y53<=400000),(Y53*22.5%)-12875,IF((Y53<=600000),(Y53*25%)-22875,IF((Y53<=700000),(Y53*25%)-22500,IF((Y53<=800000),(Y53*25%)-20250,IF((Y53<=900000),(Y53*25%)-18000,IF((Y53<=1000000),(Y53*25%)-15000,IF((Y53>=1000000),(Y53*25%)-10000)))))))))))/12) -> 0 | AA53: =M53-Q53-S53-T53-Z53-O53-R53 -> 0 | AB53: 0 | AC53: 0 | AD53: 0
A54: =SUBTOTAL(3,$B$5:B54) -> 0 | G54: 0 | K54: 0 | L54: 0 | M54: 0 | N54: 0 | O54: 0 | Q54: 0 | U54: 0 | V54: 0 | W54: 750 | X54: 0 | Y54: 0 | Z54: 0 | AA54: 0 | AB54: 0 | AC54: 0 | AD54: 0
A55: =SUBTOTAL(3,$B$5:B55) -> 0 | G55: 0 | K55: 0 | L55: 0 | M55: 0 | N55: 0 | O55: 0 | Q55: 0 | U55: 0 | V55: 0 | W55: 750 | X55: 0 | Y55: 0 | Z55: 0 | AA55: 0 | AB55: 0 | AC55: 0 | AD55: 0
A56: =SUBTOTAL(3,$B$5:B56) -> 0 | G56: 0 | K56: 0 | L56: 0 | M56: 0 | N56: 0 | O56: 0 | Q56: 0 | U56: 0 | V56: 0 | W56: 750 | X56: 0 | Y56: 0 | Z56: 0 | AA56: 0 | AB56: 0 | AC56: 0 | AD56: 0
A57: =SUBTOTAL(3,$B$5:B57) -> 0 | G57: 0 | K57: 0 | L57: 0 | M57: 0 | N57: 0 | O57: 0 | Q57: 0 | U57: 0 | V57: 0 | W57: 750 | X57: 0 | Y57: 0 | Z57: 0 | AA57: 0 | AB57: 0 | AC57: 0 | AD57: 0
A58: =SUBTOTAL(3,$B$5:B58) -> 0 | G58: 0 | K58: 0 | L58: 0 | M58: 0 | N58: 0 | O58: 0 | Q58: 0 | U58: 0 | V58: 0 | W58: 750 | X58: 0 | Y58: 0 | Z58: 0 | AA58: 0 | AB58: 0 | AC58: 0 | AD58: 0
A59: =SUBTOTAL(3,$B$5:B59) -> 0 | G59: 0 | K59: 0 | L59: 0 | M59: 0 | N59: 0 | O59: 0 | Q59: 0 | U59: 0 | V59: 0 | W59: 750 | X59: 0 | Y59: 0 | Z59: 0 | AA59: 0 | AB59: 0 | AC59: 0 | AD59: 0
A60: =SUBTOTAL(3,$B$5:B60) -> 0 | G60: 0 | K60: 0 | L60: 0 | M60: 0 | N60: 0 | O60: 0 | Q60: 0 | U60: 0 | V60: 0 | W60: 750 | X60: 0 | Y60: 0 | Z60: 0 | AA60: 0 | AB60: 0 | AC60: 0 | AD60: 0
A61: =SUBTOTAL(3,$B$5:B61) -> 0 | G61: 0 | K61: 0 | L61: 0 | M61: 0 | N61: 0 | O61: 0 | Q61: 0 | U61: 0 | V61: 0 | W61: 750 | X61: 0 | Y61: 0 | Z61: 0 | AA61: 0 | AB61: 0 | AC61: 0 | AD61: 0
A62: =SUBTOTAL(3,$B$5:B62) -> 0 | G62: 0 | K62: 0 | L62: 0 | M62: 0 | N62: 0 | O62: 0 | Q62: 0 | U62: 0 | V62: 0 | W62: 750 | X62: 0 | Y62: 0 | Z62: 0 | AA62: 0 | AB62: 0 | AC62: 0 | AD62: 0
A63: =SUBTOTAL(3,$B$5:B63) -> 0 | G63: 0 | K63: 0 | L63: 0 | M63: 0 | N63: 0 | O63: 0 | Q63: 0 | U63: 0 | V63: 0 | W63: 750 | X63: 0 | Y63: 0 | Z63: 0 | AA63: 0 | AB63: 0 | AC63: 0 | AD63: 0
A64: =SUBTOTAL(3,$B$5:B64) -> 0 | G64: 0 | K64: 0 | L64: 0 | M64: 0 | N64: 0 | O64: 0 | Q64: 0 | U64: 0 | V64: 0 | W64: 750 | X64: 0 | Y64: 0 | Z64: 0 | AA64: 0 | AB64: 0 | AC64: 0 | AD64: 0
A65: =SUBTOTAL(3,$B$5:B65) -> 0 | G65: 0 | K65: 0 | L65: 0 | M65: 0 | N65: 0 | O65: 0 | Q65: 0 | U65: 0 | V65: 0 | W65: 750 | X65: 0 | Y65: 0 | Z65: 0 | AA65: 0 | AB65: 0 | AC65: 0 | AD65: 0
A66: =SUBTOTAL(3,$B$5:B66) -> 0 | G66: 0 | K66: 0 | L66: 0 | M66: 0 | N66: 0 | O66: 0 | Q66: 0 | U66: 0 | V66: 0 | W66: 750 | X66: 0 | Y66: 0 | Z66: 0 | AA66: 0 | AB66: 0 | AC66: 0 | AD66: 0
A67: =SUBTOTAL(3,$B$5:B67) -> 0 | G67: 0 | K67: 0 | L67: 0 | M67: 0 | N67: 0 | O67: 0 | Q67: 0 | U67: 0 | V67: 0 | W67: 750 | X67: 0 | Y67: 0 | Z67: 0 | AA67: 0 | AB67: 0 | AC67: 0 | AD67: 0
A68: =SUBTOTAL(3,$B$5:B68) -> 0 | G68: =F68-Q68 -> 0 | K68: =IF(F68>8100,8100,F68*0.8) -> 0 | L68: =K68*18.75/100 -> 0 | M68: =F68+H68+I68+J68 -> 0 | N68: =L68 -> 0 | O68: =K68*0.11 -> 0 | Q68: =P68*F68/30 -> 0 | U68: =Q68+S68+T68+O68+R68 -> 0 | V68: =M68-O68-Q68 -> 0 | W68: 750 | X68: =IF((V68+J68)>W68,(V68+J68)-W68,0) -> 0 | Y68: =X68*12 -> 0 | Z68: =IF((Y68<=15000),(Y68*0%),IF((Y68<=30000),(Y68*2.5%)-375,IF((Y68<=45000),(Y68*10%)-2625,IF((Y68<=60000),(Y68*15%)-4875,IF((Y68<=200000),(Y68*20%)-7875,IF((Y68<=400000),(Y68*22.5%)-12875,IF((Y68<=600000),(Y68*25%)-22875,IF((Y68<=700000),(Y68*25%)-22500,IF((Y68<=800000),(Y68*25%)-20250,IF((Y68<=900000),(Y68*25%)-18000,IF((Y68<=1000000),(Y68*25%)-15000,IF((Y68>=1000000),(Y68*25%)-10000)))))))))))/12) -> 0 | AA68: =M68-Q68-S68-T68-Z68-O68-R68 -> 0 | AB68: 0 | AC68: 0 | AD68: 0
A69: =SUBTOTAL(3,$B$5:B69) -> 0 | G69: 0 | K69: 0 | L69: 0 | M69: 0 | N69: 0 | O69: 0 | Q69: 0 | U69: 0 | V69: 0 | W69: 750 | X69: 0 | Y69: 0 | Z69: 0 | AA69: 0 | AB69: 0 | AC69: 0 | AD69: 0
A70: =SUBTOTAL(3,$B$5:B70) -> 0 | G70: 0 | K70: 0 | L70: 0 | M70: 0 | N70: 0 | O70: 0 | Q70: 0 | U70: 0 | V70: 0 | W70: 750 | X70: 0 | Y70: 0 | Z70: 0 | AA70: 0 | AB70: =AA70*0.01 -> 0 | AC70: =IF(M70<=2000,0,M70*0.0005) -> 0 | AD70: =AA70-AB70-AC70 -> 0
A71: =SUBTOTAL(3,$B$5:B71) -> 0 | G71: =F71-Q71 -> 0 | L71: =K71*18.75/100 -> 0 | M71: =F71+H71+I71+J71 -> 0 | N71: =L71 -> 0 | O71: =K71*0.11 -> 0 | Q71: =P71*F71/30 -> 0 | U71: =Q71+S71+T71+O71+R71 -> 0 | V71: 0 | W71: 750 | X71: =IF((V71+J71)>W71,(V71+J71)-W71,0) -> 0 | Y71: =X71*12 -> 0 | Z71: =IF((Y71<=15000),(Y71*0%),IF((Y71<=30000),(Y71*2.5%)-375,IF((Y71<=45000),(Y71*10%)-2625,IF((Y71<=60000),(Y71*15%)-4875,IF((Y71<=200000),(Y71*20%)-7875,IF((Y71<=400000),(Y71*22.5%)-12875,IF((Y71<=600000),(Y71*25%)-22875,IF((Y71<=700000),(Y71*25%)-22500,IF((Y71<=800000),(Y71*25%)-20250,IF((Y71<=900000),(Y71*25%)-18000,IF((Y71<=1000000),(Y71*25%)-15000,IF((Y71>=1000000),(Y71*25%)-10000)))))))))))/12) -> 0 | AA71: =M71-Q71-S71-T71-Z71-O71-R71 -> 0 | AB71: 0 | AC71: 0 | AD71: 0
A72: =SUBTOTAL(3,$B$5:B72) -> 0 | G72: 0 | K72: =IF(F72>8100,8100,F72*0.8) -> 0 | L72: 0 | M72: 0 | N72: 0 | O72: 0 | Q72: 0 | U72: 0 | V72: =M72-O72-Q72 -> 0 | W72: 750 | X72: 0 | Y72: 0 | Z72: 0 | AA72: 0 | AB72: 0 | AC72: 0 | AD72: 0
A73: =SUBTOTAL(3,$B$5:B73) -> 0 | G73: 0 | K73: 0 | L73: 0 | M73: 0 | N73: 0 | O73: 0 | Q73: 0 | U73: 0 | V73: 0 | W73: 750 | X73: 0 | Y73: 0 | Z73: 0 | AA73: 0 | AB73: 0 | AC73: 0 | AD73: 0
A74: =SUBTOTAL(3,$B$5:B74) -> 0 | G74: 0 | K74: 0 | L74: 0 | M74: 0 | N74: 0 | O74: 0 | Q74: 0 | U74: 0 | V74: 0 | W74: 750 | X74: 0 | Y74: 0 | Z74: 0 | AA74: 0 | AB74: 0 | AC74: 0 | AD74: 0
A75: =SUBTOTAL(3,$B$5:B75) -> 0 | G75: 0 | K75: 0 | L75: 0 | M75: 0 | N75: 0 | O75: 0 | Q75: 0 | U75: 0 | V75: 0 | W75: 750 | X75: 0 | Y75: 0 | Z75: 0 | AA75: 0 | AB75: 0 | AC75: 0 | AD75: 0
A76: =SUBTOTAL(3,$B$5:B76) -> 0 | G76: 0 | K76: 0 | L76: 0 | M76: 0 | N76: 0 | O76: 0 | Q76: 0 | U76: 0 | V76: 0 | W76: 750 | X76: 0 | Y76: 0 | Z76: 0 | AA76: 0 | AB76: 0 | AC76: 0 | AD76: 0
A77: =SUBTOTAL(3,$B$5:B77) -> 0 | G77: 0 | K77: 0 | L77: 0 | M77: 0 | N77: 0 | O77: 0 | Q77: 0 | U77: 0 | V77: 0 | W77: 750 | X77: 0 | Y77: 0 | Z77: 0 | AA77: 0 | AB77: 0 | AC77: 0 | AD77: 0
A78: =SUBTOTAL(3,$B$5:B78) -> 0 | G78: 0 | L78: 0 | M78: 0 | N78: 0 | O78: 0 | Q78: 0 | U78: 0 | V78: 0 | W78: 750 | X78: 0 | Y78: 0 | Z78: 0 | AA78: 0 | AB78: 0 | AC78: 0 | AD78: 0
A79: =SUBTOTAL(3,$B$5:B79) -> 0 | G79: 0 | K79: 0 | L79: 0 | M79: 0 | N79: 0 | O79: 0 | Q79: 0 | U79: 0 | V79: 0 | W79: 750 | X79: 0 | Y79: 0 | Z79: 0 | AA79: 0 | AB79: 0 | AC79: 0 | AD79: 0
A80: =SUBTOTAL(3,$B$5:B80) -> 0 | G80: 0 | K80: 0 | L80: 0 | M80: 0 | N80: 0 | O80: 0 | Q80: 0 | U80: 0 | V80: 0 | W80: 750 | X80: 0 | Y80: 0 | Z80: 0 | AA80: 0 | AB80: 0 | AC80: 0 | AD80: 0
A81: =SUBTOTAL(3,$B$5:B81) -> 0 | G81: 0 | K81: 0 | L81: 0 | M81: 0 | N81: 0 | O81: 0 | Q81: 0 | U81: 0 | V81: 0 | W81: 750 | X81: 0 | Y81: 0 | Z81: 0 | AA81: 0 | AB81: 0 | AC81: 0 | AD81: 0
A82: =SUBTOTAL(3,$B$5:B82) -> 0 | G82: 0 | K82: 0 | L82: 0 | M82: 0 | N82: 0 | O82: 0 | Q82: 0 | U82: 0 | V82: 0 | W82: 750 | X82: 0 | Y82: 0 | Z82: 0 | AA82: 0 | AB82: 0 | AC82: 0 | AD82: 0
A83: =SUBTOTAL(3,$B$5:B83) -> 0 | G83: =F83-Q83 -> 0 | K83: =IF(F83>8100,8100,F83*0.8) -> 0 | L83: =K83*18.75/100 -> 0 | M83: =F83+H83+I83+J83 -> 0 | N83: =L83 -> 0 | O83: =K83*0.11 -> 0 | Q83: =P83*F83/30 -> 0 | U83: =Q83+S83+T83+O83+R83 -> 0 | V83: =M83-O83-Q83 -> 0 | W83: 750 | X83: =IF((V83+J83)>W83,(V83+J83)-W83,0) -> 0 | Y83: =X83*12 -> 0 | Z83: =IF((Y83<=15000),(Y83*0%),IF((Y83<=30000),(Y83*2.5%)-375,IF((Y83<=45000),(Y83*10%)-2625,IF((Y83<=60000),(Y83*15%)-4875,IF((Y83<=200000),(Y83*20%)-7875,IF((Y83<=400000),(Y83*22.5%)-12875,IF((Y83<=600000),(Y83*25%)-22875,IF((Y83<=700000),(Y83*25%)-22500,IF((Y83<=800000),(Y83*25%)-20250,IF((Y83<=900000),(Y83*25%)-18000,IF((Y83<=1000000),(Y83*25%)-15000,IF((Y83>=1000000),(Y83*25%)-10000)))))))))))/12) -> 0 | AA83: =M83-Q83-S83-T83-Z83-O83-R83 -> 0 | AB83: 0 | AC83: 0 | AD83: 0
A84: =SUBTOTAL(3,$B$5:B84) -> 0 | G84: 0 | L84: 0 | M84: 0 | N84: 0 | O84: 0 | Q84: 0 | U84: 0 | V84: 0 | W84: 750 | X84: 0 | Y84: 0 | Z84: 0 | AA84: 0 | AB84: 0 | AC84: 0 | AD84: 0
A85: =SUBTOTAL(3,$B$5:B85) -> 0 | G85: 0 | K85: 0 | L85: 0 | M85: 0 | N85: 0 | O85: 0 | Q85: 0 | U85: 0 | V85: 0 | W85: 750 | X85: 0 | Y85: 0 | Z85: 0 | AA85: 0 | AB85: 0 | AC85: 0 | AD85: 0
A86: =SUBTOTAL(3,$B$5:B86) -> 0 | G86: 0 | K86: 0 | L86: 0 | M86: 0 | N86: 0 | O86: 0 | Q86: 0 | U86: 0 | V86: 0 | W86: 750 | X86: 0 | Y86: 0 | Z86: 0 | AA86: 0 | AB86: 0 | AC86: 0 | AD86: 0
A87: =SUBTOTAL(3,$B$5:B87) -> 0 | G87: 0 | K87: 0 | L87: 0 | M87: 0 | N87: 0 | O87: 0 | Q87: 0 | U87: 0 | V87: 0 | W87: 750 | X87: 0 | Y87: 0 | Z87: 0 | AA87: 0 | AB87: 0 | AC87: 0 | AD87: 0
A88: =SUBTOTAL(3,$B$5:B88) -> 0 | G88: 0 | K88: 0 | L88: 0 | M88: 0 | N88: 0 | O88: 0 | Q88: 0 | U88: 0 | V88: 0 | W88: 750 | X88: 0 | Y88: 0 | Z88: 0 | AA88: 0 | AB88: 0 | AC88: 0 | AD88: 0
A89: =SUBTOTAL(3,$B$5:B89) -> 0 | G89: 0 | K89: 0 | L89: 0 | M89: 0 | N89: 0 | O89: 0 | Q89: 0 | U89: 0 | V89: 0 | W89: 750 | X89: 0 | Y89: 0 | Z89: 0 | AA89: 0 | AB89: 0 | AC89: 0 | AD89: 0
A90: =SUBTOTAL(3,$B$5:B90) -> 0 | G90: 0 | K90: 0 | L90: 0 | M90: 0 | N90: 0 | O90: 0 | Q90: 0 | U90: 0 | V90: 0 | W90: 750 | X90: 0 | Y90: 0 | Z90: 0 | AA90: 0 | AB90: 0 | AC90: 0 | AD90: 0
A91: =SUBTOTAL(3,$B$5:B91) -> 0 | G91: 0 | K91: 0 | L91: 0 | M91: 0 | N91: 0 | O91: 0 | Q91: 0 | U91: 0 | V91: 0 | W91: 750 | X91: 0 | Y91: 0 | Z91: 0 | AA91: 0 | AB91: 0 | AC91: 0 | AD91: 0
A92: =SUBTOTAL(3,$B$5:B92) -> 0 | G92: 0 | K92: 0 | L92: 0 | M92: 0 | N92: 0 | O92: 0 | Q92: 0 | U92: 0 | V92: 0 | W92: 750 | X92: 0 | Y92: 0 | Z92: 0 | AA92: 0 | AB92: 0 | AC92: 0 | AD92: 0
A93: =SUBTOTAL(3,$B$5:B93) -> 0 | G93: 0 | K93: 0 | L93: 0 | M93: 0 | N93: 0 | O93: 0 | Q93: 0 | U93: 0 | V93: 0 | W93: 750 | X93: 0 | Y93: 0 | Z93: 0 | AA93: 0 | AB93: 0 | AC93: 0 | AD93: 0
A94: =SUBTOTAL(3,$B$5:B94) -> 0 | G94: 0 | K94: 0 | L94: 0 | M94: 0 | N94: 0 | O94: 0 | Q94: 0 | U94: 0 | V94: 0 | W94: 750 | X94: 0 | Y94: 0 | Z94: 0 | AA94: 0 | AB94: 0 | AC94: 0 | AD94: 0
A95: =SUBTOTAL(3,$B$5:B95) -> 0 | G95: 0 | K95: 0 | L95: 0 | M95: 0 | N95: 0 | O95: 0 | Q95: 0 | U95: 0 | V95: 0 | W95: 750 | X95: 0 | Y95: 0 | Z95: 0 | AA95: 0 | AB95: 0 | AC95: 0 | AD95: 0
A96: =SUBTOTAL(3,$B$5:B96) -> 0 | G96: 0 | K96: 0 | L96: 0 | M96: 0 | N96: 0 | O96: 0 | Q96: 0 | U96: 0 | V96: 0 | W96: 750 | X96: 0 | Y96: 0 | Z96: 0 | AA96: 0 | AB96: 0 | AC96: 0 | AD96: 0
A97: =SUBTOTAL(3,$B$5:B97) -> 0 | G97: 0 | L97: 0 | M97: 0 | N97: 0 | O97: 0 | Q97: 0 | U97: 0 | V97: 0 | W97: 750 | X97: 0 | Y97: 0 | Z97: 0 | AA97: 0 | AB97: 0 | AC97: 0 | AD97: 0
A98: =SUBTOTAL(3,$B$5:B98) -> 0 | G98: 0 | L98: 0 | M98: 0 | N98: 0 | O98: 0 | Q98: 0 | U98: 0 | V98: 0 | W98: 750 | X98: 0 | Y98: 0 | Z98: 0 | AA98: 0 | AB98: 0 | AC98: 0 | AD98: 0
A99: =SUBTOTAL(3,$B$5:B99) -> 0 | G99: 0 | L99: 0 | M99: 0 | N99: 0 | O99: 0 | Q99: 0 | U99: 0 | V99: 0 | W99: 750 | X99: 0 | Y99: 0 | Z99: 0 | AA99: 0 | AB99: 0 | AC99: 0 | AD99: 0
A100: =SUBTOTAL(3,$B$5:B100) -> 0 | G100: 0 | K100: 0 | L100: 0 | M100: 0 | N100: 0 | O100: 0 | Q100: 0 | U100: 0 | V100: 0 | W100: 750 | X100: 0 | Y100: 0 | Z100: 0 | AA100: 0 | AB100: 0 | AC100: 0 | AD100: 0
A101: =SUBTOTAL(3,$B$5:B101) -> 0 | F101: 0 | G101: 0 | K101: 0 | L101: 0 | M101: 0 | N101: 0 | O101: 0 | Q101: 0 | U101: 0 | V101: 0 | W101: 750 | X101: 0 | Y101: 0 | Z101: 0 | AA101: 0 | AB101: 0 | AC101: 0 | AD101: 0
A102: =SUBTOTAL(3,$B$5:B102) -> 0 | F102: 0 | G102: 0 | K102: 0 | L102: 0 | M102: 0 | N102: 0 | O102: 0 | Q102: 0 | U102: 0 | V102: 0 | W102: 750 | X102: 0 | Y102: 0 | Z102: 0 | AA102: 0 | AB102: 0 | AC102: 0 | AD102: 0
A103: =SUBTOTAL(3,$B$5:B103) -> 0 | F103: 0 | G103: 0 | K103: 0 | L103: 0 | M103: 0 | N103: 0 | O103: 0 | Q103: 0 | U103: 0 | V103: 0 | W103: 750 | X103: 0 | Y103: 0 | Z103: 0 | AA103: 0 | AB103: 0 | AC103: 0 | AD103: 0
A104: =SUBTOTAL(3,$B$5:B104) -> 0 | F104: 0 | G104: 0 | K104: 0 | L104: 0 | M104: 0 | N104: 0 | O104: 0 | Q104: 0 | U104: 0 | V104: 0 | W104: 750 | X104: 0 | Y104: 0 | Z104: 0 | AA104: 0 | AB104: 0 | AC104: 0 | AD104: 0
A105: =SUBTOTAL(3,$B$5:B105) -> 0 | F105: 0 | G105: 0 | K105: 0 | L105: 0 | M105: 0 | N105: 0 | O105: 0 | Q105: 0 | U105: 0 | V105: 0 | W105: 750 | X105: 0 | Y105: 0 | Z105: 0 | AA105: 0 | AB105: 0 | AC105: 0 | AD105: 0
A106: =SUBTOTAL(3,$B$5:B106) -> 0 | F106: 0 | G106: 0 | K106: 0 | L106: 0 | M106: 0 | N106: 0 | O106: 0 | Q106: 0 | U106: 0 | V106: 0 | W106: 750 | X106: 0 | Y106: 0 | Z106: 0 | AA106: 0 | AB106: 0 | AC106: 0 | AD106: 0
A107: =SUBTOTAL(3,$B$5:B107) -> 0 | F107: 0 | G107: 0 | K107: 0 | L107: 0 | M107: 0 | N107: 0 | O107: 0 | Q107: 0 | U107: 0 | V107: 0 | W107: 750 | X107: 0 | Y107: 0 | Z107: 0 | AA107: 0 | AB107: 0 | AC107: 0 | AD107: 0
A108: =SUBTOTAL(3,$B$5:B108) -> 0 | F108: 0 | G108: 0 | K108: 0 | L108: 0 | M108: 0 | N108: 0 | O108: 0 | Q108: 0 | U108: 0 | V108: 0 | W108: 750 | X108: 0 | Y108: 0 | Z108: 0 | AA108: 0 | AB108: 0 | AC108: 0 | AD108: 0
A109: =SUBTOTAL(3,$B$5:B109) -> 0 | F109: 0 | G109: 0 | K109: 0 | L109: 0 | M109: 0 | N109: 0 | O109: 0 | Q109: 0 | U109: 0 | V109: 0 | W109: 750 | X109: 0 | Y109: 0 | Z109: 0 | AA109: 0 | AB109: 0 | AC109: 0 | AD109: 0
A110: =SUBTOTAL(3,$B$5:B110) -> 0 | F110: 0 | G110: 0 | K110: 0 | L110: 0 | M110: 0 | N110: 0 | O110: 0 | Q110: 0 | U110: 0 | V110: 0 | W110: 750 | X110: 0 | Y110: 0 | Z110: 0 | AA110: 0 | AB110: 0 | AC110: 0 | AD110: 0
A111: =SUBTOTAL(3,$B$5:B111) -> 0 | F111: 0 | G111: 0 | K111: 0 | L111: 0 | M111: 0 | N111: 0 | O111: 0 | Q111: 0 | U111: 0 | V111: 0 | W111: 750 | X111: 0 | Y111: 0 | Z111: 0 | AA111: 0 | AB111: 0 | AC111: 0 | AD111: 0
A112: =SUBTOTAL(3,$B$5:B112) -> 0 | G112: 0 | K112: 0 | L112: 0 | M112: 0 | N112: 0 | O112: 0 | Q112: 0 | U112: 0 | V112: 0 | W112: 750 | X112: 0 | Y112: 0 | Z112: 0 | AA112: 0 | AB112: 0 | AC112: 0 | AD112: 0
A113: =SUBTOTAL(3,$B$5:B113) -> 0 | F113: 0 | G113: 0 | K113: 0 | L113: 0 | M113: 0 | N113: 0 | O113: 0 | Q113: 0 | U113: 0 | V113: 0 | W113: 750 | X113: 0 | Y113: 0 | Z113: 0 | AA113: 0 | AB113: 0 | AC113: 0 | AD113: 0
A114: =SUBTOTAL(3,$B$5:B114) -> 0 | F114: 0 | G114: 0 | K114: 0 | L114: 0 | M114: 0 | N114: 0 | O114: 0 | Q114: 0 | U114: 0 | V114: 0 | W114: 750 | X114: 0 | Y114: 0 | Z114: 0 | AA114: 0 | AB114: 0 | AC114: 0 | AD114: 0
A115: =SUBTOTAL(3,$B$5:B115) -> 0 | F115: 0 | G115: 0 | K115: 0 | L115: 0 | M115: 0 | N115: 0 | O115: 0 | Q115: 0 | U115: 0 | V115: 0 | W115: 750 | X115: 0 | Y115: 0 | Z115: 0 | AA115: 0 | AB115: 0 | AC115: 0 | AD115: 0
A116: =SUBTOTAL(3,$B$5:B116) -> 0 | F116: 0 | G116: 0 | K116: 0 | L116: 0 | M116: 0 | N116: 0 | O116: 0 | Q116: 0 | U116: 0 | V116: 0 | W116: 750 | X116: 0 | Y116: 0 | Z116: 0 | AA116: 0 | AB116: 0 | AC116: 0 | AD116: 0
A117: =SUBTOTAL(3,$B$5:B117) -> 0 | F117: 0 | G117: 0 | K117: 0 | L117: 0 | M117: 0 | N117: 0 | O117: 0 | Q117: 0 | U117: 0 | V117: 0 | W117: 750 | X117: 0 | Y117: 0 | Z117: 0 | AA117: 0 | AB117: 0 | AC117: 0 | AD117: 0
A118: =SUBTOTAL(3,$B$5:B118) -> 0 | F118: 0 | G118: 0 | K118: 0 | L118: 0 | M118: 0 | N118: 0 | O118: 0 | Q118: 0 | U118: 0 | V118: 0 | W118: 750 | X118: 0 | Y118: 0 | Z118: 0 | AA118: 0 | AB118: 0 | AC118: 0 | AD118: 0
A119: =SUBTOTAL(3,$B$5:B119) -> 0 | F119: 0 | G119: 0 | K119: 0 | L119: 0 | M119: 0 | N119: 0 | O119: 0 | Q119: 0 | U119: 0 | V119: 0 | W119: 750 | X119: 0 | Y119: 0 | Z119: 0 | AA119: 0 | AB119: 0 | AC119: 0 | AD119: 0
A120: =SUBTOTAL(3,$B$5:B120) -> 0 | F120: 0 | G120: 0 | K120: 0 | L120: 0 | M120: 0 | N120: 0 | O120: 0 | Q120: 0 | U120: 0 | V120: 0 | W120: 750 | X120: 0 | Y120: 0 | Z120: 0 | AA120: 0 | AB120: 0 | AC120: 0 | AD120: 0
A121: =SUBTOTAL(3,$B$5:B121) -> 0 | F121: 0 | G121: 0 | K121: 0 | L121: 0 | M121: 0 | N121: 0 | O121: 0 | Q121: 0 | U121: 0 | V121: 0 | W121: 750 | X121: 0 | Y121: 0 | Z121: 0 | AA121: 0 | AB121: 0 | AC121: 0 | AD121: 0
A122: =SUBTOTAL(3,$B$5:B122) -> 0 | G122: 0 | K122: 0 | L122: 0 | M122: 0 | N122: 0 | O122: 0 | Q122: 0 | U122: 0 | V122: 0 | W122: 750 | X122: 0 | Y122: 0 | Z122: 0 | AA122: 0 | AB122: 0 | AC122: 0 | AD122: 0
A123: =SUBTOTAL(3,$B$5:B123) -> 0 | G123: 0 | K123: 0 | L123: 0 | M123: 0 | N123: 0 | O123: 0 | Q123: 0 | U123: 0 | V123: 0 | W123: 750 | X123: 0 | Y123: 0 | Z123: 0 | AA123: 0 | AB123: 0 | AC123: 0 | AD123: 0
A124: =SUBTOTAL(3,$B$5:B124) -> 0 | F124: 0 | G124: 0 | K124: 0 | L124: 0 | M124: 0 | N124: 0 | O124: 0 | Q124: 0 | U124: 0 | V124: 0 | W124: 750 | X124: 0 | Y124: 0 | Z124: 0 | AA124: 0 | AB124: 0 | AC124: 0 | AD124: 0
A125: الاجمالى | F125: =SUM(F5:F124) -> 0 | G125: 0 | H125: 0 | I125: 0 | J125: 0 | K125: 0 | L125: 0 | M125: 0 | N125: 0 | O125: 0 | P125: 8 | Q125: 0 | R125: 0 | S125: 0 | T125: 0 | U125: 0 | V125: 0 | W125: 90000 | X125: 0 | Y125: 0 | Z125: 0 | AA125: =SUM(AA5:AA124) -> 0 | AB125: =SUM(AB5:AB124) -> 0 | AC125: 0 | AD125: 0
E127: الموارد البشرية | U127: الرئيس التنفيذي للشركة د . عمرو العدل
U128: د. عمرو العدل

Sheet يونية
A4: م | B4: الاسم | C4: الوظيفة | D4: الادارة | E4: ATM | F4: الاجر الاساسى | G4: الاجر الاساسى بعد عدم الحضور | H4: مكافأت | I4: حافز بيع | J4: اضافى | K4: الاجر التامينى | L4: المنشأة | M4: اجمالي الاستحقاقات | N4: المنشأة2 | O4: الموظف | P4: عدم الحضور باليوم | Q4: عدم حضور بالجنيه | R4: مصروف صيانه | S4: سلف | T4: جزاءات | U4: اجمالي الاستقطاعات | V4: قبل الضريبة | W4: اعفاء شخصى | X4: الوعاء الضريبى | Y4: الوعاء الضريبى على اساس السنوى | Z4: الضريبة المستحقة | AA4: الصافى | AB4: خصم تكافلي | AC4: خصم الشهيد | AD4: الصافي المستحق للصرف
A5: 1 | G5: =F5-Q5 -> 0 | H5: 0 | I5: 0 | J5: 0 | K5: =IF(F5>8100,8100,F5*0.8) -> 0 | L5: =K5*18.75/100 -> 0 | M5: =F5+H5+I5+J5 -> 0 | N5: =L5 -> 0 | O5: =K5*0.11 -> 0 | Q5: =P5*F5/30 -> 0 | U5: =Q5+S5+T5+O5+R5 -> 0 | V5: =M5-O5-Q5 -> 0 | W5: 750 | X5: =IF((V5+J5)>W5,(V5+J5)-W5,0) -> 0 | Y5: =X5*12 -> 0 | Z5: =IF((Y5<=15000),(Y5*0%),IF((Y5<=30000),(Y5*2.5%)-375,IF((Y5<=45000),(Y5*10%)-2625,IF((Y5<=60000),(Y5*15%)-4875,IF((Y5<=200000),(Y5*20%)-7875,IF((Y5<=400000),(Y5*22.5%)-12875,IF((Y5<=600000),(Y5*25%)-22875,IF((Y5<=700000),(Y5*25%)-22500,IF((Y5<=800000),(Y5*25%)-20250,IF((Y5<=900000),(Y5*25%)-18000,IF((Y5<=1000000),(Y5*25%)-15000,IF((Y5>=1000000),(Y5*25%)-10000)))))))))))/12) -> 0 | AA5: =M5-Q5-S5-T5-Z5-O5-R5 -> 0 | AB5: =AA5*0.01 -> 0 | AC5: =IF(M5<=2000,0,M5*0.0005) -> 0 | AD5: =AA5-AB5-AC5 -> 0
A6: =SUBTOTAL(3,$B$5:B6) -> 0 | G6: 0 | K6: 0 | L6: 0 | M6: 0 | N6: 0 | O6: 0 | Q6: 0 | U6: 0 | V6: =M6-O6-Q6 -> 0 | W6: 750 | X6: 0 | Y6: 0 | Z6: =IF((Y6<=15000),(Y6*0%),IF((Y6<=30000),(Y6*2.5%)-375,IF((Y6<=45000),(Y6*10%)-2625,IF((Y6<=60000),(Y6*15%)-4875,IF((Y6<=200000),(Y6*20%)-7875,IF((Y6<=400000),(Y6*22.5%)-12875,IF((Y6<=600000),(Y6*25%)-22875,IF((Y6<=700000),(Y6*25%)-22500,IF((Y6<=800000),(Y6*25%)-20250,IF((Y6<=900000),(Y6*25%)-18000,IF((Y6<=1000000),(Y6*25%)-15000,IF((Y6>=1000000),(Y6*25%)-10000)))))))))))/12) -> 0 | AA6: 0 | AB6: =AA6*0.01 -> 0 | AC6: =IF(M6<=2000,0,M6*0.0005) -> 0 | AD6: =AA6-AB6-AC6 -> 0
A7: =SUBTOTAL(3,$B$5:B7) -> 0 | G7: 0 | K7: 0 | L7: 0 | M7: 0 | N7: 0 | O7: 0 | Q7: 0 | U7: 0 | V7: 0 | W7: 750 | X7: 0 | Y7: 0 | Z7: 0 | AA7: 0 | AB7: 0 | AC7: 0 | AD7: 0
A8: =SUBTOTAL(3,$B$5:B8) -> 0 | G8: 0 | K8: 0 | L8: 0 | M8: 0 | N8: 0 | O8: 0 | Q8: 0 | U8: 0 | V8: 0 | W8: 750 | X8: 0 | Y8: 0 | Z8: 0 | AA8: 0 | AB8: 0 | AC8: 0 | AD8: 0
A9: =SUBTOTAL(3,$B$5:B9) -> 0 | G9: 0 | K9: 0 | L9: 0 | M9: 0 | N9: 0 | O9: 0 | Q9: 0 | U9: 0 | V9: 0 | W9: 750 | X9: 0 | Y9: 0 | Z9: 0 | AA9: 0 | AB9: 0 | AC9: 0 | AD9: 0
A10: =SUBTOTAL(3,$B$5:B10) -> 0 | G10: 0 | K10: 0 | L10: 0 | M10: 0 | N10: 0 | O10: 0 | Q10: 0 | U10: 0 | V10: 0 | W10: 750 | X10: 0 | Y10: 0 | Z10: 0 | AA10: 0 | AB10: 0 | AC10: 0 | AD10: 0
A11: =SUBTOTAL(3,$B$5:B11) -> 0 | G11: 0 | L11: 0 | M11: 0 | N11: 0 | O11: 0 | P11: 8 | Q11: 0 | U11: 0 | V11: 0 | W11: 750 | X11: 0 | Y11: 0 | Z11: 0 | AA11: 0 | AB11: 0 | AC11: 0 | AD11: 0
A12: =SUBTOTAL(3,$B$5:B12) -> 0 | G12: 0 | K12: 0 | L12: 0 | M12: 0 | N12: 0 | O12: 0 | Q12: 0 | U12: 0 | V12: 0 | W12: 750 | X12: 0 | Y12: 0 | Z12: 0 | AA12: 0 | AB12: 0 | AC12: 0 | AD12: 0
A13: =SUBTOTAL(3,$B$5:B13) -> 0 | G13: 0 | K13: 0 | L13: 0 | M13: 0 | N13: 0 | O13: 0 | Q13: 0 | U13: 0 | V13: 0 | W13: 750 | X13: 0 | Y13: 0 | Z13: 0 | AA13: 0 | AB13: 0 | AC13: 0 | AD13: 0
A14: =SUBTOTAL(3,$B$5:B14) -> 0 | G14: 0 | K14: 0 | L14: 0 | M14: 0 | N14: 0 | O14: 0 | Q14: 0 | U14: 0 | V14: 0 | W14: 750 | X14: 0 | Y14: 0 | Z14: 0 | AA14: 0 | AB14: 0 | AC14: 0 | AD14: 0
A15: =SUBTOTAL(3,$B$5:B15) -> 0 | G15: 0 | K15: 0 | L15: 0 | M15: 0 | N15: 0 | O15: 0 | Q15: 0 | U15: 0 | V15: 0 | W15: 750 | X15: 0 | Y15: 0 | Z15: 0 | AA15: 0 | AB15: 0 | AC15: 0 | AD15: 0
A16: =SUBTOTAL(3,$B$5:B16) -> 0 | G16: 0 | K16: 0 | L16: 0 | M16: 0 | N16: 0 | O16: 0 | Q16: 0 | U16: 0 | V16: 0 | W16: 750 | X16: 0 | Y16: 0 | Z16: 0 | AA16: 0 | AB16: 0 | AC16: 0 | AD16: 0
A17: =SUBTOTAL(3,$B$5:B17) -> 0 | G17: 0 | K17: 0 | L17: 0 | M17: 0 | N17: 0 | O17: 0 | Q17: 0 | U17: 0 | V17: 0 | W17: 750 | X17: 0 | Y17: 0 | Z17: 0 | AA17: 0 | AB17: 0 | AC17: 0 | AD17: 0
A18: =SUBTOTAL(3,$B$5:B18) -> 0 | G18: 0 | K18: 0 | L18: 0 | M18: 0 | N18: 0 | O18: 0 | Q18: 0 | U18: 0 | V18: 0 | W18: 750 | X18: 0 | Y18: 0 | Z18: 0 | AA18: 0 | AB18: 0 | AC18: 0 | AD18: 0
A19: =SUBTOTAL(3,$B$5:B19) -> 0 | G19: 0 | K19: 0 | L19: 0 | M19: 0 | N19: 0 | O19: 0 | Q19: 0 | U19: 0 | V19: 0 | W19: 750 | X19: 0 | Y19: 0 | Z19: 0 | AA19: 0 | AB19: 0 | AC19: 0 | AD19: 0
A20: =SUBTOTAL(3,$B$5:B20) -> 0 | G20: 0 | K20: 0 | L20: 0 | M20: 0 | N20: 0 | O20: 0 | Q20: 0 | U20: 0 | V20: 0 | W20: 750 | X20: 0 | Y20: 0 | Z20: 0 | AA20: 0 | AB20: 0 | AC20: 0 | AD20: 0
A21: =SUBTOTAL(3,$B$5:B21) -> 0 | G21: 0 | K21: 0 | L21: 0 | M21: 0 | N21: 0 | O21: 0 | Q21: 0 | U21: 0 | V21: 0 | W21: 750 | X21: 0 | Y21: 0 | Z21: 0 | AA21: 0 | AB21: 0 | AC21: 0 | AD21: 0
A22: =SUBTOTAL(3,$B$5:B22) -> 0 | G22: 0 | K22: 0 | L22: 0 | M22: 0 | N22: 0 | O22: 0 | Q22: 0 | U22: 0 | V22: 0 | W22: 750 | X22: 0 | Y22: 0 | Z22: 0 | AA22: 0 | AB22: 0 | AC22: 0 | AD22: 0
A23: =SUBTOTAL(3,$B$5:B23) -> 0 | G23: 0 | K23: 0 | L23: 0 | M23: 0 | N23: 0 | O23: 0 | Q23: 0 | U23: 0 | V23: 0 | W23: 750 | X23: 0 | Y23: 0 | Z23: 0 | AA23: 0 | AB23: 0 | AC23: 0 | AD23: 0
A24: =SUBTOTAL(3,$B$5:B24) -> 0 | G24: =F24-Q24 -> 0 | K24: =IF(F24>8100,8100,F24*0.8) -> 0 | L24: =K24*18.75/100 -> 0 | M24: =F24+H24+I24+J24 -> 0 | N24: =L24 -> 0 | O24: =K24*0.11 -> 0 | Q24: =P24*F24/30 -> 0 | U24: =Q24+S24+T24+O24+R24 -> 0 | V24: =M24-O24-Q24 -> 0 | W24: 750 | X24: =IF((V24+J24)>W24,(V24+J24)-W24,0) -> 0 | Y24: =X24*12 -> 0 | Z24: =IF((Y24<=15000),(Y24*0%),IF((Y24<=30000),(Y24*2.5%)-375,IF((Y24<=45000),(Y24*10%)-2625,IF((Y24<=60000),(Y24*15%)-4875,IF((Y24<=200000),(Y24*20%)-7875,IF((Y24<=400000),(Y24*22.5%)-12875,IF((Y24<=600000),(Y24*25%)-22875,IF((Y24<=700000),(Y24*25%)-22500,IF((Y24<=800000),(Y24*25%)-20250,IF((Y24<=900000),(Y24*25%)-18000,IF((Y24<=1000000),(Y24*25%)-15000,IF((Y24>=1000000),(Y24*25%)-10000)))))))))))/12) -> 0 | AA24: =M24-Q24-S24-T24-Z24-O24-R24 -> 0 | AB24: 0 | AC24: 0 | AD24: 0
A25: =SUBTOTAL(3,$B$5:B25) -> 0 | G25: 0 | K25: 0 | L25: 0 | M25: 0 | N25: 0 | O25: 0 | Q25: 0 | U25: 0 | V25: 0 | W25: 750 | X25: 0 | Y25: 0 | Z25: 0 | AA25: 0 | AB25: 0 | AC25: 0 | AD25: 0
A26: =SUBTOTAL(3,$B$5:B26) -> 0 | G26: 0 | K26: 0 | L26: 0 | M26: 0 | N26: 0 | O26: 0 | Q26: 0 | U26: 0 | V26: 0 | W26: 750 | X26: 0 | Y26: 0 | Z26: 0 | AA26: 0 | AB26: 0 | AC26: 0 | AD26: 0
A27: =SUBTOTAL(3,$B$5:B27) -> 0 | G27: 0 | K27: 0 | L27: 0 | M27: 0 | N27: 0 | O27: 0 | Q27: 0 | U27: 0 | V27: 0 | W27: 750 | X27: 0 | Y27: 0 | Z27: 0 | AA27: 0 | AB27: 0 | AC27: 0 | AD27: 0
A28: =SUBTOTAL(3,$B$5:B28) -> 0 | G28: =F28-Q28 -> 0 | K28: =IF(F28>8100,8100,F28*0.8) -> 0 | L28: =K28*18.75/100 -> 0 | M28: =F28+H28+I28+J28 -> 0 | N28: =L28 -> 0 | O28: =K28*0.11 -> 0 | Q28: =P28*F28/30 -> 0 | U28: =Q28+S28+T28+O28+R28 -> 0 | V28: 0 | W28: 750 | X28: =IF((V28+J28)>W28,(V28+J28)-W28,0) -> 0 | Y28: =X28*12 -> 0 | Z28: =IF((Y28<=15000),(Y28*0%),IF((Y28<=30000),(Y28*2.5%)-375,IF((Y28<=45000),(Y28*10%)-2625,IF((Y28<=60000),(Y28*15%)-4875,IF((Y28<=200000),(Y28*20%)-7875,IF((Y28<=400000),(Y28*22.5%)-12875,IF((Y28<=600000),(Y28*25%)-22875,IF((Y28<=700000),(Y28*25%)-22500,IF((Y28<=800000),(Y28*25%)-20250,IF((Y28<=900000),(Y28*25%)-18000,IF((Y28<=1000000),(Y28*25%)-15000,IF((Y28>=1000000),(Y28*25%)-10000)))))))))))/12) -> 0 | AA28: =M28-Q28-S28-T28-Z28-O28-R28 -> 0 | AB28: 0 | AC28: 0 | AD28: 0
A29: =SUBTOTAL(3,$B$5:B29) -> 0 | G29: =F29-Q29 -> 0 | K29: =IF(F29>8100,8100,F29*0.8) -> 0 | L29: =K29*18.75/100 -> 0 | M29: =F29+H29+I29+J29 -> 0 | N29: =L29 -> 0 | O29: =K29*0.11 -> 0 | Q29: =P29*F29/30 -> 0 | U29: =Q29+S29+T29+O29+R29 -> 0 | V29: =M29-O29-Q29 -> 0 | W29: 750 | X29: =IF((V29+J29)>W29,(V29+J29)-W29,0) -> 0 | Y29: =X29*12 -> 0 | Z29: =IF((Y29<=15000),(Y29*0%),IF((Y29<=30000),(Y29*2.5%)-375,IF((Y29<=45000),(Y29*10%)-2625,IF((Y29<=60000),(Y29*15%)-4875,IF((Y29<=200000),(Y29*20%)-7875,IF((Y29<=400000),(Y29*22.5%)-12875,IF((Y29<=600000),(Y29*25%)-22875,IF((Y29<=700000),(Y29*25%)-22500,IF((Y29<=800000),(Y29*25%)-20250,IF((Y29<=900000),(Y29*25%)-18000,IF((Y29<=1000000),(Y29*25%)-15000,IF((Y29>=1000000),(Y29*25%)-10000)))))))))))/12) -> 0 | AA29: =M29-Q29-S29-T29-Z29-O29-R29 -> 0 | AB29: 0 | AC29: 0 | AD29: 0
A30: =SUBTOTAL(3,$B$5:B30) -> 0 | G30: =F30-Q30 -> 0 | K30: =IF(F30>8100,8100,F30*0.8) -> 0 | L30: =K30*18.75/100 -> 0 | M30: =F30+H30+I30+J30 -> 0 | N30: =L30 -> 0 | O30: =K30*0.11 -> 0 | Q30: =P30*F30/30 -> 0 | U30: =Q30+S30+T30+O30+R30 -> 0 | V30: =M30-O30-Q30 -> 0 | W30: 750 | X30: =IF((V30+J30)>W30,(V30+J30)-W30,0) -> 0 | Y30: =X30*12 -> 0 | Z30: =IF((Y30<=15000),(Y30*0%),IF((Y30<=30000),(Y30*2.5%)-375,IF((Y30<=45000),(Y30*10%)-2625,IF((Y30<=60000),(Y30*15%)-4875,IF((Y30<=200000),(Y30*20%)-7875,IF((Y30<=400000),(Y30*22.5%)-12875,IF((Y30<=600000),(Y30*25%)-22875,IF((Y30<=700000),(Y30*25%)-22500,IF((Y30<=800000),(Y30*25%)-20250,IF((Y30<=900000),(Y30*25%)-18000,IF((Y30<=1000000),(Y30*25%)-15000,IF((Y30>=1000000),(Y30*25%)-10000)))))))))))/12) -> 0 | AA30: =M30-Q30-S30-T30-Z30-O30-R30 -> 0 | AB30: 0 | AC30: 0 | AD30: 0
A31: =SUBTOTAL(3,$B$5:B31) -> 0 | G31: 0 | K31: 0 | L31: 0 | M31: 0 | N31: 0 | O31: 0 | Q31: 0 | U31: 0 | V31: 0 | W31: 750 | X31: 0 | Y31: 0 | Z31: 0 | AA31: 0 | AB31: 0 | AC31: 0 | AD31: 0
A32: =SUBTOTAL(3,$B$5:B32) -> 0 | G32: 0 | K32: 0 | L32: 0 | M32: 0 | N32: 0 | O32: 0 | Q32: 0 | U32: 0 | V32: 0 | W32: 750 | X32: 0 | Y32: 0 | Z32: 0 | AA32: 0 | AB32: 0 | AC32: 0 | AD32: 0
A33: =SUBTOTAL(3,$B$5:B33) -> 0 | G33: 0 | K33: 0 | L33: 0 | M33: 0 | N33: 0 | O33: 0 | Q33: 0 | U33: 0 | V33: 0 | W33: 750 | X33: 0 | Y33: 0 | Z33: 0 | AA33: 0 | AB33: 0 | AC33: 0 | AD33: 0 | AE33: 8393 | AG33: =AA33-AE33 -> -8393
A34: =SUBTOTAL(3,$B$5:B34) -> 0 | G34: =F34-Q34 -> 0 | K34: =IF(F34>8100,8100,F34*0.8) -> 0 | L34: =K34*18.75/100 -> 0 | M34: =F34+H34+I34+J34 -> 0 | N34: =L34 -> 0 | O34: =K34*0.11 -> 0 | Q34: =P34*F34/30 -> 0 | U34: =Q34+S34+T34+O34+R34 -> 0 | V34: =M34-O34-Q34 -> 0 | W34: 750 | X34: =IF((V34+J34)>W34,(V34+J34)-W34,0) -> 0 | Y34: =X34*12 -> 0 | Z34: =IF((Y34<=15000),(Y34*0%),IF((Y34<=30000),(Y34*2.5%)-375,IF((Y34<=45000),(Y34*10%)-2625,IF((Y34<=60000),(Y34*15%)-4875,IF((Y34<=200000),(Y34*20%)-7875,IF((Y34<=400000),(Y34*22.5%)-12875,IF((Y34<=600000),(Y34*25%)-22875,IF((Y34<=700000),(Y34*25%)-22500,IF((Y34<=800000),(Y34*25%)-20250,IF((Y34<=900000),(Y34*25%)-18000,IF((Y34<=1000000),(Y34*25%)-15000,IF((Y34>=1000000),(Y34*25%)-10000)))))))))))/12) -> 0 | AA34: =M34-Q34-S34-T34-Z34-O34-R34 -> 0 | AB34: 0 | AC34: 0 | AD34: 0
A35: =SUBTOTAL(3,$B$5:B35) -> 0 | G35: 0 | K35: 0 | L35: 0 | M35: 0 | N35: 0 | O35: 0 | Q35: 0 | U35: 0 | V35: 0 | W35: 750 | X35: 0 | Y35: 0 | Z35: 0 | AA35: 0 | AB35: 0 | AC35: 0 | AD35: 0
A36: =SUBTOTAL(3,$B$5:B36) -> 0 | G36: 0 | K36: 0 | L36: 0 | M36: 0 | N36: 0 | O36: 0 | Q36: 0 | U36: 0 | V36: 0 | W36: 750 | X36: 0 | Y36: 0 | Z36: 0 | AA36: 0 | AB36: 0 | AC36: 0 | AD36: 0
A37: =SUBTOTAL(3,$B$5:B37) -> 0 | G37: 0 | K37: 0 | L37: 0 | M37: 0 | N37: 0 | O37: 0 | Q37: 0 | U37: 0 | V37: 0 | W37: 750 | X37: 0 | Y37: 0 | Z37: 0 | AA37: 0 | AB37: 0 | AC37: 0 | AD37: 0
A38: =SUBTOTAL(3,$B$5:B38) -> 0 | G38: 0 | K38: 0 | L38: 0 | M38: 0 | N38: 0 | O38: 0 | Q38: 0 | U38: 0 | V38: 0 | W38: 750 | X38: 0 | Y38: 0 | Z38: 0 | AA38: 0 | AB38: 0 | AC38: 0 | AD38: 0
A39: =SUBTOTAL(3,$B$5:B39) -> 0 | G39: 0 | K39: 0 | L39: 0 | M39: 0 | N39: 0 | O39: 0 | Q39: 0 | U39: 0 | V39: 0 | W39: 750 | X39: 0 | Y39: 0 | Z39: 0 | AA39: 0 | AB39: 0 | AC39: 0 | AD39: 0
A40: =SUBTOTAL(3,$B$5:B40) -> 0 | G40: 0 | K40: 0 | L40: 0 | M40: 0 | N40: 0 | O40: 0 | Q40: 0 | U40: 0 | V40: 0 | W40: 750 | X40: 0 | Y40: 0 | Z40: 0 | AA40: 0 | AB40: 0 | AC40: 0 | AD40: 0
A41: =SUBTOTAL(3,$B$5:B41) -> 0 | G41: =F41-Q41 -> 0 | K41: =IF(F41>8100,8100,F41*0.8) -> 0 | L41: =K41*18.75/100 -> 0 | M41: =F41+H41+I41+J41 -> 0 | N41: =L41 -> 0 | O41: =K41*0.11 -> 0 | Q41: =P41*F41/30 -> 0 | U41: =Q41+S41+T41+O41+R41 -> 0 | V41: =M41-O41-Q41 -> 0 | W41: 750 | X41: =IF((V41+J41)>W41,(V41+J41)-W41,0) -> 0 | Y41: =X41*12 -> 0 | Z41: =IF((Y41<=15000),(Y41*0%),IF((Y41<=30000),(Y41*2.5%)-375,IF((Y41<=45000),(Y41*10%)-2625,IF((Y41<=60000),(Y41*15%)-4875,IF((Y41<=200000),(Y41*20%)-7875,IF((Y41<=400000),(Y41*22.5%)-12875,IF((Y41<=600000),(Y41*25%)-22875,IF((Y41<=700000),(Y41*25%)-22500,IF((Y41<=800000),(Y41*25%)-20250,IF((Y41<=900000),(Y41*25%)-18000,IF((Y41<=1000000),(Y41*25%)-15000,IF((Y41>=1000000),(Y41*25%)-10000)))))))))))/12) -> 0 | AA41: =M41-Q41-S41-T41-Z41-O41-R41 -> 0 | AB41: 0 | AC41: 0 | AD41: 0
A42: =SUBTOTAL(3,$B$5:B42) -> 0 | G42: 0 | K42: 0 | L42: 0 | M42: 0 | N42: 0 | O42: 0 | Q42: 0 | U42: 0 | V42: 0 | W42: 750 | X42: 0 | Y42: 0 | Z42: 0 | AA42: 0 | AB42: 0 | AC42: 0 | AD42: 0
A43: =SUBTOTAL(3,$B$5:B43) -> 0 | G43: =F43-Q43 -> 0 | K43: =IF(F43>8100,8100,F43*0.8) -> 0 | L43: =K43*18.75/100 -> 0 | M43: =F43+H43+I43+J43 -> 0 | N43: =L43 -> 0 | O43: =K43*0.11 -> 0 | Q43: =P43*F43/30 -> 0 | U43: =Q43+S43+T43+O43+R43 -> 0 | V43: =M43-O43-Q43 -> 0 | W43: 750 | X43: =IF((V43+J43)>W43,(V43+J43)-W43,0) -> 0 | Y43: =X43*12 -> 0 | Z43: =IF((Y43<=15000),(Y43*0%),IF((Y43<=30000),(Y43*2.5%)-375,IF((Y43<=45000),(Y43*10%)-2625,IF((Y43<=60000),(Y43*15%)-4875,IF((Y43<=200000),(Y43*20%)-7875,IF((Y43<=400000),(Y43*22.5%)-12875,IF((Y43<=600000),(Y43*25%)-22875,IF((Y43<=700000),(Y43*25%)-22500,IF((Y43<=800000),(Y43*25%)-20250,IF((Y43<=900000),(Y43*25%)-18000,IF((Y43<=1000000),(Y43*25%)-15000,IF((Y43>=1000000),(Y43*25%)-10000)))))))))))/12) -> 0 | AA43: =M43-Q43-S43-T43-Z43-O43-R43 -> 0 | AB43: 0 | AC43: 0 | AD43: 0
A44: =SUBTOTAL(3,$B$5:B44) -> 0 | G44: =F44-Q44 -> 0 | K44: =IF(F44>8100,8100,F44*0.8) -> 0 | L44: =K44*18.75/100 -> 0 | M44: =F44+H44+I44+J44 -> 0 | N44: =L44 -> 0 | O44: =K44*0.11 -> 0 | Q44: =P44*F44/30 -> 0 | U44: =Q44+S44+T44+O44+R44 -> 0 | V44: =M44-O44-Q44 -> 0 | W44: 750 | X44: =IF((V44+J44)>W44,(V44+J44)-W44,0) -> 0 | Y44: =X44*12 -> 0 | Z44: =IF((Y44<=15000),(Y44*0%),IF((Y44<=30000),(Y44*2.5%)-375,IF((Y44<=45000),(Y44*10%)-2625,IF((Y44<=60000),(Y44*15%)-4875,IF((Y44<=200000),(Y44*20%)-7875,IF((Y44<=400000),(Y44*22.5%)-12875,IF((Y44<=600000),(Y44*25%)-22875,IF((Y44<=700000),(Y44*25%)-22500,IF((Y44<=800000),(Y44*25%)-20250,IF((Y44<=900000),(Y44*25%)-18000,IF((Y44<=1000000),(Y44*25%)-15000,IF((Y44>=1000000),(Y44*25%)-10000)))))))))))/12) -> 0 | AA44: =M44-Q44-S44-T44-Z44-O44-R44 -> 0 | AB44: 0 | AC44: 0 | AD44: 0
A45: =SUBTOTAL(3,$B$5:B45) -> 0 | G45: =F45-Q45 -> 0 | K45: =IF(F45>8100,8100,F45*0.8) -> 0 | L45: =K45*18.75/100 -> 0 | M45: =F45+H45+I45+J45 -> 0 | N45: =L45 -> 0 | O45: =K45*0.11 -> 0 | Q45: =P45*F45/30 -> 0 | U45: =Q45+S45+T45+O45+R45 -> 0 | V45: =M45-O45-Q45 -> 0 | W45: 750 | X45: =IF((V45+J45)>W45,(V45+J45)-W45,0) -> 0 | Y45: =X45*12 -> 0 | Z45: =IF((Y45<=15000),(Y45*0%),IF((Y45<=30000),(Y45*2.5%)-375,IF((Y45<=45000),(Y45*10%)-2625,IF((Y45<=60000),(Y45*15%)-4875,IF((Y45<=200000),(Y45*20%)-7875,IF((Y45<=400000),(Y45*22.5%)-12875,IF((Y45<=600000),(Y45*25%)-22875,IF((Y45<=700000),(Y45*25%)-22500,IF((Y45<=800000),(Y45*25%)-20250,IF((Y45<=900000),(Y45*25%)-18000,IF((Y45<=1000000),(Y45*25%)-15000,IF((Y45>=1000000),(Y45*25%)-10000)))))))))))/12) -> 0 | AA45: =M45-Q45-S45-T45-Z45-O45-R45 -> 0 | AB45: 0 | AC45: 0 | AD45: 0
A46: =SUBTOTAL(3,$B$5:B46) -> 0 | G46: =F46-Q46 -> 0 | K46: =IF(F46>8100,8100,F46*0.8) -> 0 | L46: =K46*18.75/100 -> 0 | M46: =F46+H46+I46+J46 -> 0 | N46: =L46 -> 0 | O46: =K46*0.11 -> 0 | Q46: =P46*F46/30 -> 0 | U46: =Q46+S46+T46+O46+R46 -> 0 | V46: =M46-O46-Q46 -> 0 | W46: 750 | X46: =IF((V46+J46)>W46,(V46+J46)-W46,0) -> 0 | Y46: =X46*12 -> 0 | Z46: =IF((Y46<=15000),(Y46*0%),IF((Y46<=30000),(Y46*2.5%)-375,IF((Y46<=45000),(Y46*10%)-2625,IF((Y46<=60000),(Y46*15%)-4875,IF((Y46<=200000),(Y46*20%)-7875,IF((Y46<=400000),(Y46*22.5%)-12875,IF((Y46<=600000),(Y46*25%)-22875,IF((Y46<=700000),(Y46*25%)-22500,IF((Y46<=800000),(Y46*25%)-20250,IF((Y46<=900000),(Y46*25%)-18000,IF((Y46<=1000000),(Y46*25%)-15000,IF((Y46>=1000000),(Y46*25%)-10000)))))))))))/12) -> 0 | AA46: =M46-Q46-S46-T46-Z46-O46-R46 -> 0 | AB46: 0 | AC46: 0 | AD46: 0
A47: =SUBTOTAL(3,$B$5:B47) -> 0 | G47: 0 | K47: 0 | L47: 0 | M47: 0 | N47: 0 | O47: 0 | Q47: 0 | U47: 0 | V47: 0 | W47: 750 | X47: 0 | Y47: 0 | Z47: 0 | AA47: 0 | AB47: 0 | AC47: 0 | AD47: 0
A48: =SUBTOTAL(3,$B$5:B48) -> 0 | G48: 0 | K48: 0 | L48: 0 | M48: 0 | N48: 0 | O48: 0 | Q48: 0 | U48: 0 | V48: 0 | W48: 750 | X48: 0 | Y48: 0 | Z48: 0 | AA48: 0 | AB48: 0 | AC48: 0 | AD48: 0
A49: =SUBTOTAL(3,$B$5:B49) -> 0 | G49: 0 | K49: 0 | L49: 0 | M49: 0 | N49: 0 | O49: 0 | Q49: 0 | U49: 0 | V49: 0 | W49: 750 | X49: 0 | Y49: 0 | Z49: 0 | AA49: 0 | AB49: 0 | AC49: 0 | AD49: 0
A50: =SUBTOTAL(3,$B$5:B50) -> 0 | G50: =F50-Q50 -> 0 | K50: =IF(F50>8100,8100,F50*0.8) -> 0 | L50: =K50*18.75/100 -> 0 | M50: =F50+H50+I50+J50 -> 0 | N50: =L50 -> 0 | O50: =K50*0.11 -> 0 | Q50: =P50*F50/30 -> 0 | U50: =Q50+S50+T50+O50+R50 -> 0 | V50: =M50-O50-Q50 -> 0 | W50: 750 | X50: =IF((V50+J50)>W50,(V50+J50)-W50,0) -> 0 | Y50: =X50*12 -> 0 | Z50: =IF((Y50<=15000),(Y50*0%),IF((Y50<=30000),(Y50*2.5%)-375,IF((Y50<=45000),(Y50*10%)-2625,IF((Y50<=60000),(Y50*15%)-4875,IF((Y50<=200000),(Y50*20%)-7875,IF((Y50<=400000),(Y50*22.5%)-12875,IF((Y50<=600000),(Y50*25%)-22875,IF((Y50<=700000),(Y50*25%)-22500,IF((Y50<=800000),(Y50*25%)-20250,IF((Y50<=900000),(Y50*25%)-18000,IF((Y50<=1000000),(Y50*25%)-15000,IF((Y50>=1000000),(Y50*25%)-10000)))))))))))/12) -> 0 | AA50: =M50-Q50-S50-T50-Z50-O50-R50 -> 0 | AB50: 0 | AC50: 0 | AD50: 0
A51: =SUBTOTAL(3,$B$5:B51) -> 0 | G51: 0 | K51: 0 | L51: 0 | M51: 0 | N51: 0 | O51: 0 | Q51: 0 | U51: 0 | V51: 0 | W51: 750 | X51: 0 | Y51: 0 | Z51: 0 | AA51: 0 | AB51: 0 | AC51: 0 | AD51: 0
A52: =SUBTOTAL(3,$B$5:B52) -> 0 | G52: =F52-Q52 -> 0 | K52: =IF(F52>8100,8100,F52*0.8) -> 0 | L52: =K52*18.75/100 -> 0 | M52: =F52+H52+I52+J52 -> 0 | N52: =L52 -> 0 | O52: =K52*0.11 -> 0 | Q52: =P52*F52/30 -> 0 | U52: =Q52+S52+T52+O52+R52 -> 0 | V52: 0 | W52: 750 | X52: =IF((V52+J52)>W52,(V52+J52)-W52,0) -> 0 | Y52: =X52*12 -> 0 | Z52: =IF((Y52<=15000),(Y52*0%),IF((Y52<=30000),(Y52*2.5%)-375,IF((Y52<=45000),(Y52*10%)-2625,IF((Y52<=60000),(Y52*15%)-4875,IF((Y52<=200000),(Y52*20%)-7875,IF((Y52<=400000),(Y52*22.5%)-12875,IF((Y52<=600000),(Y52*25%)-22875,IF((Y52<=700000),(Y52*25%)-22500,IF((Y52<=800000),(Y52*25%)-20250,IF((Y52<=900000),(Y52*25%)-18000,IF((Y52<=1000000),(Y52*25%)-15000,IF((Y52>=1000000),(Y52*25%)-10000)))))))))))/12) -> 0 | AA52: =M52-Q52-S52-T52-Z52-O52-R52 -> 0 | AB52: 0 | AC52: 0 | AD52: 0
A53: =SUBTOTAL(3,$B$5:B53) -> 0 | G53: =F53-Q53 -> 0 | K53: =IF(F53>8100,8100,F53*0.8) -> 0 | L53: =K53*18.75/100 -> 0 | M53: =F53+H53+I53+J53 -> 0 | N53: =L53 -> 0 | O53: =K53*0.11 -> 0 | Q53: =P53*F53/30 -> 0 | U53: =Q53+S53+T53+O53+R53 -> 0 | V53: 0 | W53: 750 | X53: =IF((V53+J53)>W53,(V53+J53)-W53,0) -> 0 | Y53: =X53*12 -> 0 | Z53: =IF((Y53<=15000),(Y53*0%),IF((Y53<=30000),(Y53*2.5%)-375,IF((Y53<=45000),(Y53*10%)-2625,IF((Y53<=60000),(Y53*15%)-4875,IF((Y53<=200000),(Y53*20%)-7875,IF((Y53<=400000),(Y53*22.5%)-12875,IF((Y53<=600000),(Y53*25%)-22875,IF((Y53<=700000),(Y53*25%)-22500,IF((Y53<=800000),(Y53*25%)-20250,IF((Y53<=900000),(Y53*25%)-18000,IF((Y53<=1000000),(Y53*25%)-15000,IF((Y53>=1000000),(Y53*25%)-10000)))))))))))/12) -> 0 | AA53: =M53-Q53-S53-T53-Z53-O53-R53 -> 0 | AB53: 0 | AC53: 0 | AD53: 0
A54: =SUBTOTAL(3,$B$5:B54) -> 0 | G54: 0 | K54: 0 | L54: 0 | M54: 0 | N54: 0 | O54: 0 | Q54: 0 | U54: 0 | V54: 0 | W54: 750 | X54: 0 | Y54: 0 | Z54: 0 | AA54: 0 | AB54: 0 | AC54: 0 | AD54: 0
A55: =SUBTOTAL(3,$B$5:B55) -> 0 | G55: 0 | K55: 0 | L55: 0 | M55: 0 | N55: 0 | O55: 0 | Q55: 0 | U55: 0 | V55: 0 | W55: 750 | X55: 0 | Y55: 0 | Z55: 0 | AA55: 0 | AB55: 0 | AC55: 0 | AD55: 0
A56: =SUBTOTAL(3,$B$5:B56) -> 0 | G56: 0 | K56: 0 | L56: 0 | M56: 0 | N56: 0 | O56: 0 | Q56: 0 | U56: 0 | V56: 0 | W56: 750 | X56: 0 | Y56: 0 | Z56: 0 | AA56: 0 | AB56: 0 | AC56: 0 | AD56: 0
A57: =SUBTOTAL(3,$B$5:B57) -> 0 | G57: 0 | K57: 0 | L57: 0 | M57: 0 | N57: 0 | O57: 0 | Q57: 0 | U57: 0 | V57: 0 | W57: 750 | X57: 0 | Y57: 0 | Z57: 0 | AA57: 0 | AB57: 0 | AC57: 0 | AD57: 0
A58: =SUBTOTAL(3,$B$5:B58) -> 0 | G58: 0 | K58: 0 | L58: 0 | M58: 0 | N58: 0 | O58: 0 | Q58: 0 | U58: 0 | V58: 0 | W58: 750 | X58: 0 | Y58: 0 | Z58: 0 | AA58: 0 | AB58: 0 | AC58: 0 | AD58: 0
A59: =SUBTOTAL(3,$B$5:B59) -> 0 | G59: 0 | K59: 0 | L59: 0 | M59: 0 | N59: 0 | O59: 0 | Q59: 0 | U59: 0 | V59: 0 | W59: 750 | X59: 0 | Y59: 0 | Z59: 0 | AA59: 0 | AB59: 0 | AC59: 0 | AD59: 0
A60: =SUBTOTAL(3,$B$5:B60) -> 0 | G60: 0 | K60: 0 | L60: 0 | M60: 0 | N60: 0 | O60: 0 | Q60: 0 | U60: 0 | V60: 0 | W60: 750 | X60: 0 | Y60: 0 | Z60: 0 | AA60: 0 | AB60: 0 | AC60: 0 | AD60: 0
A61: =SUBTOTAL(3,$B$5:B61) -> 0 | G61: 0 | K61: 0 | L61: 0 | M61: 0 | N61: 0 | O61: 0 | Q61: 0 | U61: 0 | V61: 0 | W61: 750 | X61: 0 | Y61: 0 | Z61: 0 | AA61: 0 | AB61: 0 | AC61: 0 | AD61: 0
A62: =SUBTOTAL(3,$B$5:B62) -> 0 | G62: 0 | K62: 0 | L62: 0 | M62: 0 | N62: 0 | O62: 0 | Q62: 0 | U62: 0 | V62: 0 | W62: 750 | X62: 0 | Y62: 0 | Z62: 0 | AA62: 0 | AB62: 0 | AC62: 0 | AD62: 0
A63: =SUBTOTAL(3,$B$5:B63) -> 0 | G63: 0 | K63: 0 | L63: 0 | M63: 0 | N63: 0 | O63: 0 | Q63: 0 | U63: 0 | V63: 0 | W63: 750 | X63: 0 | Y63: 0 | Z63: 0 | AA63: 0 | AB63: 0 | AC63: 0 | AD63: 0
A64: =SUBTOTAL(3,$B$5:B64) -> 0 | G64: 0 | K64: 0 | L64: 0 | M64: 0 | N64: 0 | O64: 0 | Q64: 0 | U64: 0 | V64: 0 | W64: 750 | X64: 0 | Y64: 0 | Z64: 0 | AA64: 0 | AB64: 0 | AC64: 0 | AD64: 0
A65: =SUBTOTAL(3,$B$5:B65) -> 0 | G65: 0 | K65: 0 | L65: 0 | M65: 0 | N65: 0 | O65: 0 | Q65: 0 | U65: 0 | V65: 0 | W65: 750 | X65: 0 | Y65: 0 | Z65: 0 | AA65: 0 | AB65: 0 | AC65: 0 | AD65: 0
A66: =SUBTOTAL(3,$B$5:B66) -> 0 | G66: 0 | K66: 0 | L66: 0 | M66: 0 | N66: 0 | O66: 0 | Q66: 0 | U66: 0 | V66: 0 | W66: 750 | X66: 0 | Y66: 0 | Z66: 0 | AA66: 0 | AB66: 0 | AC66: 0 | AD66: 0
A67: =SUBTOTAL(3,$B$5:B67) -> 0 | G67: 0 | K67: 0 | L67: 0 | M67: 0 | N67: 0 | O67: 0 | Q67: 0 | U67: 0 | V67: 0 | W67: 750 | X67: 0 | Y67: 0 | Z67: 0 | AA67: 0 | AB67: 0 | AC67: 0 | AD67: 0
A68: =SUBTOTAL(3,$B$5:B68) -> 0 | G68: =F68-Q68 -> 0 | K68: =IF(F68>8100,8100,F68*0.8) -> 0 | L68: =K68*18.75/100 -> 0 | M68: =F68+H68+I68+J68 -> 0 | N68: =L68 -> 0 | O68: =K68*0.11 -> 0 | Q68: =P68*F68/30 -> 0 | U68: =Q68+S68+T68+O68+R68 -> 0 | V68: =M68-O68-Q68 -> 0 | W68: 750 | X68: =IF((V68+J68)>W68,(V68+J68)-W68,0) -> 0 | Y68: =X68*12 -> 0 | Z68: =IF((Y68<=15000),(Y68*0%),IF((Y68<=30000),(Y68*2.5%)-375,IF((Y68<=45000),(Y68*10%)-2625,IF((Y68<=60000),(Y68*15%)-4875,IF((Y68<=200000),(Y68*20%)-7875,IF((Y68<=400000),(Y68*22.5%)-12875,IF((Y68<=600000),(Y68*25%)-22875,IF((Y68<=700000),(Y68*25%)-22500,IF((Y68<=800000),(Y68*25%)-20250,IF((Y68<=900000),(Y68*25%)-18000,IF((Y68<=1000000),(Y68*25%)-15000,IF((Y68>=1000000),(Y68*25%)-10000)))))))))))/12) -> 0 | AA68: =M68-Q68-S68-T68-Z68-O68-R68 -> 0 | AB68: 0 | AC68: 0 | AD68: 0
A69: =SUBTOTAL(3,$B$5:B69) -> 0 | G69: 0 | K69: 0 | L69: 0 | M69: 0 | N69: 0 | O69: 0 | Q69: 0 | U69: 0 | V69: 0 | W69: 750 | X69: 0 | Y69: 0 | Z69: 0 | AA69: 0 | AB69: 0 | AC69: 0 | AD69: 0
A70: =SUBTOTAL(3,$B$5:B70) -> 0 | G70: 0 | K70: 0 | L70: 0 | M70: 0 | N70: 0 | O70: 0 | Q70: 0 | U70: 0 | V70: 0 | W70: 750 | X70: 0 | Y70: 0 | Z70: 0 | AA70: 0 | AB70: =AA70*0.01 -> 0 | AC70: =IF(M70<=2000,0,M70*0.0005) -> 0 | AD70: =AA70-AB70-AC70 -> 0
A71: =SUBTOTAL(3,$B$5:B71) -> 0 | G71: =F71-Q71 -> 0 | L71: =K71*18.75/100 -> 0 | M71: =F71+H71+I71+J71 -> 0 | N71: =L71 -> 0 | O71: =K71*0.11 -> 0 | Q71: =P71*F71/30 -> 0 | U71: =Q71+S71+T71+O71+R71 -> 0 | V71: 0 | W71: 750 | X71: =IF((V71+J71)>W71,(V71+J71)-W71,0) -> 0 | Y71: =X71*12 -> 0 | Z71: =IF((Y71<=15000),(Y71*0%),IF((Y71<=30000),(Y71*2.5%)-375,IF((Y71<=45000),(Y71*10%)-2625,IF((Y71<=60000),(Y71*15%)-4875,IF((Y71<=200000),(Y71*20%)-7875,IF((Y71<=400000),(Y71*22.5%)-12875,IF((Y71<=600000),(Y71*25%)-22875,IF((Y71<=700000),(Y71*25%)-22500,IF((Y71<=800000),(Y71*25%)-20250,IF((Y71<=900000),(Y71*25%)-18000,IF((Y71<=1000000),(Y71*25%)-15000,IF((Y71>=1000000),(Y71*25%)-10000)))))))))))/12) -> 0 | AA71: =M71-Q71-S71-T71-Z71-O71-R71 -> 0 | AB71: 0 | AC71: 0 | AD71: 0
A72: =SUBTOTAL(3,$B$5:B72) -> 0 | G72: 0 | K72: =IF(F72>8100,8100,F72*0.8) -> 0 | L72: 0 | M72: 0 | N72: 0 | O72: 0 | Q72: 0 | U72: 0 | V72: =M72-O72-Q72 -> 0 | W72: 750 | X72: 0 | Y72: 0 | Z72: 0 | AA72: 0 | AB72: 0 | AC72: 0 | AD72: 0
A73: =SUBTOTAL(3,$B$5:B73) -> 0 | G73: 0 | K73: 0 | L73: 0 | M73: 0 | N73: 0 | O73: 0 | Q73: 0 | U73: 0 | V73: 0 | W73: 750 | X73: 0 | Y73: 0 | Z73: 0 | AA73: 0 | AB73: 0 | AC73: 0 | AD73: 0
A74: =SUBTOTAL(3,$B$5:B74) -> 0 | G74: 0 | K74: 0 | L74: 0 | M74: 0 | N74: 0 | O74: 0 | Q74: 0 | U74: 0 | V74: 0 | W74: 750 | X74: 0 | Y74: 0 | Z74: 0 | AA74: 0 | AB74: 0 | AC74: 0 | AD74: 0
A75: =SUBTOTAL(3,$B$5:B75) -> 0 | G75: 0 | K75: 0 | L75: 0 | M75: 0 | N75: 0 | O75: 0 | Q75: 0 | U75: 0 | V75: 0 | W75: 750 | X75: 0 | Y75: 0 | Z75: 0 | AA75: 0 | AB75: 0 | AC75: 0 | AD75: 0
A76: =SUBTOTAL(3,$B$5:B76) -> 0 | G76: 0 | K76: 0 | L76: 0 | M76: 0 | N76: 0 | O76: 0 | Q76: 0 | U76: 0 | V76: 0 | W76: 750 | X76: 0 | Y76: 0 | Z76: 0 | AA76: 0 | AB76: 0 | AC76: 0 | AD76: 0
A77: =SUBTOTAL(3,$B$5:B77) -> 0 | G77: 0 | K77: 0 | L77: 0 | M77: 0 | N77: 0 | O77: 0 | Q77: 0 | U77: 0 | V77: 0 | W77: 750 | X77: 0 | Y77: 0 | Z77: 0 | AA77: 0 | AB77: 0 | AC77: 0 | AD77: 0
A78: =SUBTOTAL(3,$B$5:B78) -> 0 | G78: 0 | L78: 0 | M78: 0 | N78: 0 | O78: 0 | Q78: 0 | U78: 0 | V78: 0 | W78: 750 | X78: 0 | Y78: 0 | Z78: 0 | AA78: 0 | AB78: 0 | AC78: 0 | AD78: 0
A79: =SUBTOTAL(3,$B$5:B79) -> 0 | G79: 0 | K79: 0 | L79: 0 | M79: 0 | N79: 0 | O79: 0 | Q79: 0 | U79: 0 | V79: 0 | W79: 750 | X79: 0 | Y79: 0 | Z79: 0 | AA79: 0 | AB79: 0 | AC79: 0 | AD79: 0
A80: =SUBTOTAL(3,$B$5:B80) -> 0 | G80: 0 | K80: 0 | L80: 0 | M80: 0 | N80: 0 | O80: 0 | Q80: 0 | U80: 0 | V80: 0 | W80: 750 | X80: 0 | Y80: 0 | Z80: 0 | AA80: 0 | AB80: 0 | AC80: 0 | AD80: 0
A81: =SUBTOTAL(3,$B$5:B81) -> 0 | G81: 0 | K81: 0 | L81: 0 | M81: 0 | N81: 0 | O81: 0 | Q81: 0 | U81: 0 | V81: 0 | W81: 750 | X81: 0 | Y81: 0 | Z81: 0 | AA81: 0 | AB81: 0 | AC81: 0 | AD81: 0
A82: =SUBTOTAL(3,$B$5:B82) -> 0 | G82: 0 | K82: 0 | L82: 0 | M82: 0 | N82: 0 | O82: 0 | Q82: 0 | U82: 0 | V82: 0 | W82: 750 | X82: 0 | Y82: 0 | Z82: 0 | AA82: 0 | AB82: 0 | AC82: 0 | AD82: 0
A83: =SUBTOTAL(3,$B$5:B83) -> 0 | G83: =F83-Q83 -> 0 | K83: =IF(F83>8100,8100,F83*0.8) -> 0 | L83: =K83*18.75/100 -> 0 | M83: =F83+H83+I83+J83 -> 0 | N83: =L83 -> 0 | O83: =K83*0.11 -> 0 | Q83: =P83*F83/30 -> 0 | U83: =Q83+S83+T83+O83+R83 -> 0 | V83: =M83-O83-Q83 -> 0 | W83: 750 | X83: =IF((V83+J83)>W83,(V83+J83)-W83,0) -> 0 | Y83: =X83*12 -> 0 | Z83: =IF((Y83<=15000),(Y83*0%),IF((Y83<=30000),(Y83*2.5%)-375,IF((Y83<=45000),(Y83*10%)-2625,IF((Y83<=60000),(Y83*15%)-4875,IF((Y83<=200000),(Y83*20%)-7875,IF((Y83<=400000),(Y83*22.5%)-12875,IF((Y83<=600000),(Y83*25%)-22875,IF((Y83<=700000),(Y83*25%)-22500,IF((Y83<=800000),(Y83*25%)-20250,IF((Y83<=900000),(Y83*25%)-18000,IF((Y83<=1000000),(Y83*25%)-15000,IF((Y83>=1000000),(Y83*25%)-10000)))))))))))/12) -> 0 | AA83: =M83-Q83-S83-T83-Z83-O83-R83 -> 0 | AB83: 0 | AC83: 0 | AD83: 0
A84: =SUBTOTAL(3,$B$5:B84) -> 0 | G84: 0 | L84: 0 | M84: 0 | N84: 0 | O84: 0 | Q84: 0 | U84: 0 | V84: 0 | W84: 750 | X84: 0 | Y84: 0 | Z84: 0 | AA84: 0 | AB84: 0 | AC84: 0 | AD84: 0
A85: =SUBTOTAL(3,$B$5:B85) -> 0 | G85: 0 | K85: 0 | L85: 0 | M85: 0 | N85: 0 | O85: 0 | Q85: 0 | U85: 0 | V85: 0 | W85: 750 | X85: 0 | Y85: 0 | Z85: 0 | AA85: 0 | AB85: 0 | AC85: 0 | AD85: 0
A86: =SUBTOTAL(3,$B$5:B86) -> 0 | G86: 0 | K86: 0 | L86: 0 | M86: 0 | N86: 0 | O86: 0 | Q86: 0 | U86: 0 | V86: 0 | W86: 750 | X86: 0 | Y86: 0 | Z86: 0 | AA86: 0 | AB86: 0 | AC86: 0 | AD86: 0
A87: =SUBTOTAL(3,$B$5:B87) -> 0 | G87: 0 | K87: 0 | L87: 0 | M87: 0 | N87: 0 | O87: 0 | Q87: 0 | U87: 0 | V87: 0 | W87: 750 | X87: 0 | Y87: 0 | Z87: 0 | AA87: 0 | AB87: 0 | AC87: 0 | AD87: 0
A88: =SUBTOTAL(3,$B$5:B88) -> 0 | G88: 0 | K88: 0 | L88: 0 | M88: 0 | N88: 0 | O88: 0 | Q88: 0 | U88: 0 | V88: 0 | W88: 750 | X88: 0 | Y88: 0 | Z88: 0 | AA88: 0 | AB88: 0 | AC88: 0 | AD88: 0
A89: =SUBTOTAL(3,$B$5:B89) -> 0 | G89: 0 | K89: 0 | L89: 0 | M89: 0 | N89: 0 | O89: 0 | Q89: 0 | U89: 0 | V89: 0 | W89: 750 | X89: 0 | Y89: 0 | Z89: 0 | AA89: 0 | AB89: 0 | AC89: 0 | AD89: 0
A90: =SUBTOTAL(3,$B$5:B90) -> 0 | G90: 0 | K90: 0 | L90: 0 | M90: 0 | N90: 0 | O90: 0 | Q90: 0 | U90: 0 | V90: 0 | W90: 750 | X90: 0 | Y90: 0 | Z90: 0 | AA90: 0 | AB90: 0 | AC90: 0 | AD90: 0
A91: =SUBTOTAL(3,$B$5:B91) -> 0 | G91: 0 | K91: 0 | L91: 0 | M91: 0 | N91: 0 | O91: 0 | Q91: 0 | U91: 0 | V91: 0 | W91: 750 | X91: 0 | Y91: 0 | Z91: 0 | AA91: 0 | AB91: 0 | AC91: 0 | AD91: 0
A92: =SUBTOTAL(3,$B$5:B92) -> 0 | G92: 0 | K92: 0 | L92: 0 | M92: 0 | N92: 0 | O92: 0 | Q92: 0 | U92: 0 | V92: 0 | W92: 750 | X92: 0 | Y92: 0 | Z92: 0 | AA92: 0 | AB92: 0 | AC92: 0 | AD92: 0
A93: =SUBTOTAL(3,$B$5:B93) -> 0 | G93: 0 | K93: 0 | L93: 0 | M93: 0 | N93: 0 | O93: 0 | Q93: 0 | U93: 0 | V93: 0 | W93: 750 | X93: 0 | Y93: 0 | Z93: 0 | AA93: 0 | AB93: 0 | AC93: 0 | AD93: 0
A94: =SUBTOTAL(3,$B$5:B94) -> 0 | G94: 0 | K94: 0 | L94: 0 | M94: 0 | N94: 0 | O94: 0 | Q94: 0 | U94: 0 | V94: 0 | W94: 750 | X94: 0 | Y94: 0 | Z94: 0 | AA94: 0 | AB94: 0 | AC94: 0 | AD94: 0
A95: =SUBTOTAL(3,$B$5:B95) -> 0 | G95: 0 | K95: 0 | L95: 0 | M95: 0 | N95: 0 | O95: 0 | Q95: 0 | U95: 0 | V95: 0 | W95: 750 | X95: 0 | Y95: 0 | Z95: 0 | AA95: 0 | AB95: 0 | AC95: 0 | AD95: 0
A96: =SUBTOTAL(3,$B$5:B96) -> 0 | G96: 0 | K96: 0 | L96: 0 | M96: 0 | N96: 0 | O96: 0 | Q96: 0 | U96: 0 | V96: 0 | W96: 750 | X96: 0 | Y96: 0 | Z96: 0 | AA96: 0 | AB96: 0 | AC96: 0 | AD96: 0
A97: =SUBTOTAL(3,$B$5:B97) -> 0 | G97: 0 | L97: 0 | M97: 0 | N97: 0 | O97: 0 | Q97: 0 | U97: 0 | V97: 0 | W97: 750 | X97: 0 | Y97: 0 | Z97: 0 | AA97: 0 | AB97: 0 | AC97: 0 | AD97: 0
A98: =SUBTOTAL(3,$B$5:B98) -> 0 | G98: 0 | L98: 0 | M98: 0 | N98: 0 | O98: 0 | Q98: 0 | U98: 0 | V98: 0 | W98: 750 | X98: 0 | Y98: 0 | Z98: 0 | AA98: 0 | AB98: 0 | AC98: 0 | AD98: 0
A99: =SUBTOTAL(3,$B$5:B99) -> 0 | G99: 0 | L99: 0 | M99: 0 | N99: 0 | O99: 0 | Q99: 0 | U99: 0 | V99: 0 | W99: 750 | X99: 0 | Y99: 0 | Z99: 0 | AA99: 0 | AB99: 0 | AC99: 0 | AD99: 0
A100: =SUBTOTAL(3,$B$5:B100) -> 0 | G100: 0 | K100: 0 | L100: 0 | M100: 0 | N100: 0 | O100: 0 | Q100: 0 | U100: 0 | V100: 0 | W100: 750 | X100: 0 | Y100: 0 | Z100: 0 | AA100: 0 | AB100: 0 | AC100: 0 | AD100: 0
A101: =SUBTOTAL(3,$B$5:B101) -> 0 | F101: 0 | G101: 0 | K101: 0 | L101: 0 | M101: 0 | N101: 0 | O101: 0 | Q101: 0 | U101: 0 | V101: 0 | W101: 750 | X101: 0 | Y101: 0 | Z101: 0 | AA101: 0 | AB101: 0 | AC101: 0 | AD101: 0
A102: =SUBTOTAL(3,$B$5:B102) -> 0 | F102: 0 | G102: 0 | K102: 0 | L102: 0 | M102: 0 | N102: 0 | O102: 0 | Q102: 0 | U102: 0 | V102: 0 | W102: 750 | X102: 0 | Y102: 0 | Z102: 0 | AA102: 0 | AB102: 0 | AC102: 0 | AD102: 0
A103: =SUBTOTAL(3,$B$5:B103) -> 0 | F103: 0 | G103: 0 | K103: 0 | L103: 0 | M103: 0 | N103: 0 | O103: 0 | Q103: 0 | U103: 0 | V103: 0 | W103: 750 | X103: 0 | Y103: 0 | Z103: 0 | AA103: 0 | AB103: 0 | AC103: 0 | AD103: 0
A104: =SUBTOTAL(3,$B$5:B104) -> 0 | F104: 0 | G104: 0 | K104: 0 | L104: 0 | M104: 0 | N104: 0 | O104: 0 | Q104: 0 | U104: 0 | V104: 0 | W104: 750 | X104: 0 | Y104: 0 | Z104: 0 | AA104: 0 | AB104: 0 | AC104: 0 | AD104: 0
A105: =SUBTOTAL(3,$B$5:B105) -> 0 | F105: 0 | G105: 0 | K105: 0 | L105: 0 | M105: 0 | N105: 0 | O105: 0 | Q105: 0 | U105: 0 | V105: 0 | W105: 750 | X105: 0 | Y105: 0 | Z105: 0 | AA105: 0 | AB105: 0 | AC105: 0 | AD105: 0
A106: =SUBTOTAL(3,$B$5:B106) -> 0 | F106: 0 | G106: 0 | K106: 0 | L106: 0 | M106: 0 | N106: 0 | O106: 0 | Q106: 0 | U106: 0 | V106: 0 | W106: 750 | X106: 0 | Y106: 0 | Z106: 0 | AA106: 0 | AB106: 0 | AC106: 0 | AD106: 0
A107: =SUBTOTAL(3,$B$5:B107) -> 0 | F107: 0 | G107: 0 | K107: 0 | L107: 0 | M107: 0 | N107: 0 | O107: 0 | Q107: 0 | U107: 0 | V107: 0 | W107: 750 | X107: 0 | Y107: 0 | Z107: 0 | AA107: 0 | AB107: 0 | AC107: 0 | AD107: 0
A108: =SUBTOTAL(3,$B$5:B108) -> 0 | F108: 0 | G108: 0 | K108: 0 | L108: 0 | M108: 0 | N108: 0 | O108: 0 | Q108: 0 | U108: 0 | V108: 0 | W108: 750 | X108: 0 | Y108: 0 | Z108: 0 | AA108: 0 | AB108: 0 | AC108: 0 | AD108: 0
A109: =SUBTOTAL(3,$B$5:B109) -> 0 | F109: 0 | G109: 0 | K109: 0 | L109: 0 | M109: 0 | N109: 0 | O109: 0 | Q109: 0 | U109: 0 | V109: 0 | W109: 750 | X109: 0 | Y109: 0 | Z109: 0 | AA109: 0 | AB109: 0 | AC109: 0 | AD109: 0
A110: =SUBTOTAL(3,$B$5:B110) -> 0 | F110: 0 | G110: 0 | K110: 0 | L110: 0 | M110: 0 | N110: 0 | O110: 0 | Q110: 0 | U110: 0 | V110: 0 | W110: 750 | X110: 0 | Y110: 0 | Z110: 0 | AA110: 0 | AB110: 0 | AC110: 0 | AD110: 0
A111: =SUBTOTAL(3,$B$5:B111) -> 0 | F111: 0 | G111: 0 | K111: 0 | L111: 0 | M111: 0 | N111: 0 | O111: 0 | Q111: 0 | U111: 0 | V111: 0 | W111: 750 | X111: 0 | Y111: 0 | Z111: 0 | AA111: 0 | AB111: 0 | AC111: 0 | AD111: 0
A112: =SUBTOTAL(3,$B$5:B112) -> 0 | G112: 0 | K112: 0 | L112: 0 | M112: 0 | N112: 0 | O112: 0 | Q112: 0 | U112: 0 | V112: 0 | W112: 750 | X112: 0 | Y112: 0 | Z112: 0 | AA112: 0 | AB112: 0 | AC112: 0 | AD112: 0
A113: =SUBTOTAL(3,$B$5:B113) -> 0 | F113: 0 | G113: 0 | K113: 0 | L113: 0 | M113: 0 | N113: 0 | O113: 0 | Q113: 0 | U113: 0 | V113: 0 | W113: 750 | X113: 0 | Y113: 0 | Z113: 0 | AA113: 0 | AB113: 0 | AC113: 0 | AD113: 0
A114: =SUBTOTAL(3,$B$5:B114) -> 0 | F114: 0 | G114: 0 | K114: 0 | L114: 0 | M114: 0 | N114: 0 | O114: 0 | Q114: 0 | U114: 0 | V114: 0 | W114: 750 | X114: 0 | Y114: 0 | Z114: 0 | AA114: 0 | AB114: 0 | AC114: 0 | AD114: 0
A115: =SUBTOTAL(3,$B$5:B115) -> 0 | F115: 0 | G115: 0 | K115: 0 | L115: 0 | M115: 0 | N115: 0 | O115: 0 | Q115: 0 | U115: 0 | V115: 0 | W115: 750 | X115: 0 | Y115: 0 | Z115: 0 | AA115: 0 | AB115: 0 | AC115: 0 | AD115: 0
A116: =SUBTOTAL(3,$B$5:B116) -> 0 | F116: 0 | G116: 0 | K116: 0 | L116: 0 | M116: 0 | N116: 0 | O116: 0 | Q116: 0 | U116: 0 | V116: 0 | W116: 750 | X116: 0 | Y116: 0 | Z116: 0 | AA116: 0 | AB116: 0 | AC116: 0 | AD116: 0
A117: =SUBTOTAL(3,$B$5:B117) -> 0 | F117: 0 | G117: 0 | K117: 0 | L117: 0 | M117: 0 | N117: 0 | O117: 0 | Q117: 0 | U117: 0 | V117: 0 | W117: 750 | X117: 0 | Y117: 0 | Z117: 0 | AA117: 0 | AB117: 0 | AC117: 0 | AD117: 0
A118: =SUBTOTAL(3,$B$5:B118) -> 0 | F118: 0 | G118: 0 | K118: 0 | L118: 0 | M118: 0 | N118: 0 | O118: 0 | Q118: 0 | U118: 0 | V118: 0 | W118: 750 | X118: 0 | Y118: 0 | Z118: 0 | AA118: 0 | AB118: 0 | AC118: 0 | AD118: 0
A119: =SUBTOTAL(3,$B$5:B119) -> 0 | F119: 0 | G119: 0 | K119: 0 | L119: 0 | M119: 0 | N119: 0 | O119: 0 | Q119: 0 | U119: 0 | V119: 0 | W119: 750 | X119: 0 | Y119: 0 | Z119: 0 | AA119: 0 | AB119: 0 | AC119: 0 | AD119: 0
A120: =SUBTOTAL(3,$B$5:B120) -> 0 | F120: 0 | G120: 0 | K120: 0 | L120: 0 | M120: 0 | N120: 0 | O120: 0 | Q120: 0 | U120: 0 | V120: 0 | W120: 750 | X120: 0 | Y120: 0 | Z120: 0 | AA120: 0 | AB120: 0 | AC120: 0 | AD120: 0
A121: =SUBTOTAL(3,$B$5:B121) -> 0 | F121: 0 | G121: 0 | K121: 0 | L121: 0 | M121: 0 | N121: 0 | O121: 0 | Q121: 0 | U121: 0 | V121: 0 | W121: 750 | X121: 0 | Y121: 0 | Z121: 0 | AA121: 0 | AB121: 0 | AC121: 0 | AD121: 0
A122: =SUBTOTAL(3,$B$5:B122) -> 0 | G122: 0 | K122: 0 | L122: 0 | M122: 0 | N122: 0 | O122: 0 | Q122: 0 | U122: 0 | V122: 0 | W122: 750 | X122: 0 | Y122: 0 | Z122: 0 | AA122: 0 | AB122: 0 | AC122: 0 | AD122: 0
A123: =SUBTOTAL(3,$B$5:B123) -> 0 | G123: 0 | K123: 0 | L123: 0 | M123: 0 | N123: 0 | O123: 0 | Q123: 0 | U123: 0 | V123: 0 | W123: 750 | X123: 0 | Y123: 0 | Z123: 0 | AA123: 0 | AB123: 0 | AC123: 0 | AD123: 0
A124: =SUBTOTAL(3,$B$5:B124) -> 0 | F124: 0 | G124: 0 | K124: 0 | L124: 0 | M124: 0 | N124: 0 | O124: 0 | Q124: 0 | U124: 0 | V124: 0 | W124: 750 | X124: 0 | Y124: 0 | Z124: 0 | AA124: 0 | AB124: 0 | AC124: 0 | AD124: 0
A125: الاجمالى | F125: =SUM(F5:F124) -> 0 | G125: 0 | H125: 0 | I125: 0 | J125: 0 | K125: 0 | L125: 0 | M125: 0 | N125: 0 | O125: 0 | P125: 8 | Q125: 0 | R125: 0 | S125: 0 | T125: 0 | U125: 0 | V125: 0 | W125: 90000 | X125: 0 | Y125: 0 | Z125: 0 | AA125: =SUM(AA5:AA124) -> 0 | AB125: =SUM(AB5:AB124) -> 0 | AC125: 0 | AD125: 0
E127: الموارد البشرية | U127: الرئيس التنفيذي للشركة د . عمرو العدل
U128: د. عمرو العدل

Sheet يوليو
A4: م | B4: الاسم | C4: الوظيفة | D4: الادارة | E4: ATM | F4: الاجر الاساسى | G4: الاجر الاساسى بعد عدم الحضور | H4: مكافأت | I4: حافز بيع | J4: اضافى | K4: الاجر التامينى | L4: المنشأة | M4: اجمالي الاستحقاقات | N4: المنشأة2 | O4: الموظف | P4: عدم الحضور باليوم | Q4: عدم حضور بالجنيه | R4: مصروف صيانه | S4: سلف | T4: جزاءات | U4: اجمالي الاستقطاعات | V4: قبل الضريبة | W4: اعفاء شخصى | X4: الوعاء الضريبى | Y4: الوعاء الضريبى على اساس السنوى | Z4: الضريبة المستحقة | AA4: الصافى | AB4: خصم تكافلي | AC4: خصم الشهيد | AD4: الصافي المستحق للصرف
A5: 1 | G5: =F5-Q5 -> 0 | H5: 0 | I5: 0 | J5: 0 | K5: =IF(F5>8100,8100,F5*0.8) -> 0 | L5: =K5*18.75/100 -> 0 | M5: =F5+H5+I5+J5 -> 0 | N5: =L5 -> 0 | O5: =K5*0.11 -> 0 | Q5: =P5*F5/30 -> 0 | U5: =Q5+S5+T5+O5+R5 -> 0 | V5: =M5-O5-Q5 -> 0 | W5: 750 | X5: =IF((V5+J5)>W5,(V5+J5)-W5,0) -> 0 | Y5: =X5*12 -> 0 | Z5: =IF((Y5<=15000),(Y5*0%),IF((Y5<=30000),(Y5*2.5%)-375,IF((Y5<=45000),(Y5*10%)-2625,IF((Y5<=60000),(Y5*15%)-4875,IF((Y5<=200000),(Y5*20%)-7875,IF((Y5<=400000),(Y5*22.5%)-12875,IF((Y5<=600000),(Y5*25%)-22875,IF((Y5<=700000),(Y5*25%)-22500,IF((Y5<=800000),(Y5*25%)-20250,IF((Y5<=900000),(Y5*25%)-18000,IF((Y5<=1000000),(Y5*25%)-15000,IF((Y5>=1000000),(Y5*25%)-10000)))))))))))/12) -> 0 | AA5: =M5-Q5-S5-T5-Z5-O5-R5 -> 0 | AB5: =AA5*0.01 -> 0 | AC5: =IF(M5<=2000,0,M5*0.0005) -> 0 | AD5: =AA5-AB5-AC5 -> 0
A6: =SUBTOTAL(3,$B$5:B6) -> 0 | G6: 0 | K6: 0 | L6: 0 | M6: 0 | N6: 0 | O6: 0 | Q6: 0 | U6: 0 | V6: =M6-O6-Q6 -> 0 | W6: 750 | X6: 0 | Y6: 0 | Z6: =IF((Y6<=15000),(Y6*0%),IF((Y6<=30000),(Y6*2.5%)-375,IF((Y6<=45000),(Y6*10%)-2625,IF((Y6<=60000),(Y6*15%)-4875,IF((Y6<=200000),(Y6*20%)-7875,IF((Y6<=400000),(Y6*22.5%)-12875,IF((Y6<=600000),(Y6*25%)-22875,IF((Y6<=700000),(Y6*25%)-22500,IF((Y6<=800000),(Y6*25%)-20250,IF((Y6<=900000),(Y6*25%)-18000,IF((Y6<=1000000),(Y6*25%)-15000,IF((Y6>=1000000),(Y6*25%)-10000)))))))))))/12) -> 0 | AA6: 0 | AB6: =AA6*0.01 -> 0 | AC6: =IF(M6<=2000,0,M6*0.0005) -> 0 | AD6: =AA6-AB6-AC6 -> 0
A7: =SUBTOTAL(3,$B$5:B7) -> 0 | G7: 0 | K7: 0 | L7: 0 | M7: 0 | N7: 0 | O7: 0 | Q7: 0 | U7: 0 | V7: 0 | W7: 750 | X7: 0 | Y7: 0 | Z7: 0 | AA7: 0 | AB7: 0 | AC7: 0 | AD7: 0
A8: =SUBTOTAL(3,$B$5:B8) -> 0 | G8: 0 | K8: 0 | L8: 0 | M8: 0 | N8: 0 | O8: 0 | Q8: 0 | U8: 0 | V8: 0 | W8: 750 | X8: 0 | Y8: 0 | Z8: 0 | AA8: 0 | AB8: 0 | AC8: 0 | AD8: 0
A9: =SUBTOTAL(3,$B$5:B9) -> 0 | G9: 0 | K9: 0 | L9: 0 | M9: 0 | N9: 0 | O9: 0 | Q9: 0 | U9: 0 | V9: 0 | W9: 750 | X9: 0 | Y9: 0 | Z9: 0 | AA9: 0 | AB9: 0 | AC9: 0 | AD9: 0
A10: =SUBTOTAL(3,$B$5:B10) -> 0 | G10: 0 | K10: 0 | L10: 0 | M10: 0 | N10: 0 | O10: 0 | Q10: 0 | U10: 0 | V10: 0 | W10: 750 | X10: 0 | Y10: 0 | Z10: 0 | AA10: 0 | AB10: 0 | AC10: 0 | AD10: 0
A11: =SUBTOTAL(3,$B$5:B11) -> 0 | G11: 0 | L11: 0 | M11: 0 | N11: 0 | O11: 0 | P11: 8 | Q11: 0 | U11: 0 | V11: 0 | W11: 750 | X11: 0 | Y11: 0 | Z11: 0 | AA11: 0 | AB11: 0 | AC11: 0 | AD11: 0
A12: =SUBTOTAL(3,$B$5:B12) -> 0 | G12: 0 | K12: 0 | L12: 0 | M12: 0 | N12: 0 | O12: 0 | Q12: 0 | U12: 0 | V12: 0 | W12: 750 | X12: 0 | Y12: 0 | Z12: 0 | AA12: 0 | AB12: 0 | AC12: 0 | AD12: 0
A13: =SUBTOTAL(3,$B$5:B13) -> 0 | G13: 0 | K13: 0 | L13: 0 | M13: 0 | N13: 0 | O13: 0 | Q13: 0 | U13: 0 | V13: 0 | W13: 750 | X13: 0 | Y13: 0 | Z13: 0 | AA13: 0 | AB13: 0 | AC13: 0 | AD13: 0
A14: =SUBTOTAL(3,$B$5:B14) -> 0 | G14: 0 | K14: 0 | L14: 0 | M14: 0 | N14: 0 | O14: 0 | Q14: 0 | U14: 0 | V14: 0 | W14: 750 | X14: 0 | Y14: 0 | Z14: 0 | AA14: 0 | AB14: 0 | AC14: 0 | AD14: 0
A15: =SUBTOTAL(3,$B$5:B15) -> 0 | G15: 0 | K15: 0 | L15: 0 | M15: 0 | N15: 0 | O15: 0 | Q15: 0 | U15: 0 | V15: 0 | W15: 750 | X15: 0 | Y15: 0 | Z15: 0 | AA15: 0 | AB15: 0 | AC15: 0 | AD15: 0
A16: =SUBTOTAL(3,$B$5:B16) -> 0 | G16: 0 | K16: 0 | L16: 0 | M16: 0 | N16: 0 | O16: 0 | Q16: 0 | U16: 0 | V16: 0 | W16: 750 | X16: 0 | Y16: 0 | Z16: 0 | AA16: 0 | AB16: 0 | AC16: 0 | AD16: 0
A17: =SUBTOTAL(3,$B$5:B17) -> 0 | G17: 0 | K17: 0 | L17: 0 | M17: 0 | N17: 0 | O17: 0 | Q17: 0 | U17: 0 | V17: 0 | W17: 750 | X17: 0 | Y17: 0 | Z17: 0 | AA17: 0 | AB17: 0 | AC17: 0 | AD17: 0
A18: =SUBTOTAL(3,$B$5:B18) -> 0 | G18: 0 | K18: 0 | L18: 0 | M18: 0 | N18: 0 | O18: 0 | Q18: 0 | U18: 0 | V18: 0 | W18: 750 | X18: 0 | Y18: 0 | Z18: 0 | AA18: 0 | AB18: 0 | AC18: 0 | AD18: 0
A19: =SUBTOTAL(3,$B$5:B19) -> 0 | G19: 0 | K19: 0 | L19: 0 | M19: 0 | N19: 0 | O19: 0 | Q19: 0 | U19: 0 | V19: 0 | W19: 750 | X19: 0 | Y19: 0 | Z19: 0 | AA19: 0 | AB19: 0 | AC19: 0 | AD19: 0
A20: =SUBTOTAL(3,$B$5:B20) -> 0 | G20: 0 | K20: 0 | L20: 0 | M20: 0 | N20: 0 | O20: 0 | Q20: 0 | U20: 0 | V20: 0 | W20: 750 | X20: 0 | Y20: 0 | Z20: 0 | AA20: 0 | AB20: 0 | AC20: 0 | AD20: 0
A21: =SUBTOTAL(3,$B$5:B21) -> 0 | G21: 0 | K21: 0 | L21: 0 | M21: 0 | N21: 0 | O21: 0 | Q21: 0 | U21: 0 | V21: 0 | W21: 750 | X21: 0 | Y21: 0 | Z21: 0 | AA21: 0 | AB21: 0 | AC21: 0 | AD21: 0
A22: =SUBTOTAL(3,$B$5:B22) -> 0 | G22: 0 | K22: 0 | L22: 0 | M22: 0 | N22: 0 | O22: 0 | Q22: 0 | U22: 0 | V22: 0 | W22: 750 | X22: 0 | Y22: 0 | Z22: 0 | AA22: 0 | AB22: 0 | AC22: 0 | AD22: 0
A23: =SUBTOTAL(3,$B$5:B23) -> 0 | G23: 0 | K23: 0 | L23: 0 | M23: 0 | N23: 0 | O23: 0 | Q23: 0 | U23: 0 | V23: 0 | W23: 750 | X23: 0 | Y23: 0 | Z23: 0 | AA23: 0 | AB23: 0 | AC23: 0 | AD23: 0
A24: =SUBTOTAL(3,$B$5:B24) -> 0 | G24: =F24-Q24 -> 0 | K24: =IF(F24>8100,8100,F24*0.8) -> 0 | L24: =K24*18.75/100 -> 0 | M24: =F24+H24+I24+J24 -> 0 | N24: =L24 -> 0 | O24: =K24*0.11 -> 0 | Q24: =P24*F24/30 -> 0 | U24: =Q24+S24+T24+O24+R24 -> 0 | V24: =M24-O24-Q24 -> 0 | W24: 750 | X24: =IF((V24+J24)>W24,(V24+J24)-W24,0) -> 0 | Y24: =X24*12 -> 0 | Z24: =IF((Y24<=15000),(Y24*0%),IF((Y24<=30000),(Y24*2.5%)-375,IF((Y24<=45000),(Y24*10%)-2625,IF((Y24<=60000),(Y24*15%)-4875,IF((Y24<=200000),(Y24*20%)-7875,IF((Y24<=400000),(Y24*22.5%)-12875,IF((Y24<=600000),(Y24*25%)-22875,IF((Y24<=700000),(Y24*25%)-22500,IF((Y24<=800000),(Y24*25%)-20250,IF((Y24<=900000),(Y24*25%)-18000,IF((Y24<=1000000),(Y24*25%)-15000,IF((Y24>=1000000),(Y24*25%)-10000)))))))))))/12) -> 0 | AA24: =M24-Q24-S24-T24-Z24-O24-R24 -> 0 | AB24: 0 | AC24: 0 | AD24: 0
A25: =SUBTOTAL(3,$B$5:B25) -> 0 | G25: 0 | K25: 0 | L25: 0 | M25: 0 | N25: 0 | O25: 0 | Q25: 0 | U25: 0 | V25: 0 | W25: 750 | X25: 0 | Y25: 0 | Z25: 0 | AA25: 0 | AB25: 0 | AC25: 0 | AD25: 0
A26: =SUBTOTAL(3,$B$5:B26) -> 0 | G26: 0 | K26: 0 | L26: 0 | M26: 0 | N26: 0 | O26: 0 | Q26: 0 | U26: 0 | V26: 0 | W26: 750 | X26: 0 | Y26: 0 | Z26: 0 | AA26: 0 | AB26: 0 | AC26: 0 | AD26: 0
A27: =SUBTOTAL(3,$B$5:B27) -> 0 | G27: 0 | K27: 0 | L27: 0 | M27: 0 | N27: 0 | O27: 0 | Q27: 0 | U27: 0 | V27: 0 | W27: 750 | X27: 0 | Y27: 0 | Z27: 0 | AA27: 0 | AB27: 0 | AC27: 0 | AD27: 0
A28: =SUBTOTAL(3,$B$5:B28) -> 0 | G28: =F28-Q28 -> 0 | K28: =IF(F28>8100,8100,F28*0.8) -> 0 | L28: =K28*18.75/100 -> 0 | M28: =F28+H28+I28+J28 -> 0 | N28: =L28 -> 0 | O28: =K28*0.11 -> 0 | Q28: =P28*F28/30 -> 0 | U28: =Q28+S28+T28+O28+R28 -> 0 | V28: 0 | W28: 750 | X28: =IF((V28+J28)>W28,(V28+J28)-W28,0) -> 0 | Y28: =X28*12 -> 0 | Z28: =IF((Y28<=15000),(Y28*0%),IF((Y28<=30000),(Y28*2.5%)-375,IF((Y28<=45000),(Y28*10%)-2625,IF((Y28<=60000),(Y28*15%)-4875,IF((Y28<=200000),(Y28*20%)-7875,IF((Y28<=400000),(Y28*22.5%)-12875,IF((Y28<=600000),(Y28*25%)-22875,IF((Y28<=700000),(Y28*25%)-22500,IF((Y28<=800000),(Y28*25%)-20250,IF((Y28<=900000),(Y28*25%)-18000,IF((Y28<=1000000),(Y28*25%)-15000,IF((Y28>=1000000),(Y28*25%)-10000)))))))))))/12) -> 0 | AA28: =M28-Q28-S28-T28-Z28-O28-R28 -> 0 | AB28: 0 | AC28: 0 | AD28: 0
A29: =SUBTOTAL(3,$B$5:B29) -> 0 | G29: =F29-Q29 -> 0 | K29: =IF(F29>8100,8100,F29*0.8) -> 0 | L29: =K29*18.75/100 -> 0 | M29: =F29+H29+I29+J29 -> 0 | N29: =L29 -> 0 | O29: =K29*0.11 -> 0 | Q29: =P29*F29/30 -> 0 | U29: =Q29+S29+T29+O29+R29 -> 0 | V29: =M29-O29-Q29 -> 0 | W29: 750 | X29: =IF((V29+J29)>W29,(V29+J29)-W29,0) -> 0 | Y29: =X29*12 -> 0 | Z29: =IF((Y29<=15000),(Y29*0%),IF((Y29<=30000),(Y29*2.5%)-375,IF((Y29<=45000),(Y29*10%)-2625,IF((Y29<=60000),(Y29*15%)-4875,IF((Y29<=200000),(Y29*20%)-7875,IF((Y29<=400000),(Y29*22.5%)-12875,IF((Y29<=600000),(Y29*25%)-22875,IF((Y29<=700000),(Y29*25%)-22500,IF((Y29<=800000),(Y29*25%)-20250,IF((Y29<=900000),(Y29*25%)-18000,IF((Y29<=1000000),(Y29*25%)-15000,IF((Y29>=1000000),(Y29*25%)-10000)))))))))))/12) -> 0 | AA29: =M29-Q29-S29-T29-Z29-O29-R29 -> 0 | AB29: 0 | AC29: 0 | AD29: 0
A30: =SUBTOTAL(3,$B$5:B30) -> 0 | G30: =F30-Q30 -> 0 | K30: =IF(F30>8100,8100,F30*0.8) -> 0 | L30: =K30*18.75/100 -> 0 | M30: =F30+H30+I30+J30 -> 0 | N30: =L30 -> 0 | O30: =K30*0.11 -> 0 | Q30: =P30*F30/30 -> 0 | U30: =Q30+S30+T30+O30+R30 -> 0 | V30: =M30-O30-Q30 -> 0 | W30: 750 | X30: =IF((V30+J30)>W30,(V30+J30)-W30,0) -> 0 | Y30: =X30*12 -> 0 | Z30: =IF((Y30<=15000),(Y30*0%),IF((Y30<=30000),(Y30*2.5%)-375,IF((Y30<=45000),(Y30*10%)-2625,IF((Y30<=60000),(Y30*15%)-4875,IF((Y30<=200000),(Y30*20%)-7875,IF((Y30<=400000),(Y30*22.5%)-12875,IF((Y30<=600000),(Y30*25%)-22875,IF((Y30<=700000),(Y30*25%)-22500,IF((Y30<=800000),(Y30*25%)-20250,IF((Y30<=900000),(Y30*25%)-18000,IF((Y30<=1000000),(Y30*25%)-15000,IF((Y30>=1000000),(Y30*25%)-10000)))))))))))/12) -> 0 | AA30: =M30-Q30-S30-T30-Z30-O30-R30 -> 0 | AB30: 0 | AC30: 0 | AD30: 0
A31: =SUBTOTAL(3,$B$5:B31) -> 0 | G31: 0 | K31: 0 | L31: 0 | M31: 0 | N31: 0 | O31: 0 | Q31: 0 | U31: 0 | V31: 0 | W31: 750 | X31: 0 | Y31: 0 | Z31: 0 | AA31: 0 | AB31: 0 | AC31: 0 | AD31: 0
A32: =SUBTOTAL(3,$B$5:B32) -> 0 | G32: 0 | K32: 0 | L32: 0 | M32: 0 | N32: 0 | O32: 0 | Q32: 0 | U32: 0 | V32: 0 | W32: 750 | X32: 0 | Y32: 0 | Z32: 0 | AA32: 0 | AB32: 0 | AC32: 0 | AD32: 0
A33: =SUBTOTAL(3,$B$5:B33) -> 0 | G33: 0 | K33: 0 | L33: 0 | M33: 0 | N33: 0 | O33: 0 | Q33: 0 | U33: 0 | V33: 0 | W33: 750 | X33: 0 | Y33: 0 | Z33: 0 | AA33: 0 | AB33: 0 | AC33: 0 | AD33: 0 | AE33: 8393 | AG33: =AA33-AE33 -> -8393
A34: =SUBTOTAL(3,$B$5:B34) -> 0 | G34: =F34-Q34 -> 0 | K34: =IF(F34>8100,8100,F34*0.8) -> 0 | L34: =K34*18.75/100 -> 0 | M34: =F34+H34+I34+J34 -> 0 | N34: =L34 -> 0 | O34: =K34*0.11 -> 0 | Q34: =P34*F34/30 -> 0 | U34: =Q34+S34+T34+O34+R34 -> 0 | V34: =M34-O34-Q34 -> 0 | W34: 750 | X34: =IF((V34+J34)>W34,(V34+J34)-W34,0) -> 0 | Y34: =X34*12 -> 0 | Z34: =IF((Y34<=15000),(Y34*0%),IF((Y34<=30000),(Y34*2.5%)-375,IF((Y34<=45000),(Y34*10%)-2625,IF((Y34<=60000),(Y34*15%)-4875,IF((Y34<=200000),(Y34*20%)-7875,IF((Y34<=400000),(Y34*22.5%)-12875,IF((Y34<=600000),(Y34*25%)-22875,IF((Y34<=700000),(Y34*25%)-22500,IF((Y34<=800000),(Y34*25%)-20250,IF((Y34<=900000),(Y34*25%)-18000,IF((Y34<=1000000),(Y34*25%)-15000,IF((Y34>=1000000),(Y34*25%)-10000)))))))))))/12) -> 0 | AA34: =M34-Q34-S34-T34-Z34-O34-R34 -> 0 | AB34: 0 | AC34: 0 | AD34: 0
A35: =SUBTOTAL(3,$B$5:B35) -> 0 | G35: 0 | K35: 0 | L35: 0 | M35: 0 | N35: 0 | O35: 0 | Q35: 0 | U35: 0 | V35: 0 | W35: 750 | X35: 0 | Y35: 0 | Z35: 0 | AA35: 0 | AB35: 0 | AC35: 0 | AD35: 0
A36: =SUBTOTAL(3,$B$5:B36) -> 0 | G36: 0 | K36: 0 | L36: 0 | M36: 0 | N36: 0 | O36: 0 | Q36: 0 | U36: 0 | V36: 0 | W36: 750 | X36: 0 | Y36: 0 | Z36: 0 | AA36: 0 | AB36: 0 | AC36: 0 | AD36: 0
A37: =SUBTOTAL(3,$B$5:B37) -> 0 | G37: 0 | K37: 0 | L37: 0 | M37: 0 | N37: 0 | O37: 0 | Q37: 0 | U37: 0 | V37: 0 | W37: 750 | X37: 0 | Y37: 0 | Z37: 0 | AA37: 0 | AB37: 0 | AC37: 0 | AD37: 0
A38: =SUBTOTAL(3,$B$5:B38) -> 0 | G38: 0 | K38: 0 | L38: 0 | M38: 0 | N38: 0 | O38: 0 | Q38: 0 | U38: 0 | V38: 0 | W38: 750 | X38: 0 | Y38: 0 | Z38: 0 | AA38: 0 | AB38: 0 | AC38: 0 | AD38: 0
A39: =SUBTOTAL(3,$B$5:B39) -> 0 | G39: 0 | K39: 0 | L39: 0 | M39: 0 | N39: 0 | O39: 0 | Q39: 0 | U39: 0 | V39: 0 | W39: 750 | X39: 0 | Y39: 0 | Z39: 0 | AA39: 0 | AB39: 0 | AC39: 0 | AD39: 0
A40: =SUBTOTAL(3,$B$5:B40) -> 0 | G40: 0 | K40: 0 | L40: 0 | M40: 0 | N40: 0 | O40: 0 | Q40: 0 | U40: 0 | V40: 0 | W40: 750 | X40: 0 | Y40: 0 | Z40: 0 | AA40: 0 | AB40: 0 | AC40: 0 | AD40: 0
A41: =SUBTOTAL(3,$B$5:B41) -> 0 | G41: =F41-Q41 -> 0 | K41: =IF(F41>8100,8100,F41*0.8) -> 0 | L41: =K41*18.75/100 -> 0 | M41: =F41+H41+I41+J41 -> 0 | N41: =L41 -> 0 | O41: =K41*0.11 -> 0 | Q41: =P41*F41/30 -> 0 | U41: =Q41+S41+T41+O41+R41 -> 0 | V41: =M41-O41-Q41 -> 0 | W41: 750 | X41: =IF((V41+J41)>W41,(V41+J41)-W41,0) -> 0 | Y41: =X41*12 -> 0 | Z41: =IF((Y41<=15000),(Y41*0%),IF((Y41<=30000),(Y41*2.5%)-375,IF((Y41<=45000),(Y41*10%)-2625,IF((Y41<=60000),(Y41*15%)-4875,IF((Y41<=200000),(Y41*20%)-7875,IF((Y41<=400000),(Y41*22.5%)-12875,IF((Y41<=600000),(Y41*25%)-22875,IF((Y41<=700000),(Y41*25%)-22500,IF((Y41<=800000),(Y41*25%)-20250,IF((Y41<=900000),(Y41*25%)-18000,IF((Y41<=1000000),(Y41*25%)-15000,IF((Y41>=1000000),(Y41*25%)-10000)))))))))))/12) -> 0 | AA41: =M41-Q41-S41-T41-Z41-O41-R41 -> 0 | AB41: 0 | AC41: 0 | AD41: 0
A42: =SUBTOTAL(3,$B$5:B42) -> 0 | G42: 0 | K42: 0 | L42: 0 | M42: 0 | N42: 0 | O42: 0 | Q42: 0 | U42: 0 | V42: 0 | W42: 750 | X42: 0 | Y42: 0 | Z42: 0 | AA42: 0 | AB42: 0 | AC42: 0 | AD42: 0
A43: =SUBTOTAL(3,$B$5:B43) -> 0 | G43: =F43-Q43 -> 0 | K43: =IF(F43>8100,8100,F43*0.8) -> 0 | L43: =K43*18.75/100 -> 0 | M43: =F43+H43+I43+J43 -> 0 | N43: =L43 -> 0 | O43: =K43*0.11 -> 0 | Q43: =P43*F43/30 -> 0 | U43: =Q43+S43+T43+O43+R43 -> 0 | V43: =M43-O43-Q43 -> 0 | W43: 750 | X43: =IF((V43+J43)>W43,(V43+J43)-W43,0) -> 0 | Y43: =X43*12 -> 0 | Z43: =IF((Y43<=15000),(Y43*0%),IF((Y43<=30000),(Y43*2.5%)-375,IF((Y43<=45000),(Y43*10%)-2625,IF((Y43<=60000),(Y43*15%)-4875,IF((Y43<=200000),(Y43*20%)-7875,IF((Y43<=400000),(Y43*22.5%)-12875,IF((Y43<=600000),(Y43*25%)-22875,IF((Y43<=700000),(Y43*25%)-22500,IF((Y43<=800000),(Y43*25%)-20250,IF((Y43<=900000),(Y43*25%)-18000,IF((Y43<=1000000),(Y43*25%)-15000,IF((Y43>=1000000),(Y43*25%)-10000)))))))))))/12) -> 0 | AA43: =M43-Q43-S43-T43-Z43-O43-R43 -> 0 | AB43: 0 | AC43: 0 | AD43: 0
A44: =SUBTOTAL(3,$B$5:B44) -> 0 | G44: =F44-Q44 -> 0 | K44: =IF(F44>8100,8100,F44*0.8) -> 0 | L44: =K44*18.75/100 -> 0 | M44: =F44+H44+I44+J44 -> 0 | N44: =L44 -> 0 | O44: =K44*0.11 -> 0 | Q44: =P44*F44/30 -> 0 | U44: =Q44+S44+T44+O44+R44 -> 0 | V44: =M44-O44-Q44 -> 0 | W44: 750 | X44: =IF((V44+J44)>W44,(V44+J44)-W44,0) -> 0 | Y44: =X44*12 -> 0 | Z44: =IF((Y44<=15000),(Y44*0%),IF((Y44<=30000),(Y44*2.5%)-375,IF((Y44<=45000),(Y44*10%)-2625,IF((Y44<=60000),(Y44*15%)-4875,IF((Y44<=200000),(Y44*20%)-7875,IF((Y44<=400000),(Y44*22.5%)-12875,IF((Y44<=600000),(Y44*25%)-22875,IF((Y44<=700000),(Y44*25%)-22500,IF((Y44<=800000),(Y44*25%)-20250,IF((Y44<=900000),(Y44*25%)-18000,IF((Y44<=1000000),(Y44*25%)-15000,IF((Y44>=1000000),(Y44*25%)-10000)))))))))))/12) -> 0 | AA44: =M44-Q44-S44-T44-Z44-O44-R44 -> 0 | AB44: 0 | AC44: 0 | AD44: 0
A45: =SUBTOTAL(3,$B$5:B45) -> 0 | G45: =F45-Q45 -> 0 | K45: =IF(F45>8100,8100,F45*0.8) -> 0 | L45: =K45*18.75/100 -> 0 | M45: =F45+H45+I45+J45 -> 0 | N45: =L45 -> 0 | O45: =K45*0.11 -> 0 | Q45: =P45*F45/30 -> 0 | U45: =Q45+S45+T45+O45+R45 -> 0 | V45: =M45-O45-Q45 -> 0 | W45: 750 | X45: =IF((V45+J45)>W45,(V45+J45)-W45,0) -> 0 | Y45: =X45*12 -> 0 | Z45: =IF((Y45<=15000),(Y45*0%),IF((Y45<=30000),(Y45*2.5%)-375,IF((Y45<=45000),(Y45*10%)-2625,IF((Y45<=60000),(Y45*15%)-4875,IF((Y45<=200000),(Y45*20%)-7875,IF((Y45<=400000),(Y45*22.5%)-12875,IF((Y45<=600000),(Y45*25%)-22875,IF((Y45<=700000),(Y45*25%)-22500,IF((Y45<=800000),(Y45*25%)-20250,IF((Y45<=900000),(Y45*25%)-18000,IF((Y45<=1000000),(Y45*25%)-15000,IF((Y45>=1000000),(Y45*25%)-10000)))))))))))/12) -> 0 | AA45: =M45-Q45-S45-T45-Z45-O45-R45 -> 0 | AB45: 0 | AC45: 0 | AD45: 0
A46: =SUBTOTAL(3,$B$5:B46) -> 0 | G46: =F46-Q46 -> 0 | K46: =IF(F46>8100,8100,F46*0.8) -> 0 | L46: =K46*18.75/100 -> 0 | M46: =F46+H46+I46+J46 -> 0 | N46: =L46 -> 0 | O46: =K46*0.11 -> 0 | Q46: =P46*F46/30 -> 0 | U46: =Q46+S46+T46+O46+R46 -> 0 | V46: =M46-O46-Q46 -> 0 | W46: 750 | X46: =IF((V46+J46)>W46,(V46+J46)-W46,0) -> 0 | Y46: =X46*12 -> 0 | Z46: =IF((Y46<=15000),(Y46*0%),IF((Y46<=30000),(Y46*2.5%)-375,IF((Y46<=45000),(Y46*10%)-2625,IF((Y46<=60000),(Y46*15%)-4875,IF((Y46<=200000),(Y46*20%)-7875,IF((Y46<=400000),(Y46*22.5%)-12875,IF((Y46<=600000),(Y46*25%)-22875,IF((Y46<=700000),(Y46*25%)-22500,IF((Y46<=800000),(Y46*25%)-20250,IF((Y46<=900000),(Y46*25%)-18000,IF((Y46<=1000000),(Y46*25%)-15000,IF((Y46>=1000000),(Y46*25%)-10000)))))))))))/12) -> 0 | AA46: =M46-Q46-S46-T46-Z46-O46-R46 -> 0 | AB46: 0 | AC46: 0 | AD46: 0
A47: =SUBTOTAL(3,$B$5:B47) -> 0 | G47: 0 | K47: 0 | L47: 0 | M47: 0 | N47: 0 | O47: 0 | Q47: 0 | U47: 0 | V47: 0 | W47: 750 | X47: 0 | Y47: 0 | Z47: 0 | AA47: 0 | AB47: 0 | AC47: 0 | AD47: 0
A48: =SUBTOTAL(3,$B$5:B48) -> 0 | G48: 0 | K48: 0 | L48: 0 | M48: 0 | N48: 0 | O48: 0 | Q48: 0 | U48: 0 | V48: 0 | W48: 750 | X48: 0 | Y48: 0 | Z48: 0 | AA48: 0 | AB48: 0 | AC48: 0 | AD48: 0
A49: =SUBTOTAL(3,$B$5:B49) -> 0 | G49: 0 | K49: 0 | L49: 0 | M49: 0 | N49: 0 | O49: 0 | Q49: 0 | U49: 0 | V49: 0 | W49: 750 | X49: 0 | Y49: 0 | Z49: 0 | AA49: 0 | AB49: 0 | AC49: 0 | AD49: 0
A50: =SUBTOTAL(3,$B$5:B50) -> 0 | G50: =F50-Q50 -> 0 | K50: =IF(F50>8100,8100,F50*0.8) -> 0 | L50: =K50*18.75/100 -> 0 | M50: =F50+H50+I50+J50 -> 0 | N50: =L50 -> 0 | O50: =K50*0.11 -> 0 | Q50: =P50*F50/30 -> 0 | U50: =Q50+S50+T50+O50+R50 -> 0 | V50: =M50-O50-Q50 -> 0 | W50: 750 | X50: =IF((V50+J50)>W50,(V50+J50)-W50,0) -> 0 | Y50: =X50*12 -> 0 | Z50: =IF((Y50<=15000),(Y50*0%),IF((Y50<=30000),(Y50*2.5%)-375,IF((Y50<=45000),(Y50*10%)-2625,IF((Y50<=60000),(Y50*15%)-4875,IF((Y50<=200000),(Y50*20%)-7875,IF((Y50<=400000),(Y50*22.5%)-12875,IF((Y50<=600000),(Y50*25%)-22875,IF((Y50<=700000),(Y50*25%)-22500,IF((Y50<=800000),(Y50*25%)-20250,IF((Y50<=900000),(Y50*25%)-18000,IF((Y50<=1000000),(Y50*25%)-15000,IF((Y50>=1000000),(Y50*25%)-10000)))))))))))/12) -> 0 | AA50: =M50-Q50-S50-T50-Z50-O50-R50 -> 0 | AB50: 0 | AC50: 0 | AD50: 0
A51: =SUBTOTAL(3,$B$5:B51) -> 0 | G51: 0 | K51: 0 | L51: 0 | M51: 0 | N51: 0 | O51: 0 | Q51: 0 | U51: 0 | V51: 0 | W51: 750 | X51: 0 | Y51: 0 | Z51: 0 | AA51: 0 | AB51: 0 | AC51: 0 | AD51: 0
A52: =SUBTOTAL(3,$B$5:B52) -> 0 | G52: =F52-Q52 -> 0 | K52: =IF(F52>8100,8100,F52*0.8) -> 0 | L52: =K52*18.75/100 -> 0 | M52: =F52+H52+I52+J52 -> 0 | N52: =L52 -> 0 | O52: =K52*0.11 -> 0 | Q52: =P52*F52/30 -> 0 | U52: =Q52+S52+T52+O52+R52 -> 0 | V52: 0 | W52: 750 | X52: =IF((V52+J52)>W52,(V52+J52)-W52,0) -> 0 | Y52: =X52*12 -> 0 | Z52: =IF((Y52<=15000),(Y52*0%),IF((Y52<=30000),(Y52*2.5%)-375,IF((Y52<=45000),(Y52*10%)-2625,IF((Y52<=60000),(Y52*15%)-4875,IF((Y52<=200000),(Y52*20%)-7875,IF((Y52<=400000),(Y52*22.5%)-12875,IF((Y52<=600000),(Y52*25%)-22875,IF((Y52<=700000),(Y52*25%)-22500,IF((Y52<=800000),(Y52*25%)-20250,IF((Y52<=900000),(Y52*25%)-18000,IF((Y52<=1000000),(Y52*25%)-15000,IF((Y52>=1000000),(Y52*25%)-10000)))))))))))/12) -> 0 | AA52: =M52-Q52-S52-T52-Z52-O52-R52 -> 0 | AB52: 0 | AC52: 0 | AD52: 0
A53: =SUBTOTAL(3,$B$5:B53) -> 0 | G53: =F53-Q53 -> 0 | K53: =IF(F53>8100,8100,F53*0.8) -> 0 | L53: =K53*18.75/100 -> 0 | M53: =F53+H53+I53+J53 -> 0 | N53: =L53 -> 0 | O53: =K53*0.11 -> 0 | Q53: =P53*F53/30 -> 0 | U53: =Q53+S53+T53+O53+R53 -> 0 | V53: 0 | W53: 750 | X53: =IF((V53+J53)>W53,(V53+J53)-W53,0) -> 0 | Y53: =X53*12 -> 0 | Z53: =IF((Y53<=15000),(Y53*0%),IF((Y53<=30000),(Y53*2.5%)-375,IF((Y53<=45000),(Y53*10%)-2625,IF((Y53<=60000),(Y53*15%)-4875,IF((Y53<=200000),(Y53*20%)-7875,IF((Y53<=400000),(Y53*22.5%)-12875,IF((Y53<=600000),(Y53*25%)-22875,IF((Y53<=700000),(Y53*25%)-22500,IF((Y53<=800000),(Y53*25%)-20250,IF((Y53<=900000),(Y53*25%)-18000,IF((Y53<=1000000),(Y53*25%)-15000,IF((Y53>=1000000),(Y53*25%)-10000)))))))))))/12) -> 0 | AA53: =M53-Q53-S53-T53-Z53-O53-R53 -> 0 | AB53: 0 | AC53: 0 | AD53: 0
A54: =SUBTOTAL(3,$B$5:B54) -> 0 | G54: 0 | K54: 0 | L54: 0 | M54: 0 | N54: 0 | O54: 0 | Q54: 0 | U54: 0 | V54: 0 | W54: 750 | X54: 0 | Y54: 0 | Z54: 0 | AA54: 0 | AB54: 0 | AC54: 0 | AD54: 0
A55: =SUBTOTAL(3,$B$5:B55) -> 0 | G55: 0 | K55: 0 | L55: 0 | M55: 0 | N55: 0 | O55: 0 | Q55: 0 | U55: 0 | V55: 0 | W55: 750 | X55: 0 | Y55: 0 | Z55: 0 | AA55: 0 | AB55: 0 | AC55: 0 | AD55: 0
A56: =SUBTOTAL(3,$B$5:B56) -> 0 | G56: 0 | K56: 0 | L56: 0 | M56: 0 | N56: 0 | O56: 0 | Q56: 0 | U56: 0 | V56: 0 | W56: 750 | X56: 0 | Y56: 0 | Z56: 0 | AA56: 0 | AB56: 0 | AC56: 0 | AD56: 0
A57: =SUBTOTAL(3,$B$5:B57) -> 0 | G57: 0 | K57: 0 | L57: 0 | M57: 0 | N57: 0 | O57: 0 | Q57: 0 | U57: 0 | V57: 0 | W57: 750 | X57: 0 | Y57: 0 | Z57: 0 | AA57: 0 | AB57: 0 | AC57: 0 | AD57: 0
A58: =SUBTOTAL(3,$B$5:B58) -> 0 | G58: 0 | K58: 0 | L58: 0 | M58: 0 | N58: 0 | O58: 0 | Q58: 0 | U58: 0 | V58: 0 | W58: 750 | X58: 0 | Y58: 0 | Z58: 0 | AA58: 0 | AB58: 0 | AC58: 0 | AD58: 0
A59: =SUBTOTAL(3,$B$5:B59) -> 0 | G59: 0 | K59: 0 | L59: 0 | M59: 0 | N59: 0 | O59: 0 | Q59: 0 | U59: 0 | V59: 0 | W59: 750 | X59: 0 | Y59: 0 | Z59: 0 | AA59: 0 | AB59: 0 | AC59: 0 | AD59: 0
A60: =SUBTOTAL(3,$B$5:B60) -> 0 | G60: 0 | K60: 0 | L60: 0 | M60: 0 | N60: 0 | O60: 0 | Q60: 0 | U60: 0 | V60: 0 | W60: 750 | X60: 0 | Y60: 0 | Z60: 0 | AA60: 0 | AB60: 0 | AC60: 0 | AD60: 0
A61: =SUBTOTAL(3,$B$5:B61) -> 0 | G61: 0 | K61: 0 | L61: 0 | M61: 0 | N61: 0 | O61: 0 | Q61: 0 | U61: 0 | V61: 0 | W61: 750 | X61: 0 | Y61: 0 | Z61: 0 | AA61: 0 | AB61: 0 | AC61: 0 | AD61: 0
A62: =SUBTOTAL(3,$B$5:B62) -> 0 | G62: 0 | K62: 0 | L62: 0 | M62: 0 | N62: 0 | O62: 0 | Q62: 0 | U62: 0 | V62: 0 | W62: 750 | X62: 0 | Y62: 0 | Z62: 0 | AA62: 0 | AB62: 0 | AC62: 0 | AD62: 0
A63: =SUBTOTAL(3,$B$5:B63) -> 0 | G63: 0 | K63: 0 | L63: 0 | M63: 0 | N63: 0 | O63: 0 | Q63: 0 | U63: 0 | V63: 0 | W63: 750 | X63: 0 | Y63: 0 | Z63: 0 | AA63: 0 | AB63: 0 | AC63: 0 | AD63: 0
A64: =SUBTOTAL(3,$B$5:B64) -> 0 | G64: 0 | K64: 0 | L64: 0 | M64: 0 | N64: 0 | O64: 0 | Q64: 0 | U64: 0 | V64: 0 | W64: 750 | X64: 0 | Y64: 0 | Z64: 0 | AA64: 0 | AB64: 0 | AC64: 0 | AD64: 0
A65: =SUBTOTAL(3,$B$5:B65) -> 0 | G65: 0 | K65: 0 | L65: 0 | M65: 0 | N65: 0 | O65: 0 | Q65: 0 | U65: 0 | V65: 0 | W65: 750 | X65: 0 | Y65: 0 | Z65: 0 | AA65: 0 | AB65: 0 | AC65: 0 | AD65: 0
A66: =SUBTOTAL(3,$B$5:B66) -> 0 | G66: 0 | K66: 0 | L66: 0 | M66: 0 | N66: 0 | O66: 0 | Q66: 0 | U66: 0 | V66: 0 | W66: 750 | X66: 0 | Y66: 0 | Z66: 0 | AA66: 0 | AB66: 0 | AC66: 0 | AD66: 0
A67: =SUBTOTAL(3,$B$5:B67) -> 0 | G67: 0 | K67: 0 | L67: 0 | M67: 0 | N67: 0 | O67: 0 | Q67: 0 | U67: 0 | V67: 0 | W67: 750 | X67: 0 | Y67: 0 | Z67: 0 | AA67: 0 | AB67: 0 | AC67: 0 | AD67: 0
A68: =SUBTOTAL(3,$B$5:B68) -> 0 | G68: =F68-Q68 -> 0 | K68: =IF(F68>8100,8100,F68*0.8) -> 0 | L68: =K68*18.75/100 -> 0 | M68: =F68+H68+I68+J68 -> 0 | N68: =L68 -> 0 | O68: =K68*0.11 -> 0 | Q68: =P68*F68/30 -> 0 | U68: =Q68+S68+T68+O68+R68 -> 0 | V68: =M68-O68-Q68 -> 0 | W68: 750 | X68: =IF((V68+J68)>W68,(V68+J68)-W68,0) -> 0 | Y68: =X68*12 -> 0 | Z68: =IF((Y68<=15000),(Y68*0%),IF((Y68<=30000),(Y68*2.5%)-375,IF((Y68<=45000),(Y68*10%)-2625,IF((Y68<=60000),(Y68*15%)-4875,IF((Y68<=200000),(Y68*20%)-7875,IF((Y68<=400000),(Y68*22.5%)-12875,IF((Y68<=600000),(Y68*25%)-22875,IF((Y68<=700000),(Y68*25%)-22500,IF((Y68<=800000),(Y68*25%)-20250,IF((Y68<=900000),(Y68*25%)-18000,IF((Y68<=1000000),(Y68*25%)-15000,IF((Y68>=1000000),(Y68*25%)-10000)))))))))))/12) -> 0 | AA68: =M68-Q68-S68-T68-Z68-O68-R68 -> 0 | AB68: 0 | AC68: 0 | AD68: 0
A69: =SUBTOTAL(3,$B$5:B69) -> 0 | G69: 0 | K69: 0 | L69: 0 | M69: 0 | N69: 0 | O69: 0 | Q69: 0 | U69: 0 | V69: 0 | W69: 750 | X69: 0 | Y69: 0 | Z69: 0 | AA69: 0 | AB69: 0 | AC69: 0 | AD69: 0
A70: =SUBTOTAL(3,$B$5:B70) -> 0 | G70: 0 | K70: 0 | L70: 0 | M70: 0 | N70: 0 | O70: 0 | Q70: 0 | U70: 0 | V70: 0 | W70: 750 | X70: 0 | Y70: 0 | Z70: 0 | AA70: 0 | AB70: =AA70*0.01 -> 0 | AC70: =IF(M70<=2000,0,M70*0.0005) -> 0 | AD70: =AA70-AB70-AC70 -> 0
A71: =SUBTOTAL(3,$B$5:B71) -> 0 | G71: =F71-Q71 -> 0 | L71: =K71*18.75/100 -> 0 | M71: =F71+H71+I71+J71 -> 0 | N71: =L71 -> 0 | O71: =K71*0.11 -> 0 | Q71: =P71*F71/30 -> 0 | U71: =Q71+S71+T71+O71+R71 -> 0 | V71: 0 | W71: 750 | X71: =IF((V71+J71)>W71,(V71+J71)-W71,0) -> 0 | Y71: =X71*12 -> 0 | Z71: =IF((Y71<=15000),(Y71*0%),IF((Y71<=30000),(Y71*2.5%)-375,IF((Y71<=45000),(Y71*10%)-2625,IF((Y71<=60000),(Y71*15%)-4875,IF((Y71<=200000),(Y71*20%)-7875,IF((Y71<=400000),(Y71*22.5%)-12875,IF((Y71<=600000),(Y71*25%)-22875,IF((Y71<=700000),(Y71*25%)-22500,IF((Y71<=800000),(Y71*25%)-20250,IF((Y71<=900000),(Y71*25%)-18000,IF((Y71<=1000000),(Y71*25%)-15000,IF((Y71>=1000000),(Y71*25%)-10000)))))))))))/12) -> 0 | AA71: =M71-Q71-S71-T71-Z71-O71-R71 -> 0 | AB71: 0 | AC71: 0 | AD71: 0
A72: =SUBTOTAL(3,$B$5:B72) -> 0 | G72: 0 | K72: =IF(F72>8100,8100,F72*0.8) -> 0 | L72: 0 | M72: 0 | N72: 0 | O72: 0 | Q72: 0 | U72: 0 | V72: =M72-O72-Q72 -> 0 | W72: 750 | X72: 0 | Y72: 0 | Z72: 0 | AA72: 0 | AB72: 0 | AC72: 0 | AD72: 0
A73: =SUBTOTAL(3,$B$5:B73) -> 0 | G73: 0 | K73: 0 | L73: 0 | M73: 0 | N73: 0 | O73: 0 | Q73: 0 | U73: 0 | V73: 0 | W73: 750 | X73: 0 | Y73: 0 | Z73: 0 | AA73: 0 | AB73: 0 | AC73: 0 | AD73: 0
A74: =SUBTOTAL(3,$B$5:B74) -> 0 | G74: 0 | K74: 0 | L74: 0 | M74: 0 | N74: 0 | O74: 0 | Q74: 0 | U74: 0 | V74: 0 | W74: 750 | X74: 0 | Y74: 0 | Z74: 0 | AA74: 0 | AB74: 0 | AC74: 0 | AD74: 0
A75: =SUBTOTAL(3,$B$5:B75) -> 0 | G75: 0 | K75: 0 | L75: 0 | M75: 0 | N75: 0 | O75: 0 | Q75: 0 | U75: 0 | V75: 0 | W75: 750 | X75: 0 | Y75: 0 | Z75: 0 | AA75: 0 | AB75: 0 | AC75: 0 | AD75: 0
A76: =SUBTOTAL(3,$B$5:B76) -> 0 | G76: 0 | K76: 0 | L76: 0 | M76: 0 | N76: 0 | O76: 0 | Q76: 0 | U76: 0 | V76: 0 | W76: 750 | X76: 0 | Y76: 0 | Z76: 0 | AA76: 0 | AB76: 0 | AC76: 0 | AD76: 0
A77: =SUBTOTAL(3,$B$5:B77) -> 0 | G77: 0 | K77: 0 | L77: 0 | M77: 0 | N77: 0 | O77: 0 | Q77: 0 | U77: 0 | V77: 0 | W77: 750 | X77: 0 | Y77: 0 | Z77: 0 | AA77: 0 | AB77: 0 | AC77: 0 | AD77: 0
A78: =SUBTOTAL(3,$B$5:B78) -> 0 | G78: 0 | L78: 0 | M78: 0 | N78: 0 | O78: 0 | Q78: 0 | U78: 0 | V78: 0 | W78: 750 | X78: 0 | Y78: 0 | Z78: 0 | AA78: 0 | AB78: 0 | AC78: 0 | AD78: 0
A79: =SUBTOTAL(3,$B$5:B79) -> 0 | G79: 0 | K79: 0 | L79: 0 | M79: 0 | N79: 0 | O79: 0 | Q79: 0 | U79: 0 | V79: 0 | W79: 750 | X79: 0 | Y79: 0 | Z79: 0 | AA79: 0 | AB79: 0 | AC79: 0 | AD79: 0
A80: =SUBTOTAL(3,$B$5:B80) -> 0 | G80: 0 | K80: 0 | L80: 0 | M80: 0 | N80: 0 | O80: 0 | Q80: 0 | U80: 0 | V80: 0 | W80: 750 | X80: 0 | Y80: 0 | Z80: 0 | AA80: 0 | AB80: 0 | AC80: 0 | AD80: 0
A81: =SUBTOTAL(3,$B$5:B81) -> 0 | G81: 0 | K81: 0 | L81: 0 | M81: 0 | N81: 0 | O81: 0 | Q81: 0 | U81: 0 | V81: 0 | W81: 750 | X81: 0 | Y81: 0 | Z81: 0 | AA81: 0 | AB81: 0 | AC81: 0 | AD81: 0
A82: =SUBTOTAL(3,$B$5:B82) -> 0 | G82: 0 | K82: 0 | L82: 0 | M82: 0 | N82: 0 | O82: 0 | Q82: 0 | U82: 0 | V82: 0 | W82: 750 | X82: 0 | Y82: 0 | Z82: 0 | AA82: 0 | AB82: 0 | AC82: 0 | AD82: 0
A83: =SUBTOTAL(3,$B$5:B83) -> 0 | G83: =F83-Q83 -> 0 | K83: =IF(F83>8100,8100,F83*0.8) -> 0 | L83: =K83*18.75/100 -> 0 | M83: =F83+H83+I83+J83 -> 0 | N83: =L83 -> 0 | O83: =K83*0.11 -> 0 | Q83: =P83*F83/30 -> 0 | U83: =Q83+S83+T83+O83+R83 -> 0 | V83: =M83-O83-Q83 -> 0 | W83: 750 | X83: =IF((V83+J83)>W83,(V83+J83)-W83,0) -> 0 | Y83: =X83*12 -> 0 | Z83: =IF((Y83<=15000),(Y83*0%),IF((Y83<=30000),(Y83*2.5%)-375,IF((Y83<=45000),(Y83*10%)-2625,IF((Y83<=60000),(Y83*15%)-4875,IF((Y83<=200000),(Y83*20%)-7875,IF((Y83<=400000),(Y83*22.5%)-12875,IF((Y83<=600000),(Y83*25%)-22875,IF((Y83<=700000),(Y83*25%)-22500,IF((Y83<=800000),(Y83*25%)-20250,IF((Y83<=900000),(Y83*25%)-18000,IF((Y83<=1000000),(Y83*25%)-15000,IF((Y83>=1000000),(Y83*25%)-10000)))))))))))/12) -> 0 | AA83: =M83-Q83-S83-T83-Z83-O83-R83 -> 0 | AB83: 0 | AC83: 0 | AD83: 0
A84: =SUBTOTAL(3,$B$5:B84) -> 0 | G84: 0 | L84: 0 | M84: 0 | N84: 0 | O84: 0 | Q84: 0 | U84: 0 | V84: 0 | W84: 750 | X84: 0 | Y84: 0 | Z84: 0 | AA84: 0 | AB84: 0 | AC84: 0 | AD84: 0
A85: =SUBTOTAL(3,$B$5:B85) -> 0 | G85: 0 | K85: 0 | L85: 0 | M85: 0 | N85: 0 | O85: 0 | Q85: 0 | U85: 0 | V85: 0 | W85: 750 | X85: 0 | Y85: 0 | Z85: 0 | AA85: 0 | AB85: 0 | AC85: 0 | AD85: 0
A86: =SUBTOTAL(3,$B$5:B86) -> 0 | G86: 0 | K86: 0 | L86: 0 | M86: 0 | N86: 0 | O86: 0 | Q86: 0 | U86: 0 | V86: 0 | W86: 750 | X86: 0 | Y86: 0 | Z86: 0 | AA86: 0 | AB86: 0 | AC86: 0 | AD86: 0
A87: =SUBTOTAL(3,$B$5:B87) -> 0 | G87: 0 | K87: 0 | L87: 0 | M87: 0 | N87: 0 | O87: 0 | Q87: 0 | U87: 0 | V87: 0 | W87: 750 | X87: 0 | Y87: 0 | Z87: 0 | AA87: 0 | AB87: 0 | AC87: 0 | AD87: 0
A88: =SUBTOTAL(3,$B$5:B88) -> 0 | G88: 0 | K88: 0 | L88: 0 | M88: 0 | N88: 0 | O88: 0 | Q88: 0 | U88: 0 | V88: 0 | W88: 750 | X88: 0 | Y88: 0 | Z88: 0 | AA88: 0 | AB88: 0 | AC88: 0 | AD88: 0
A89: =SUBTOTAL(3,$B$5:B89) -> 0 | G89: 0 | K89: 0 | L89: 0 | M89: 0 | N89: 0 | O89: 0 | Q89: 0 | U89: 0 | V89: 0 | W89: 750 | X89: 0 | Y89: 0 | Z89: 0 | AA89: 0 | AB89: 0 | AC89: 0 | AD89: 0
A90: =SUBTOTAL(3,$B$5:B90) -> 0 | G90: 0 | K90: 0 | L90: 0 | M90: 0 | N90: 0 | O90: 0 | Q90: 0 | U90: 0 | V90: 0 | W90: 750 | X90: 0 | Y90: 0 | Z90: 0 | AA90: 0 | AB90: 0 | AC90: 0 | AD90: 0
A91: =SUBTOTAL(3,$B$5:B91) -> 0 | G91: 0 | K91: 0 | L91: 0 | M91: 0 | N91: 0 | O91: 0 | Q91: 0 | U91: 0 | V91: 0 | W91: 750 | X91: 0 | Y91: 0 | Z91: 0 | AA91: 0 | AB91: 0 | AC91: 0 | AD91: 0
A92: =SUBTOTAL(3,$B$5:B92) -> 0 | G92: 0 | K92: 0 | L92: 0 | M92: 0 | N92: 0 | O92: 0 | Q92: 0 | U92: 0 | V92: 0 | W92: 750 | X92: 0 | Y92: 0 | Z92: 0 | AA92: 0 | AB92: 0 | AC92: 0 | AD92: 0
A93: =SUBTOTAL(3,$B$5:B93) -> 0 | G93: 0 | K93: 0 | L93: 0 | M93: 0 | N93: 0 | O93: 0 | Q93: 0 | U93: 0 | V93: 0 | W93: 750 | X93: 0 | Y93: 0 | Z93: 0 | AA93: 0 | AB93: 0 | AC93: 0 | AD93: 0
A94: =SUBTOTAL(3,$B$5:B94) -> 0 | G94: 0 | K94: 0 | L94: 0 | M94: 0 | N94: 0 | O94: 0 | Q94: 0 | U94: 0 | V94: 0 | W94: 750 | X94: 0 | Y94: 0 | Z94: 0 | AA94: 0 | AB94: 0 | AC94: 0 | AD94: 0
A95: =SUBTOTAL(3,$B$5:B95) -> 0 | G95: 0 | K95: 0 | L95: 0 | M95: 0 | N95: 0 | O95: 0 | Q95: 0 | U95: 0 | V95: 0 | W95: 750 | X95: 0 | Y95: 0 | Z95: 0 | AA95: 0 | AB95: 0 | AC95: 0 | AD95: 0
A96: =SUBTOTAL(3,$B$5:B96) -> 0 | G96: 0 | K96: 0 | L96: 0 | M96: 0 | N96: 0 | O96: 0 | Q96: 0 | U96: 0 | V96: 0 | W96: 750 | X96: 0 | Y96: 0 | Z96: 0 | AA96: 0 | AB96: 0 | AC96: 0 | AD96: 0
A97: =SUBTOTAL(3,$B$5:B97) -> 0 | G97: 0 | L97: 0 | M97: 0 | N97: 0 | O97: 0 | Q97: 0 | U97: 0 | V97: 0 | W97: 750 | X97: 0 | Y97: 0 | Z97: 0 | AA97: 0 | AB97: 0 | AC97: 0 | AD97: 0
A98: =SUBTOTAL(3,$B$5:B98) -> 0 | G98: 0 | L98: 0 | M98: 0 | N98: 0 | O98: 0 | Q98: 0 | U98: 0 | V98: 0 | W98: 750 | X98: 0 | Y98: 0 | Z98: 0 | AA98: 0 | AB98: 0 | AC98: 0 | AD98: 0
A99: =SUBTOTAL(3,$B$5:B99) -> 0 | G99: 0 | L99: 0 | M99: 0 | N99: 0 | O99: 0 | Q99: 0 | U99: 0 | V99: 0 | W99: 750 | X99: 0 | Y99: 0 | Z99: 0 | AA99: 0 | AB99: 0 | AC99: 0 | AD99: 0
A100: =SUBTOTAL(3,$B$5:B100) -> 0 | G100: 0 | K100: 0 | L100: 0 | M100: 0 | N100: 0 | O100: 0 | Q100: 0 | U100: 0 | V100: 0 | W100: 750 | X100: 0 | Y100: 0 | Z100: 0 | AA100: 0 | AB100: 0 | AC100: 0 | AD100: 0
A101: =SUBTOTAL(3,$B$5:B101) -> 0 | F101: 0 | G101: 0 | K101: 0 | L101: 0 | M101: 0 | N101: 0 | O101: 0 | Q101: 0 | U101: 0 | V101: 0 | W101: 750 | X101: 0 | Y101: 0 | Z101: 0 | AA101: 0 | AB101: 0 | AC101: 0 | AD101: 0
A102: =SUBTOTAL(3,$B$5:B102) -> 0 | F102: 0 | G102: 0 | K102: 0 | L102: 0 | M102: 0 | N102: 0 | O102: 0 | Q102: 0 | U102: 0 | V102: 0 | W102: 750 | X102: 0 | Y102: 0 | Z102: 0 | AA102: 0 | AB102: 0 | AC102: 0 | AD102: 0
A103: =SUBTOTAL(3,$B$5:B103) -> 0 | F103: 0 | G103: 0 | K103: 0 | L103: 0 | M103: 0 | N103: 0 | O103: 0 | Q103: 0 | U103: 0 | V103: 0 | W103: 750 | X103: 0 | Y103: 0 | Z103: 0 | AA103: 0 | AB103: 0 | AC103: 0 | AD103: 0
A104: =SUBTOTAL(3,$B$5:B104) -> 0 | F104: 0 | G104: 0 | K104: 0 | L104: 0 | M104: 0 | N104: 0 | O104: 0 | Q104: 0 | U104: 0 | V104: 0 | W104: 750 | X104: 0 | Y104: 0 | Z104: 0 | AA104: 0 | AB104: 0 | AC104: 0 | AD104: 0
A105: =SUBTOTAL(3,$B$5:B105) -> 0 | F105: 0 | G105: 0 | K105: 0 | L105: 0 | M105: 0 | N105: 0 | O105: 0 | Q105: 0 | U105: 0 | V105: 0 | W105: 750 | X105: 0 | Y105: 0 | Z105: 0 | AA105: 0 | AB105: 0 | AC105: 0 | AD105: 0
A106: =SUBTOTAL(3,$B$5:B106) -> 0 | F106: 0 | G106: 0 | K106: 0 | L106: 0 | M106: 0 | N106: 0 | O106: 0 | Q106: 0 | U106: 0 | V106: 0 | W106: 750 | X106: 0 | Y106: 0 | Z106: 0 | AA106: 0 | AB106: 0 | AC106: 0 | AD106: 0
A107: =SUBTOTAL(3,$B$5:B107) -> 0 | F107: 0 | G107: 0 | K107: 0 | L107: 0 | M107: 0 | N107: 0 | O107: 0 | Q107: 0 | U107: 0 | V107: 0 | W107: 750 | X107: 0 | Y107: 0 | Z107: 0 | AA107: 0 | AB107: 0 | AC107: 0 | AD107: 0
A108: =SUBTOTAL(3,$B$5:B108) -> 0 | F108: 0 | G108: 0 | K108: 0 | L108: 0 | M108: 0 | N108: 0 | O108: 0 | Q108: 0 | U108: 0 | V108: 0 | W108: 750 | X108: 0 | Y108: 0 | Z108: 0 | AA108: 0 | AB108: 0 | AC108: 0 | AD108: 0
A109: =SUBTOTAL(3,$B$5:B109) -> 0 | F109: 0 | G109: 0 | K109: 0 | L109: 0 | M109: 0 | N109: 0 | O109: 0 | Q109: 0 | U109: 0 | V109: 0 | W109: 750 | X109: 0 | Y109: 0 | Z109: 0 | AA109: 0 | AB109: 0 | AC109: 0 | AD109: 0
A110: =SUBTOTAL(3,$B$5:B110) -> 0 | F110: 0 | G110: 0 | K110: 0 | L110: 0 | M110: 0 | N110: 0 | O110: 0 | Q110: 0 | U110: 0 | V110: 0 | W110: 750 | X110: 0 | Y110: 0 | Z110: 0 | AA110: 0 | AB110: 0 | AC110: 0 | AD110: 0
A111: =SUBTOTAL(3,$B$5:B111) -> 0 | F111: 0 | G111: 0 | K111: 0 | L111: 0 | M111: 0 | N111: 0 | O111: 0 | Q111: 0 | U111: 0 | V111: 0 | W111: 750 | X111: 0 | Y111: 0 | Z111: 0 | AA111: 0 | AB111: 0 | AC111: 0 | AD111: 0
A112: =SUBTOTAL(3,$B$5:B112) -> 0 | G112: 0 | K112: 0 | L112: 0 | M112: 0 | N112: 0 | O112: 0 | Q112: 0 | U112: 0 | V112: 0 | W112: 750 | X112: 0 | Y112: 0 | Z112: 0 | AA112: 0 | AB112: 0 | AC112: 0 | AD112: 0
A113: =SUBTOTAL(3,$B$5:B113) -> 0 | F113: 0 | G113: 0 | K113: 0 | L113: 0 | M113: 0 | N113: 0 | O113: 0 | Q113: 0 | U113: 0 | V113: 0 | W113: 750 | X113: 0 | Y113: 0 | Z113: 0 | AA113: 0 | AB113: 0 | AC113: 0 | AD113: 0
A114: =SUBTOTAL(3,$B$5:B114) -> 0 | F114: 0 | G114: 0 | K114: 0 | L114: 0 | M114: 0 | N114: 0 | O114: 0 | Q114: 0 | U114: 0 | V114: 0 | W114: 750 | X114: 0 | Y114: 0 | Z114: 0 | AA114: 0 | AB114: 0 | AC114: 0 | AD114: 0
A115: =SUBTOTAL(3,$B$5:B115) -> 0 | F115: 0 | G115: 0 | K115: 0 | L115: 0 | M115: 0 | N115: 0 | O115: 0 | Q115: 0 | U115: 0 | V115: 0 | W115: 750 | X115: 0 | Y115: 0 | Z115: 0 | AA115: 0 | AB115: 0 | AC115: 0 | AD115: 0
A116: =SUBTOTAL(3,$B$5:B116) -> 0 | F116: 0 | G116: 0 | K116: 0 | L116: 0 | M116: 0 | N116: 0 | O116: 0 | Q116: 0 | U116: 0 | V116: 0 | W116: 750 | X116: 0 | Y116: 0 | Z116: 0 | AA116: 0 | AB116: 0 | AC116: 0 | AD116: 0
A117: =SUBTOTAL(3,$B$5:B117) -> 0 | F117: 0 | G117: 0 | K117: 0 | L117: 0 | M117: 0 | N117: 0 | O117: 0 | Q117: 0 | U117: 0 | V117: 0 | W117: 750 | X117: 0 | Y117: 0 | Z117: 0 | AA117: 0 | AB117: 0 | AC117: 0 | AD117: 0
A118: =SUBTOTAL(3,$B$5:B118) -> 0 | F118: 0 | G118: 0 | K118: 0 | L118: 0 | M118: 0 | N118: 0 | O118: 0 | Q118: 0 | U118: 0 | V118: 0 | W118: 750 | X118: 0 | Y118: 0 | Z118: 0 | AA118: 0 | AB118: 0 | AC118: 0 | AD118: 0
A119: =SUBTOTAL(3,$B$5:B119) -> 0 | F119: 0 | G119: 0 | K119: 0 | L119: 0 | M119: 0 | N119: 0 | O119: 0 | Q119: 0 | U119: 0 | V119: 0 | W119: 750 | X119: 0 | Y119: 0 | Z119: 0 | AA119: 0 | AB119: 0 | AC119: 0 | AD119: 0
A120: =SUBTOTAL(3,$B$5:B120) -> 0 | F120: 0 | G120: 0 | K120: 0 | L120: 0 | M120: 0 | N120: 0 | O120: 0 | Q120: 0 | U120: 0 | V120: 0 | W120: 750 | X120: 0 | Y120: 0 | Z120: 0 | AA120: 0 | AB120: 0 | AC120: 0 | AD120: 0
A121: =SUBTOTAL(3,$B$5:B121) -> 0 | F121: 0 | G121: 0 | K121: 0 | L121: 0 | M121: 0 | N121: 0 | O121: 0 | Q121: 0 | U121: 0 | V121: 0 | W121: 750 | X121: 0 | Y121: 0 | Z121: 0 | AA121: 0 | AB121: 0 | AC121: 0 | AD121: 0
A122: =SUBTOTAL(3,$B$5:B122) -> 0 | G122: 0 | K122: 0 | L122: 0 | M122: 0 | N122: 0 | O122: 0 | Q122: 0 | U122: 0 | V122: 0 | W122: 750 | X122: 0 | Y122: 0 | Z122: 0 | AA122: 0 | AB122: 0 | AC122: 0 | AD122: 0
A123: =SUBTOTAL(3,$B$5:B123) -> 0 | G123: 0 | K123: 0 | L123: 0 | M123: 0 | N123: 0 | O123: 0 | Q123: 0 | U123: 0 | V123: 0 | W123: 750 | X123: 0 | Y123: 0 | Z123: 0 | AA123: 0 | AB123: 0 | AC123: 0 | AD123: 0
A124: =SUBTOTAL(3,$B$5:B124) -> 0 | F124: 0 | G124: 0 | K124: 0 | L124: 0 | M124: 0 | N124: 0 | O124: 0 | Q124: 0 | U124: 0 | V124: 0 | W124: 750 | X124: 0 | Y124: 0 | Z124: 0 | AA124: 0 | AB124: 0 | AC124: 0 | AD124: 0
A125: الاجمالى | F125: =SUM(F5:F124) -> 0 | G125: 0 | H125: 0 | I125: 0 | J125: 0 | K125: 0 | L125: 0 | M125: 0 | N125: 0 | O125: 0 | P125: 8 | Q125: 0 | R125: 0 | S125: 0 | T125: 0 | U125: 0 | V125: 0 | W125: 90000 | X125: 0 | Y125: 0 | Z125: 0 | AA125: =SUM(AA5:AA124) -> 0 | AB125: =SUM(AB5:AB124) -> 0 | AC125: 0 | AD125: 0
E127: الموارد البشرية | U127: الرئيس التنفيذي للشركة د . عمرو العدل
U128: د. عمرو العدل

Sheet اغسطس
A4: م | B4: الاسم | C4: الوظيفة | D4: الادارة | E4: ATM | F4: الاجر الاساسى | G4: الاجر الاساسى بعد عدم الحضور | H4: مكافأت | I4: حافز بيع | J4: اضافى | K4: الاجر التامينى | L4: المنشأة | M4: اجمالي الاستحقاقات | N4: المنشأة2 | O4: الموظف | P4: عدم الحضور باليوم | Q4: عدم حضور بالجنيه | R4: مصروف صيانه | S4: سلف | T4: جزاءات | U4: اجمالي الاستقطاعات | V4: قبل الضريبة | W4: اعفاء شخصى | X4: الوعاء الضريبى | Y4: الوعاء الضريبى على اساس السنوى | Z4: الضريبة المستحقة | AA4: الصافى | AB4: خصم تكافلي | AC4: خصم الشهيد | AD4: الصافي المستحق للصرف
A5: 1 | G5: =F5-Q5 -> 0 | H5: 0 | I5: 0 | J5: 0 | K5: =IF(F5>8100,8100,F5*0.8) -> 0 | L5: =K5*18.75/100 -> 0 | M5: =F5+H5+I5+J5 -> 0 | N5: =L5 -> 0 | O5: =K5*0.11 -> 0 | Q5: =P5*F5/30 -> 0 | U5: =Q5+S5+T5+O5+R5 -> 0 | V5: =M5-O5-Q5 -> 0 | W5: 750 | X5: =IF((V5+J5)>W5,(V5+J5)-W5,0) -> 0 | Y5: =X5*12 -> 0 | Z5: =IF((Y5<=15000),(Y5*0%),IF((Y5<=30000),(Y5*2.5%)-375,IF((Y5<=45000),(Y5*10%)-2625,IF((Y5<=60000),(Y5*15%)-4875,IF((Y5<=200000),(Y5*20%)-7875,IF((Y5<=400000),(Y5*22.5%)-12875,IF((Y5<=600000),(Y5*25%)-22875,IF((Y5<=700000),(Y5*25%)-22500,IF((Y5<=800000),(Y5*25%)-20250,IF((Y5<=900000),(Y5*25%)-18000,IF((Y5<=1000000),(Y5*25%)-15000,IF((Y5>=1000000),(Y5*25%)-10000)))))))))))/12) -> 0 | AA5: =M5-Q5-S5-T5-Z5-O5-R5 -> 0 | AB5: =AA5*0.01 -> 0 | AC5: =IF(M5<=2000,0,M5*0.0005) -> 0 | AD5: =AA5-AB5-AC5 -> 0
A6: =SUBTOTAL(3,$B$5:B6) -> 0 | G6: 0 | K6: 0 | L6: 0 | M6: 0 | N6: 0 | O6: 0 | Q6: 0 | U6: 0 | V6: =M6-O6-Q6 -> 0 | W6: 750 | X6: 0 | Y6: 0 | Z6: =IF((Y6<=15000),(Y6*0%),IF((Y6<=30000),(Y6*2.5%)-375,IF((Y6<=45000),(Y6*10%)-2625,IF((Y6<=60000),(Y6*15%)-4875,IF((Y6<=200000),(Y6*20%)-7875,IF((Y6<=400000),(Y6*22.5%)-12875,IF((Y6<=600000),(Y6*25%)-22875,IF((Y6<=700000),(Y6*25%)-22500,IF((Y6<=800000),(Y6*25%)-20250,IF((Y6<=900000),(Y6*25%)-18000,IF((Y6<=1000000),(Y6*25%)-15000,IF((Y6>=1000000),(Y6*25%)-10000)))))))))))/12) -> 0 | AA6: 0 | AB6: =AA6*0.01 -> 0 | AC6: =IF(M6<=2000,0,M6*0.0005) -> 0 | AD6: =AA6-AB6-AC6 -> 0
A7: =SUBTOTAL(3,$B$5:B7) -> 0 | G7: 0 | K7: 0 | L7: 0 | M7: 0 | N7: 0 | O7: 0 | Q7: 0 | U7: 0 | V7: 0 | W7: 750 | X7: 0 | Y7: 0 | Z7: 0 | AA7: 0 | AB7: 0 | AC7: 0 | AD7: 0
A8: =SUBTOTAL(3,$B$5:B8) -> 0 | G8: 0 | K8: 0 | L8: 0 | M8: 0 | N8: 0 | O8: 0 | Q8: 0 | U8: 0 | V8: 0 | W8: 750 | X8: 0 | Y8: 0 | Z8: 0 | AA8: 0 | AB8: 0 | AC8: 0 | AD8: 0
A9: =SUBTOTAL(3,$B$5:B9) -> 0 | G9: 0 | K9: 0 | L9: 0 | M9: 0 | N9: 0 | O9: 0 | Q9: 0 | U9: 0 | V9: 0 | W9: 750 | X9: 0 | Y9: 0 | Z9: 0 | AA9: 0 | AB9: 0 | AC9: 0 | AD9: 0
A10: =SUBTOTAL(3,$B$5:B10) -> 0 | G10: 0 | K10: 0 | L10: 0 | M10: 0 | N10: 0 | O10: 0 | Q10: 0 | U10: 0 | V10: 0 | W10: 750 | X10: 0 | Y10: 0 | Z10: 0 | AA10: 0 | AB10: 0 | AC10: 0 | AD10: 0
A11: =SUBTOTAL(3,$B$5:B11) -> 0 | G11: 0 | L11: 0 | M11: 0 | N11: 0 | O11: 0 | P11: 8 | Q11: 0 | U11: 0 | V11: 0 | W11: 750 | X11: 0 | Y11: 0 | Z11: 0 | AA11: 0 | AB11: 0 | AC11: 0 | AD11: 0
A12: =SUBTOTAL(3,$B$5:B12) -> 0 | G12: 0 | K12: 0 | L12: 0 | M12: 0 | N12: 0 | O12: 0 | Q12: 0 | U12: 0 | V12: 0 | W12: 750 | X12: 0 | Y12: 0 | Z12: 0 | AA12: 0 | AB12: 0 | AC12: 0 | AD12: 0
A13: =SUBTOTAL(3,$B$5:B13) -> 0 | G13: 0 | K13: 0 | L13: 0 | M13: 0 | N13: 0 | O13: 0 | Q13: 0 | U13: 0 | V13: 0 | W13: 750 | X13: 0 | Y13: 0 | Z13: 0 | AA13: 0 | AB13: 0 | AC13: 0 | AD13: 0
A14: =SUBTOTAL(3,$B$5:B14) -> 0 | G14: 0 | K14: 0 | L14: 0 | M14: 0 | N14: 0 | O14: 0 | Q14: 0 | U14: 0 | V14: 0 | W14: 750 | X14: 0 | Y14: 0 | Z14: 0 | AA14: 0 | AB14: 0 | AC14: 0 | AD14: 0
A15: =SUBTOTAL(3,$B$5:B15) -> 0 | G15: 0 | K15: 0 | L15: 0 | M15: 0 | N15: 0 | O15: 0 | Q15: 0 | U15: 0 | V15: 0 | W15: 750 | X15: 0 | Y15: 0 | Z15: 0 | AA15: 0 | AB15: 0 | AC15: 0 | AD15: 0
A16: =SUBTOTAL(3,$B$5:B16) -> 0 | G16: 0 | K16: 0 | L16: 0 | M16: 0 | N16: 0 | O16: 0 | Q16: 0 | U16: 0 | V16: 0 | W16: 750 | X16: 0 | Y16: 0 | Z16: 0 | AA16: 0 | AB16: 0 | AC16: 0 | AD16: 0
A17: =SUBTOTAL(3,$B$5:B17) -> 0 | G17: 0 | K17: 0 | L17: 0 | M17: 0 | N17: 0 | O17: 0 | Q17: 0 | U17: 0 | V17: 0 | W17: 750 | X17: 0 | Y17: 0 | Z17: 0 | AA17: 0 | AB17: 0 | AC17: 0 | AD17: 0
A18: =SUBTOTAL(3,$B$5:B18) -> 0 | G18: 0 | K18: 0 | L18: 0 | M18: 0 | N18: 0 | O18: 0 | Q18: 0 | U18: 0 | V18: 0 | W18: 750 | X18: 0 | Y18: 0 | Z18: 0 | AA18: 0 | AB18: 0 | AC18: 0 | AD18: 0
A19: =SUBTOTAL(3,$B$5:B19) -> 0 | G19: 0 | K19: 0 | L19: 0 | M19: 0 | N19: 0 | O19: 0 | Q19: 0 | U19: 0 | V19: 0 | W19: 750 | X19: 0 | Y19: 0 | Z19: 0 | AA19: 0 | AB19: 0 | AC19: 0 | AD19: 0
A20: =SUBTOTAL(3,$B$5:B20) -> 0 | G20: 0 | K20: 0 | L20: 0 | M20: 0 | N20: 0 | O20: 0 | Q20: 0 | U20: 0 | V20: 0 | W20: 750 | X20: 0 | Y20: 0 | Z20: 0 | AA20: 0 | AB20: 0 | AC20: 0 | AD20: 0
A21: =SUBTOTAL(3,$B$5:B21) -> 0 | G21: 0 | K21: 0 | L21: 0 | M21: 0 | N21: 0 | O21: 0 | Q21: 0 | U21: 0 | V21: 0 | W21: 750 | X21: 0 | Y21: 0 | Z21: 0 | AA21: 0 | AB21: 0 | AC21: 0 | AD21: 0
A22: =SUBTOTAL(3,$B$5:B22) -> 0 | G22: 0 | K22: 0 | L22: 0 | M22: 0 | N22: 0 | O22: 0 | Q22: 0 | U22: 0 | V22: 0 | W22: 750 | X22: 0 | Y22: 0 | Z22: 0 | AA22: 0 | AB22: 0 | AC22: 0 | AD22: 0
A23: =SUBTOTAL(3,$B$5:B23) -> 0 | G23: 0 | K23: 0 | L23: 0 | M23: 0 | N23: 0 | O23: 0 | Q23: 0 | U23: 0 | V23: 0 | W23: 750 | X23: 0 | Y23: 0 | Z23: 0 | AA23: 0 | AB23: 0 | AC23: 0 | AD23: 0
A24: =SUBTOTAL(3,$B$5:B24) -> 0 | G24: =F24-Q24 -> 0 | K24: =IF(F24>8100,8100,F24*0.8) -> 0 | L24: =K24*18.75/100 -> 0 | M24: =F24+H24+I24+J24 -> 0 | N24: =L24 -> 0 | O24: =K24*0.11 -> 0 | Q24: =P24*F24/30 -> 0 | U24: =Q24+S24+T24+O24+R24 -> 0 | V24: =M24-O24-Q24 -> 0 | W24: 750 | X24: =IF((V24+J24)>W24,(V24+J24)-W24,0) -> 0 | Y24: =X24*12 -> 0 | Z24: =IF((Y24<=15000),(Y24*0%),IF((Y24<=30000),(Y24*2.5%)-375,IF((Y24<=45000),(Y24*10%)-2625,IF((Y24<=60000),(Y24*15%)-4875,IF((Y24<=200000),(Y24*20%)-7875,IF((Y24<=400000),(Y24*22.5%)-12875,IF((Y24<=600000),(Y24*25%)-22875,IF((Y24<=700000),(Y24*25%)-22500,IF((Y24<=800000),(Y24*25%)-20250,IF((Y24<=900000),(Y24*25%)-18000,IF((Y24<=1000000),(Y24*25%)-15000,IF((Y24>=1000000),(Y24*25%)-10000)))))))))))/12) -> 0 | AA24: =M24-Q24-S24-T24-Z24-O24-R24 -> 0 | AB24: 0 | AC24: 0 | AD24: 0
A25: =SUBTOTAL(3,$B$5:B25) -> 0 | G25: 0 | K25: 0 | L25: 0 | M25: 0 | N25: 0 | O25: 0 | Q25: 0 | U25: 0 | V25: 0 | W25: 750 | X25: 0 | Y25: 0 | Z25: 0 | AA25: 0 | AB25: 0 | AC25: 0 | AD25: 0
A26: =SUBTOTAL(3,$B$5:B26) -> 0 | G26: 0 | K26: 0 | L26: 0 | M26: 0 | N26: 0 | O26: 0 | Q26: 0 | U26: 0 | V26: 0 | W26: 750 | X26: 0 | Y26: 0 | Z26: 0 | AA26: 0 | AB26: 0 | AC26: 0 | AD26: 0
A27: =SUBTOTAL(3,$B$5:B27) -> 0 | G27: 0 | K27: 0 | L27: 0 | M27: 0 | N27: 0 | O27: 0 | Q27: 0 | U27: 0 | V27: 0 | W27: 750 | X27: 0 | Y27: 0 | Z27: 0 | AA27: 0 | AB27: 0 | AC27: 0 | AD27: 0
A28: =SUBTOTAL(3,$B$5:B28) -> 0 | G28: =F28-Q28 -> 0 | K28: =IF(F28>8100,8100,F28*0.8) -> 0 | L28: =K28*18.75/100 -> 0 | M28: =F28+H28+I28+J28 -> 0 | N28: =L28 -> 0 | O28: =K28*0.11 -> 0 | Q28: =P28*F28/30 -> 0 | U28: =Q28+S28+T28+O28+R28 -> 0 | V28: 0 | W28: 750 | X28: =IF((V28+J28)>W28,(V28+J28)-W28,0) -> 0 | Y28: =X28*12 -> 0 | Z28: =IF((Y28<=15000),(Y28*0%),IF((Y28<=30000),(Y28*2.5%)-375,IF((Y28<=45000),(Y28*10%)-2625,IF((Y28<=60000),(Y28*15%)-4875,IF((Y28<=200000),(Y28*20%)-7875,IF((Y28<=400000),(Y28*22.5%)-12875,IF((Y28<=600000),(Y28*25%)-22875,IF((Y28<=700000),(Y28*25%)-22500,IF((Y28<=800000),(Y28*25%)-20250,IF((Y28<=900000),(Y28*25%)-18000,IF((Y28<=1000000),(Y28*25%)-15000,IF((Y28>=1000000),(Y28*25%)-10000)))))))))))/12) -> 0 | AA28: =M28-Q28-S28-T28-Z28-O28-R28 -> 0 | AB28: 0 | AC28: 0 | AD28: 0
A29: =SUBTOTAL(3,$B$5:B29) -> 0 | G29: =F29-Q29 -> 0 | K29: =IF(F29>8100,8100,F29*0.8) -> 0 | L29: =K29*18.75/100 -> 0 | M29: =F29+H29+I29+J29 -> 0 | N29: =L29 -> 0 | O29: =K29*0.11 -> 0 | Q29: =P29*F29/30 -> 0 | U29: =Q29+S29+T29+O29+R29 -> 0 | V29: =M29-O29-Q29 -> 0 | W29: 750 | X29: =IF((V29+J29)>W29,(V29+J29)-W29,0) -> 0 | Y29: =X29*12 -> 0 | Z29: =IF((Y29<=15000),(Y29*0%),IF((Y29<=30000),(Y29*2.5%)-375,IF((Y29<=45000),(Y29*10%)-2625,IF((Y29<=60000),(Y29*15%)-4875,IF((Y29<=200000),(Y29*20%)-7875,IF((Y29<=400000),(Y29*22.5%)-12875,IF((Y29<=600000),(Y29*25%)-22875,IF((Y29<=700000),(Y29*25%)-22500,IF((Y29<=800000),(Y29*25%)-20250,IF((Y29<=900000),(Y29*25%)-18000,IF((Y29<=1000000),(Y29*25%)-15000,IF((Y29>=1000000),(Y29*25%)-10000)))))))))))/12) -> 0 | AA29: =M29-Q29-S29-T29-Z29-O29-R29 -> 0 | AB29: 0 | AC29: 0 | AD29: 0
A30: =SUBTOTAL(3,$B$5:B30) -> 0 | G30: =F30-Q30 -> 0 | K30: =IF(F30>8100,8100,F30*0.8) -> 0 | L30: =K30*18.75/100 -> 0 | M30: =F30+H30+I30+J30 -> 0 | N30: =L30 -> 0 | O30: =K30*0.11 -> 0 | Q30: =P30*F30/30 -> 0 | U30: =Q30+S30+T30+O30+R30 -> 0 | V30: =M30-O30-Q30 -> 0 | W30: 750 | X30: =IF((V30+J30)>W30,(V30+J30)-W30,0) -> 0 | Y30: =X30*12 -> 0 | Z30: =IF((Y30<=15000),(Y30*0%),IF((Y30<=30000),(Y30*2.5%)-375,IF((Y30<=45000),(Y30*10%)-2625,IF((Y30<=60000),(Y30*15%)-4875,IF((Y30<=200000),(Y30*20%)-7875,IF((Y30<=400000),(Y30*22.5%)-12875,IF((Y30<=600000),(Y30*25%)-22875,IF((Y30<=700000),(Y30*25%)-22500,IF((Y30<=800000),(Y30*25%)-20250,IF((Y30<=900000),(Y30*25%)-18000,IF((Y30<=1000000),(Y30*25%)-15000,IF((Y30>=1000000),(Y30*25%)-10000)))))))))))/12) -> 0 | AA30: =M30-Q30-S30-T30-Z30-O30-R30 -> 0 | AB30: 0 | AC30: 0 | AD30: 0
A31: =SUBTOTAL(3,$B$5:B31) -> 0 | G31: 0 | K31: 0 | L31: 0 | M31: 0 | N31: 0 | O31: 0 | Q31: 0 | U31: 0 | V31: 0 | W31: 750 | X31: 0 | Y31: 0 | Z31: 0 | AA31: 0 | AB31: 0 | AC31: 0 | AD31: 0
A32: =SUBTOTAL(3,$B$5:B32) -> 0 | G32: 0 | K32: 0 | L32: 0 | M32: 0 | N32: 0 | O32: 0 | Q32: 0 | U32: 0 | V32: 0 | W32: 750 | X32: 0 | Y32: 0 | Z32: 0 | AA32: 0 | AB32: 0 | AC32: 0 | AD32: 0
A33: =SUBTOTAL(3,$B$5:B33) -> 0 | G33: 0 | K33: 0 | L33: 0 | M33: 0 | N33: 0 | O33: 0 | Q33: 0 | U33: 0 | V33: 0 | W33: 750 | X33: 0 | Y33: 0 | Z33: 0 | AA33: 0 | AB33: 0 | AC33: 0 | AD33: 0 | AE33: 8393 | AG33: =AA33-AE33 -> -8393
A34: =SUBTOTAL(3,$B$5:B34) -> 0 | G34: =F34-Q34 -> 0 | K34: =IF(F34>8100,8100,F34*0.8) -> 0 | L34: =K34*18.75/100 -> 0 | M34: =F34+H34+I34+J34 -> 0 | N34: =L34 -> 0 | O34: =K34*0.11 -> 0 | Q34: =P34*F34/30 -> 0 | U34: =Q34+S34+T34+O34+R34 -> 0 | V34: =M34-O34-Q34 -> 0 | W34: 750 | X34: =IF((V34+J34)>W34,(V34+J34)-W34,0) -> 0 | Y34: =X34*12 -> 0 | Z34: =IF((Y34<=15000),(Y34*0%),IF((Y34<=30000),(Y34*2.5%)-375,IF((Y34<=45000),(Y34*10%)-2625,IF((Y34<=60000),(Y34*15%)-4875,IF((Y34<=200000),(Y34*20%)-7875,IF((Y34<=400000),(Y34*22.5%)-12875,IF((Y34<=600000),(Y34*25%)-22875,IF((Y34<=700000),(Y34*25%)-22500,IF((Y34<=800000),(Y34*25%)-20250,IF((Y34<=900000),(Y34*25%)-18000,IF((Y34<=1000000),(Y34*25%)-15000,IF((Y34>=1000000),(Y34*25%)-10000)))))))))))/12) -> 0 | AA34: =M34-Q34-S34-T34-Z34-O34-R34 -> 0 | AB34: 0 | AC34: 0 | AD34: 0
A35: =SUBTOTAL(3,$B$5:B35) -> 0 | G35: 0 | K35: 0 | L35: 0 | M35: 0 | N35: 0 | O35: 0 | Q35: 0 | U35: 0 | V35: 0 | W35: 750 | X35: 0 | Y35: 0 | Z35: 0 | AA35: 0 | AB35: 0 | AC35: 0 | AD35: 0
A36: =SUBTOTAL(3,$B$5:B36) -> 0 | G36: 0 | K36: 0 | L36: 0 | M36: 0 | N36: 0 | O36: 0 | Q36: 0 | U36: 0 | V36: 0 | W36: 750 | X36: 0 | Y36: 0 | Z36: 0 | AA36: 0 | AB36: 0 | AC36: 0 | AD36: 0
A37: =SUBTOTAL(3,$B$5:B37) -> 0 | G37: 0 | K37: 0 | L37: 0 | M37: 0 | N37: 0 | O37: 0 | Q37: 0 | U37: 0 | V37: 0 | W37: 750 | X37: 0 | Y37: 0 | Z37: 0 | AA37: 0 | AB37: 0 | AC37: 0 | AD37: 0
A38: =SUBTOTAL(3,$B$5:B38) -> 0 | G38: 0 | K38: 0 | L38: 0 | M38: 0 | N38: 0 | O38: 0 | Q38: 0 | U38: 0 | V38: 0 | W38: 750 | X38: 0 | Y38: 0 | Z38: 0 | AA38: 0 | AB38: 0 | AC38: 0 | AD38: 0
A39: =SUBTOTAL(3,$B$5:B39) -> 0 | G39: 0 | K39: 0 | L39: 0 | M39: 0 | N39: 0 | O39: 0 | Q39: 0 | U39: 0 | V39: 0 | W39: 750 | X39: 0 | Y39: 0 | Z39: 0 | AA39: 0 | AB39: 0 | AC39: 0 | AD39: 0
A40: =SUBTOTAL(3,$B$5:B40) -> 0 | G40: 0 | K40: 0 | L40: 0 | M40: 0 | N40: 0 | O40: 0 | Q40: 0 | U40: 0 | V40: 0 | W40: 750 | X40: 0 | Y40: 0 | Z40: 0 | AA40: 0 | AB40: 0 | AC40: 0 | AD40: 0
A41: =SUBTOTAL(3,$B$5:B41) -> 0 | G41: =F41-Q41 -> 0 | K41: =IF(F41>8100,8100,F41*0.8) -> 0 | L41: =K41*18.75/100 -> 0 | M41: =F41+H41+I41+J41 -> 0 | N41: =L41 -> 0 | O41: =K41*0.11 -> 0 | Q41: =P41*F41/30 -> 0 | U41: =Q41+S41+T41+O41+R41 -> 0 | V41: =M41-O41-Q41 -> 0 | W41: 750 | X41: =IF((V41+J41)>W41,(V41+J41)-W41,0) -> 0 | Y41: =X41*12 -> 0 | Z41: =IF((Y41<=15000),(Y41*0%),IF((Y41<=30000),(Y41*2.5%)-375,IF((Y41<=45000),(Y41*10%)-2625,IF((Y41<=60000),(Y41*15%)-4875,IF((Y41<=200000),(Y41*20%)-7875,IF((Y41<=400000),(Y41*22.5%)-12875,IF((Y41<=600000),(Y41*25%)-22875,IF((Y41<=700000),(Y41*25%)-22500,IF((Y41<=800000),(Y41*25%)-20250,IF((Y41<=900000),(Y41*25%)-18000,IF((Y41<=1000000),(Y41*25%)-15000,IF((Y41>=1000000),(Y41*25%)-10000)))))))))))/12) -> 0 | AA41: =M41-Q41-S41-T41-Z41-O41-R41 -> 0 | AB41: 0 | AC41: 0 | AD41: 0
A42: =SUBTOTAL(3,$B$5:B42) -> 0 | G42: 0 | K42: 0 | L42: 0 | M42: 0 | N42: 0 | O42: 0 | Q42: 0 | U42: 0 | V42: 0 | W42: 750 | X42: 0 | Y42: 0 | Z42: 0 | AA42: 0 | AB42: 0 | AC42: 0 | AD42: 0
A43: =SUBTOTAL(3,$B$5:B43) -> 0 | G43: =F43-Q43 -> 0 | K43: =IF(F43>8100,8100,F43*0.8) -> 0 | L43: =K43*18.75/100 -> 0 | M43: =F43+H43+I43+J43 -> 0 | N43: =L43 -> 0 | O43: =K43*0.11 -> 0 | Q43: =P43*F43/30 -> 0 | U43: =Q43+S43+T43+O43+R43 -> 0 | V43: =M43-O43-Q43 -> 0 | W43: 750 | X43: =IF((V43+J43)>W43,(V43+J43)-W43,0) -> 0 | Y43: =X43*12 -> 0 | Z43: =IF((Y43<=15000),(Y43*0%),IF((Y43<=30000),(Y43*2.5%)-375,IF((Y43<=45000),(Y43*10%)-2625,IF((Y43<=60000),(Y43*15%)-4875,IF((Y43<=200000),(Y43*20%)-7875,IF((Y43<=400000),(Y43*22.5%)-12875,IF((Y43<=600000),(Y43*25%)-22875,IF((Y43<=700000),(Y43*25%)-22500,IF((Y43<=800000),(Y43*25%)-20250,IF((Y43<=900000),(Y43*25%)-18000,IF((Y43<=1000000),(Y43*25%)-15000,IF((Y43>=1000000),(Y43*25%)-10000)))))))))))/12) -> 0 | AA43: =M43-Q43-S43-T43-Z43-O43-R43 -> 0 | AB43: 0 | AC43: 0 | AD43: 0
A44: =SUBTOTAL(3,$B$5:B44) -> 0 | G44: =F44-Q44 -> 0 | K44: =IF(F44>8100,8100,F44*0.8) -> 0 | L44: =K44*18.75/100 -> 0 | M44: =F44+H44+I44+J44 -> 0 | N44: =L44 -> 0 | O44: =K44*0.11 -> 0 | Q44: =P44*F44/30 -> 0 | U44: =Q44+S44+T44+O44+R44 -> 0 | V44: =M44-O44-Q44 -> 0 | W44: 750 | X44: =IF((V44+J44)>W44,(V44+J44)-W44,0) -> 0 | Y44: =X44*12 -> 0 | Z44: =IF((Y44<=15000),(Y44*0%),IF((Y44<=30000),(Y44*2.5%)-375,IF((Y44<=45000),(Y44*10%)-2625,IF((Y44<=60000),(Y44*15%)-4875,IF((Y44<=200000),(Y44*20%)-7875,IF((Y44<=400000),(Y44*22.5%)-12875,IF((Y44<=600000),(Y44*25%)-22875,IF((Y44<=700000),(Y44*25%)-22500,IF((Y44<=800000),(Y44*25%)-20250,IF((Y44<=900000),(Y44*25%)-18000,IF((Y44<=1000000),(Y44*25%)-15000,IF((Y44>=1000000),(Y44*25%)-10000)))))))))))/12) -> 0 | AA44: =M44-Q44-S44-T44-Z44-O44-R44 -> 0 | AB44: 0 | AC44: 0 | AD44: 0
A45: =SUBTOTAL(3,$B$5:B45) -> 0 | G45: =F45-Q45 -> 0 | K45: =IF(F45>8100,8100,F45*0.8) -> 0 | L45: =K45*18.75/100 -> 0 | M45: =F45+H45+I45+J45 -> 0 | N45: =L45 -> 0 | O45: =K45*0.11 -> 0 | Q45: =P45*F45/30 -> 0 | U45: =Q45+S45+T45+O45+R45 -> 0 | V45: =M45-O45-Q45 -> 0 | W45: 750 | X45: =IF((V45+J45)>W45,(V45+J45)-W45,0) -> 0 | Y45: =X45*12 -> 0 | Z45: =IF((Y45<=15000),(Y45*0%),IF((Y45<=30000),(Y45*2.5%)-375,IF((Y45<=45000),(Y45*10%)-2625,IF((Y45<=60000),(Y45*15%)-4875,IF((Y45<=200000),(Y45*20%)-7875,IF((Y45<=400000),(Y45*22.5%)-12875,IF((Y45<=600000),(Y45*25%)-22875,IF((Y45<=700000),(Y45*25%)-22500,IF((Y45<=800000),(Y45*25%)-20250,IF((Y45<=900000),(Y45*25%)-18000,IF((Y45<=1000000),(Y45*25%)-15000,IF((Y45>=1000000),(Y45*25%)-10000)))))))))))/12) -> 0 | AA45: =M45-Q45-S45-T45-Z45-O45-R45 -> 0 | AB45: 0 | AC45: 0 | AD45: 0
A46: =SUBTOTAL(3,$B$5:B46) -> 0 | G46: =F46-Q46 -> 0 | K46: =IF(F46>8100,8100,F46*0.8) -> 0 | L46: =K46*18.75/100 -> 0 | M46: =F46+H46+I46+J46 -> 0 | N46: =L46 -> 0 | O46: =K46*0.11 -> 0 | Q46: =P46*F46/30 -> 0 | U46: =Q46+S46+T46+O46+R46 -> 0 | V46: =M46-O46-Q46 -> 0 | W46: 750 | X46: =IF((V46+J46)>W46,(V46+J46)-W46,0) -> 0 | Y46: =X46*12 -> 0 | Z46: =IF((Y46<=15000),(Y46*0%),IF((Y46<=30000),(Y46*2.5%)-375,IF((Y46<=45000),(Y46*10%)-2625,IF((Y46<=60000),(Y46*15%)-4875,IF((Y46<=200000),(Y46*20%)-7875,IF((Y46<=400000),(Y46*22.5%)-12875,IF((Y46<=600000),(Y46*25%)-22875,IF((Y46<=700000),(Y46*25%)-22500,IF((Y46<=800000),(Y46*25%)-20250,IF((Y46<=900000),(Y46*25%)-18000,IF((Y46<=1000000),(Y46*25%)-15000,IF((Y46>=1000000),(Y46*25%)-10000)))))))))))/12) -> 0 | AA46: =M46-Q46-S46-T46-Z46-O46-R46 -> 0 | AB46: 0 | AC46: 0 | AD46: 0
A47: =SUBTOTAL(3,$B$5:B47) -> 0 | G47: 0 | K47: 0 | L47: 0 | M47: 0 | N47: 0 | O47: 0 | Q47: 0 | U47: 0 | V47: 0 | W47: 750 | X47: 0 | Y47: 0 | Z47: 0 | AA47: 0 | AB47: 0 | AC47: 0 | AD47: 0
A48: =SUBTOTAL(3,$B$5:B48) -> 0 | G48: 0 | K48: 0 | L48: 0 | M48: 0 | N48: 0 | O48: 0 | Q48: 0 | U48: 0 | V48: 0 | W48: 750 | X48: 0 | Y48: 0 | Z48: 0 | AA48: 0 | AB48: 0 | AC48: 0 | AD48: 0
A49: =SUBTOTAL(3,$B$5:B49) -> 0 | G49: 0 | K49: 0 | L49: 0 | M49: 0 | N49: 0 | O49: 0 | Q49: 0 | U49: 0 | V49: 0 | W49: 750 | X49: 0 | Y49: 0 | Z49: 0 | AA49: 0 | AB49: 0 | AC49: 0 | AD49: 0
A50: =SUBTOTAL(3,$B$5:B50) -> 0 | G50: =F50-Q50 -> 0 | K50: =IF(F50>8100,8100,F50*0.8) -> 0 | L50: =K50*18.75/100 -> 0 | M50: =F50+H50+I50+J50 -> 0 | N50: =L50 -> 0 | O50: =K50*0.11 -> 0 | Q50: =P50*F50/30 -> 0 | U50: =Q50+S50+T50+O50+R50 -> 0 | V50: =M50-O50-Q50 -> 0 | W50: 750 | X50: =IF((V50+J50)>W50,(V50+J50)-W50,0) -> 0 | Y50: =X50*12 -> 0 | Z50: =IF((Y50<=15000),(Y50*0%),IF((Y50<=30000),(Y50*2.5%)-375,IF((Y50<=45000),(Y50*10%)-2625,IF((Y50<=60000),(Y50*15%)-4875,IF((Y50<=200000),(Y50*20%)-7875,IF((Y50<=400000),(Y50*22.5%)-12875,IF((Y50<=600000),(Y50*25%)-22875,IF((Y50<=700000),(Y50*25%)-22500,IF((Y50<=800000),(Y50*25%)-20250,IF((Y50<=900000),(Y50*25%)-18000,IF((Y50<=1000000),(Y50*25%)-15000,IF((Y50>=1000000),(Y50*25%)-10000)))))))))))/12) -> 0 | AA50: =M50-Q50-S50-T50-Z50-O50-R50 -> 0 | AB50: 0 | AC50: 0 | AD50: 0
A51: =SUBTOTAL(3,$B$5:B51) -> 0 | G51: 0 | K51: 0 | L51: 0 | M51: 0 | N51: 0 | O51: 0 | Q51: 0 | U51: 0 | V51: 0 | W51: 750 | X51: 0 | Y51: 0 | Z51: 0 | AA51: 0 | AB51: 0 | AC51: 0 | AD51: 0
A52: =SUBTOTAL(3,$B$5:B52) -> 0 | G52: =F52-Q52 -> 0 | K52: =IF(F52>8100,8100,F52*0.8) -> 0 | L52: =K52*18.75/100 -> 0 | M52: =F52+H52+I52+J52 -> 0 | N52: =L52 -> 0 | O52: =K52*0.11 -> 0 | Q52: =P52*F52/30 -> 0 | U52: =Q52+S52+T52+O52+R52 -> 0 | V52: 0 | W52: 750 | X52: =IF((V52+J52)>W52,(V52+J52)-W52,0) -> 0 | Y52: =X52*12 -> 0 | Z52: =IF((Y52<=15000),(Y52*0%),IF((Y52<=30000),(Y52*2.5%)-375,IF((Y52<=45000),(Y52*10%)-2625,IF((Y52<=60000),(Y52*15%)-4875,IF((Y52<=200000),(Y52*20%)-7875,IF((Y52<=400000),(Y52*22.5%)-12875,IF((Y52<=600000),(Y52*25%)-22875,IF((Y52<=700000),(Y52*25%)-22500,IF((Y52<=800000),(Y52*25%)-20250,IF((Y52<=900000),(Y52*25%)-18000,IF((Y52<=1000000),(Y52*25%)-15000,IF((Y52>=1000000),(Y52*25%)-10000)))))))))))/12) -> 0 | AA52: =M52-Q52-S52-T52-Z52-O52-R52 -> 0 | AB52: 0 | AC52: 0 | AD52: 0
A53: =SUBTOTAL(3,$B$5:B53) -> 0 | G53: =F53-Q53 -> 0 | K53: =IF(F53>8100,8100,F53*0.8) -> 0 | L53: =K53*18.75/100 -> 0 | M53: =F53+H53+I53+J53 -> 0 | N53: =L53 -> 0 | O53: =K53*0.11 -> 0 | Q53: =P53*F53/30 -> 0 | U53: =Q53+S53+T53+O53+R53 -> 0 | V53: 0 | W53: 750 | X53: =IF((V53+J53)>W53,(V53+J53)-W53,0) -> 0 | Y53: =X53*12 -> 0 | Z53: =IF((Y53<=15000),(Y53*0%),IF((Y53<=30000),(Y53*2.5%)-375,IF((Y53<=45000),(Y53*10%)-2625,IF((Y53<=60000),(Y53*15%)-4875,IF((Y53<=200000),(Y53*20%)-7875,IF((Y53<=400000),(Y53*22.5%)-12875,IF((Y53<=600000),(Y53*25%)-22875,IF((Y53<=700000),(Y53*25%)-22500,IF((Y53<=800000),(Y53*25%)-20250,IF((Y53<=900000),(Y53*25%)-18000,IF((Y53<=1000000),(Y53*25%)-15000,IF((Y53>=1000000),(Y53*25%)-10000)))))))))))/12) -> 0 | AA53: =M53-Q53-S53-T53-Z53-O53-R53 -> 0 | AB53: 0 | AC53: 0 | AD53: 0
A54: =SUBTOTAL(3,$B$5:B54) -> 0 | G54: 0 | K54: 0 | L54: 0 | M54: 0 | N54: 0 | O54: 0 | Q54: 0 | U54: 0 | V54: 0 | W54: 750 | X54: 0 | Y54: 0 | Z54: 0 | AA54: 0 | AB54: 0 | AC54: 0 | AD54: 0
A55: =SUBTOTAL(3,$B$5:B55) -> 0 | G55: 0 | K55: 0 | L55: 0 | M55: 0 | N55: 0 | O55: 0 | Q55: 0 | U55: 0 | V55: 0 | W55: 750 | X55: 0 | Y55: 0 | Z55: 0 | AA55: 0 | AB55: 0 | AC55: 0 | AD55: 0
A56: =SUBTOTAL(3,$B$5:B56) -> 0 | G56: 0 | K56: 0 | L56: 0 | M56: 0 | N56: 0 | O56: 0 | Q56: 0 | U56: 0 | V56: 0 | W56: 750 | X56: 0 | Y56: 0 | Z56: 0 | AA56: 0 | AB56: 0 | AC56: 0 | AD56: 0
A57: =SUBTOTAL(3,$B$5:B57) -> 0 | G57: 0 | K57: 0 | L57: 0 | M57: 0 | N57: 0 | O57: 0 | Q57: 0 | U57: 0 | V57: 0 | W57: 750 | X57: 0 | Y57: 0 | Z57: 0 | AA57: 0 | AB57: 0 | AC57: 0 | AD57: 0
A58: =SUBTOTAL(3,$B$5:B58) -> 0 | G58: 0 | K58: 0 | L58: 0 | M58: 0 | N58: 0 | O58: 0 | Q58: 0 | U58: 0 | V58: 0 | W58: 750 | X58: 0 | Y58: 0 | Z58: 0 | AA58: 0 | AB58: 0 | AC58: 0 | AD58: 0
A59: =SUBTOTAL(3,$B$5:B59) -> 0 | G59: 0 | K59: 0 | L59: 0 | M59: 0 | N59: 0 | O59: 0 | Q59: 0 | U59: 0 | V59: 0 | W59: 750 | X59: 0 | Y59: 0 | Z59: 0 | AA59: 0 | AB59: 0 | AC59: 0 | AD59: 0
A60: =SUBTOTAL(3,$B$5:B60) -> 0 | G60: 0 | K60: 0 | L60: 0 | M60: 0 | N60: 0 | O60: 0 | Q60: 0 | U60: 0 | V60: 0 | W60: 750 | X60: 0 | Y60: 0 | Z60: 0 | AA60: 0 | AB60: 0 | AC60: 0 | AD60: 0
A61: =SUBTOTAL(3,$B$5:B61) -> 0 | G61: 0 | K61: 0 | L61: 0 | M61: 0 | N61: 0 | O61: 0 | Q61: 0 | U61: 0 | V61: 0 | W61: 750 | X61: 0 | Y61: 0 | Z61: 0 | AA61: 0 | AB61: 0 | AC61: 0 | AD61: 0
A62: =SUBTOTAL(3,$B$5:B62) -> 0 | G62: 0 | K62: 0 | L62: 0 | M62: 0 | N62: 0 | O62: 0 | Q62: 0 | U62: 0 | V62: 0 | W62: 750 | X62: 0 | Y62: 0 | Z62: 0 | AA62: 0 | AB62: 0 | AC62: 0 | AD62: 0
A63: =SUBTOTAL(3,$B$5:B63) -> 0 | G63: 0 | K63: 0 | L63: 0 | M63: 0 | N63: 0 | O63: 0 | Q63: 0 | U63: 0 | V63: 0 | W63: 750 | X63: 0 | Y63: 0 | Z63: 0 | AA63: 0 | AB63: 0 | AC63: 0 | AD63: 0
A64: =SUBTOTAL(3,$B$5:B64) -> 0 | G64: 0 | K64: 0 | L64: 0 | M64: 0 | N64: 0 | O64: 0 | Q64: 0 | U64: 0 | V64: 0 | W64: 750 | X64: 0 | Y64: 0 | Z64: 0 | AA64: 0 | AB64: 0 | AC64: 0 | AD64: 0
A65: =SUBTOTAL(3,$B$5:B65) -> 0 | G65: 0 | K65: 0 | L65: 0 | M65: 0 | N65: 0 | O65: 0 | Q65: 0 | U65: 0 | V65: 0 | W65: 750 | X65: 0 | Y65: 0 | Z65: 0 | AA65: 0 | AB65: 0 | AC65: 0 | AD65: 0
A66: =SUBTOTAL(3,$B$5:B66) -> 0 | G66: 0 | K66: 0 | L66: 0 | M66: 0 | N66: 0 | O66: 0 | Q66: 0 | U66: 0 | V66: 0 | W66: 750 | X66: 0 | Y66: 0 | Z66: 0 | AA66: 0 | AB66: 0 | AC66: 0 | AD66: 0
A67: =SUBTOTAL(3,$B$5:B67) -> 0 | G67: 0 | K67: 0 | L67: 0 | M67: 0 | N67: 0 | O67: 0 | Q67: 0 | U67: 0 | V67: 0 | W67: 750 | X67: 0 | Y67: 0 | Z67: 0 | AA67: 0 | AB67: 0 | AC67: 0 | AD67: 0
A68: =SUBTOTAL(3,$B$5:B68) -> 0 | G68: =F68-Q68 -> 0 | K68: =IF(F68>8100,8100,F68*0.8) -> 0 | L68: =K68*18.75/100 -> 0 | M68: =F68+H68+I68+J68 -> 0 | N68: =L68 -> 0 | O68: =K68*0.11 -> 0 | Q68: =P68*F68/30 -> 0 | U68: =Q68+S68+T68+O68+R68 -> 0 | V68: =M68-O68-Q68 -> 0 | W68: 750 | X68: =IF((V68+J68)>W68,(V68+J68)-W68,0) -> 0 | Y68: =X68*12 -> 0 | Z68: =IF((Y68<=15000),(Y68*0%),IF((Y68<=30000),(Y68*2.5%)-375,IF((Y68<=45000),(Y68*10%)-2625,IF((Y68<=60000),(Y68*15%)-4875,IF((Y68<=200000),(Y68*20%)-7875,IF((Y68<=400000),(Y68*22.5%)-12875,IF((Y68<=600000),(Y68*25%)-22875,IF((Y68<=700000),(Y68*25%)-22500,IF((Y68<=800000),(Y68*25%)-20250,IF((Y68<=900000),(Y68*25%)-18000,IF((Y68<=1000000),(Y68*25%)-15000,IF((Y68>=1000000),(Y68*25%)-10000)))))))))))/12) -> 0 | AA68: =M68-Q68-S68-T68-Z68-O68-R68 -> 0 | AB68: 0 | AC68: 0 | AD68: 0
A69: =SUBTOTAL(3,$B$5:B69) -> 0 | G69: 0 | K69: 0 | L69: 0 | M69: 0 | N69: 0 | O69: 0 | Q69: 0 | U69: 0 | V69: 0 | W69: 750 | X69: 0 | Y69: 0 | Z69: 0 | AA69: 0 | AB69: 0 | AC69: 0 | AD69: 0
A70: =SUBTOTAL(3,$B$5:B70) -> 0 | G70: 0 | K70: 0 | L70: 0 | M70: 0 | N70: 0 | O70: 0 | Q70: 0 | U70: 0 | V70: 0 | W70: 750 | X70: 0 | Y70: 0 | Z70: 0 | AA70: 0 | AB70: =AA70*0.01 -> 0 | AC70: =IF(M70<=2000,0,M70*0.0005) -> 0 | AD70: =AA70-AB70-AC70 -> 0
A71: =SUBTOTAL(3,$B$5:B71) -> 0 | G71: =F71-Q71 -> 0 | L71: =K71*18.75/100 -> 0 | M71: =F71+H71+I71+J71 -> 0 | N71: =L71 -> 0 | O71: =K71*0.11 -> 0 | Q71: =P71*F71/30 -> 0 | U71: =Q71+S71+T71+O71+R71 -> 0 | V71: 0 | W71: 750 | X71: =IF((V71+J71)>W71,(V71+J71)-W71,0) -> 0 | Y71: =X71*12 -> 0 | Z71: =IF((Y71<=15000),(Y71*0%),IF((Y71<=30000),(Y71*2.5%)-375,IF((Y71<=45000),(Y71*10%)-2625,IF((Y71<=60000),(Y71*15%)-4875,IF((Y71<=200000),(Y71*20%)-7875,IF((Y71<=400000),(Y71*22.5%)-12875,IF((Y71<=600000),(Y71*25%)-22875,IF((Y71<=700000),(Y71*25%)-22500,IF((Y71<=800000),(Y71*25%)-20250,IF((Y71<=900000),(Y71*25%)-18000,IF((Y71<=1000000),(Y71*25%)-15000,IF((Y71>=1000000),(Y71*25%)-10000)))))))))))/12) -> 0 | AA71: =M71-Q71-S71-T71-Z71-O71-R71 -> 0 | AB71: 0 | AC71: 0 | AD71: 0
A72: =SUBTOTAL(3,$B$5:B72) -> 0 | G72: 0 | K72: =IF(F72>8100,8100,F72*0.8) -> 0 | L72: 0 | M72: 0 | N72: 0 | O72: 0 | Q72: 0 | U72: 0 | V72: =M72-O72-Q72 -> 0 | W72: 750 | X72: 0 | Y72: 0 | Z72: 0 | AA72: 0 | AB72: 0 | AC72: 0 | AD72: 0
A73: =SUBTOTAL(3,$B$5:B73) -> 0 | G73: 0 | K73: 0 | L73: 0 | M73: 0 | N73: 0 | O73: 0 | Q73: 0 | U73: 0 | V73: 0 | W73: 750 | X73: 0 | Y73: 0 | Z73: 0 | AA73: 0 | AB73: 0 | AC73: 0 | AD73: 0
A74: =SUBTOTAL(3,$B$5:B74) -> 0 | G74: 0 | K74: 0 | L74: 0 | M74: 0 | N74: 0 | O74: 0 | Q74: 0 | U74: 0 | V74: 0 | W74: 750 | X74: 0 | Y74: 0 | Z74: 0 | AA74: 0 | AB74: 0 | AC74: 0 | AD74: 0
A75: =SUBTOTAL(3,$B$5:B75) -> 0 | G75: 0 | K75: 0 | L75: 0 | M75: 0 | N75: 0 | O75: 0 | Q75: 0 | U75: 0 | V75: 0 | W75: 750 | X75: 0 | Y75: 0 | Z75: 0 | AA75: 0 | AB75: 0 | AC75: 0 | AD75: 0
A76: =SUBTOTAL(3,$B$5:B76) -> 0 | G76: 0 | K76: 0 | L76: 0 | M76: 0 | N76: 0 | O76: 0 | Q76: 0 | U76: 0 | V76: 0 | W76: 750 | X76: 0 | Y76: 0 | Z76: 0 | AA76: 0 | AB76: 0 | AC76: 0 | AD76: 0
A77: =SUBTOTAL(3,$B$5:B77) -> 0 | G77: 0 | K77: 0 | L77: 0 | M77: 0 | N77: 0 | O77: 0 | Q77: 0 | U77: 0 | V77: 0 | W77: 750 | X77: 0 | Y77: 0 | Z77: 0 | AA77: 0 | AB77: 0 | AC77: 0 | AD77: 0
A78: =SUBTOTAL(3,$B$5:B78) -> 0 | G78: 0 | L78: 0 | M78: 0 | N78: 0 | O78: 0 | Q78: 0 | U78: 0 | V78: 0 | W78: 750 | X78: 0 | Y78: 0 | Z78: 0 | AA78: 0 | AB78: 0 | AC78: 0 | AD78: 0
A79: =SUBTOTAL(3,$B$5:B79) -> 0 | G79: 0 | K79: 0 | L79: 0 | M79: 0 | N79: 0 | O79: 0 | Q79: 0 | U79: 0 | V79: 0 | W79: 750 | X79: 0 | Y79: 0 | Z79: 0 | AA79: 0 | AB79: 0 | AC79: 0 | AD79: 0
A80: =SUBTOTAL(3,$B$5:B80) -> 0 | G80: 0 | K80: 0 | L80: 0 | M80: 0 | N80: 0 | O80: 0 | Q80: 0 | U80: 0 | V80: 0 | W80: 750 | X80: 0 | Y80: 0 | Z80: 0 | AA80: 0 | AB80: 0 | AC80: 0 | AD80: 0
A81: =SUBTOTAL(3,$B$5:B81) -> 0 | G81: 0 | K81: 0 | L81: 0 | M81: 0 | N81: 0 | O81: 0 | Q81: 0 | U81: 0 | V81: 0 | W81: 750 | X81: 0 | Y81: 0 | Z81: 0 | AA81: 0 | AB81: 0 | AC81: 0 | AD81: 0
A82: =SUBTOTAL(3,$B$5:B82) -> 0 | G82: 0 | K82: 0 | L82: 0 | M82: 0 | N82: 0 | O82: 0 | Q82: 0 | U82: 0 | V82: 0 | W82: 750 | X82: 0 | Y82: 0 | Z82: 0 | AA82: 0 | AB82: 0 | AC82: 0 | AD82: 0
A83: =SUBTOTAL(3,$B$5:B83) -> 0 | G83: =F83-Q83 -> 0 | K83: =IF(F83>8100,8100,F83*0.8) -> 0 | L83: =K83*18.75/100 -> 0 | M83: =F83+H83+I83+J83 -> 0 | N83: =L83 -> 0 | O83: =K83*0.11 -> 0 | Q83: =P83*F83/30 -> 0 | U83: =Q83+S83+T83+O83+R83 -> 0 | V83: =M83-O83-Q83 -> 0 | W83: 750 | X83: =IF((V83+J83)>W83,(V83+J83)-W83,0) -> 0 | Y83: =X83*12 -> 0 | Z83: =IF((Y83<=15000),(Y83*0%),IF((Y83<=30000),(Y83*2.5%)-375,IF((Y83<=45000),(Y83*10%)-2625,IF((Y83<=60000),(Y83*15%)-4875,IF((Y83<=200000),(Y83*20%)-7875,IF((Y83<=400000),(Y83*22.5%)-12875,IF((Y83<=600000),(Y83*25%)-22875,IF((Y83<=700000),(Y83*25%)-22500,IF((Y83<=800000),(Y83*25%)-20250,IF((Y83<=900000),(Y83*25%)-18000,IF((Y83<=1000000),(Y83*25%)-15000,IF((Y83>=1000000),(Y83*25%)-10000)))))))))))/12) -> 0 | AA83: =M83-Q83-S83-T83-Z83-O83-R83 -> 0 | AB83: 0 | AC83: 0 | AD83: 0
A84: =SUBTOTAL(3,$B$5:B84) -> 0 | G84: 0 | L84: 0 | M84: 0 | N84: 0 | O84: 0 | Q84: 0 | U84: 0 | V84: 0 | W84: 750 | X84: 0 | Y84: 0 | Z84: 0 | AA84: 0 | AB84: 0 | AC84: 0 | AD84: 0
A85: =SUBTOTAL(3,$B$5:B85) -> 0 | G85: 0 | K85: 0 | L85: 0 | M85: 0 | N85: 0 | O85: 0 | Q85: 0 | U85: 0 | V85: 0 | W85: 750 | X85: 0 | Y85: 0 | Z85: 0 | AA85: 0 | AB85: 0 | AC85: 0 | AD85: 0
A86: =SUBTOTAL(3,$B$5:B86) -> 0 | G86: 0 | K86: 0 | L86: 0 | M86: 0 | N86: 0 | O86: 0 | Q86: 0 | U86: 0 | V86: 0 | W86: 750 | X86: 0 | Y86: 0 | Z86: 0 | AA86: 0 | AB86: 0 | AC86: 0 | AD86: 0
A87: =SUBTOTAL(3,$B$5:B87) -> 0 | G87: 0 | K87: 0 | L87: 0 | M87: 0 | N87: 0 | O87: 0 | Q87: 0 | U87: 0 | V87: 0 | W87: 750 | X87: 0 | Y87: 0 | Z87: 0 | AA87: 0 | AB87: 0 | AC87: 0 | AD87: 0
A88: =SUBTOTAL(3,$B$5:B88) -> 0 | G88: 0 | K88: 0 | L88: 0 | M88: 0 | N88: 0 | O88: 0 | Q88: 0 | U88: 0 | V88: 0 | W88: 750 | X88: 0 | Y88: 0 | Z88: 0 | AA88: 0 | AB88: 0 | AC88: 0 | AD88: 0
A89: =SUBTOTAL(3,$B$5:B89) -> 0 | G89: 0 | K89: 0 | L89: 0 | M89: 0 | N89: 0 | O89: 0 | Q89: 0 | U89: 0 | V89: 0 | W89: 750 | X89: 0 | Y89: 0 | Z89: 0 | AA89: 0 | AB89: 0 | AC89: 0 | AD89: 0
A90: =SUBTOTAL(3,$B$5:B90) -> 0 | G90: 0 | K90: 0 | L90: 0 | M90: 0 | N90: 0 | O90: 0 | Q90: 0 | U90: 0 | V90: 0 | W90: 750 | X90: 0 | Y90: 0 | Z90: 0 | AA90: 0 | AB90: 0 | AC90: 0 | AD90: 0
A91: =SUBTOTAL(3,$B$5:B91) -> 0 | G91: 0 | K91: 0 | L91: 0 | M91: 0 | N91: 0 | O91: 0 | Q91: 0 | U91: 0 | V91: 0 | W91: 750 | X91: 0 | Y91: 0 | Z91: 0 | AA91: 0 | AB91: 0 | AC91: 0 | AD91: 0
A92: =SUBTOTAL(3,$B$5:B92) -> 0 | G92: 0 | K92: 0 | L92: 0 | M92: 0 | N92: 0 | O92: 0 | Q92: 0 | U92: 0 | V92: 0 | W92: 750 | X92: 0 | Y92: 0 | Z92: 0 | AA92: 0 | AB92: 0 | AC92: 0 | AD92: 0
A93: =SUBTOTAL(3,$B$5:B93) -> 0 | G93: 0 | K93: 0 | L93: 0 | M93: 0 | N93: 0 | O93: 0 | Q93: 0 | U93: 0 | V93: 0 | W93: 750 | X93: 0 | Y93: 0 | Z93: 0 | AA93: 0 | AB93: 0 | AC93: 0 | AD93: 0
A94: =SUBTOTAL(3,$B$5:B94) -> 0 | G94: 0 | K94: 0 | L94: 0 | M94: 0 | N94: 0 | O94: 0 | Q94: 0 | U94: 0 | V94: 0 | W94: 750 | X94: 0 | Y94: 0 | Z94: 0 | AA94: 0 | AB94: 0 | AC94: 0 | AD94: 0
A95: =SUBTOTAL(3,$B$5:B95) -> 0 | G95: 0 | K95: 0 | L95: 0 | M95: 0 | N95: 0 | O95: 0 | Q95: 0 | U95: 0 | V95: 0 | W95: 750 | X95: 0 | Y95: 0 | Z95: 0 | AA95: 0 | AB95: 0 | AC95: 0 | AD95: 0
A96: =SUBTOTAL(3,$B$5:B96) -> 0 | G96: 0 | K96: 0 | L96: 0 | M96: 0 | N96: 0 | O96: 0 | Q96: 0 | U96: 0 | V96: 0 | W96: 750 | X96: 0 | Y96: 0 | Z96: 0 | AA96: 0 | AB96: 0 | AC96: 0 | AD96: 0
A97: =SUBTOTAL(3,$B$5:B97) -> 0 | G97: 0 | L97: 0 | M97: 0 | N97: 0 | O97: 0 | Q97: 0 | U97: 0 | V97: 0 | W97: 750 | X97: 0 | Y97: 0 | Z97: 0 | AA97: 0 | AB97: 0 | AC97: 0 | AD97: 0
A98: =SUBTOTAL(3,$B$5:B98) -> 0 | G98: 0 | L98: 0 | M98: 0 | N98: 0 | O98: 0 | Q98: 0 | U98: 0 | V98: 0 | W98: 750 | X98: 0 | Y98: 0 | Z98: 0 | AA98: 0 | AB98: 0 | AC98: 0 | AD98: 0
A99: =SUBTOTAL(3,$B$5:B99) -> 0 | G99: 0 | L99: 0 | M99: 0 | N99: 0 | O99: 0 | Q99: 0 | U99: 0 | V99: 0 | W99: 750 | X99: 0 | Y99: 0 | Z99: 0 | AA99: 0 | AB99: 0 | AC99: 0 | AD99: 0
A100: =SUBTOTAL(3,$B$5:B100) -> 0 | G100: 0 | K100: 0 | L100: 0 | M100: 0 | N100: 0 | O100: 0 | Q100: 0 | U100: 0 | V100: 0 | W100: 750 | X100: 0 | Y100: 0 | Z100: 0 | AA100: 0 | AB100: 0 | AC100: 0 | AD100: 0
A101: =SUBTOTAL(3,$B$5:B101) -> 0 | F101: 0 | G101: 0 | K101: 0 | L101: 0 | M101: 0 | N101: 0 | O101: 0 | Q101: 0 | U101: 0 | V101: 0 | W101: 750 | X101: 0 | Y101: 0 | Z101: 0 | AA101: 0 | AB101: 0 | AC101: 0 | AD101: 0
A102: =SUBTOTAL(3,$B$5:B102) -> 0 | F102: 0 | G102: 0 | K102: 0 | L102: 0 | M102: 0 | N102: 0 | O102: 0 | Q102: 0 | U102: 0 | V102: 0 | W102: 750 | X102: 0 | Y102: 0 | Z102: 0 | AA102: 0 | AB102: 0 | AC102: 0 | AD102: 0
A103: =SUBTOTAL(3,$B$5:B103) -> 0 | F103: 0 | G103: 0 | K103: 0 | L103: 0 | M103: 0 | N103: 0 | O103: 0 | Q103: 0 | U103: 0 | V103: 0 | W103: 750 | X103: 0 | Y103: 0 | Z103: 0 | AA103: 0 | AB103: 0 | AC103: 0 | AD103: 0
A104: =SUBTOTAL(3,$B$5:B104) -> 0 | F104: 0 | G104: 0 | K104: 0 | L104: 0 | M104: 0 | N104: 0 | O104: 0 | Q104: 0 | U104: 0 | V104: 0 | W104: 750 | X104: 0 | Y104: 0 | Z104: 0 | AA104: 0 | AB104: 0 | AC104: 0 | AD104: 0
A105: =SUBTOTAL(3,$B$5:B105) -> 0 | F105: 0 | G105: 0 | K105: 0 | L105: 0 | M105: 0 | N105: 0 | O105: 0 | Q105: 0 | U105: 0 | V105: 0 | W105: 750 | X105: 0 | Y105: 0 | Z105: 0 | AA105: 0 | AB105: 0 | AC105: 0 | AD105: 0
A106: =SUBTOTAL(3,$B$5:B106) -> 0 | F106: 0 | G106: 0 | K106: 0 | L106: 0 | M106: 0 | N106: 0 | O106: 0 | Q106: 0 | U106: 0 | V106: 0 | W106: 750 | X106: 0 | Y106: 0 | Z106: 0 | AA106: 0 | AB106: 0 | AC106: 0 | AD106: 0
A107: =SUBTOTAL(3,$B$5:B107) -> 0 | F107: 0 | G107: 0 | K107: 0 | L107: 0 | M107: 0 | N107: 0 | O107: 0 | Q107: 0 | U107: 0 | V107: 0 | W107: 750 | X107: 0 | Y107: 0 | Z107: 0 | AA107: 0 | AB107: 0 | AC107: 0 | AD107: 0
A108: =SUBTOTAL(3,$B$5:B108) -> 0 | F108: 0 | G108: 0 | K108: 0 | L108: 0 | M108: 0 | N108: 0 | O108: 0 | Q108: 0 | U108: 0 | V108: 0 | W108: 750 | X108: 0 | Y108: 0 | Z108: 0 | AA108: 0 | AB108: 0 | AC108: 0 | AD108: 0
A109: =SUBTOTAL(3,$B$5:B109) -> 0 | F109: 0 | G109: 0 | K109: 0 | L109: 0 | M109: 0 | N109: 0 | O109: 0 | Q109: 0 | U109: 0 | V109: 0 | W109: 750 | X109: 0 | Y109: 0 | Z109: 0 | AA109: 0 | AB109: 0 | AC109: 0 | AD109: 0
A110: =SUBTOTAL(3,$B$5:B110) -> 0 | F110: 0 | G110: 0 | K110: 0 | L110: 0 | M110: 0 | N110: 0 | O110: 0 | Q110: 0 | U110: 0 | V110: 0 | W110: 750 | X110: 0 | Y110: 0 | Z110: 0 | AA110: 0 | AB110: 0 | AC110: 0 | AD110: 0
A111: =SUBTOTAL(3,$B$5:B111) -> 0 | F111: 0 | G111: 0 | K111: 0 | L111: 0 | M111: 0 | N111: 0 | O111: 0 | Q111: 0 | U111: 0 | V111: 0 | W111: 750 | X111: 0 | Y111: 0 | Z111: 0 | AA111: 0 | AB111: 0 | AC111: 0 | AD111: 0
A112: =SUBTOTAL(3,$B$5:B112) -> 0 | G112: 0 | K112: 0 | L112: 0 | M112: 0 | N112: 0 | O112: 0 | Q112: 0 | U112: 0 | V112: 0 | W112: 750 | X112: 0 | Y112: 0 | Z112: 0 | AA112: 0 | AB112: 0 | AC112: 0 | AD112: 0
A113: =SUBTOTAL(3,$B$5:B113) -> 0 | F113: 0 | G113: 0 | K113: 0 | L113: 0 | M113: 0 | N113: 0 | O113: 0 | Q113: 0 | U113: 0 | V113: 0 | W113: 750 | X113: 0 | Y113: 0 | Z113: 0 | AA113: 0 | AB113: 0 | AC113: 0 | AD113: 0
A114: =SUBTOTAL(3,$B$5:B114) -> 0 | F114: 0 | G114: 0 | K114: 0 | L114: 0 | M114: 0 | N114: 0 | O114: 0 | Q114: 0 | U114: 0 | V114: 0 | W114: 750 | X114: 0 | Y114: 0 | Z114: 0 | AA114: 0 | AB114: 0 | AC114: 0 | AD114: 0
A115: =SUBTOTAL(3,$B$5:B115) -> 0 | F115: 0 | G115: 0 | K115: 0 | L115: 0 | M115: 0 | N115: 0 | O115: 0 | Q115: 0 | U115: 0 | V115: 0 | W115: 750 | X115: 0 | Y115: 0 | Z115: 0 | AA115: 0 | AB115: 0 | AC115: 0 | AD115: 0
A116: =SUBTOTAL(3,$B$5:B116) -> 0 | F116: 0 | G116: 0 | K116: 0 | L116: 0 | M116: 0 | N116: 0 | O116: 0 | Q116: 0 | U116: 0 | V116: 0 | W116: 750 | X116: 0 | Y116: 0 | Z116: 0 | AA116: 0 | AB116: 0 | AC116: 0 | AD116: 0
A117: =SUBTOTAL(3,$B$5:B117) -> 0 | F117: 0 | G117: 0 | K117: 0 | L117: 0 | M117: 0 | N117: 0 | O117: 0 | Q117: 0 | U117: 0 | V117: 0 | W117: 750 | X117: 0 | Y117: 0 | Z117: 0 | AA117: 0 | AB117: 0 | AC117: 0 | AD117: 0
A118: =SUBTOTAL(3,$B$5:B118) -> 0 | F118: 0 | G118: 0 | K118: 0 | L118: 0 | M118: 0 | N118: 0 | O118: 0 | Q118: 0 | U118: 0 | V118: 0 | W118: 750 | X118: 0 | Y118: 0 | Z118: 0 | AA118: 0 | AB118: 0 | AC118: 0 | AD118: 0
A119: =SUBTOTAL(3,$B$5:B119) -> 0 | F119: 0 | G119: 0 | K119: 0 | L119: 0 | M119: 0 | N119: 0 | O119: 0 | Q119: 0 | U119: 0 | V119: 0 | W119: 750 | X119: 0 | Y119: 0 | Z119: 0 | AA119: 0 | AB119: 0 | AC119: 0 | AD119: 0
A120: =SUBTOTAL(3,$B$5:B120) -> 0 | F120: 0 | G120: 0 | K120: 0 | L120: 0 | M120: 0 | N120: 0 | O120: 0 | Q120: 0 | U120: 0 | V120: 0 | W120: 750 | X120: 0 | Y120: 0 | Z120: 0 | AA120: 0 | AB120: 0 | AC120: 0 | AD120: 0
A121: =SUBTOTAL(3,$B$5:B121) -> 0 | F121: 0 | G121: 0 | K121: 0 | L121: 0 | M121: 0 | N121: 0 | O121: 0 | Q121: 0 | U121: 0 | V121: 0 | W121: 750 | X121: 0 | Y121: 0 | Z121: 0 | AA121: 0 | AB121: 0 | AC121: 0 | AD121: 0
A122: =SUBTOTAL(3,$B$5:B122) -> 0 | G122: 0 | K122: 0 | L122: 0 | M122: 0 | N122: 0 | O122: 0 | Q122: 0 | U122: 0 | V122: 0 | W122: 750 | X122: 0 | Y122: 0 | Z122: 0 | AA122: 0 | AB122: 0 | AC122: 0 | AD122: 0
A123: =SUBTOTAL(3,$B$5:B123) -> 0 | G123: 0 | K123: 0 | L123: 0 | M123: 0 | N123: 0 | O123: 0 | Q123: 0 | U123: 0 | V123: 0 | W123: 750 | X123: 0 | Y123: 0 | Z123: 0 | AA123: 0 | AB123: 0 | AC123: 0 | AD123: 0
A124: =SUBTOTAL(3,$B$5:B124) -> 0 | F124: 0 | G124: 0 | K124: 0 | L124: 0 | M124: 0 | N124: 0 | O124: 0 | Q124: 0 | U124: 0 | V124: 0 | W124: 750 | X124: 0 | Y124: 0 | Z124: 0 | AA124: 0 | AB124: 0 | AC124: 0 | AD124: 0
A125: الاجمالى | F125: =SUM(F5:F124) -> 0 | G125: 0 | H125: 0 | I125: 0 | J125: 0 | K125: 0 | L125: 0 | M125: 0 | N125: 0 | O125: 0 | P125: 8 | Q125: 0 | R125: 0 | S125: 0 | T125: 0 | U125: 0 | V125: 0 | W125: 90000 | X125: 0 | Y125: 0 | Z125: 0 | AA125: =SUM(AA5:AA124) -> 0 | AB125: =SUM(AB5:AB124) -> 0 | AC125: 0 | AD125: 0
E127: الموارد البشرية | U127: الرئيس التنفيذي للشركة د . عمرو العدل
U128: د. عمرو العدل

Sheet سبتمبر
A4: م | B4: الاسم | C4: الوظيفة | D4: الادارة | E4: ATM | F4: الاجر الاساسى | G4: الاجر الاساسى بعد عدم الحضور | H4: مكافأت | I4: حافز بيع | J4: اضافى | K4: الاجر التامينى | L4: المنشأة | M4: اجمالي الاستحقاقات | N4: المنشأة2 | O4: الموظف | P4: عدم الحضور باليوم | Q4: عدم حضور بالجنيه | R4: مصروف صيانه | S4: سلف | T4: جزاءات | U4: اجمالي الاستقطاعات | V4: قبل الضريبة | W4: اعفاء شخصى | X4: الوعاء الضريبى | Y4: الوعاء الضريبى على اساس السنوى | Z4: الضريبة المستحقة | AA4: الصافى | AB4: خصم تكافلي | AC4: خصم الشهيد | AD4: الصافي المستحق للصرف
A5: 1 | G5: =F5-Q5 -> 0 | H5: 0 | I5: 0 | J5: 0 | K5: =IF(F5>8100,8100,F5*0.8) -> 0 | L5: =K5*18.75/100 -> 0 | M5: =F5+H5+I5+J5 -> 0 | N5: =L5 -> 0 | O5: =K5*0.11 -> 0 | Q5: =P5*F5/30 -> 0 | U5: =Q5+S5+T5+O5+R5 -> 0 | V5: =M5-O5-Q5 -> 0 | W5: 750 | X5: =IF((V5+J5)>W5,(V5+J5)-W5,0) -> 0 | Y5: =X5*12 -> 0 | Z5: =IF((Y5<=15000),(Y5*0%),IF((Y5<=30000),(Y5*2.5%)-375,IF((Y5<=45000),(Y5*10%)-2625,IF((Y5<=60000),(Y5*15%)-4875,IF((Y5<=200000),(Y5*20%)-7875,IF((Y5<=400000),(Y5*22.5%)-12875,IF((Y5<=600000),(Y5*25%)-22875,IF((Y5<=700000),(Y5*25%)-22500,IF((Y5<=800000),(Y5*25%)-20250,IF((Y5<=900000),(Y5*25%)-18000,IF((Y5<=1000000),(Y5*25%)-15000,IF((Y5>=1000000),(Y5*25%)-10000)))))))))))/12) -> 0 | AA5: =M5-Q5-S5-T5-Z5-O5-R5 -> 0 | AB5: =AA5*0.01 -> 0 | AC5: =IF(M5<=2000,0,M5*0.0005) -> 0 | AD5: =AA5-AB5-AC5 -> 0
A6: =SUBTOTAL(3,$B$5:B6) -> 0 | G6: 0 | K6: 0 | L6: 0 | M6: 0 | N6: 0 | O6: 0 | Q6: 0 | U6: 0 | V6: =M6-O6-Q6 -> 0 | W6: 750 | X6: 0 | Y6: 0 | Z6: =IF((Y6<=15000),(Y6*0%),IF((Y6<=30000),(Y6*2.5%)-375,IF((Y6<=45000),(Y6*10%)-2625,IF((Y6<=60000),(Y6*15%)-4875,IF((Y6<=200000),(Y6*20%)-7875,IF((Y6<=400000),(Y6*22.5%)-12875,IF((Y6<=600000),(Y6*25%)-22875,IF((Y6<=700000),(Y6*25%)-22500,IF((Y6<=800000),(Y6*25%)-20250,IF((Y6<=900000),(Y6*25%)-18000,IF((Y6<=1000000),(Y6*25%)-15000,IF((Y6>=1000000),(Y6*25%)-10000)))))))))))/12) -> 0 | AA6: 0 | AB6: =AA6*0.01 -> 0 | AC6: =IF(M6<=2000,0,M6*0.0005) -> 0 | AD6: =AA6-AB6-AC6 -> 0
A7: =SUBTOTAL(3,$B$5:B7) -> 0 | G7: 0 | K7: 0 | L7: 0 | M7: 0 | N7: 0 | O7: 0 | Q7: 0 | U7: 0 | V7: 0 | W7: 750 | X7: 0 | Y7: 0 | Z7: 0 | AA7: 0 | AB7: 0 | AC7: 0 | AD7: 0
A8: =SUBTOTAL(3,$B$5:B8) -> 0 | G8: 0 | K8: 0 | L8: 0 | M8: 0 | N8: 0 | O8: 0 | Q8: 0 | U8: 0 | V8: 0 | W8: 750 | X8: 0 | Y8: 0 | Z8: 0 | AA8: 0 | AB8: 0 | AC8: 0 | AD8: 0
A9: =SUBTOTAL(3,$B$5:B9) -> 0 | G9: 0 | K9: 0 | L9: 0 | M9: 0 | N9: 0 | O9: 0 | Q9: 0 | U9: 0 | V9: 0 | W9: 750 | X9: 0 | Y9: 0 | Z9: 0 | AA9: 0 | AB9: 0 | AC9: 0 | AD9: 0
A10: =SUBTOTAL(3,$B$5:B10) -> 0 | G10: 0 | K10: 0 | L10: 0 | M10: 0 | N10: 0 | O10: 0 | Q10: 0 | U10: 0 | V10: 0 | W10: 750 | X10: 0 | Y10: 0 | Z10: 0 | AA10: 0 | AB10: 0 | AC10: 0 | AD10: 0
A11: =SUBTOTAL(3,$B$5:B11) -> 0 | G11: 0 | L11: 0 | M11: 0 | N11: 0 | O11: 0 | P11: 8 | Q11: 0 | U11: 0 | V11: 0 | W11: 750 | X11: 0 | Y11: 0 | Z11: 0 | AA11: 0 | AB11: 0 | AC11: 0 | AD11: 0
A12: =SUBTOTAL(3,$B$5:B12) -> 0 | G12: 0 | K12: 0 | L12: 0 | M12: 0 | N12: 0 | O12: 0 | Q12: 0 | U12: 0 | V12: 0 | W12: 750 | X12: 0 | Y12: 0 | Z12: 0 | AA12: 0 | AB12: 0 | AC12: 0 | AD12: 0
A13: =SUBTOTAL(3,$B$5:B13) -> 0 | G13: 0 | K13: 0 | L13: 0 | M13: 0 | N13: 0 | O13: 0 | Q13: 0 | U13: 0 | V13: 0 | W13: 750 | X13: 0 | Y13: 0 | Z13: 0 | AA13: 0 | AB13: 0 | AC13: 0 | AD13: 0
A14: =SUBTOTAL(3,$B$5:B14) -> 0 | G14: 0 | K14: 0 | L14: 0 | M14: 0 | N14: 0 | O14: 0 | Q14: 0 | U14: 0 | V14: 0 | W14: 750 | X14: 0 | Y14: 0 | Z14: 0 | AA14: 0 | AB14: 0 | AC14: 0 | AD14: 0
A15: =SUBTOTAL(3,$B$5:B15) -> 0 | G15: 0 | K15: 0 | L15: 0 | M15: 0 | N15: 0 | O15: 0 | Q15: 0 | U15: 0 | V15: 0 | W15: 750 | X15: 0 | Y15: 0 | Z15: 0 | AA15: 0 | AB15: 0 | AC15: 0 | AD15: 0
A16: =SUBTOTAL(3,$B$5:B16) -> 0 | G16: 0 | K16: 0 | L16: 0 | M16: 0 | N16: 0 | O16: 0 | Q16: 0 | U16: 0 | V16: 0 | W16: 750 | X16: 0 | Y16: 0 | Z16: 0 | AA16: 0 | AB16: 0 | AC16: 0 | AD16: 0
A17: =SUBTOTAL(3,$B$5:B17) -> 0 | G17: 0 | K17: 0 | L17: 0 | M17: 0 | N17: 0 | O17: 0 | Q17: 0 | U17: 0 | V17: 0 | W17: 750 | X17: 0 | Y17: 0 | Z17: 0 | AA17: 0 | AB17: 0 | AC17: 0 | AD17: 0
A18: =SUBTOTAL(3,$B$5:B18) -> 0 | G18: 0 | K18: 0 | L18: 0 | M18: 0 | N18: 0 | O18: 0 | Q18: 0 | U18: 0 | V18: 0 | W18: 750 | X18: 0 | Y18: 0 | Z18: 0 | AA18: 0 | AB18: 0 | AC18: 0 | AD18: 0
A19: =SUBTOTAL(3,$B$5:B19) -> 0 | G19: 0 | K19: 0 | L19: 0 | M19: 0 | N19: 0 | O19: 0 | Q19: 0 | U19: 0 | V19: 0 | W19: 750 | X19: 0 | Y19: 0 | Z19: 0 | AA19: 0 | AB19: 0 | AC19: 0 | AD19: 0
A20: =SUBTOTAL(3,$B$5:B20) -> 0 | G20: 0 | K20: 0 | L20: 0 | M20: 0 | N20: 0 | O20: 0 | Q20: 0 | U20: 0 | V20: 0 | W20: 750 | X20: 0 | Y20: 0 | Z20: 0 | AA20: 0 | AB20: 0 | AC20: 0 | AD20: 0
A21: =SUBTOTAL(3,$B$5:B21) -> 0 | G21: 0 | K21: 0 | L21: 0 | M21: 0 | N21: 0 | O21: 0 | Q21: 0 | U21: 0 | V21: 0 | W21: 750 | X21: 0 | Y21: 0 | Z21: 0 | AA21: 0 | AB21: 0 | AC21: 0 | AD21: 0
A22: =SUBTOTAL(3,$B$5:B22) -> 0 | G22: 0 | K22: 0 | L22: 0 | M22: 0 | N22: 0 | O22: 0 | Q22: 0 | U22: 0 | V22: 0 | W22: 750 | X22: 0 | Y22: 0 | Z22: 0 | AA22: 0 | AB22: 0 | AC22: 0 | AD22: 0
A23: =SUBTOTAL(3,$B$5:B23) -> 0 | G23: 0 | K23: 0 | L23: 0 | M23: 0 | N23: 0 | O23: 0 | Q23: 0 | U23: 0 | V23: 0 | W23: 750 | X23: 0 | Y23: 0 | Z23: 0 | AA23: 0 | AB23: 0 | AC23: 0 | AD23: 0
A24: =SUBTOTAL(3,$B$5:B24) -> 0 | G24: =F24-Q24 -> 0 | K24: =IF(F24>8100,8100,F24*0.8) -> 0 | L24: =K24*18.75/100 -> 0 | M24: =F24+H24+I24+J24 -> 0 | N24: =L24 -> 0 | O24: =K24*0.11 -> 0 | Q24: =P24*F24/30 -> 0 | U24: =Q24+S24+T24+O24+R24 -> 0 | V24: =M24-O24-Q24 -> 0 | W24: 750 | X24: =IF((V24+J24)>W24,(V24+J24)-W24,0) -> 0 | Y24: =X24*12 -> 0 | Z24: =IF((Y24<=15000),(Y24*0%),IF((Y24<=30000),(Y24*2.5%)-375,IF((Y24<=45000),(Y24*10%)-2625,IF((Y24<=60000),(Y24*15%)-4875,IF((Y24<=200000),(Y24*20%)-7875,IF((Y24<=400000),(Y24*22.5%)-12875,IF((Y24<=600000),(Y24*25%)-22875,IF((Y24<=700000),(Y24*25%)-22500,IF((Y24<=800000),(Y24*25%)-20250,IF((Y24<=900000),(Y24*25%)-18000,IF((Y24<=1000000),(Y24*25%)-15000,IF((Y24>=1000000),(Y24*25%)-10000)))))))))))/12) -> 0 | AA24: =M24-Q24-S24-T24-Z24-O24-R24 -> 0 | AB24: 0 | AC24: 0 | AD24: 0
A25: =SUBTOTAL(3,$B$5:B25) -> 0 | G25: 0 | K25: 0 | L25: 0 | M25: 0 | N25: 0 | O25: 0 | Q25: 0 | U25: 0 | V25: 0 | W25: 750 | X25: 0 | Y25: 0 | Z25: 0 | AA25: 0 | AB25: 0 | AC25: 0 | AD25: 0
A26: =SUBTOTAL(3,$B$5:B26) -> 0 | G26: 0 | K26: 0 | L26: 0 | M26: 0 | N26: 0 | O26: 0 | Q26: 0 | U26: 0 | V26: 0 | W26: 750 | X26: 0 | Y26: 0 | Z26: 0 | AA26: 0 | AB26: 0 | AC26: 0 | AD26: 0
A27: =SUBTOTAL(3,$B$5:B27) -> 0 | G27: 0 | K27: 0 | L27: 0 | M27: 0 | N27: 0 | O27: 0 | Q27: 0 | U27: 0 | V27: 0 | W27: 750 | X27: 0 | Y27: 0 | Z27: 0 | AA27: 0 | AB27: 0 | AC27: 0 | AD27: 0
A28: =SUBTOTAL(3,$B$5:B28) -> 0 | G28: =F28-Q28 -> 0 | K28: =IF(F28>8100,8100,F28*0.8) -> 0 | L28: =K28*18.75/100 -> 0 | M28: =F28+H28+I28+J28 -> 0 | N28: =L28 -> 0 | O28: =K28*0.11 -> 0 | Q28: =P28*F28/30 -> 0 | U28: =Q28+S28+T28+O28+R28 -> 0 | V28: 0 | W28: 750 | X28: =IF((V28+J28)>W28,(V28+J28)-W28,0) -> 0 | Y28: =X28*12 -> 0 | Z28: =IF((Y28<=15000),(Y28*0%),IF((Y28<=30000),(Y28*2.5%)-375,IF((Y28<=45000),(Y28*10%)-2625,IF((Y28<=60000),(Y28*15%)-4875,IF((Y28<=200000),(Y28*20%)-7875,IF((Y28<=400000),(Y28*22.5%)-12875,IF((Y28<=600000),(Y28*25%)-22875,IF((Y28<=700000),(Y28*25%)-22500,IF((Y28<=800000),(Y28*25%)-20250,IF((Y28<=900000),(Y28*25%)-18000,IF((Y28<=1000000),(Y28*25%)-15000,IF((Y28>=1000000),(Y28*25%)-10000)))))))))))/12) -> 0 | AA28: =M28-Q28-S28-T28-Z28-O28-R28 -> 0 | AB28: 0 | AC28: 0 | AD28: 0
A29: =SUBTOTAL(3,$B$5:B29) -> 0 | G29: =F29-Q29 -> 0 | K29: =IF(F29>8100,8100,F29*0.8) -> 0 | L29: =K29*18.75/100 -> 0 | M29: =F29+H29+I29+J29 -> 0 | N29: =L29 -> 0 | O29: =K29*0.11 -> 0 | Q29: =P29*F29/30 -> 0 | U29: =Q29+S29+T29+O29+R29 -> 0 | V29: =M29-O29-Q29 -> 0 | W29: 750 | X29: =IF((V29+J29)>W29,(V29+J29)-W29,0) -> 0 | Y29: =X29*12 -> 0 | Z29: =IF((Y29<=15000),(Y29*0%),IF((Y29<=30000),(Y29*2.5%)-375,IF((Y29<=45000),(Y29*10%)-2625,IF((Y29<=60000),(Y29*15%)-4875,IF((Y29<=200000),(Y29*20%)-7875,IF((Y29<=400000),(Y29*22.5%)-12875,IF((Y29<=600000),(Y29*25%)-22875,IF((Y29<=700000),(Y29*25%)-22500,IF((Y29<=800000),(Y29*25%)-20250,IF((Y29<=900000),(Y29*25%)-18000,IF((Y29<=1000000),(Y29*25%)-15000,IF((Y29>=1000000),(Y29*25%)-10000)))))))))))/12) -> 0 | AA29: =M29-Q29-S29-T29-Z29-O29-R29 -> 0 | AB29: 0 | AC29: 0 | AD29: 0
A30: =SUBTOTAL(3,$B$5:B30) -> 0 | G30: =F30-Q30 -> 0 | K30: =IF(F30>8100,8100,F30*0.8) -> 0 | L30: =K30*18.75/100 -> 0 | M30: =F30+H30+I30+J30 -> 0 | N30: =L30 -> 0 | O30: =K30*0.11 -> 0 | Q30: =P30*F30/30 -> 0 | U30: =Q30+S30+T30+O30+R30 -> 0 | V30: =M30-O30-Q30 -> 0 | W30: 750 | X30: =IF((V30+J30)>W30,(V30+J30)-W30,0) -> 0 | Y30: =X30*12 -> 0 | Z30: =IF((Y30<=15000),(Y30*0%),IF((Y30<=30000),(Y30*2.5%)-375,IF((Y30<=45000),(Y30*10%)-2625,IF((Y30<=60000),(Y30*15%)-4875,IF((Y30<=200000),(Y30*20%)-7875,IF((Y30<=400000),(Y30*22.5%)-12875,IF((Y30<=600000),(Y30*25%)-22875,IF((Y30<=700000),(Y30*25%)-22500,IF((Y30<=800000),(Y30*25%)-20250,IF((Y30<=900000),(Y30*25%)-18000,IF((Y30<=1000000),(Y30*25%)-15000,IF((Y30>=1000000),(Y30*25%)-10000)))))))))))/12) -> 0 | AA30: =M30-Q30-S30-T30-Z30-O30-R30 -> 0 | AB30: 0 | AC30: 0 | AD30: 0
A31: =SUBTOTAL(3,$B$5:B31) -> 0 | G31: 0 | K31: 0 | L31: 0 | M31: 0 | N31: 0 | O31: 0 | Q31: 0 | U31: 0 | V31: 0 | W31: 750 | X31: 0 | Y31: 0 | Z31: 0 | AA31: 0 | AB31: 0 | AC31: 0 | AD31: 0
A32: =SUBTOTAL(3,$B$5:B32) -> 0 | G32: 0 | K32: 0 | L32: 0 | M32: 0 | N32: 0 | O32: 0 | Q32: 0 | U32: 0 | V32: 0 | W32: 750 | X32: 0 | Y32: 0 | Z32: 0 | AA32: 0 | AB32: 0 | AC32: 0 | AD32: 0
A33: =SUBTOTAL(3,$B$5:B33) -> 0 | G33: 0 | K33: 0 | L33: 0 | M33: 0 | N33: 0 | O33: 0 | Q33: 0 | U33: 0 | V33: 0 | W33: 750 | X33: 0 | Y33: 0 | Z33: 0 | AA33: 0 | AB33: 0 | AC33: 0 | AD33: 0 | AE33: 8393 | AG33: =AA33-AE33 -> -8393
A34: =SUBTOTAL(3,$B$5:B34) -> 0 | G34: =F34-Q34 -> 0 | K34: =IF(F34>8100,8100,F34*0.8) -> 0 | L34: =K34*18.75/100 -> 0 | M34: =F34+H34+I34+J34 -> 0 | N34: =L34 -> 0 | O34: =K34*0.11 -> 0 | Q34: =P34*F34/30 -> 0 | U34: =Q34+S34+T34+O34+R34 -> 0 | V34: =M34-O34-Q34 -> 0 | W34: 750 | X34: =IF((V34+J34)>W34,(V34+J34)-W34,0) -> 0 | Y34: =X34*12 -> 0 | Z34: =IF((Y34<=15000),(Y34*0%),IF((Y34<=30000),(Y34*2.5%)-375,IF((Y34<=45000),(Y34*10%)-2625,IF((Y34<=60000),(Y34*15%)-4875,IF((Y34<=200000),(Y34*20%)-7875,IF((Y34<=400000),(Y34*22.5%)-12875,IF((Y34<=600000),(Y34*25%)-22875,IF((Y34<=700000),(Y34*25%)-22500,IF((Y34<=800000),(Y34*25%)-20250,IF((Y34<=900000),(Y34*25%)-18000,IF((Y34<=1000000),(Y34*25%)-15000,IF((Y34>=1000000),(Y34*25%)-10000)))))))))))/12) -> 0 | AA34: =M34-Q34-S34-T34-Z34-O34-R34 -> 0 | AB34: 0 | AC34: 0 | AD34: 0
A35: =SUBTOTAL(3,$B$5:B35) -> 0 | G35: 0 | K35: 0 | L35: 0 | M35: 0 | N35: 0 | O35: 0 | Q35: 0 | U35: 0 | V35: 0 | W35: 750 | X35: 0 | Y35: 0 | Z35: 0 | AA35: 0 | AB35: 0 | AC35: 0 | AD35: 0
A36: =SUBTOTAL(3,$B$5:B36) -> 0 | G36: 0 | K36: 0 | L36: 0 | M36: 0 | N36: 0 | O36: 0 | Q36: 0 | U36: 0 | V36: 0 | W36: 750 | X36: 0 | Y36: 0 | Z36: 0 | AA36: 0 | AB36: 0 | AC36: 0 | AD36: 0
A37: =SUBTOTAL(3,$B$5:B37) -> 0 | G37: 0 | K37: 0 | L37: 0 | M37: 0 | N37: 0 | O37: 0 | Q37: 0 | U37: 0 | V37: 0 | W37: 750 | X37: 0 | Y37: 0 | Z37: 0 | AA37: 0 | AB37: 0 | AC37: 0 | AD37: 0
A38: =SUBTOTAL(3,$B$5:B38) -> 0 | G38: 0 | K38: 0 | L38: 0 | M38: 0 | N38: 0 | O38: 0 | Q38: 0 | U38: 0 | V38: 0 | W38: 750 | X38: 0 | Y38: 0 | Z38: 0 | AA38: 0 | AB38: 0 | AC38: 0 | AD38: 0
A39: =SUBTOTAL(3,$B$5:B39) -> 0 | G39: 0 | K39: 0 | L39: 0 | M39: 0 | N39: 0 | O39: 0 | Q39: 0 | U39: 0 | V39: 0 | W39: 750 | X39: 0 | Y39: 0 | Z39: 0 | AA39: 0 | AB39: 0 | AC39: 0 | AD39: 0
A40: =SUBTOTAL(3,$B$5:B40) -> 0 | G40: 0 | K40: 0 | L40: 0 | M40: 0 | N40: 0 | O40: 0 | Q40: 0 | U40: 0 | V40: 0 | W40: 750 | X40: 0 | Y40: 0 | Z40: 0 | AA40: 0 | AB40: 0 | AC40: 0 | AD40: 0
A41: =SUBTOTAL(3,$B$5:B41) -> 0 | G41: =F41-Q41 -> 0 | K41: =IF(F41>8100,8100,F41*0.8) -> 0 | L41: =K41*18.75/100 -> 0 | M41: =F41+H41+I41+J41 -> 0 | N41: =L41 -> 0 | O41: =K41*0.11 -> 0 | Q41: =P41*F41/30 -> 0 | U41: =Q41+S41+T41+O41+R41 -> 0 | V41: =M41-O41-Q41 -> 0 | W41: 750 | X41: =IF((V41+J41)>W41,(V41+J41)-W41,0) -> 0 | Y41: =X41*12 -> 0 | Z41: =IF((Y41<=15000),(Y41*0%),IF((Y41<=30000),(Y41*2.5%)-375,IF((Y41<=45000),(Y41*10%)-2625,IF((Y41<=60000),(Y41*15%)-4875,IF((Y41<=200000),(Y41*20%)-7875,IF((Y41<=400000),(Y41*22.5%)-12875,IF((Y41<=600000),(Y41*25%)-22875,IF((Y41<=700000),(Y41*25%)-22500,IF((Y41<=800000),(Y41*25%)-20250,IF((Y41<=900000),(Y41*25%)-18000,IF((Y41<=1000000),(Y41*25%)-15000,IF((Y41>=1000000),(Y41*25%)-10000)))))))))))/12) -> 0 | AA41: =M41-Q41-S41-T41-Z41-O41-R41 -> 0 | AB41: 0 | AC41: 0 | AD41: 0
A42: =SUBTOTAL(3,$B$5:B42) -> 0 | G42: 0 | K42: 0 | L42: 0 | M42: 0 | N42: 0 | O42: 0 | Q42: 0 | U42: 0 | V42: 0 | W42: 750 | X42: 0 | Y42: 0 | Z42: 0 | AA42: 0 | AB42: 0 | AC42: 0 | AD42: 0
